Workbook

Sheet to be hidden (hidden)
B1: Master message list
B3: message1 | C3: fill in
B4: message2 | C4: leave empty
B5: message3 | C5: Zeros in this column
B6: message4 | C6: Complete this column
B7: message5 | C7: OUTsites
B8: message6 | C8: Insites
B9: message7 | C9: Outsites & Insites
B10: message8 | C10: Total participating in CMAM that year
B11: message9 | C11: More areas
B12: message10 | C12: èè
B13: message11 | C13: C O S T S
B14: message12 | C14: Q U A N T I T I E S
B15: message13 | C15: Calculations
B16: message13b | C16: (To see calculations click on [+] in column 1).
B17: message13c | C17: (To hide calculations click on [-] in column 1 at the end of the table).
B18: message14 | C18: Annual costs of this activity
B19: message15 | C19: Quantities of inputs needed for this activity
B20: message16 | C20: Basic drivers, raw data
B21: message17 | C21: CALCULATIONS
B22: message18 | C22: Prices
B23: message19 | C23: zeros only below
B24: mess20 | C24: Units
B25: mess21 | C25: Comments | K25: check if "established" should actually refer to "all"
B26: mess22 | C26: Variable
B27: mess23 | C27: Value

Sheet Contents
B2: CMAM Costing Tool for costing community-based management of acute malnutrition (CMAM) at national, subnational, and district levels.
B6: Key to color-coding and symbols | G6: See User's Guide for help on using this Tool.
B7: gold | D7: u data provided directly by the User | H7: Version 1.1, February 2012
B8: yellow | D8: copied from data provided by the User | H8: This guide is made possible by the generous support of the American people through the support of the Office of U.S. Foreign Disaster Assistance, Bureau for Democracy, Conflict, and Humanitarian Assistance, and the Office of Health, Infectious Diseases, and Nutrition, Bureau for Global Health, U.S. Agency for International Development (USAID), under terms of Cooperative Agreement No. AID-OAA-A-11-00014, through the Food and Nutrition Technical Assistance II Project (FANTA), managed by FHI 360. The contents of this document are the responsibility of FHI 360 and do not necessarily reflect the views of USAID or the United States Government.
B9: dark green | D9: n data provided directly by the Tool (adjustable by the User)
B10: light green | D10: copied from data supplied by the Tool (or the User)
B11: purple | D11: calculations done by the Tool
B12: blue | D12: hyperlink to connect to elsewhere in the Workbook
B13: red | D13: problems to be resolved
B15: WORKSHEETS TITLES AND DESCRIPTIONS
B17: Worksheet Number and Name | F17: Description of Worksheets
B19: INTRODUCTION
D20: Contents
D21: Results Explained
B23: DATA | F23: Worksheets D1 to D9 present all the assumptions underlying the calculations presented in the results worksheets (R1 to R14) including those data provided by the User on:
C25: D1 | D25: Background | F25: Country-specific terms and scope of the CMAM service/program
C26: D2 | D26: Scale | F26: Size of the planned CMAM service/program
C27: D3 | D27: Epidemiological, demographic, and service data | F27: Epidemiology of malnutrition, demography of the population, CMAM service data
C28: D4 | D28: Prices (excluding salaries and "fixed supplies") | F28: Prices of all key inputs excluding manpower (salaries) and certain fixed supplies
C29: D5 | D29: Salaries | F29: Salaries of key categories of staff
C30: D6 | D30: Fixed supplies (for Outpatient and Inpatient Care sites) | F30: Prices of those supplies provided in fixed amounts at treatment sites
C31: D7 | D31: Frequency of therapeutic food deliveries | F31: Number of deliveries each year of RUTF and other therapeutic food to various levels
C32: D8 | D32: Group-Area- and Central-level statistics | F32: Higher level (Group-Area and Central) variables
C33: D9 | D33: Time-dependent variables | F33: Year for which the analysis will be run
B35: RESULTS (inputs & finances required for CMAM) | F35: These worksheets do not require data from the User.
C36: R1 | D36: Annual manpower requirements for CMAM | F36: Worksheets R1 to R4 present the results showing, for each of the key types of inputs (manpower, transport, supplies, and space), how much is required by the CMAM service/program for the year specified in Worksheet D9. The results are drawn from the calculations in Worksheets R6 to R14.
C37: R2 | D37: Annual transport requirements for CMAM
C38: R3 | D38: Annual supply requirements for CMAM
C39: R4 | D39: Annual space requirements for CMAM
C40: R5 | D40: Financial summary | F40: Worksheet R5 summarizes the financial costs of CMAM for the year specified in Worksheet D9. The results are drawn from the calculations in Worksheets R6 to R14.
B42: RESULTS (inputs & finances required for each CMAM activity) | F42: These worksheets do not require data from the User.
C43: R6 | D43: Group-Area- and Central-level management of CMAM | F43: These worksheets present the results in terms of amounts and value of resources required (for the year specified in Worksheet D9) for each of the key activities - headquarters (HQ) management, treatment (i.e., case management), supply logistics (transport and storage of supplies), training, supervision, and community outreach. All activities conducted at higher levels (i.e., at Group-Area- and Central-level HQ) - namely management, training, and supply logistics - are grouped into a single worksheet (R6). Activities occurring at Area HQ or below are addressed in separate worksheets (with "Treatment" subdivided for convenience into three worksheets for each of the main inputs - manpower and space, medical supplies, and other supplies).
C44: R7 | D44: Area HQ management of CMAM
C45: R8 | D45: Treatment (manpower and space)
C46: R9 | D46: Treatment (medical supplies)
C47: R10 | D47: Treatment (other supplies)
C48: R11 | D48: Supply logistics
C49: R12 | D49: Training
C50: R13 | D50: Supervision
C51: R14 | D51: Community outreach

Sheet Results Explained
B2: Results Explained
D4: What kind of information will the Tool provide about the the resources requirements of CMAM? Here are some examples.
F6: For the year | H6: =+'D9 Time-dependent'!$I$6 -> 2011 | N6: Quantities | O6: Units
E7: How much RUTF will be needed? | N7: =+'R3 Supplies'!F17 -> 1993.57125 | O7: kg
E8: How much time health care providers at Outpatient Care sites will need? | N8: =+'R1 Manpower'!F23+'R1 Manpower'!F31 -> 3.671153846 | O8: full-time equivalent years
E9: How much money will be needed for refreshments? | N9: =+('R3 Supplies'!F59+'R3 Supplies'!F60+'R3 Supplies'!F61+'R3 Supplies'!F62+'R3 Supplies'!F63)*'D4 Prices'!F26 -> 2712 | O9: =+IF('D1 Background'!$H$13="","",'D1 Background'!$H$13) -> Cedi
E10: How much distance will be covered to transport therapeutic food? | N10: =+SUM('R2 Transport'!E21+'R2 Transport'!E26+'R2 Transport'!E31) -> 192 | O10: km
E11: What will it cost to provide adequate medication to children with SAM? | N11: =+'R5 Financial Summary'!P24 -> 1310.94 | O11: =+IF('D1 Background'!$H$13="","",'D1 Background'!$H$13) -> Cedi
E12: How much space is required at Area HQ to store RUTF? | N12: =+SUM('R4 Space'!E17:E21) -> 1.218047089 | O12: m3
D14: To find answers to these questions you need to provide information about your planned CMAM service/program (entered into the gold-colored cells in Worksheets D1 to D9). Detailed instructions are at the top of each worksheet and additional assistance is provided in the User's Guide.
D16: And you could find out more . . . | N16: Go to worksheet ..
F17: What kind of staff are used for CMAM? And what will they be doing? | N17: R1 Manpower
F18: Why is all this transportation necessary? | N18: R2 Transport
F19: Who needs refreshments and what for? | N19: R3 Supplies
F20: What about storage space at Outpatient Care and Inpatient Care sites? | N20: R4 Space
F21: Which Areas need more attention from higher-level management? | N21: R6 Central activities
F22: What resources are needed to implement adequate training? | N22: R12 Training
D24: The costs of CMAM are organized in two main ways - as inputs and as activities. The table below illustrates how these are related and which kind of inputs occur in which kind of activities: the comments (which are revealed when the cursor is over the relevant cell) provide some specific examples. The table also identifies the worksheet in which each is summarized (and provides a hyperlink to it).
G26: Inputs
F27: Manpower | G27: Transport | H27: Supplies | I27: Space | J27: ALL | L27: Activities
F28: R1 | G28: R2 | H28: R3 | I28: R4 | J28: R5 | K28: ALL
F29: ***** | G29: ***** | J29: R6 | K29: CMAM management (Group-Area and Central level)
F30: ***** | G30: ***** | J30: R7 | K30: CMAM management (Area level)
F31: ***** | I31: ***** | J31: R8 | K31: Treatment (manpower)
H32: ***** | J32: R9 | K32: Treatment (medical supplies)
G33: ***** | H33: ***** | J33: R10 | K33: Treatment (other supplies)
F34: ***** | G34: ***** | H34: ***** | I34: ***** | J34: R11 | K34: Supply logistics
F35: ***** | G35: ****** | H35: ***** | I35: ***** | J35: R12 | K35: Training
F36: ***** | G36: ***** | H36: ***** | J36: R13 | K36: Supervision
F37: ***** | J37: R14 | K37: Community outreach

Sheet Reminder about Data Inputs
B2: Reminder about Data Input Worksheets [D1 through D9]
B4: The following seven worksheets (D1 to D9) present the basic data from which all the
B5: subsequent calculations of resource requirements and costs are derived.
B7: The User is required to complete gold-colored cells (look for u on the rows that have input cells).
B9: The User may wish to alter the data assumptions of the Tool (look for dark green cells and the n symbol).

Sheet D1 Background
A2: Return to Contents | C2: D1: Background
B4: Clear this Worksheet of any data entered from a previous application of this Tool by pressing this button ………..
B6: COMPLETE this worksheet (D1) before going to subsequent worksheets: the numbers you record here will influence the size and layout of some of the other worksheets.
B9: RECORD in the gold-colored cells responses to the following 9 questions (look for u):
B11: 1 | C11: Name of the country in which the CMAM service/program is being implemented. | F11: Country: | H11: Ghana | I11: u
B13: 2 | C13: Basic financial characteristics: | D13: Local currency unit (e.g., U.S. dollars, Cedi, shillings) | H13: Cedi | I13: u
D14: Base year for prices (Use the current year or one recently in the past) | H14: 2010 | I14: u
D15: Exchange rate (Amount of local currency in 1 U.S. dollar) | H15: 1.43 | I15: u
D16: Type of prices you will use | H16: Market value | I16: u
B18: 3 | C18: Locally relevant terms used for different levels of health administration.
C20: Type of levels | D20: (Examples of possible terms) | E20: The general term used in this Tool | F20: Terms used in your country for these levels
C21: Lowest level health administrative unit | D21: (district) | E21: Area | F21: District | I21: u
C22: Intermediate level health administrative unit | D22: (state, province, region, etc.) | E22: Group-Area | F22: Region | I22: u
C23: Third lowest level administrative unit | D23: (state, province, region etc) | E23: Group-Area-Collections | I23: u
C24: National level health administrative unit | D24: (country, nation) | E24: Central | F24: Nation | I24: u
B26: 4 | C26: Number of years being budgeted for (up to a maximum of 5 years). | G26: 1 | H26: u
B28: 5 | C28: First calendar year of the CMAM plan/budget. (This need not be the first year that CMAM was implemented in that country). | G28: 2011 | H28: u
C30: (This was the original reference - keep for convenience to avoid having to rename reference cells. Hide this row | H30: =+G26+1 -> 2
B31: 6 | C31: Number of Areas to be budgeted for (maximum 10). Count all Areas being budgeted for, including those where CMAM is already established or those that will begin during the period being budgeted for. | G31: 1 | H31: u
B33: 7 | C33: Number of active Group-Areas, i.e., Group-Areas containing Areas whose CMAM services/programs are being budgeted for (maximum 8, and no more than the number of Areas (question 6) or it will be highlighted in red). | G33: 1 | H33: u
B35: 8 | C35: Names of those active Group-Areas. (There is no need to record the names of other Group-Areas in the country.) | G35: =+IF($F$22="","",$F$22) -> Region | H35: =+IF($F$22="","",$F$22) -> Region
G36: Greater Accra | I36: u
I37: u
I38: u
D39: {If names highlight in red, you have recorded the names of more Group Areas than you indicated would be participating (see question 7)}. | I39: u
I40: u
I41: u
I42: u
I43: u
B45: 9 | C45: Whether CMAM has already been established at Central level (i.e., the groundwork to establish CMAM has been done - liaison with politicians and donors, development of logistical and information systems, preparation of guidelines, job aids, training materials, curricula and supervisory checklists) (yes/no). | G45: yes | H45: u
C50: HEALTH SERVICE PROVISION FACILITIES
C51: Community/outreach services | D51: (village) | E51: Community | F51: community
C52: All types of health facilities offering outpatient care for children with SAM. (Include facilities where inpatient care might also be provided). | D52: (health/ primary/ auxiliary/sub/ centre) | E52: Outpatient Care site (OC site) | F52: CHPS, community health centers, community clinics, polyclinics
C53: All types of health facilities offering inpatient care for SAM children. (Include facilities where outpatient care might also be provided). | D53: (health centre, district, provincial, regional hospital) | E53: Inpatient Care site (IC site) | F53: hospitals, certain health centers

Sheet D2 Scale
A2: Return to Contents | C2: D2: Scale
B4: THESE ROWS ARE COPIED FROM PREVIOUS WORKSHEET because you cannot do conditional formatting using cells from other worksheets
B5: 1 | C5: RECORD here the number of years you wish to budget for (maximum 5). | I5: =+'D1 Background'!G26 -> 1
C7: (This was the original reference - keep for convenience to avoid having to rename reference cells. Hide this row | I7: =+I5+1 -> 2
B8: 2 | C8: RECORD here the number of Areas to be included in the budgetary analysis (maximum 10). Include Areas that begin functioning at any time during the period you wish to budget for. | I8: =+'D1 Background'!G31 -> 1
A11: Taken from D1 and hidden | B11: 3 | C11: RECORD here the first year of the CMAM plan/budget. | I11: ='D1 Background'!G28 -> 2011
B13: Clear this Worksheet of any data entered from a previous application of this Tool by pressing this button ………..
B15: FILL IN the gold-colored cells indicated by u in the following Table, which is automatically structured by the Tool to reflect the number of Areas and years being budgeting for (as recorded in Worksheet D1):
B17: 1 | C17: The name of each Area being budgeting for over the whole period defined in Worksheet D1 (next to Area 1, Area 2, etc.). Order the Areas in terms of their importance for the program – recording first those Areas considered most essential to implement. This makes it easier if, later, you wish to drop any Areas from the CMAM program/service for lack of funds.
B19: 2 | C19: The name of the Group-Area to which each Area belongs (see Worksheet D1).
B21: 3 | C21: The number of Outpatient Care sites, Inpatient Care sites, and Community Outreach activity sites participating in CMAM for each Area. Include all active sites and not just newly established ones (i.e., (a) those that have already been established in previous years and are continuing in that year and (b) those that will be newly established and opened in that year). Do this for each of the years budgeted for and for 1 year prior to that (i.e., record sites already established before the period being budgeting for).
B23: 4 | C23: The number of SAM cases expected to enroll in each active Area for each of the years being budgeting for. See discussion in Appendix 2 of the User's Guide for advice on how to estimate this important variable.
B25: 5 | C25: The number of Community Outreach sites active in each Area for each of the years being budgeted for.
C28: =+IF('D1 Background'!$H$11="","",'D1 Background'!$H$11) -> Ghana
F29: 4 | I29: Pre-budget year | J29: YEAR 1 | K29: YEAR 2 | L29: YEAR 3 | M29: YEAR 4 | N29: YEAR 5
B30: CMAM areas | C30: =+IF('D1 Background'!$F$21="","",'D1 Background'!$F$21) -> District | D30: =+IF('D1 Background'!$F$22="","",'D1 Background'!$F$22) -> Region | E30: =+'D1 Background'!F23 -> 0 | F30: Year CMAM to start in this AREA | I30: =+IF($I$11=0,"",$I$11-1) -> 2010 | J30: =+IF(I11=0,"",I11) -> 2011 | K30: =+IF($I$11=0,"",$I$11+1) -> 2012 | L30: =+IF($I$11=0,"",$I$11+2) -> 2013 | M30: =+IF($I$11=0,"",$I$11+3) -> 2014 | N30: =+IF($I$11=0,"",$I$11+4) -> 2015
B31: Area 1 | C31: Ashiedu Keteke | D31: Greater Accra | E31: Central | F31: 1 | G31: =+message8 -> Total participating in CMAM that year
F32: =+IF(F31<F11,"re-order areas","") ->  | H32: Outpatient Care sites | I32: 2 | J32: 2 | O32: u
H33: Inpatient Care sites | I33: 1 | J33: 1 | O33: u
H34: SAM cases | J34: 150 | O34: u
H35: Community Outreach sites | J35: 100 | K35: 0 | O35: u
B36: Area 2 | E36: Central | F36: 1 | G36: =+message8 -> Total participating in CMAM that year
F37: =+IF(F36<F31,"re-order areas","") ->  | H37: Outpatient Care sites | O37: u
H38: Inpatient Care sites | O38: u
H39: SAM cases | O39: u
H40: Community Outreach sites | O40: u
B41: Area 3 | E41: Central | F41: 1 | G41: =+message8 -> Total participating in CMAM that year
F42: =+IF(F41<F36,"re-order areas","") ->  | H42: Outpatient Care sites | O42: u
H43: Inpatient Care sites | O43: u
H44: SAM cases | O44: u
H45: Community Outreach sites | O45: u
B46: Area 4 | E46: Oz | F46: 1 | G46: =+message8 -> Total participating in CMAM that year
F47: =+IF(F46<F41,"re-order areas","") ->  | H47: Outpatient Care sites | O47: u
H48: Inpatient Care sites | O48: u
H49: SAM cases | O49: u
H50: Community Outreach sites | O50: u
B51: Area 5 | E51: NZ | F51: 1 | G51: =+message8 -> Total participating in CMAM that year
F52: =+IF(F51<F46,"re-order areas","") ->  | H52: Outpatient Care sites | O52: u
H53: Inpatient Care sites | O53: u
H54: SAM cases | O54: u
H55: Community Outreach sites | O55: u
B56: Area 6 | E56: NZ | F56: 1 | G56: =+message8 -> Total participating in CMAM that year
F57: =+IF(F56<F51,"re-order areas","") ->  | H57: Outpatient Care sites | O57: u
H58: Inpatient Care sites | O58: u
H59: SAM cases | O59: u
H60: Community Outreach sites | O60: u
B61: Area 7 | E61: NZ | F61: 1 | G61: =+message8 -> Total participating in CMAM that year
F62: =+IF(F61<F56,"re-order areas","") ->  | H62: Outpatient Care sites | O62: u
H63: Inpatient Care sites | O63: u
H64: SAM cases | O64: u
H65: Community Outreach sites | O65: u
B66: Area 8 | E66: NZ | F66: 1 | G66: =+message8 -> Total participating in CMAM that year
F67: =+IF(F66<F61,"re-order areas","") ->  | H67: Outpatient Care sites | O67: u
H68: Inpatient Care sites | O68: u
H69: SAM cases | O69: u
H70: Community Outreach sites | O70: u
B71: Area 9 | E71: Ind | F71: 1 | G71: =+message8 -> Total participating in CMAM that year
F72: =+IF(F71<F66,"re-order areas","") ->  | H72: Outpatient Care sites | O72: u
H73: Inpatient Care sites | O73: u
H74: SAM cases | O74: u
H75: Community Outreach sites | O75: u
B76: Area 10 | E76: Ind | F76: 1 | G76: =+message8 -> Total participating in CMAM that year
F77: =+IF(F76<F71,"re-order areas","") ->  | H77: Outpatient Care sites | O77: u
H78: Inpatient Care sites | O78: u
H79: SAM cases | O79: u
H80: Community Outreach sites | O80: u
A82: per ha[s delete these? | G82: Total participating that year | H82: OCsites
H83: ICsites
F84: =+IF(I46="yes",#REF!,"") ->  | H84: SAM cases

Sheet D3 Epid. Demog. & Service Data
A2: Return to Contents | C2: D3: Epidemiological, Demographic, and Service/Program Data
C5: Clear this Worksheet of any data entered from a previous application of this Tool by pressing this button ………..
B7: Number of Areas included in study | D7: =+'D2 Scale'!I8 -> 1 | E7: (taken from Worksheet 2) | J7: 2. Review the default assumptions in the dark green cells and change if necessary. But read Part Four of this Guide first. Change the light green cells if the User is aware of differences among the Areas in specific variables.
B9: 1 | C9: COMPLETE the data required in the Table below. Fill in the gold-colored cells only indicated by u. If there are items that you are certain will not appear anywhere in your CMAM service/program, put "0" in the relevant cell. (Do NOT put "0" to signify that the items are not paid for, i.e., are free. For these items, you may choose to record their PRICE as "0"; see Worksheet D4.)
B11: 2 | C11: (Optional). REVIEW the values fixed by the Tool (dark green-colored cells indicated by n). Read Part 4 of the User's Guide for an explanation of the derivation of those values. If they are inappropriate for your situation, unprotect the Worksheet, make suitable changes, and re-protect the Worksheet.
B13: 3 | C13: (Optional). If you have more than one area, REVIEW the assumption (for most variables) that values relevant to Area 1 apply to other areas as well. If the assumption is not valid, unprotect the Worksheet, make appropriate changes to the light green-colored or yellow-colored cells, and re-protect the Worksheet.
F16: Area 1 | J16: Area 2 | K16: Area 3 | L16: Area 4 | M16: Area 5 | N16: Area 6 | O16: Area 7 | P16: Area 8 | Q16: Area 9 | R16: Area 10
C17: =+IF('D1 Background'!$H$11="","",'D1 Background'!$H$11) -> Ghana | E17: ='D2 Scale'!C30 -> District | F17: =+IF('D2 Scale'!$C$31="","",'D2 Scale'!$C$31) -> Ashiedu Keteke | J17: =+IF('D2 Scale'!$C$36="","",'D2 Scale'!$C$36) ->  | K17: =+IF('D2 Scale'!$C$41="","",'D2 Scale'!$C$41) ->  | L17: =+IF('D2 Scale'!$C$46="","",'D2 Scale'!$C$46) ->  | M17: =+IF('D2 Scale'!$C$51="","",'D2 Scale'!$C$51) ->  | N17: =+IF('D2 Scale'!$C$56="","",'D2 Scale'!$C$56) ->  | O17: =+IF('D2 Scale'!$C$61="","",'D2 Scale'!$C$61) ->  | P17: =+IF('D2 Scale'!$C$66="","",'D2 Scale'!$C$66) ->  | Q17: =+IF('D2 Scale'!$C$71="","",'D2 Scale'!$C$71) ->  | R17: =+IF('D2 Scale'!$C$76="","",'D2 Scale'!$C$76) -> 
E18: =+'D2 Scale'!D30 -> Region | F18: =+IF('D2 Scale'!$D$31="","",'D2 Scale'!$D$31) -> Greater Accra | J18: =+IF('D2 Scale'!$D$36="","",'D2 Scale'!$D$36) ->  | K18: =+IF('D2 Scale'!$D$41="","",'D2 Scale'!$D$41) ->  | L18: =+IF('D2 Scale'!$D$46="","",'D2 Scale'!$D$46) ->  | M18: =+IF('D2 Scale'!$D$51="","",'D2 Scale'!$D$51) ->  | N18: =+IF('D2 Scale'!$D$56="","",'D2 Scale'!$D$56) ->  | O18: =+IF('D2 Scale'!$D$61="","",'D2 Scale'!$D$61) ->  | P18: =+IF('D2 Scale'!$D$66="","",'D2 Scale'!$D$66) ->  | Q18: =+IF('D2 Scale'!$D$71="","",'D2 Scale'!$D$71) ->  | R18: =+IF('D2 Scale'!$D$76="","",'D2 Scale'!$D$76) -> 
C20: =+mess22 -> Variable | D20: =+Mess20 -> Units | E20: =+mess21 -> Comments
C21: Epidemiology of SAM
C22: % of all 0-59 months SAM cases < 6 months of age | D22: % | E22: Possible sources of data on the age breakdown of children with SAM include Demographic and Health Surveys (DHS) and Multiple Indicator Cluster Surveys (MICS). Most countries will have data from one of these sources. | F22: 10 | G22: u
C23: % of all 0-59 months SAM cases 6-11 months of age | D23: % | F23: 13 | G23: u
C24: % of all 0-59 months SAM cases 12-23 months of age | D24: % | F24: 25 | G24: u
C25: % of all 0-59 months SAM cases 24-59 months of age | D25: % | F25: 52 | G25: u
C26: Total | E26: Total percentage should be 100 | F26: =+SUM(F22:F25) -> 100 | J26: =+SUM(J22:J25) -> 0 | K26: =+SUM(K22:K25) -> 0 | L26: 0 | M26: 0 | N26: 0 | O26: 0 | P26: 0 | Q26: 0 | R26: 0
C27: Proportion of SAM children 6-59 months of age who have medical complications and require Inpatient Care | D27: proportion | E27: This will vary by country: 0.20 maximum, 0.10 in a setting with good community outreach. | F27: 0.15 | G27: n | J27: =+$F$27 -> 0.15 | K27: =+$F$27 -> 0.15 | L27: 0.15 | M27: 0.15 | N27: 0.15 | O27: 0.15 | P27: 0.15 | Q27: 0.15 | R27: 0.15
C28: Proportion of all SAM cases needing inpatient care | E28: (i.e., either under 6 months or with medical complications) | F28: =+F22/100+F27*(1-F22/100) -> 0.235 | J28: =+J22/100+J27*(1-J22/100) -> 0.15 | K28: 0.15 | L28: 0.15 | M28: 0.15 | N28: 0.15 | O28: 0.15 | P28: 0.15 | Q28: 0.15 | R28: 0.15
C29: Average number of days in inpatient care for SAM cases 6-59 months of age with medical complications | D29: days | E29: Children over 6 months are usually discharged after 4-10 days. | F29: 10 | G29: u | J29: =+$F$29 -> 10 | K29: =+$F$29 -> 10 | L29: 10 | M29: 10 | N29: 10 | O29: 10 | P29: 10 | Q29: 10 | R29: 10
C30: Average number of days in inpatient care for SAM cases < 6 months of age | D30: days | E30: Children under 6 months stay until they are fully recovered, which is usually between 1 and 3 months (i.e., roughly 30-100 days). | F30: 30 | G30: u | J30: =+$F$30 -> 30 | K30: =+$F$30 -> 30 | L30: 30 | M30: 30 | N30: 30 | O30: 30 | P30: 30 | Q30: 30 | R30: 30
C31: Average number of days in Inpatient Care for all SAM cases hospitalized | D31: days | F31: =+(F22/100*F30+F27*(1-F22/100)*F29)/(F22/100+F27*(1-F22/100)) -> 18.5106383 | J31: =+(J22/100*J30+J27*(1-J22/100)*J29)/(J22/100+J27*(1-J22/100)) -> 10 | K31: 10 | L31: 10 | M31: 10 | N31: 10 | O31: 10 | P31: 10 | Q31: 10 | R31: 10
C32: Average number of weeks SAM cases enrolled in Outpatient Care | D32: weeks | E32: This includes children with SAM 6-59 months of age with medical complications. Their Inpatient Care (stabilization and transition only) is followed by Outpatient Care to continue treatment, which, for simplicity, we assume to be the same length as for other cases, though it is usually a couple of weeks shorter. | F32: 8 | G32: n | J32: =+$F$32 -> 8 | K32: =+$F$32 -> 8 | L32: 8 | M32: 8 | N32: 8 | O32: 8 | P32: 8 | Q32: 8 | R32: 8
C33: Average number of Outpatient Care site visits per SAM case | D33: visits | F33: 8 | G33: n | J33: =+$F$33 -> 8 | K33: =+$F$33 -> 8 | L33: 8 | M33: 8 | N33: 8 | O33: 8 | P33: 8 | Q33: 8 | R33: 8
C34: Maximum number of SAM cases treated per site | D34: cases | F34: 15 | G34: n | J34: =+$F$34 -> 15 | K34: =+$F$34 -> 15 | L34: 15 | M34: 15 | N34: 15 | O34: 15 | P34: 15 | Q34: 15 | R34: 15
C35: Hours in a working day | D35: hours | F35: 8 | G35: n | J35: =+$F$35 -> 8 | K35: 8 | L35: 8 | M35: 8 | N35: 8 | O35: 8 | P35: 8 | Q35: 8 | R35: 8
C36: Days in a working year | D36: days | F36: 260 | G36: n | J36: =+$F$36 -> 260 | K36: =+$F$36 -> 260 | L36: 260 | M36: 260 | N36: 260 | O36: 260 | P36: 260 | Q36: 260 | R36: 260
C37: Treatment - time of staff
C38: Outpatient Care
C39: Senior staff hours per Outpatient Care session by child with SAM | D39: hours | E39: Anthropometry, medical assessment, diagnosis and treatment plan | F39: 0.25 | G39: n | J39: =+$F$39 -> 0.25 | K39: =+$F$39 -> 0.25 | L39: 0.25 | M39: 0.25 | N39: 0.25 | O39: 0.25 | P39: 0.25 | Q39: 0.25 | R39: 0.25
C40: Senior staff hours per Outpatient Care session | D40: hours | E40: Individual record, register and tally sheet | F40: 2 | G40: n | J40: =+$F$40 -> 2 | K40: =+$F$40 -> 2 | L40: 2 | M40: 2 | N40: 2 | O40: 2 | P40: 2 | Q40: 2 | R40: 2
C41: Senior staff hours per month per Outpatient Care site | D41: hours | E41: Monthly reporting | F41: 4 | G41: n | J41: =+$F$41 -> 4 | K41: =+$F$41 -> 4 | L41: 4 | M41: 4 | N41: 4 | O41: 4 | P41: 4 | Q41: 4 | R41: 4
C42: Junior staff hours per Outpatient Care session by child with SAM | D42: hours | E42: Anthropometry, medical assessment, diagnosis and treatment plan | F42: 0.25 | G42: n | J42: =+$F$42 -> 0.25 | K42: =+$F$42 -> 0.25 | L42: 0.25 | M42: 0.25 | N42: 0.25 | O42: 0.25 | P42: 0.25 | Q42: 0.25 | R42: 0.25
C43: Junior staff hours per Outpatient Care session | D43: hours | E43: Appetite test, therapeutic food distribution | F43: 2 | G43: n | J43: =+$F$43 -> 2 | K43: =+$F$43 -> 2 | L43: 2 | M43: 2 | N43: 2 | O43: 2 | P43: 2 | Q43: 2 | R43: 2
C44: Junior staff hours per month per Outpatient Care site | D44: hours | E44: Monthly reporting | F44: 4 | G44: n | J44: =+$F$44 -> 4 | K44: =+$F$44 -> 4 | L44: 4 | M44: 4 | N44: 4 | O44: 4 | P44: 4 | Q44: 4 | R44: 4
C45: Inpatient Care
C46: Clinical assessment (hours per child)
C47: Senior staff (nurse, doctor, dietician) | D47: hours | E47: 1 hour on first day and another hour on the day of discharge | F47: 2 | G47: n | J47: =+$F$47 -> 2 | K47: =+$F$47 -> 2 | L47: 2 | M47: 2 | N47: 2 | O47: 2 | P47: 2 | Q47: 2 | R47: 2
C48: Junior staff (nurse) | D48: hours | E48: 1 hour on first day and another hour on the day of discharge | F48: 2 | G48: n | J48: =+$F$48 -> 2 | K48: =+$F$48 -> 2 | L48: 2 | M48: 2 | N48: 2 | O48: 2 | P48: 2 | Q48: 2 | R48: 2
C49: Clinical assessment (per Inpatient Care day per child)
C50: Senior staff (nurse, doctor, dietician) | D50: hours | E50: Half an hour each day (except first and last days) | F50: 0.5 | G50: n | J50: =+$F$50 -> 0.5 | K50: =+$F$50 -> 0.5 | L50: 0.5 | M50: 0.5 | N50: 0.5 | O50: 0.5 | P50: 0.5 | Q50: 0.5 | R50: 0.5
C51: Junior staff (nurse) | D51: hours | E51: Half an hour each day (except first and last days) | F51: 0.5 | G51: n | J51: =+$F$51 -> 0.5 | K51: =+$F$51 -> 0.5 | L51: 0.5 | M51: 0.5 | N51: 0.5 | O51: 0.5 | P51: 0.5 | Q51: 0.5 | R51: 0.5
C52: Food preparation - junior staff (hours/day/Inpatient Care site) | D52: hours | E52: 8 feeds a day taking 20 minutes each to prepare | F52: 3 | G52: n | J52: =+$F$52 -> 3 | K52: =+$F$52 -> 3 | L52: 3 | M52: 3 | N52: 3 | O52: 3 | P52: 3 | Q52: 3 | R52: 3
C53: Supervision of feeding first 3 days - junior staff (hours/child/day) | D53: hours | E53: 15 minutes for each of 8 feeds per day | F53: 2 | G53: n | J53: =+$F$53 -> 2 | K53: =+$F$53 -> 2 | L53: 2 | M53: 2 | N53: 2 | O53: 2 | P53: 2 | Q53: 2 | R53: 2
C54: Supervision of feeding after first 3 days - junior staff (hours/child/day) | D54: hours | E54: 10 minutes for each of 6 feeds | F54: 1 | G54: n | J54: =+$F$54 -> 1 | K54: =+$F$54 -> 1 | L54: 1 | M54: 1 | N54: 1 | O54: 1 | P54: 1 | Q54: 1 | R54: 1
C55: Record keeping - senior staff (hours/week/Inpatient Care site) | D55: hours | F55: 5 | G55: n | J55: =+$F$55 -> 5 | K55: =+$F$55 -> 5 | L55: 5 | M55: 5 | N55: 5 | O55: 5 | P55: 5 | Q55: 5 | R55: 5
C56: Treatment - space required
C57: Outpatient Care
C58: Space occupied by caregiver and child at Outpatient Care session (per SAM child) | D58: m2 | E58: A rough indication of space for caregiver and child to sit comfortably | F58: 1 | G58: n | J58: =+$F$58 -> 1 | K58: =+$F$58 -> 1 | L58: 1 | M58: 1 | N58: 1 | O58: 1 | P58: 1 | Q58: 1 | R58: 1
C59: Length of the session (time caregiver and child spend at Outpatient Care session) | D59: hours | E59: Includes, e.g., waiting time, assessment, feeding, collection of RUTF | F59: 4 | G59: n | J59: =+$F$59 -> 4 | K59: =+$F$59 -> 4 | L59: 4 | M59: 4 | N59: 4 | O59: 4 | P59: 4 | Q59: 4 | R59: 4
C60: Space occupied by staff caring for SAM children at Outpatient Care session (per staff member active in Outpatient Care). | D60: m2 | E60: Assuming that each staff member requires space of 2 m x 2 m during the period they are active in managing child with SAM (whether weighing, assessing, feeding). | F60: 4 | G60: n | J60: =+$F$60 -> 4 | K60: =+$F$60 -> 4 | L60: 4 | M60: 4 | N60: 4 | O60: 4 | P60: 4 | Q60: 4 | R60: 4
C61: Inpatient Care
C62: Space occupied by inpatients (an adult bed with sufficient room for caregiver and staff to move around) per inpatient. | D62: m2 | E62: Assuming adult beds are 1 x 2 m and there is 1 m between adjacent beds and 2 m between opposite beds. | F62: 7 | G62: n | J62: =+$F$62 -> 7 | K62: =+$F$62 -> 7 | L62: 7 | M62: 7 | N62: 7 | O62: 7 | P62: 7 | Q62: 7 | R62: 7
C63: Space occupied by staff caring for inpatients with SAM | D63: m2 | E63: Assuming each Inpatient Care ward has enough space for a large desk and chairs for nurses or doctors | F63: 5 | G63: n | J63: =+$F$63 -> 5 | K63: =+$F$63 -> 5 | L63: 5 | M63: 5 | N63: 5 | O63: 5 | P63: 5 | Q63: 5 | R63: 5
C64: Community Outreach
C65: Mid-level Area manager
C66: Time to assist staff in a new Outpatient Care site, to design community outreach materials, prepare guidance on strategies, do community mapping and select communities (per new Outpatient Care site) | D66: days | F66: 1 | G66: n | J66: =+$F$66 -> 1 | K66: =+$F$66 -> 1 | L66: 1 | M66: 1 | N66: 1 | O66: 1 | P66: 1 | Q66: 1 | R66: 1
C67: Number of return journeys from Area to Outpatient Care site (per new Outpatient Care site) | D67: journeys | F67: 1 | G67: n | J67: =+$F$67 -> 1 | K67: =+$F$67 -> 1 | L67: 1 | M67: 1 | N67: 1 | O67: 1 | P67: 1 | Q67: 1 | R67: 1
C68: Senior Outpatient Care health care provider
C69: Time in a new Outpatient Care site, to design community outreach materials, prepare guidance on strategies, do community mapping and select communities (per new Outpatient Care site). | D69: days | F69: 5 | G69: n | J69: =+$F$69 -> 5 | K69: =+$F$69 -> 5 | L69: 5 | M69: 5 | N69: =+$F$69 -> 5 | O69: 5 | P69: 5 | Q69: 5 | R69: 5
C70: Time in a new Community Outreach activity site, to conduct community sensitization meetings (and selection of volunteers if relevant) | D70: days | F70: 2 | G70: n | J70: =+$F$70 -> 2 | K70: =+$F$70 -> 2 | L70: 2 | M70: 2 | N70: 2 | O70: 2 | P70: 2 | Q70: 2 | R70: 2
C71: Number of return journeys to Community Outreach activity sites (per new Community Outreach activity site) | D71: journeys | F71: 2 | G71: n | J71: =+$F$71 -> 2 | K71: =+$F$71 -> 2 | L71: 2 | M71: 2 | N71: 2 | O71: 2 | P71: 2 | Q71: 2 | R71: 2
C72: Junior Outpatient Care health care provider
C73: Time in a new Outpatient Care site, to design community outreach materials, prepare guidance on strategies, do community mapping and select communities (per new Outpatient Care site) | D73: days | F73: 5 | G73: n | J73: =+$F$73 -> 5 | K73: =+$F$73 -> 5 | L73: 5 | M73: 5 | N73: 5 | O73: 5 | P73: 5 | Q73: 5 | R73: 5
C74: Time in a new Community Outreach activity site, to conduct community sensitization meetings (and selection of volunteers if relevant) | D74: days | F74: 2 | G74: n | J74: =+$F$74 -> 2 | K74: =+$F$74 -> 2 | L74: 2 | M74: 2 | N74: 2 | O74: 2 | P74: 2 | Q74: 2 | R74: 2
C75: Number of return journeys to Community Outreach activity sites (per new Community Outreach activity site) | D75: journeys | F75: 2 | G75: n | J75: =+$F$75 -> 2 | K75: =+$F$75 -> 2 | L75: 2 | M75: 2 | N75: 2 | O75: 2 | P75: 2 | Q75: 2 | R75: 2
C76: Community Outreach Worker
C77: Are those doing CMAM community outreach (i.e., community outreach workers [COWs]) paid staff (e.g., community health workers [CHWs]) or volunteers? | F77: Volunteer | G77: u
C78: Time in the Community: (1) Home visits for problem cases, (2) identification of new cases and referral to CMAM, (3) community mobilization, (4) liaison with community leaders, and community assessment (per year per Community Outreach activity site) | D78: days | E78: One day a month on each of activities 1, 2 and 3; and 2 days a year for activity 4. | F78: 38 | G78: n | J78: =+$F$78 -> 38 | K78: =+$F$78 -> 38 | L78: 38 | M78: 38 | N78: 38 | O78: 38 | P78: 38 | Q78: 38 | R78: 38
C79: Time at Outpatient Care for data and reporting (per year per Community Outreach activity site) | D79: days | E79: One day a month | F79: 12 | G79: n | J79: =+$F$79 -> 12 | K79: =+$F$79 -> 12 | L79: 12 | M79: 12 | N79: 12 | O79: 12 | P79: 12 | Q79: 12 | R79: 12
C80: Minimum number of staff per COW required per Community Outreach activity site | D80: staff | E80: If volunteers, one per site; if CHWs then the number of hours required per Community Outreach activity site divided by the number of hours in a working year. | F80: =+IF(F77="volunteer",1,(F78+F79)/F36) -> 1 | J80: =+IF(J77="volunteer",1,(J78+J79)/J36) -> 0.1923076923 | K80: 0.1923076923 | L80: 0.1923076923 | M80: 0.1923076923 | N80: 0.1923076923 | O80: 0.1923076923 | P80: 0.1923076923 | Q80: 0.1923076923 | R80: 0.1923076923
C81: Number of return journeys between Outpatient Care and Community Outreach activity site (per Community Outreach activity site) | D81: journeys | E81: For CHWs: 1 for each day of work in the community For volunteers: 1 for each day in Outpatient Care site | F81: =+IF(F77="CHW (staff)",F78,IF(F77="volunteer",F79,0)) -> 12 | G81: n | J81: =+IF(J77="CHW (staff)",J78,IF(J77="volunteer",J79,0)) -> 0 | K81: 0 | L81: 0 | M81: 0 | N81: 0 | O81: 0 | P81: 0 | Q81: 0 | R81: 0
C82: Treatment - drugs for associated health issues
C83: How is malaria diagnosed? | E83: If malaria is endemic it may be appropriate not to test and instead to treat any SAM child with malaria symptoms or even to treat all SAM children presumptively. | F83: presumptive treatment | G83: u | J83: there is no malaria | K83: there is no malaria
C84: (If malaria is treated but not presumptively) what percentage of children with SAM show symptoms of malaria? (annual average) | D84: % | E84: If this data is not available, use figures on the prevalence of all children under five who have malaria. | G84: u
C85: (If diagnostic tests are used), what percentage of those children with SAM who show symptoms of malaria, have the diagnosis confirmed with testing? | D85: % | G85: u
C86: Number of tests to administer to each SAM case to establish whether suffering from malaria. | D86: tests | E86: Testing is not sensitive in children with SAM (because of their low parasite load). It may be appropriate to repeat testing after 1-2 weeks in treatment. | F86: 1 | G86: n | J86: =+$F86 -> 1 | K86: 1 | L86: 1 | M86: 1 | N86: 1 | O86: 1 | P86: 1 | Q86: 1 | R86: 1
C87: Percentage of hospitalized SAM cases who are dehydrated | D87: % | E87: This figure is usually between 20% and 50% of hospitalized patients with SAM). | F87: 35 | G87: u | J87: =+$F$87 -> 35 | K87: =+$F$87 -> 35 | L87: 35 | M87: 35 | N87: 35 | O87: 35 | P87: 35 | Q87: 35 | R87: 35
C88: ReSoMal for rehydration per dehydrated child with SAM | D88: packets of 84 g | F88: 2 | G88: n | J88: =+$F88 -> 2 | K88: 2 | L88: 2 | M88: 2 | N88: 2 | O88: 2 | P88: 2 | Q88: 2 | R88: 2
C89: Are other tests (excluding for malaria) routinely conducted on hospitalized SAM cases? | D89: yes/no | F89: yes | G89: u | J89: =+$F$89 -> yes | K89: =+$F$89 -> yes | L89: yes | M89: yes | N89: yes | O89: yes | P89: yes | Q89: yes | R89: yes
C90: (If tests are routinely conducted) list the other tests routinely conducted (e.g., HIV, blood glucose, hemoglobin) | E90: HIV, Hemoglobin, Blood glucose, and TB occasionally | G90: u
C91: The percentage of Inpatient Care SAM cases requiring IV kits | D91: % | F91: 10 | G91: n | J91: =+$F$91 -> 10 | K91: =+$F$91 -> 10 | L91: 10 | M91: 10 | N91: 10 | O91: 10 | P91: 10 | Q91: 10 | R91: 10
C92: The percentage of Inpatient Care SAM cases requiring nasogastric tubes | D92: % | F92: 25 | G92: n | J92: =+$F$92 -> 25 | K92: =+$F$92 -> 25 | L92: 25 | M92: 25 | N92: 25 | O92: 25 | P92: 25 | Q92: 25 | R92: 25
C93: Sugar water for use in outpatient setting to prevent dehydration (per child attending outpatient session) | D93: liter | F93: 0.1 | G93: n | J93: =+$F93 -> 0.1 | K93: 0.1 | L93: 0.1 | M93: 0.1 | N93: 0.1 | O93: 0.1 | P93: 0.1 | Q93: 0.1 | R93: 0.1
C94: Vitamin A capsules per SAM case 6-11 months of age | D94: 100,000 IU capsules | F94: 1 | G94: n | J94: =+$F94 -> 1 | K94: 1 | L94: 1 | M94: 1 | N94: 1 | O94: 1 | P94: 1 | Q94: 1 | R94: 1
C95: Vitamin A capsules per SAM case 12-59 months of age | F95: 2 | G95: n | J95: 2 | K95: 2 | L95: 2 | M95: 2 | N95: 2 | O95: 2 | P95: 2 | Q95: 2 | R95: 2
C96: Amoxicillin per SAM case | D96: g | F96: 3 | G96: n | J96: 3 | K96: 3 | L96: 3 | M96: 3 | N96: 3 | O96: 3 | P96: 3 | Q96: 3 | R96: 3
C97: Albendazole per SAM case 12-23 months of age | D97: tablet (100 mg) | F97: 2 | G97: n | J97: 2 | K97: 2 | L97: 2 | M97: 2 | N97: 2 | O97: 2 | P97: 2 | Q97: 2 | R97: 2
C98: Albendazole per SAM case 24-59 months of age | F98: 4 | G98: n | J98: 4 | K98: 4 | L98: 4 | M98: 4 | N98: 4 | O98: 4 | P98: 4 | Q98: 4 | R98: 4
C99: Measles vaccine per SAM case over 6 months of age without medical complications | D99: dose | F99: 1 | G99: n | J99: =+$F$99 -> 1 | K99: =+$F$99 -> 1 | L99: 1 | M99: 1 | N99: 1 | O99: 1 | P99: 1 | Q99: 1 | R99: 1
C100: Measles vaccine per SAM case over 6 months of age with medical complications | D100: doses | F100: 2 | G100: n | J100: =+$F$100 -> 2 | K100: =+$F$100 -> 2 | L100: 2 | M100: 2 | N100: 2 | O100: 2 | P100: 2 | Q100: 2 | R100: 2
C101: Measles ad syringe per SAM case over 6 months of age without medical complications | D101: syringe | F101: 1 | G101: n | J101: =+$F$101 -> 1 | K101: =+$F$101 -> 1 | L101: 1 | M101: 1 | N101: 1 | O101: 1 | P101: 1 | Q101: 1 | R101: 1
C102: Measles ad syringe per SAM case over 6 months of age with medical complications | D102: syringe | F102: 2 | G102: n | J102: =+$F$102 -> 2 | K102: =+$F$102 -> 2 | L102: 2 | M102: 2 | N102: 2 | O102: 2 | P102: 2 | Q102: 2 | R102: 2
C103: Measles mixing syringe per SAM case over 6 months of age without medical complications | D103: syringe | F103: 0.1 | G103: n | J103: =+$F$103 -> 0.1 | K103: =+$F$103 -> 0.1 | L103: 0.1 | M103: 0.1 | N103: 0.1 | O103: 0.1 | P103: 0.1 | Q103: 0.1 | R103: 0.1
C104: Measles mixing syringe per SAM case over 6 months of age with medical complications | D104: syringe | F104: 0.2 | G104: n | J104: =+$F$104 -> 0.2 | K104: =+$F$104 -> 0.2 | L104: 0.2 | M104: 0.2 | N104: 0.2 | O104: 0.2 | P104: 0.2 | Q104: 0.2 | R104: 0.2
C105: Treatment - therapeutic food and other materials
C106: Amount of RUTF required per SAM case without medical complications | D106: kg | F106: 12 | G106: n | J106: =+$F$106 -> 12 | K106: 12 | L106: 12 | M106: 12 | N106: 12 | O106: 12 | P106: 12 | Q106: 12 | R106: 12
C107: Amount of RUTF required per SAM case with medical complications | D107: kg | E107: Assuming 95% of cases with complications receive 12 kg | F107: 11.4 | G107: n | J107: =+$F$107 -> 11.4 | K107: =+$F$107 -> 11.4 | L107: 11.4 | M107: 11.4 | N107: 11.4 | O107: 11.4 | P107: 11.4 | Q107: 11.4 | R107: 11.4
C108: Amount RUTF provided by Inpatient Care per SAM child with medical complications | D108: kg | E108: Assuming the 95% of cases with complications who receive RUTF receive 1 kg of their 12 kg while in Inpatient Care (and the remaining 11 kg in Outpatient Care). | F108: 0.95 | G108: n | J108: =+$F$108 -> 0.95 | K108: =+$F$108 -> 0.95 | L108: 0.95 | M108: 0.95 | N108: 0.95 | O108: 0.95 | P108: 0.95 | Q108: 0.95 | R108: 0.95
C109: Estimated losses of RUTF and F-100 and F-75 (between purchase and distribution to child) | D109: % | F109: 10 | G109: n | J109: =+$F$109 -> 10 | K109: 10 | L109: 10 | M109: 10 | N109: 10 | O109: 10 | P109: 10 | Q109: 10 | R109: 10
C110: Amount of F-75 per SAM case with medical complications | D110: kg | F110: 2 | G110: n | J110: =+$F$110 -> 2 | K110: 2 | L110: 2 | M110: 2 | N110: 2 | O110: 2 | P110: 2 | Q110: 2 | R110: 2
C111: Amount of F-100 per SAM case with medical complications | D111: kg | E111: Assuming 5% of SAM cases with complications receive 12 kg | F111: 0.6 | G111: n | J111: =+$F$111 -> 0.6 | K111: 0.6 | L111: 0.6 | M111: 0.6 | N111: 0.6 | O111: 0.6 | P111: 0.6 | Q111: 0.6 | R111: 0.6
C112: Set of Outpatient Care treatment cards | D112: card | F112: 1 | G112: n | J112: =+$F112 -> 1 | K112: 1 | L112: 1 | M112: 1 | N112: 1 | O112: 1 | P112: 1 | Q112: 1 | R112: 1
C113: Set of Inpatient Care treatment cards | D113: card | F113: 1 | G113: n | J113: 1 | K113: 1 | L113: 1 | M113: 1 | N113: 1 | O113: 1 | P113: 1 | Q113: 1 | R113: 1 | S113: =+$F113 -> 1
C114: RUTF ration card for new admissions per SAM case | D114: card | F114: 1 | G114: n | J114: 1 | K114: 1 | L114: 1 | M114: 1 | N114: 1 | O114: 1 | P114: 1 | Q114: 1 | R114: 1
C115: Bracelets per SAM case | D115: bracelet | E115: Not always used | F115: 1 | G115: n | J115: =+$F$115 -> 1 | K115: =+$F$115 -> 1 | L115: 1 | M115: 1 | N115: 1 | O115: 1 | P115: 1 | Q115: 1 | R115: 1
C116: Hand towels per Outpatient Care session | D116: rolls | E116: Not always used | F116: 2 | G116: n | J116: =+$F$116 -> 2 | K116: =+$F$116 -> 2 | L116: 2 | M116: 2 | N116: 2 | O116: 2 | P116: 2 | Q116: 2 | R116: 2
C117: Soap per outpatient care session | D117: bars | F117: 1 | G117: n | J117: =+$F$117 -> 1 | K117: =+$F$117 -> 1 | L117: 1 | M117: 1 | N117: 1 | O117: 1 | P117: 1 | Q117: 1 | R117: 1
C118: Food for caregiver (per day child in hospital) | D118: meals | F118: 1 | G118: n | J118: =+$F$118 -> 1 | K118: =+$F$118 -> 1 | L118: 1 | M118: 1 | N118: 1 | O118: 1 | P118: 1 | Q118: 1 | R118: 1
C119: Number of adult-sized hospital beds per child with SAM hospitalized | E119: (Caregiver shares child's bed) | F119: 1 | G119: n | J119: =+$F$119 -> 1 | K119: =+$F$119 -> 1 | L119: 1 | M119: 1 | N119: 1 | O119: 1 | P119: 1 | Q119: 1 | R119: 1
C120: Drinking water per Outpatient Care session | D120: liter | F120: 1 | G120: n | J120: =+$F$120 -> 1 | K120: =+$F$120 -> 1 | L120: 1 | M120: 1 | N120: 1 | O120: 1 | P120: 1 | Q120: 1 | R120: 1
C121: Transport-related
C122: Amount of down-time (waiting, stacking etc) per (one-way) delivery trip of therapeutic food for drivers of vehicles | D122: hours | F122: 1 | G122: n | J122: =+$F$122 -> 1 | K122: =+$F$122 -> 1 | L122: 1 | M122: 1 | N122: 1 | O122: 1 | P122: 1 | Q122: 1 | R122: 1
C123: Average distance between Outpatient Care site and Area HQ | D123: km | E123: The log books of drivers are a good source of information on the various distances required here. Drivers themselves will also be able to supply good estimates of the amount of time it takes to do the various journeys identified here. For Area to Outpatient Care/Inpatient Care sites; and Outpatient Care sites to Community Outreach activity sites, average the data over all the potential sites. Note that the distance and time to record here relates to the one-way and not the return journey. | F123: 5 | G123: u
C124: Average time to reach Outpatient Care site from Area HQ | D124: hours | F124: 0.25 | G124: u
C125: Average distance between Inpatient Care site and Area HQ | D125: km | F125: 5 | G125: u
C126: Average time to reach Inpatient Care site from Area HQ | D126: hours | F126: 0.25 | G126: u
C127: Distance between Area HQ and Group-Area HQ | D127: km | F127: 1 | G127: u
C128: Time to reach Area HQ from Group-Area HQ | D128: hours | F128: 0.1 | G128: u
C129: Average distance between Inpatient Care site and Outpatient Care site | D129: km | F129: 1.5 | G129: u
C130: Average time to reach Inpatient Care site from Outpatient Care site | D130: hours | F130: 0.1 | G130: u
C131: Average distance between Outpatient Care site and Community Outreach activity site | D131: km | F131: 3 | G131: u
C132: Average time to reach Community Outreach activity site from Outpatient Care site | D132: hours | F132: 0.25 | G132: u
C133: Storage - related (NOTE: If F-75 and F-100 are made on-site, measure the space occupied by the ingredients required to make 1 kg of the product).
C134: Are you using commercial RUTF? | E134: Standard box: 13.8 kg RUTF dimensions 38.5cm X 29cm X 20.8 cm | F134: yes | G134: u
C135: The weight of RUTF in a standard storage box of RUTF units | D135: kg | E135: These only need to be filled if the RUTF is not Nutriset's Plumpy'nut® (13.8 kg in a box 38.5 cm X 29 cm X 20.8 cm). The weight to record is the weight of RUTF itself (and not the weight of any packaging associated with the box or packaging) | G135: u
C136: The width of a standard storage box of RUTF | D136: cm | G136: u
C137: The length of a standard storage box of RUTF | D137: cm | G137: u
C138: The height of a standard storage box of RUTF | D138: cm | G138: u
C139: The Volume occupied by one standard storage box of RUTF | D139: m3 | E139: Width (cm) * breadth (cm) * height (cm) / 1,000,000 | F139: =+IF(F134="yes",0.0232,(F136*F137*F138)/1000000) -> 0.0232
C140: Volume occupied by 1 kg RUTF | D140: m3 | F140: =+IF(F134="yes",0.0017,IF(F139=0,0,F139/F135)) -> 0.0017 | J140: =+F140 -> 0.0017 | K140: =+F140 -> 0.0017 | L140: =+F140 -> 0.0017 | M140: =+F140 -> 0.0017 | N140: =+F140 -> 0.0017 | O140: =+F140 -> 0.0017 | P140: =+F140 -> 0.0017 | Q140: =+F140 -> 0.0017 | R140: =+F140 -> 0.0017
C141: Are you using Nutriset's F-75? | E141: If "Yes" the volume is calculated automatically and there is no need to provide data on weight or dimensions. | F141: yes | G141: u
C142: Weight of F-75 in a standard storage box | D142: kg | E142: Only the weight of the F-75 (not packaging) | G142: u
C143: The width of a standard storage box of F-75 | D143: cm | E143: If F-75 is made on-site from raw ingredients (powdered milk, sugar, etc.) roughly measure the space occupied by the amounts of all ingredients required to make the weight of F-75 specified in row 141 above. | G143: u
C144: The length of a standard storage box of F-75 | D144: cm | G144: u
C145: The height of a standard storage box of F-75 | D145: cm | G145: u
C146: Volume occupied by one standard storage box of F-75 | D146: m3 | E146: Width (cm) * breadth (cm) * height (cm)/1,000,000 | F146: =+IF(F141="yes",0.0265,F143*F144*F145/1000000) -> 0.0265
C147: Volume occupied by 1 kg F-75 | D147: m3 | F147: =+IF(F141="yes",0.0032,IF(F146=0,0,F146/F142)) -> 0.0032 | J147: =+$F$147 -> 0.0032 | K147: =+$F$147 -> 0.0032 | L147: 0.0032 | M147: 0.0032 | N147: 0.0032 | O147: 0.0032 | P147: 0.0032 | Q147: 0.0032 | R147: 0.0032
C148: Are you using Nutriset's F-100? | F148: no | G148: u
C149: Weight of F100 in a standard storage box | D149: kg | E149: Only the weight of the F-100 (not packaging) | F149: 4.8 | G149: u
C150: The width of a standard storage box of F-100 | D150: cm | E150: If F100 is made on-site from raw ingredients (powdered milk, sugar etc) roughly measure the space occupied by the amounts of all ingredients required to make the weight of F100 specified in row 149 above. | F150: 23.5 | G150: u
C151: The length of a standard storage box of F-100 | D151: cm | F151: 24.5 | G151: u
C152: The height of a standard storage box of F-100 | D152: cm | F152: 28.5 | G152: u
C153: Volume occupied by one standard storage box of F-100 | D153: m3 | E153: Width (cm) * breadth (cm) * height (cm) / 1,000,000 | F153: =+IF(F148="yes",0.038,F150*F151*F152/1000000) -> 0.016408875
C154: Volume occupied by 1 kg F-100 | D154: m3 | F154: =+IF(F148="yes",0.0028,IF(F149=0,0,F153/F149)) -> 0.003418515625 | J154: =+$F$154 -> 0.003418515625 | K154: =+$F$154 -> 0.003418515625 | L154: 0.003418515625 | M154: 0.003418515625 | N154: 0.003418515625 | O154: 0.003418515625 | P154: 0.003418515625 | Q154: 0.003418515625 | R154: 0.003418515625
C155: Volume available in vehicle transporting therapeutic food to Area HQ | D155: m3 | E155: Measure the volume - width x length x height (all in meters) - that can safely be occupied by therapeutic food. | F155: 3 | G155: u
C156: Volume available in Area HQ for therapeutic food | D156: m3 | F156: 5 | G156: u
C157: Volume available in vehicles transporting therapeutic food to Outpatient Care sites | D157: m3 | F157: 3 | G157: u
C158: Volume available in average Outpatient Care site for therapeutic food | D158: m3 | F158: 5 | G158: u
C159: Volume available in vehicles transporting therapeutic food to Inpatient Care sites | D159: m3 | F159: 3 | G159: u
C160: Volume available in average Inpatient Care site for therapeutic food | D160: m3 | F160: 5 | G160: u
C161: Number of store-room guards per CMAM storage site | D161: guards | F161: 1 | J161: =+$F$161 -> 1 | K161: =+$F$161 -> 1 | L161: 1 | M161: 1 | N161: 1 | O161: 1 | P161: 1 | Q161: 1 | R161: 1
C162: Number of stock control forms per store room per year | D162: forms | F162: 12 | G162: n | J162: =+$F$162 -> 12 | K162: =+$F$162 -> 12 | L162: 12 | M162: 12 | N162: 12 | O162: 12 | P162: 12 | Q162: 12 | R162: 12
C163: Training for health managers, health care providers, and CHWs
C164: Number of staff per new Area HQ to train per year | D164: staff | F164: 4 | G164: n | J164: =+$F$164 -> 4 | K164: =+$F$164 -> 4 | L164: 4 | M164: 4 | N164: 4 | O164: 4 | P164: 4 | Q164: 4 | R164: 4
C165: Number of staff per established Area HQ to train per year | D165: days | F165: 2 | G165: n | J165: =+$F$165 -> 2 | K165: =+$F$165 -> 2 | L165: 2 | M165: 2 | N165: 2 | O165: 2 | P165: 2 | Q165: 2 | R165: 2
C166: Days of training for new Area HQ staff per year | D166: days | F166: 5 | G166: n | J166: =+$F$166 -> 5 | K166: =+$F$166 -> 5 | L166: 5 | M166: 5 | N166: 5 | O166: 5 | P166: 5 | Q166: 5 | R166: 5
C167: Days of training for established Area HQ staff per year | D167: days | F167: 1 | G167: n | J167: =+$F$167 -> 1 | K167: =+$F$167 -> 1 | L167: 1 | M167: 1 | N167: 1 | O167: 1 | P167: 1 | Q167: 1 | R167: 1
C168: Maximum size of training class for Area HQ staff | D168: trainees | E168: 15 - 25 is a reasonable class size | F168: 20 | G168: n | J168: =+$F$168 -> 20 | K168: =+$F$168 -> 20 | L168: 20 | M168: 20 | N168: 20 | O168: 20 | P168: 20 | Q168: 20 | R168: 20
C169: For training of more than 1 day, do Area level trainees stay overnight at Group-Area HQ or travel there each day? | F169: over night | G169: u
C170: Number of healthcare providers per new Outpatient Care site to train per year | D170: staff | F170: 3 | G170: n | J170: =+$F$170 -> 3 | K170: =+$F$170 -> 3 | L170: =+$F$170 -> 3 | M170: 3 | N170: 3 | O170: 3 | P170: 3 | Q170: 3 | R170: 3
C171: Number of healthcare providers per established Outpatient Care site to train per year | D171: staff | F171: 3 | J171: =+$F$171 -> 3 | K171: =+$F$171 -> 3 | L171: 3 | M171: 3 | N171: 3 | O171: 3 | P171: 3 | Q171: 3 | R171: 3
C172: Number of healthcare providers per new Inpatient Care site to train per year | D172: staff | F172: 4 | G172: n | J172: =+$F$172 -> 4 | K172: =+$F$172 -> 4 | L172: 4 | M172: 4 | N172: 4 | O172: 4 | P172: 4 | Q172: 4 | R172: 4
C173: Number of healthcare providers per established Inpatient Care site to train per year | D173: staff | F173: 2 | G173: n | J173: =+$F$173 -> 2 | K173: =+$F$173 -> 2 | L173: 2 | M173: 2 | N173: 2 | O173: 2 | P173: 2 | Q173: 2 | R173: 2
C174: Days of training per trainee per year in a new Outpatient Care site | D174: days | E174: Between 4 and 6 days | F174: 5 | G174: n | J174: =+$F$174 -> 5 | K174: =+$F$174 -> 5 | L174: 5 | M174: 5 | N174: 5 | O174: 5 | P174: 5 | Q174: 5 | R174: 5
C175: Days of training per trainee per year in an established Outpatient Care site | D175: days | E175: Between 1 and 3 days | F175: 2 | G175: n | J175: =+$F$175 -> 2 | K175: =+$F$175 -> 2 | L175: 2 | M175: 2 | N175: 2 | O175: 2 | P175: 2 | Q175: 2 | R175: 2
C176: Days of training per trainee per year in a new Inpatient Care site | D176: days | E176: Between 5 and 10 days | F176: 7 | J176: =+$F$176 -> 7 | K176: =+$F$176 -> 7 | L176: 7 | M176: 7 | N176: 7 | O176: 7 | P176: 7 | Q176: 7 | R176: 7
C177: Days of training per trainee per year in an established Inpatient Care site | D177: days | E177: Between 5 and 10 days | F177: 6 | G177: n | J177: =+$F$177 -> 6 | K177: =+$F$177 -> 6 | L177: 6 | M177: 6 | N177: 6 | O177: 6 | P177: 6 | Q177: 6 | R177: 6
C178: Maximum size of training class for Outpatient Care and Inpatient Care trainees | D178: trainees | E178: 15 - 25 is a reasonable class size | F178: 20 | G178: n | J178: =+$F$178 -> 20 | K178: =+$F$178 -> 20 | L178: 20 | M178: 20 | N178: 20 | O178: 20 | P178: 20 | Q178: 20 | R178: 20
C179: For training of more than 1 day, do Outpatient Care and Inpatient Care level trainees stay overnight at Area HQ or travel there each day? | E179: This may vary within an Area depending on the distance from facilities to Area HQ but select the most common. | F179: over night | G179: u
C180: Days of training for new COW recruits per year | D180: days | F180: 2 | G180: n | J180: =+$F$180 -> 2 | K180: =+$F$180 -> 2 | L180: 2 | M180: 2 | N180: 2 | O180: 2 | P180: 2 | Q180: 2 | R180: 2
C181: Days of training for established COW recruits per year | D181: days | F181: 1 | G181: n | J181: =+$F$181 -> 1 | K181: =+$F$181 -> 1 | L181: 1 | M181: 1 | N181: 1 | O181: 1 | P181: 1 | Q181: 1 | R181: 1
C182: Drop-out rate (% of COW who stop working for CMAM each year) | D182: % | F182: 25 | G182: n | J182: =+$F$182 -> 25 | K182: =+$F$182 -> 25 | L182: 25 | M182: 25 | N182: 25 | O182: 25 | P182: 25 | Q182: 25 | R182: 25
C183: Maximum size of training class for COWs | D183: COWs | E183: 15 - 25 is a reasonable class size | F183: 20 | G183: n | J183: =+$F$183 -> 20 | K183: =+$F$183 -> 20 | L183: 20 | M183: 20 | N183: 20 | O183: 20 | P183: 20 | Q183: 20 | R183: 20
C184: For training of more than 1 day, do COW trainees stay overnight at Outpatient Care site or travel there each day? | F184: travel each day | G184: u
C185: Supervision of Area HQ, Outpatient Care and Inpatient Care sites, and COWs
C186: Number of supervisory visits from Area HQ per year for each new Outpatient Care or Inpatient Care site | D186: supervisions | E186: Based on weekly supervision for the first 2 months (i.e., roughly the period that allows for a child with SAM to be followed until recovery) followed by fortnightly supervision for the next 2 months and monthly supervision thereafter. | F186: 20 | G186: n | J186: =+$F$186 -> 20 | K186: =+$F$186 -> 20 | L186: 20 | M186: 20 | N186: 20 | O186: 20 | P186: 20 | Q186: 20 | R186: 20
C187: Number of supervisory visits from Area HQ per year for each established Outpatient Care or Inpatient Care sites | D187: supervisions | E187: Based on 1 per month | F187: 12 | G187: n | J187: =+$F$187 -> 12 | K187: =+$F$187 -> 12 | L187: 12 | M187: 12 | N187: 12 | O187: 12 | P187: 12 | Q187: 12 | R187: 12
C188: Time spent by supervisor on each supervisory visit to each new Outpatient Care or Inpatient Care site | D188: hours | F188: 2 | G188: n | J188: =+$F$188 -> 2 | K188: =+$F$188 -> 2 | L188: 2 | M188: 2 | N188: 2 | O188: 2 | P188: 2 | Q188: 2 | R188: 2
C189: Time spent by supervisor on each supervisory visit to each established Outpatient Care or Inpatient Care site | D189: hours | F189: 2 | G189: n | J189: =+$F$189 -> 2 | K189: =+$F$189 -> 2 | L189: 2 | M189: 2 | N189: 2 | O189: 2 | P189: 2 | Q189: 2 | R189: 2
C190: Time spent by senior health care provider on internal supervision at each Outpatient Care or Inpatient Care site per week | D190: hours | F190: 1 | G190: n | J190: =+$F$190 -> 1 | K190: =+$F$190 -> 1 | L190: 1 | M190: 1 | N190: 1 | O190: 1 | P190: 1 | Q190: 1 | R190: 1
C191: Number of supervisory visits per year to each new COW | D191: supervisions | E191: Based on 1 per month | F191: 12 | G191: n | J191: =+$F$191 -> 12 | K191: =+$F$191 -> 12 | L191: 12 | M191: 12 | N191: 12 | O191: 12 | P191: 12 | Q191: 12 | R191: 12
C192: Number of supervisory visits per year to each established COW | D192: supervisions | E192: Based on 1 every 3 months | F192: 4 | G192: n | J192: =+$F$192 -> 4 | K192: =+$F$192 -> 4 | L192: 4 | M192: 4 | N192: 4 | O192: 4 | P192: 4 | Q192: 4 | R192: 4
C193: Time spent by supervisor on each new COW supervisory visit | D193: hours | F193: 2 | G193: n | J193: =+$F$193 -> 2 | K193: =+$F$193 -> 2 | L193: 2 | M193: 2 | N193: 2 | O193: 2 | P193: 2 | Q193: 2 | R193: 2
C194: Time spent by supervisor on each established COW supervisory visit | D194: hours | F194: 2 | G194: n | J194: =+$F$194 -> 2 | K194: =+$F$194 -> 2 | L194: 2 | M194: 2 | N194: 2 | O194: 2 | P194: 2 | Q194: 2 | R194: 2
C195: Number of supervisory visits from Group-Area HQ to each new Area HQ per year | D195: visits | F195: 12 | G195: n | J195: =+$F$195 -> 12 | K195: =+$F$195 -> 12 | L195: 12 | M195: 12 | N195: 12 | O195: 12 | P195: 12 | Q195: 12 | R195: 12
C196: Number of supervisory visits from Group-Area HQ to each established Area HQ per year | D196: visits | F196: 4 | G196: n | J196: =+$F$196 -> 4 | K196: =+$F$196 -> 4 | L196: 4 | M196: 4 | N196: 4 | O196: 4 | P196: 4 | Q196: 4 | R196: 4
C197: Time spent by Group-Area supervisor on each supervisory visit to each new Area HQ | D197: hours | F197: 4 | G197: n | J197: =+$F$197 -> 4 | K197: =+$F$197 -> 4 | L197: 4 | M197: 4 | N197: 4 | O197: 4 | P197: 4 | Q197: 4 | R197: 4
C198: Time spent by Group-Area supervisor on each supervisory visit to each established Area HQ | D198: hours | F198: 2 | G198: n | J198: =+$F$198 -> 2 | K198: =+$F$198 -> 2 | L198: 2 | M198: 2 | N198: 2 | O198: 2 | P198: 2 | Q198: 2 | R198: 2
C199: CMAM service/program management at Area HQ level
C200: Time required for the establishment of CMAM in a new Area (situation and capacity assessment and analysis, development of a logical framework and an action plan, establishing a logistical system, establishing a monitoring and reporting system)
C201: Days of senior Area HQ staff per new Area | D201: days | E201: 4 weeks | F201: 20 | G201: n | J201: =+$F$201 -> 20 | K201: =+$F$201 -> 20 | L201: 20 | M201: 20 | N201: 20 | O201: 20 | P201: 20 | Q201: 20 | R201: 20
C202: Days of mid-level Area HQ staff per new Area | D202: days | E202: 4 weeks | F202: 20 | G202: n | J202: =+$F$202 -> 20 | K202: =+$F$202 -> 20 | L202: 20 | M202: 20 | N202: 20 | O202: 20 | P202: 20 | Q202: 20 | R202: 20
C203: Time required for getting a new Outpatient Care or Inpatient Care site up and running (excluding training)
C204: Days of senior Area HQ staff per new Outpatient Care or Inpatient Care site | D204: days | E204: 1 week | F204: 5 | G204: n | J204: =+$F$204 -> 5 | K204: =+$F$204 -> 5 | L204: 5 | M204: 5 | N204: 5 | O204: 5 | P204: 5 | Q204: 5 | R204: 5
C205: Days of mid-level Area HQ staff per new Outpatient Care or Inpatient Care site | D205: days | E205: 1 week | F205: 5 | G205: n | J205: =+$F$205 -> 5 | K205: =+$F$205 -> 5 | L205: 5 | M205: 5 | N205: 5 | O205: 5 | P205: 5 | Q205: 5 | R205: 5
C206: (Person) trips to new Inpatient Care site | D206: trips | F206: 5 | G206: n | J206: =+$F$206 -> 5 | K206: =+$F$206 -> 5 | L206: 5 | M206: 5 | N206: 5 | O206: 5 | P206: 5 | Q206: 5 | R206: 5
C207: Time required for on-going management of CMAM (monitoring and reporting system, supportive supervision, quality control, financial and personnel management)
C208: Days of senior Area HQ staff per Area per year | D208: days | E208: 1 day per month | F208: 12 | G208: n | J208: =+$F$208 -> 12 | K208: =+$F$208 -> 12 | L208: 12 | M208: 12 | N208: 12 | O208: 12 | P208: 12 | Q208: 12 | R208: 12
C209: Days of mid-level Area HQ staff per Area per year | D209: days | E209: 2 days per month | F209: 24 | G209: n | J209: =+$F$209 -> 24 | K209: =+$F$209 -> 24 | L209: 24 | M209: 24 | N209: 24 | O209: 24 | P209: 24 | Q209: 24 | R209: 24
C210: Days of junior Area HQ staff per Area per year | D210: days | E210: 5 days per month | F210: 60 | G210: n | J210: =+$F$210 -> 60 | K210: =+$F$210 -> 60 | L210: 60 | M210: 60 | N210: 60 | O210: 60 | P210: 60 | Q210: 60 | R210: 60
... 3 more rows

Sheet D4 Prices
A2: Return to Contents | C2: D4: Prices (excluding salaries and "fixed supplies")
B4: Number of Areas included in study | D4: =+'D2 Scale'!I8 -> 1 | E4: (taken from Worksheet 2)
B6: Clear this Worksheet of any data entered from a previous application of this Tool by pressing this button ………..
B9: Do this Worksheet after completing both Worksheets D3 and D8. Be comprehensive and provide estimates for all inputs unless you are certain that they will not be included in your program, in which case you could put "0" in the relevant cell.
B11: 1 | C11: RECORD in the gold-colored cells indicated by u cells the price (for the base year and currency chosen in Worksheet D1) of the item specified. Use prices that pertain in Area 1. (The Table automatically transfers these prices to all the other areas.)
B13: 2 | C13: Consider whether prices in Area 1 are the same as those in other Areas. If they are not, unprotect the Worksheet, ENTER the correct figures in the appropriate columns and re-protect the Worksheet.
B15: 3 | C15: The last row, 81, ("salary differentials") does not record data on specific prices. It provides an opportunity to indicate broad salary differentials between Area 1 (whose detailed salary structure is recorded in the next worksheet [D5]) and other areas. For example, if salaries are about 20% higher in Area 2 compared with Area 1, record '1.2' in the last row under Area 2; if they are broadly 20% lower than Area 1 record 0.80.
C18: =+IF('D1 Background'!$H$11="","",'D1 Background'!$H$11) -> Ghana | F18: Area 1 | J18: Area 2 | K18: Area 3 | L18: Area 4 | M18: Area 5 | N18: Area 6 | O18: Area 7 | P18: Area 8 | Q18: Area 9 | R18: Area 10
E19: ='D2 Scale'!$C$30 -> District | F19: =+IF('D2 Scale'!$C$31="","",'D2 Scale'!$C$31) -> Ashiedu Keteke | J19: =+IF('D2 Scale'!$C$36="","",'D2 Scale'!$C$36) ->  | K19: =+IF('D2 Scale'!$C$41="","",'D2 Scale'!$C$41) ->  | L19: =+IF('D2 Scale'!$C$46="","",'D2 Scale'!$C$46) ->  | M19: =+IF('D2 Scale'!$C$51="","",'D2 Scale'!$C$51) ->  | N19: =+IF('D2 Scale'!$C$56="","",'D2 Scale'!$C$56) ->  | O19: =+IF('D2 Scale'!$C$61="","",'D2 Scale'!$C$61) ->  | P19: =+IF('D2 Scale'!$C$66="","",'D2 Scale'!$C$66) ->  | Q19: =+IF('D2 Scale'!$C$71="","",'D2 Scale'!$C$71) ->  | R19: =+IF('D2 Scale'!$C$76="","",'D2 Scale'!$C$76) -> 
E20: =+'D2 Scale'!$D$30 -> Region | F20: =+IF('D2 Scale'!$D$31="","",'D2 Scale'!$D$31) -> Greater Accra | J20: =+IF('D2 Scale'!$D$36="","",'D2 Scale'!$D$36) ->  | K20: =+IF('D2 Scale'!$D$41="","",'D2 Scale'!$D$41) ->  | L20: =+IF('D2 Scale'!$D$46="","",'D2 Scale'!$D$46) ->  | M20: =+IF('D2 Scale'!$D$51="","",'D2 Scale'!$D$51) ->  | N20: =+IF('D2 Scale'!$D$56="","",'D2 Scale'!$D$56) ->  | O20: =+IF('D2 Scale'!$D$61="","",'D2 Scale'!$D$61) ->  | P20: =+IF('D2 Scale'!$D$66="","",'D2 Scale'!$D$66) ->  | Q20: =+IF('D2 Scale'!$D$71="","",'D2 Scale'!$D$71) ->  | R20: =+IF('D2 Scale'!$D$76="","",'D2 Scale'!$D$76) -> 
C21: =+mess22 -> Variable | D21: =+Mess20 -> Units | E21: =+mess21 -> Comments | F21: =+mess23 -> Value
C23: Hall hire (per day) for training i.e. to accommodate up to 25 participants. | D23: =+IF('D1 Background'!$H$13="","",'D1 Background'!$H$13) -> Cedi | F23: 120 | G23: u | J23: =+$F$23 -> 120 | K23: 120 | L23: 120 | M23: 120 | N23: 120 | O23: 120 | P23: 120 | Q23: 120 | R23: 120
C24: Space for Outpatient Care (per m2 per year) | D24: =+IF('D1 Background'!$H$13="","",'D1 Background'!$H$13) -> Cedi | G24: u | J24: =+$F$24 -> 0 | K24: =+$F$24 -> 0 | L24: 0 | M24: 0 | N24: 0 | O24: 0 | P24: 0 | Q24: 0 | R24: 0
C25: Space for Inpatient Care (per m2 per year) | D25: =+IF('D1 Background'!$H$13="","",'D1 Background'!$H$13) -> Cedi | G25: u | J25: =+$F$25 -> 0 | K25: =+$F$25 -> 0 | L25: 0 | M25: 0 | N25: 0 | O25: 0 | P25: 0 | Q25: 0 | R25: 0
C26: Refreshments (per person per day) | D26: =+IF('D1 Background'!$H$13="","",'D1 Background'!$H$13) -> Cedi | F26: 12 | G26: u | J26: =+$F$26 -> 12 | K26: 12 | L26: 12 | M26: 12 | N26: 12 | O26: 12 | P26: 12 | Q26: 12 | R26: 12
C27: Storage space (per m3 per year) | D27: =+IF('D1 Background'!$H$13="","",'D1 Background'!$H$13) -> Cedi | E27: To convert storage price expressed per unit area (i.e. per m2) to a volume equivalent (i.e. per m3) divide it by the average height (in meters). For example, an area storing food to the height of 2 m and costing $10/ m2 has a price per m3 of US$5. | G27: u | J27: =+$F27 -> 0 | K27: 0 | L27: 0 | M27: 0 | N27: 0 | O27: 0 | P27: 0 | Q27: 0 | R27: 0
C28: Per diems (including feeding and overnight accommodation but not transport) per person per day | E28: Only relevant if trainees stay overnight as recorded in Worksheet D3 and D8.
C29: For Group-Area staff attending training at Central HQ | D29: =+IF('D1 Background'!$H$13="","",'D1 Background'!$H$13) -> Cedi | E29: =+IF('D8 Group-Area & Central Level '!F29="over night","","NOT relevant. Leave blank.") -> 
C30: For Area staff attending training at Group-Areal HQ | D30: =+IF('D1 Background'!$H$13="","",'D1 Background'!$H$13) -> Cedi | E30: =+IF('D3 Epid. Demog. & Service Data'!F169="over night","","NOT relevant. Leave blank.") ->  | F30: 80 | J30: 80 | K30: 80 | L30: 80 | M30: 80 | N30: 80 | O30: 80 | P30: 80 | Q30: 80 | R30: 80
C31: For Outpatient Care or Inpatient Care health providers attending training at Area HQ | D31: =+IF('D1 Background'!$H$13="","",'D1 Background'!$H$13) -> Cedi | E31: =+IF('D3 Epid. Demog. & Service Data'!F179="over night","","NOT relevant. Leave blank.") ->  | F31: 80 | J31: =+$F$31 -> 80 | K31: 80 | L31: 80 | M31: 80 | N31: 80 | O31: 80 | P31: 80 | Q31: 80 | R31: 80
C32: For COWs attending training at Outpatient Care site | D32: =+IF('D1 Background'!$H$13="","",'D1 Background'!$H$13) -> Cedi | E32: =+IF('D3 Epid. Demog. & Service Data'!F184="over night","","NOT relevant. Leave blank.") -> NOT relevant. Leave blank. | J32: =+$F$32 -> 0 | K32: 0 | L32: 0 | M32: 0 | N32: 0 | O32: 0 | P32: 0 | Q32: 0 | R32: 0
C33: Monthly reporting sheets | D33: =+IF('D1 Background'!$H$13="","",'D1 Background'!$H$13) -> Cedi | F33: 0.3 | G33: u | J33: =+$F33 -> 0.3 | K33: =+$F33 -> 0.3 | L33: 0.3 | M33: 0.3 | N33: 0.3 | O33: 0.3 | P33: 0.3 | Q33: 0.3 | R33: 0.3
C34: Medicines
C35: Vitamin A (per 100,000 IU capsules) | D35: =+IF('D1 Background'!$H$13="","",'D1 Background'!$H$13) -> Cedi | F35: 0.02 | G35: u | J35: =+$F35 -> 0.02 | K35: 0.02 | L35: 0.02 | M35: 0.02 | N35: 0.02 | O35: 0.02 | P35: 0.02 | Q35: 0.02 | R35: 0.02
C36: Sugar water (per liter) | D36: =+IF('D1 Background'!$H$13="","",'D1 Background'!$H$13) -> Cedi | F36: 0.05 | G36: u | J36: 0.05 | K36: 0.05 | L36: 0.05 | M36: 0.05 | N36: 0.05 | O36: 0.05 | P36: 0.05 | Q36: 0.05 | R36: 0.05
C37: Amoxicillin (per g) | D37: =+IF('D1 Background'!$H$13="","",'D1 Background'!$H$13) -> Cedi | F37: 1 | G37: u | J37: 1 | K37: 1 | L37: 1 | M37: 1 | N37: 1 | O37: 1 | P37: 1 | Q37: 1 | R37: 1
C38: Anti-malarial treatment (per course) | D38: =+IF('D1 Background'!$H$13="","",'D1 Background'!$H$13) -> Cedi | F38: 3 | G38: u | J38: =+$F38 -> 3 | K38: 3 | L38: 3 | M38: 3 | N38: 3 | O38: 3 | P38: 3 | Q38: 3 | R38: 3
C39: Malaria test (per test) | D39: =+IF('D1 Background'!$H$13="","",'D1 Background'!$H$13) -> Cedi | E39: For the price of tests which involve the use of laboratory facilities check if hospitals have made their own calculations or use data on prices charged by private testing services. | F39: 1 | G39: u | J39: 1 | K39: 1 | L39: 1 | M39: 1 | N39: 1 | O39: 1 | P39: 1 | Q39: 1 | R39: 1
C40: Albendazole (per 100 mg tablet) | D40: =+IF('D1 Background'!$H$13="","",'D1 Background'!$H$13) -> Cedi | F40: 0.03 | G40: u | J40: 0.03 | K40: 0.03 | L40: 0.03 | M40: 0.03 | N40: 0.03 | O40: 0.03 | P40: 0.03 | Q40: 0.03 | R40: 0.03
C41: ReSoMal (per 84 g packet) | D41: =+IF('D1 Background'!$H$13="","",'D1 Background'!$H$13) -> Cedi | F41: 0.5 | G41: u | J41: 0.5 | K41: 0.5 | L41: 0.5 | M41: 0.5 | N41: 0.5 | O41: 0.5 | P41: 0.5 | Q41: 0.5 | R41: 0.5
C42: The package of tests routinely conducted on children hospitalized with SAM (non-malarial). | D42: =+IF('D1 Background'!$H$13="","",'D1 Background'!$H$13) -> Cedi | E42: =+IF('D3 Epid. Demog. & Service Data'!E90="","",'D3 Epid. Demog. & Service Data'!E90) -> HIV, Hemoglobin, Blood glucose, and TB occasionally | F42: 5 | G42: u | J42: =+$F$42 -> 5 | K42: =+$F$42 -> 5 | L42: 5 | M42: 5 | N42: 5 | O42: 5 | P42: 5 | Q42: 5 | R42: 5
C43: IV kits | D43: =+IF('D1 Background'!$H$13="","",'D1 Background'!$H$13) -> Cedi | F43: 0.6 | G43: u | J43: =+$F$43 -> 0.6 | K43: =+$F$43 -> 0.6 | L43: 0.6 | M43: 0.6 | N43: 0.6 | O43: 0.6 | P43: 0.6 | Q43: 0.6 | R43: 0.6
C44: Nasogastric tubes | D44: =+IF('D1 Background'!$H$13="","",'D1 Background'!$H$13) -> Cedi | F44: 1 | G44: u | J44: =+$F$44 -> 1 | K44: =+$F$44 -> 1 | L44: 1 | M44: 1 | N44: 1 | O44: 1 | P44: 1 | Q44: 1 | R44: 1
C45: Measles vaccine (per dose) | D45: =+IF('D1 Background'!$H$13="","",'D1 Background'!$H$13) -> Cedi | F45: 1 | G45: u | J45: 1 | K45: 1 | L45: 1 | M45: 1 | N45: 1 | O45: 1 | P45: 1 | Q45: 1 | R45: 1
C46: Measles ad syringe (per syringe) | D46: =+IF('D1 Background'!$H$13="","",'D1 Background'!$H$13) -> Cedi | F46: 0.2 | G46: u | J46: 0.2 | K46: 0.2 | L46: 0.2 | M46: 0.2 | N46: 0.2 | O46: 0.2 | P46: 0.2 | Q46: 0.2 | R46: 0.2
C47: Mixing syringes (per syringe) | D47: =+IF('D1 Background'!$H$13="","",'D1 Background'!$H$13) -> Cedi | F47: 0.2 | G47: u | J47: 0.2 | K47: 0.2 | L47: 0.2 | M47: 0.2 | N47: 0.2 | O47: 0.2 | P47: 0.2 | Q47: 0.2 | R47: 0.2
C48: Patient management
C49: RUTF (per kg) | D49: =+IF('D1 Background'!$H$13="","",'D1 Background'!$H$13) -> Cedi | E49: If these are locally prepared or produced from ingredients rather than purchased as a final product, simply sum the prices of the relevant ingredients required to make a kilogram of the product. | F49: 6 | G49: u | J49: =+$F49 -> 6 | K49: 6 | L49: 6 | M49: 6 | N49: 6 | O49: 6 | P49: 6 | Q49: 6 | R49: 6
C50: F-75 (per kg) | D50: =+IF('D1 Background'!$H$13="","",'D1 Background'!$H$13) -> Cedi | F50: 4.5 | G50: u | J50: 4.5 | K50: 4.5 | L50: 4.5 | M50: 4.5 | N50: 4.5 | O50: 4.5 | P50: 4.5 | Q50: 4.5 | R50: 4.5
C51: F-100 (per kg) | D51: =+IF('D1 Background'!$H$13="","",'D1 Background'!$H$13) -> Cedi | F51: 5 | G51: u | J51: 5 | K51: 5 | L51: 5 | M51: 5 | N51: 5 | O51: 5 | P51: 5 | Q51: 5 | R51: 5
C52: Outpatient Care treatment card | D52: =+IF('D1 Background'!$H$13="","",'D1 Background'!$H$13) -> Cedi | E52: . | F52: 0.6 | G52: u | J52: 0.6 | K52: 0.6 | L52: 0.6 | M52: 0.6 | N52: 0.6 | O52: 0.6 | P52: 0.6 | Q52: 0.6 | R52: 0.6
C53: Inpatient Care treatment card | D53: =+IF('D1 Background'!$H$13="","",'D1 Background'!$H$13) -> Cedi | F53: 1 | G53: u
C54: RUTF ration card (per card) | D54: =+IF('D1 Background'!$H$13="","",'D1 Background'!$H$13) -> Cedi | F54: 0.5 | G54: u | J54: 0.5 | K54: 0.5 | L54: 0.5 | M54: 0.5 | N54: 0.5 | O54: 0.5 | P54: 0.5 | Q54: 0.5 | R54: 0.5
C55: Bracelets (per bracelet) | D55: =+IF('D1 Background'!$H$13="","",'D1 Background'!$H$13) -> Cedi | G55: u | J55: 0 | K55: 0 | L55: 0 | M55: 0 | N55: 0 | O55: 0 | P55: 0 | Q55: 0 | R55: 0
C56: Hand towels (per roll) | D56: =+IF('D1 Background'!$H$13="","",'D1 Background'!$H$13) -> Cedi | F56: 1 | G56: u | J56: 1 | K56: 1 | L56: 1 | M56: 1 | N56: 1 | O56: 1 | P56: 1 | Q56: 1 | R56: 1
C57: Soap (per bar) | D57: =+IF('D1 Background'!$H$13="","",'D1 Background'!$H$13) -> Cedi | F57: 0.8 | G57: u | J57: 0.8 | K57: 0.8 | L57: 0.8 | M57: 0.8 | N57: 0.8 | O57: 0.8 | P57: 0.8 | Q57: 0.8 | R57: 0.8
C58: Drinking water (per liter) | D58: =+IF('D1 Background'!$H$13="","",'D1 Background'!$H$13) -> Cedi | F58: 0.5 | G58: u | J58: 0.5 | K58: 0.5 | L58: 0.5 | M58: 0.5 | N58: 0.5 | O58: 0.5 | P58: 0.5 | Q58: 0.5 | R58: 0.5
C59: Food for caregiver in Inpatient Care (per day) | D59: =+IF('D1 Background'!$H$13="","",'D1 Background'!$H$13) -> Cedi | G59: u | J59: 0 | K59: 0 | L59: 0 | M59: 0 | N59: 0 | O59: 0 | P59: 0 | Q59: 0 | R59: 0
C60: Stock-control forms (per set) | D60: =+IF('D1 Background'!$H$13="","",'D1 Background'!$H$13) -> Cedi | F60: 0.1 | G60: u | J60: 0.1 | K60: 0.1 | L60: 0.1 | M60: 0.1 | N60: 0.1 | O60: 0.1 | P60: 0.1 | Q60: 0.1 | R60: 0.1
C61: Training and supervision
C62: Materials for Area HQ supervision (per supervisory visit) | D62: =+IF('D1 Background'!$H$13="","",'D1 Background'!$H$13) -> Cedi | E62: Supervisory materials might include checklists or other guides. | F62: 0.5 | G62: u | J62: =+$F$62 -> 0.5 | K62: =+$F$62 -> 0.5 | L62: 0.5 | M62: 0.5 | N62: 0.5 | O62: 0.5 | P62: 0.5 | Q62: 0.5 | R62: 0.5
C63: Materials for Outpatient Care or Inpatient Care supervision (per supervisory visit) | D63: =+IF('D1 Background'!$H$13="","",'D1 Background'!$H$13) -> Cedi | F63: 0.5 | G63: u | J63: =+$F63 -> 0.5 | K63: 0.5 | L63: 0.5 | M63: 0.5 | N63: 0.5 | O63: 0.5 | P63: 0.5 | Q63: 0.5 | R63: 0.5
C64: Materials for COW supervision (per supervisory visit) | D64: =+IF('D1 Background'!$H$13="","",'D1 Background'!$H$13) -> Cedi | F64: 0.2 | G64: u | J64: 0.2 | K64: 0.2 | L64: 0.2 | M64: 0.2 | N64: 0.2 | O64: 0.2 | P64: 0.2 | Q64: 0.2 | R64: 0.2
C65: Training materials per COW | D65: =+IF('D1 Background'!$H$13="","",'D1 Background'!$H$13) -> Cedi | F65: 1 | G65: u | J65: =+$F65 -> 1 | K65: 1 | L65: 1 | M65: 1 | N65: 1 | O65: 1 | P65: 1 | Q65: 1 | R65: 1
C66: Training materials per Outpatient Care trainee | D66: =+IF('D1 Background'!$H$13="","",'D1 Background'!$H$13) -> Cedi | F66: 20 | G66: u | J66: 20 | K66: 20 | L66: 20 | M66: 20 | N66: 20 | O66: 20 | P66: 20 | Q66: 20 | R66: 20
C67: Training materials per Inpatient Care site trainee | D67: =+IF('D1 Background'!$H$13="","",'D1 Background'!$H$13) -> Cedi | F67: 20 | G67: u | J67: 20 | K67: 20 | L67: 20 | M67: 20 | N67: 20 | O67: 20 | P67: 20 | Q67: 20 | R67: 20
C68: Training materials per Area HQ trainee | D68: =+IF('D1 Background'!$H$13="","",'D1 Background'!$H$13) -> Cedi | F68: 40 | G68: u | J68: 40 | K68: 40 | L68: 40 | M68: 40 | N68: 40 | O68: 40 | P68: 40 | Q68: 40 | R68: 40
C69: Training materials per Group-Area trainee (full training) | D69: =+IF('D1 Background'!$H$13="","",'D1 Background'!$H$13) -> Cedi | F69: 25 | G69: u | J69: =+$F$69 -> 25 | K69: =+$F$69 -> 25 | L69: 25 | M69: 25 | N69: 25 | O69: 25 | P69: 25 | Q69: 25 | R69: 25
C70: Training materials per Group-Area trainee (refresher training) | D70: =+IF('D1 Background'!$H$13="","",'D1 Background'!$H$13) -> Cedi | F70: 5 | G70: u | J70: =+$F$70 -> 5 | K70: =+$F$70 -> 5 | L70: 5 | M70: 5 | N70: 5 | O70: 5 | P70: 5 | Q70: 5 | R70: 5
C71: Transport (NOTE: The price per person-km should take into account the sharing of the vehicle (see User Guide))
C72: Transport of personnel between Central and Group-area level | D72: =+IF('D1 Background'!$H$13="","",'D1 Background'!$H$13) -> Cedi | E72: Per person-km | F72: 2 | G72: u | J72: =+$F$72 -> 2 | K72: =+$F$72 -> 2 | L72: 2 | M72: 2 | N72: 2 | O72: 2 | P72: 2 | Q72: 2 | R72: 2
C73: Transport of personnel between Area HQ and Group-Area HQ | D73: =+IF('D1 Background'!$H$13="","",'D1 Background'!$H$13) -> Cedi | E73: Per person-km | F73: 2 | G73: u | J73: =+$F$73 -> 2 | K73: 2 | L73: 2 | M73: 2 | N73: 2 | O73: 2 | P73: 2 | Q73: 2 | R73: 2
C74: Transport of personnel between Outpatient Care or Inpatient Care sites and Area HQ | D74: =+IF('D1 Background'!$H$13="","",'D1 Background'!$H$13) -> Cedi | E74: Per person-km | F74: 2 | G74: u | J74: =+$F$74 -> 2 | K74: 2 | L74: 2 | M74: 2 | N74: 2 | O74: 2 | P74: 2 | Q74: 2 | R74: 2
C75: Transport of personnel between village and Outpatient Care site | D75: =+IF('D1 Background'!$H$13="","",'D1 Background'!$H$13) -> Cedi | E75: Per person-km | F75: 2 | G75: u | J75: =+$F$75 -> 2 | K75: 2 | L75: 2 | M75: 2 | N75: 2 | O75: 2 | P75: 2 | Q75: 2 | R75: 2
C76: Transport for referred patients from Outpatient Care to Inpatient Care site | D76: =+IF('D1 Background'!$H$13="","",'D1 Background'!$H$13) -> Cedi | E76: Per person-km | F76: 2 | G76: u | J76: =+$F76 -> 2 | K76: 2 | L76: 2 | M76: 2 | N76: 2 | O76: 2 | P76: 2 | Q76: 2 | R76: 2
C77: Transport of supplies from Central to Group-Area level | D77: =+IF('D1 Background'!$H$13="","",'D1 Background'!$H$13) -> Cedi | E77: Per km/vehicle | F77: 2 | G77: u | J77: =+$F$77 -> 2 | K77: 2 | L77: 2 | M77: 2 | N77: 2 | O77: 2 | P77: 2 | Q77: 2 | R77: 2
C78: Transport of supplies from Group-Area to Area level | D78: =+IF('D1 Background'!$H$13="","",'D1 Background'!$H$13) -> Cedi | E78: Per km/vehicle | F78: 2 | G78: u | J78: =+$F$78 -> 2 | K78: =+$F$78 -> 2 | L78: 2 | M78: 2 | N78: 2 | O78: 2 | P78: 2 | Q78: 2 | R78: 2
C79: Transport of supplies from Area to Outpatient Care or Inpatient Care sites | D79: =+IF('D1 Background'!$H$13="","",'D1 Background'!$H$13) -> Cedi | E79: Per km/vehicle | F79: 2 | G79: u | J79: =+$F$79 -> 2 | K79: =+$F$79 -> 2 | L79: 2 | M79: 2 | N79: 2 | O79: 2 | P79: 2 | Q79: 2 | R79: 2
C80: Transport of supplies from Outpatient Care to community outreach sites | D80: =+IF('D1 Background'!$H$13="","",'D1 Background'!$H$13) -> Cedi | E80: Per km/vehicle | F80: 2 | G80: u | J80: =+$F$80 -> 2 | K80: =+$F$80 -> 2 | L80: 2 | M80: 2 | N80: 2 | O80: 2 | P80: 2 | Q80: 2 | R80: 2
C81: Salary differentials | E81: Salary levels as a proportion of those in Area 1 (see Worksheet D5).

Sheet W6with comments (hidden)
A2: worksheet 3
C3: nighttime supervision
C4: minimum staffing on a ward?
C5: Maximum number of patients per junior staff member | E5: ? | F5: 4
C6: Maximum number of patients per senior staff member | E6: ? | F6: 10
C8: Shelf life of RUTF | D8: months | F8: 24 | J8: =+$F$8 -> 24 | K8: 24 | L8: 24 | M8: 24 | N8: 24 | O8: 24 | P8: 24 | Q8: 24 | R8: 24
C9: Shelf life of F100 and F75 | D9: months | F9: 18
C19: TABLE 1. Outpatient Care Site | H19: =+'D1 Background'!$H$14 -> 2010 | L19: =+'D1 Background'!$H$13 -> Cedi
H20: Price per unit | I20: Average cost per year | J20: Costs for each year in the life of the Outpatient Care site
A21: ghana comments | C21: Supplies | D21: No. required (at any point in time) | E21: Unit | F21: No. years before need replacing | G21: Average amount per year | J21: Year 1 | K21: Year 2 | L21: Year 3 | M21: Year 4 | N21: Year 5 | O21: Year 6
C22: Strong file to store admission /treatment cards | D22: 4 | E22: file | F22: 1 | G22: =+D22/F22 -> 4 | H22: 1 | I22: =+D22/F22*H22 -> 4 | J22: =+D22*H22 -> 4 | K22: =+IF(F22=1,J22,0) -> 4 | L22: =+IF(OR(F22=1,F22=2),J22,0) -> 4 | M22: =+IF(OR(F22=1,F22=3),J22,0) -> 4 | N22: =+IF(OR(F22=1,F22=2,F22=4),J22,0) -> 4 | O22: =+IF(OR(F22=1,F22=5),J22,0) -> 4
C23: Small clock or watch with second hand | D23: 2 | E23: clock | F23: 3 | G23: 0.6666666667 | H23: 1 | I23: 0.6666666667 | J23: 2 | K23: 0 | L23: 0 | M23: 2 | N23: 0 | O23: 0
C24: Bucket – plastic, graduated, lid, 8.5 litres | D24: 2 | E24: bucket | F24: 5 | G24: 0.4 | H24: 1 | I24: 0.4 | J24: 2 | K24: 0 | L24: 0 | M24: 0 | N24: 0 | O24: 2
A25: not needed | C25: Jug – transparent plastic, graduated, 1litre | D25: 2 | E25: jug | F25: 5 | G25: 0.4 | H25: 1 | I25: 0.4 | J25: 2 | K25: 0 | L25: 0 | M25: 0 | N25: 0 | O25: 2
A26: ? | C26: Marker pens (permanent ink) | D26: 12 | E26: pen | F26: 1 | G26: 12 | H26: 1 | I26: 12 | J26: 12 | K26: 12 | L26: 12 | M26: 12 | N26: 12 | O26: 12
A27: ? | C27: Notebook | D27: 4 | E27: notebook | F27: 1 | G27: 4 | H27: 1 | I27: 4 | J27: 4 | K27: 4 | L27: 4 | M27: 4 | N27: 4 | O27: 4
A28: ? | C28: Metal spoons | D28: 4 | E28: spoons | F28: 5 | G28: 0.8 | H28: 1 | I28: 0.8 | J28: 4 | K28: 0 | L28: 0 | M28: 0 | N28: 0 | O28: 4
C29: Teaspoons | D29: 12 | E29: spoons | F29: 5 | G29: 2.4 | H29: 1 | I29: 2.4 | J29: 12 | K29: 0 | L29: 0 | M29: 0 | N29: 0 | O29: 12
A30: ? | C30: Nail clippers | D30: 4 | E30: clippers | F30: 5 | G30: 0.8 | H30: 1 | I30: 0.8 | J30: 4 | K30: 0 | L30: 0 | M30: 0 | N30: 0 | O30: 4
C31: Water carrier -plastic, collapsable, tap, 20 litres | D31: 4 | E31: carrier | F31: 3 | G31: 1.333333333 | H31: 1 | I31: 1.333333333 | J31: 4 | K31: 0 | L31: 0 | M31: 4 | N31: 0 | O31: 0
A32: for sugar water? | C32: Water jug (with lid) | D32: 4 | E32: jug | F32: 3 | G32: 1.333333333 | H32: 1 | I32: 1.333333333 | J32: 4 | K32: 0 | L32: 0 | M32: 4 | N32: 0 | O32: 0
A33: for swabs? | C33: Small metal bowl | D33: 4 | E33: bowl | F33: 5 | G33: 0.8 | H33: 1 | I33: 0.8 | J33: 4 | K33: 0 | L33: 0 | M33: 0 | N33: 0 | O33: 4
A34: 2 enough | C34: Thermometer - electronic | D34: 4 | E34: thermometer | F34: 5 | G34: 0.8 | H34: 1 | I34: 0.8 | J34: 4 | K34: 0 | L34: 0 | M34: 0 | N34: 0 | O34: 4
A35: at least one (plus rope and pants) | C35: Additional scales | D35: 1 | E35: scales | F35: 2 | G35: 0.5 | H35: 1 | I35: 0.5 | J35: 1 | K35: 0 | L35: 1 | M35: 0 | N35: 1 | O35: 0
A36: what for | C36: Additional height boards | E36: boards | F36: 5 | G36: 0 | H36: 1 | I36: 0 | J36: 0 | K36: 0 | L36: 0 | M36: 0 | N36: 0 | O36: 0
A37: ghana data | C37: Additional MUAC bands | D37: 20 | E37: bands | F37: 0.5 | G37: 40 | H37: 0.2 | I37: 8 | J37: 4 | K37: 0 | L37: 0 | M37: 0 | N37: 0 | O37: 0
C38: additional calculators | D38: 2 | E38: calculator | F38: 5 | G38: 0.4 | H38: 1 | I38: 0.4 | J38: 2 | K38: 0 | L38: 0 | M38: 0 | N38: 0 | O38: 2
A39: out | C39: weight for height chart | D39: 1 | E39: height table | F39: 5 | G39: 0.2 | H39: 1 | I39: 0.2 | J39: 1 | K39: 0 | L39: 0 | M39: 0 | N39: 0 | O39: 1
A40: out | C40: height board | D40: 1 | E40: boards | F40: 5 | G40: 0.2 | H40: 1 | I40: 0.2 | J40: 1 | K40: 0 | L40: 0 | M40: 0 | N40: 0 | O40: 1
C41: scissors | D41: 1 | E41: scissors | F41: 5 | G41: 0.2 | H41: 1 | I41: 0.2 | J41: 1 | K41: 0 | L41: 0 | M41: 0 | N41: 0 | O41: 1
C42: stapler and staples | D42: 1 | E42: stapler | F42: 1 | G42: 1 | H42: 1 | I42: 1 | J42: 1 | K42: 1 | L42: 1 | M42: 1 | N42: 1 | O42: 1
A43: out | C43: beaker – orange plastic( 500 ml) | D43: 2 | E43: beaker | F43: 3 | G43: 0.6666666667 | H43: 1 | I43: 0.6666666667 | J43: 2 | K43: 0 | L43: 0 | M43: 2 | N43: 0 | O43: 0
C44: Set of communication materials for counselling on health and nutrition | D44: 2 | E44: set | F44: 1 | G44: 2 | H44: 11 | I44: 22 | J44: 22 | K44: 22 | L44: 22 | M44: 22 | N44: 22 | O44: 22
C45: copy of CMAM guidelines | D45: 1 | E45: guidelines | F45: 3 | G45: 0.3333333333 | H45: 1 | I45: 0.3333333333 | J45: 1 | K45: 0 | L45: 0 | M45: 1 | N45: 0 | O45: 0
C46: registration book | D46: 1 | E46: book | F46: 1 | G46: 1 | H46: 1 | I46: 1 | J46: 1 | K46: 1 | L46: 1 | M46: 1 | N46: 1 | O46: 1
C47: monthly reporting forms | D47: 12 | E47: forms | F47: 1 | G47: 12 | H47: 1 | I47: 12 | J47: 12 | K47: 12 | L47: 12 | M47: 12 | N47: 12 | O47: 12
C48: tally sheets (weekly) | D48: 52 | E48: sheets | F48: 1 | G48: 52 | H48: 1 | I48: 52 | J48: 52 | K48: 52 | L48: 52 | M48: 52 | N48: 52 | O48: 52
A49: 6 | C49: set of cups and spoons | D49: 6
C50: Annual cost for fixed supplies per OCsite | I50: =+SUM(I22:I48) -> 128.2333333 | J50: =SUM(J22:J48) -> 163 | K50: 108 | L50: 109 | M50: 121 | N50: 109 | O50: 145
C54: TABLE 2. Inpatient Care site | H54: =+'D1 Background'!$H$14 -> 2010 | L54: =+'D1 Background'!$H$13 -> Cedi
H55: Price per unit | I55: Average cost per year | J55: Costs for each year in the life of the Intpatient Care site
C56: Supplies | D56: Number required (at any point in time) | E56: Unit | F56: No. years before need replacing | G56: Average amount per year | J56: Year 1 | K56: Year 2 | L56: Year 3 | M56: Year 4 | N56: Year 5 | O56: Year 6
C57: Strong OCsite file for admission/treatment cards | D57: 4 | E57: file | F57: 1 | G57: =+D57/F57 -> 4 | H57: =+H22 -> 1 | I57: =+D57/F57*H57 -> 4 | J57: =+D57*H57 -> 4 | K57: =+IF(F57=1,J57,0) -> 4 | L57: =+IF(OR(F57=1,F57=2),J57,0) -> 4 | M57: =+IF(OR(F57=1,F57=3),J57,0) -> 4 | N57: =+IF(OR(F57=1,F57=2,F57=4),J57,0) -> 4 | O57: =+IF(OR(F57=1,F57=5),J57,0) -> 4
C58: Small clock or watch with second hand | D58: 2 | E58: clock | F58: 3 | G58: 0.6666666667 | H58: =+H23 -> 1 | I58: 0.6666666667 | J58: 2 | K58: 0 | L58: 0 | M58: 2 | N58: 0 | O58: 0
C59: Bucket – plastic, graduated, lid, 8.5 litres | D59: 2 | E59: bucket | F59: 5 | G59: 0.4 | H59: 1 | I59: 0.4 | J59: 2 | K59: 0 | L59: 0 | M59: 0 | N59: 0 | O59: 2
A60: for mixing milk | C60: Jug – transparent plastic, graduated, 1litre | D60: 2 | E60: jug | F60: 5 | G60: 0.4 | H60: 1 | I60: 0.4 | J60: 2 | K60: 0 | L60: 0 | M60: 0 | N60: 0 | O60: 2
C61: Marker pens (permanent ink) | D61: 12 | E61: pen | F61: 1 | G61: 12 | H61: 1 | I61: 12 | J61: 12 | K61: 12 | L61: 12 | M61: 12 | N61: 12 | O61: 12
C62: Notebook | D62: 4 | E62: notebook | F62: 1 | G62: 4 | H62: 1 | I62: 4 | J62: 4 | K62: 4 | L62: 4 | M62: 4 | N62: 4 | O62: 4
A63: for measuring | C63: Metal spoons | D63: 4 | E63: spoons | F63: 5 | G63: 0.8 | H63: 1 | I63: 0.8 | J63: 4 | K63: 0 | L63: 0 | M63: 0 | N63: 0 | O63: 4
A64: no | C64: Teaspoons | D64: 12 | E64: spoons | F64: 5 | G64: 2.4 | H64: 1 | I64: 2.4 | J64: 12 | K64: 0 | L64: 0 | M64: 0 | N64: 0 | O64: 12
C65: Nail clippers | D65: 4 | E65: clippers | F65: 5 | G65: 0.8 | H65: 1 | I65: 0.8 | J65: 4 | K65: 0 | L65: 0 | M65: 0 | N65: 0 | O65: 4
C66: Water carrier -plastic, collapsible, tap, 20 litres | D66: 4 | E66: carrier | F66: 3 | G66: 1.333333333 | H66: 1 | I66: 1.333333333 | J66: 4 | K66: 0 | L66: 0 | M66: 4 | N66: 0 | O66: 0
C67: Water jug (with lid) | D67: 4 | E67: jug | F67: 3 | G67: 1.333333333 | H67: 1 | I67: 1.333333333 | J67: 4 | K67: 0 | L67: 0 | M67: 4 | N67: 0 | O67: 0
C68: Small metal bowl | D68: 4 | E68: bowl | F68: 5 | G68: 0.8 | H68: 1 | I68: 0.8 | J68: 4 | K68: 0 | L68: 0 | M68: 0 | N68: 0 | O68: 4
C69: Thermometer - electronic | D69: 4 | E69: thermometer | F69: 5 | G69: 0.8 | H69: 1 | I69: 0.8 | J69: 4 | K69: 0 | L69: 0 | M69: 0 | N69: 0 | O69: 4
C70: Additional scales | D70: 1 | E70: scales | F70: 2 | G70: 0.5 | H70: 1 | I70: 0.5 | J70: 1 | K70: 0 | L70: 1 | M70: 0 | N70: 1 | O70: 0
A71: ??? | C71: Additional height boards | E71: boards | F71: 5 | G71: 0 | H71: 1 | I71: 0 | J71: 0 | K71: 0 | L71: 0 | M71: 0 | N71: 0 | O71: 0
C72: Additional MUAC bands | D72: 500 | E72: bands | F72: 1 | G72: 500 | H72: 0.2 | I72: 100 | J72: 100 | K72: 100 | L72: 100 | M72: 100 | N72: 100 | O72: 100
C73: Additional calculators | E73: calculator | F73: 5 | G73: 0 | H73: 1 | I73: 0 | J73: 0 | K73: 0 | L73: 0 | M73: 0 | N73: 0 | O73: 0
C74: weight for height chart | D74: 1 | E74: height table | F74: 5 | G74: 0.2 | H74: 1 | I74: 0.2 | J74: 1 | K74: 0 | L74: 0 | M74: 0 | N74: 0 | O74: 1
C75: height board | D75: 1 | E75: boards | F75: 5 | G75: 0.2 | H75: 1 | I75: 0.2 | J75: 1 | K75: 0 | L75: 0 | M75: 0 | N75: 0 | O75: 1
C76: scissors | D76: 1 | E76: scissors | F76: 5 | G76: 0.2 | H76: 1 | I76: 0.2 | J76: 1 | K76: 0 | L76: 0 | M76: 0 | N76: 0 | O76: 1
C77: stapler and staples | D77: 1 | E77: stapler | F77: 1 | G77: 1 | H77: 1 | I77: 1 | J77: 1 | K77: 1 | L77: 1 | M77: 1 | N77: 1 | O77: 1
C78: Beaker – orange plastic (500 ml) | D78: 2 | E78: beaker | F78: 3 | G78: 0.6666666667 | H78: 1 | I78: 0.6666666667 | J78: 2 | K78: 0 | L78: 0 | M78: 2 | N78: 0 | O78: 0
C79: Set of communication materials for counselling on health and nutrition | D79: 2 | E79: set | F79: 1 | G79: 2 | H79: 11 | I79: 22 | J79: 22 | K79: 22 | L79: 22 | M79: 22 | N79: 22 | O79: 22
C80: copy of CMAM guidelines | D80: 1 | E80: guidelines | F80: 3 | G80: 0.3333333333 | H80: 1 | I80: 0.3333333333 | J80: 1 | K80: 0 | L80: 0 | M80: 1 | N80: 0 | O80: 0
C81: registration book | D81: 1 | E81: book | F81: 1 | G81: 1 | H81: 1 | I81: 1 | J81: 1 | K81: 1 | L81: 1 | M81: 1 | N81: 1 | O81: 1
C82: monthly reporting forms | D82: 12 | E82: forms | F82: 1 | G82: 12 | H82: 1 | I82: 12 | J82: 12 | K82: 12 | L82: 12 | M82: 12 | N82: 12 | O82: 12
C83: tally sheets | D83: 12 | E83: sheets | F83: 1 | G83: 12 | H83: 1 | I83: 12 | J83: 12 | K83: 12 | L83: 12 | M83: 12 | N83: 12 | O83: 12
A84: beakers and spoons for formula milk
A85: food scale (up to 10 kg) for weighing milks?
C86: Specifically for ICsite | J86: =SUM(J57:J83) -> 217 | K86: 168 | L86: 169 | M86: 181 | N86: 169 | O86: 203
C87: equipment | I87: 200
C88: space | F88: m2
C89: Cots for children | D89: =+'D9 Time-dependent'!$F$42*'D3 Epid. Demog. & Service Data'!$F$29/365 -> 0.9657534247 | E89: (no SAM cases with complications * days inIC /365
C90: Beds for carer
C94: Annual cost for fixed supplies per ICsite | I94: =+SUM(I57:I93) -> 379.8333333

Sheet D5 Salaries
A2: Return to Contents | C2: D5: Salaries
B5: Clear this Worksheet of any data entered from a previous application of this Tool by pressing this button ………..
B8: 1 | C8: Identify the kinds of staff responsible for the activities described in the second column of this Table and RECORD their titles in the third column of the Table.
B10: 2 | C10: Consult Human Resources and RECORD annual salaries and benefits (for the base year defined in Worksheet D1) for each category of staff identified below. If there is a range of values (e.g., salary may depend on length of service or location), choose the value typical of that category of worker in Area 1 and its Group-Area HQ.
B12: 3 | C12: If trainers receive an honorarium when they teach, RECORD the value of that honorarium (expressed as a daily rate) in the last column. Otherwise, leave this column blank or record "0".
B14: 4 | C14: CHECK that the values you have recorded in the last row of the previous worksheet (D4) reflect how different overall salaries in other areas are compared with the Area 1 salaries that you have recorded here.
C17: =+IF('D1 Background'!$H$11="","",'D1 Background'!$H$11) -> Ghana
F18: =+J18 -> Cedi | J18: =+IF('D1 Background'!$H$13="","",'D1 Background'!$H$13) -> Cedi
C19: Health care providers and other staff | D19: Functions they perform | E19: Specify type (e.g., doctor, nurse, midwife, etc.) | F19: Average annual salary | G19: Annual benefits or allowances (e.g., housing uniform) | H19: Total annual income | I19: Working days in a year | J19: Total daily income | K19: Daily rate of honoraria: for trainers, for volunteers (if applicable)
C20: At Central HQ | I20: =+'D3 Epid. Demog. & Service Data'!F36 -> 260
C21: Senior Central HQ staff | D21: Management of CMAM, including monitoring and reporting. | E21: Nutrition Program Manager | F21: 18000 | H21: =+SUM(F21:G21) -> 18000 | I21: =+'D3 Epid. Demog. & Service Data'!$F$36 -> 260 | J21: =+H21/I21 -> 69.23076923 | L21: u
C22: Mid-level Central HQ staff | D22: Assisting in establishing CMAM and routine management, training of Group-Area managers. | E22: Nutrition Officer | F22: 14400 | H22: =+SUM(F22:G22) -> 14400 | I22: =+'D3 Epid. Demog. & Service Data'!$F$36 -> 260 | J22: =+H22/I22 -> 55.38461538 | K22: 50 | L22: u
C23: At Group-Area HQ
C24: Senior Group-Area HQ staff | D24: Management of CMAM, including monitoring and reporting. | E24: Regional Nutrition Officer | F24: 12000 | H24: =+SUM(F24:G24) -> 12000 | I24: =+'D3 Epid. Demog. & Service Data'!$F$36 -> 260 | J24: =+H24/I24 -> 46.15384615 | L24: u
C25: Mid-level Group-Area HQ staff | D25: Supervision and training of Area HQ staff. | E25: Techncial Officer | F25: 9600 | H25: =+SUM(F25:G25) -> 9600 | I25: =+'D3 Epid. Demog. & Service Data'!$F$36 -> 260 | J25: =+H25/I25 -> 36.92307692 | K25: 50 | L25: u
C26: Junior Group-Area HQ staff | D26: Monitoring and reporting, and assisting with other management tasks. | E26: Community Health Nurse | F26: 4800 | H26: =+SUM(F26:G26) -> 4800 | I26: =+'D3 Epid. Demog. & Service Data'!$F$36 -> 260 | J26: =+H26/I26 -> 18.46153846 | L26: u
C27: At Area HQ
C28: Senior Area HQ staff | D28: Management of CMAM, including monitoring and reporting system. | E28: District Nutrition Officer | F28: 9600 | H28: =+SUM(F28:G28) -> 9600 | I28: =+'D3 Epid. Demog. & Service Data'!$F$36 -> 260 | J28: =+H28/I28 -> 36.92307692 | L28: u
C29: Mid-level Area HQ staff | D29: Supervision and training of Outpatient Care and/or Inpatient Care sites. | E29: Techncial Officer | F29: 4800 | H29: =+SUM(F29:G29) -> 4800 | I29: =+'D3 Epid. Demog. & Service Data'!$F$36 -> 260 | J29: =+H29/I29 -> 18.46153846 | K29: 50 | L29: u
C30: Junior Area HQ staff | D30: Monitoring and reporting system, and support to mid-level and senior staff. | E30: Community Health Nurse | F30: 4800 | H30: =+SUM(F30:G30) -> 4800 | I30: =+'D3 Epid. Demog. & Service Data'!$F$36 -> 260 | J30: =+H30/I30 -> 18.46153846 | L30: u
C31: At Outpatient Care site - health care providers
C32: Senior staff | D32: Management of SAM cases, establishing community outreach, training of Community Outreach Workers, monitoring and reporting. | E32: Medical Assistant/Senior Nurese/Midwife | F32: 10200 | H32: =+SUM(F32:G32) -> 10200 | I32: =+'D3 Epid. Demog. & Service Data'!$F$36 -> 260 | J32: =+H32/I32 -> 39.23076923 | K32: 50 | L32: u
C33: Junior staff | D33: Assisting with management of SAM cases, supervision of COW, helping establish community outreach, monitoring and reporting. | E33: Community Health Nurse | F33: 4800 | H33: =+SUM(F33:G33) -> 4800 | I33: =+'D3 Epid. Demog. & Service Data'!$F$36 -> 260 | J33: =+H33/I33 -> 18.46153846 | L33: u
C34: =+IF('D3 Epid. Demog. & Service Data'!F77="","",'D3 Epid. Demog. & Service Data'!F77) -> Volunteer | D34: CMAM outreach in the community. | H34: =+SUM(F34:G34) -> 0 | I34: =+'D3 Epid. Demog. & Service Data'!$F$36 -> 260 | J34: =+H34/I34 -> 0 | K34: 0 | L34: u
C35: At Inpatient Care site - health care providers
C36: Senior staff | D36: In-house supervision of health care providers, managing SAM children with complications, monitoring and reporting. | E36: Senior Medical Officer/Pediatrician | F36: 21600 | H36: =+SUM(F36:G36) -> 21600 | I36: =+'D3 Epid. Demog. & Service Data'!$F$36 -> 260 | J36: =+H36/I36 -> 83.07692308 | K36: 50 | L36: u
C37: Mid-level staff | E37: Clinical Nurse/Gradiated Dietitician | F37: 9600 | I37: =+'D3 Epid. Demog. & Service Data'!$F$36 -> 260 | L37: u
C38: Junior staff | D38: Assisting in care of SAM cases with medical complications, preparation of therapeutic food, monitoring and reporting. | E38: Health Aids/Health ExtensionWorker | F38: 3000 | H38: =+SUM(F38:G38) -> 3000 | I38: =+'D3 Epid. Demog. & Service Data'!$F$36 -> 260 | J38: =+H38/I38 -> 11.53846154 | L38: u
C39: Other workers (all levels)
C40: Driver | D40: Driving vehicles carrying supplies or people | E40: Driver | F40: 1800 | H40: =+SUM(F40:G40) -> 1800 | I40: =+'D3 Epid. Demog. & Service Data'!$F$36 -> 260 | J40: =+H40/I40 -> 6.923076923 | L40: u
C41: Store guard | D41: Guarding stores of therapeutic food. | E41: Store Keeper | F41: 1200 | H41: =+SUM(F41:G41) -> 1200 | I41: =+'D3 Epid. Demog. & Service Data'!$F$36 -> 260 | J41: =+H41/I41 -> 4.615384615 | L41: u

Sheet D6 Fixed Supplies
A2: Return to Contents | C2: D6: Fixed Supplies (for Outpatient Care and Inpatient Care sites)
C5: Clear this Worksheet of any data entered from a previous application of this Tool by pressing this button ………..
B8: TABLE 1 (Outpatient Care sites)
B10: 1 | C10: RECORD in the gold-colored cells (indicated by u) of the column entitled "Actual number used" the number of the specified items you plan to equip each Outpatient Care site with. The previous column of dark green-colored cells (indicated by n) gives recommended values, which you should use unless there are reasons for considering that different quantities are appropriate.
B12: 2 | C12: RECORD in the gold-colored cells of the column entitled "Price per unit" the prices (for the base year defined in Worksheet D1) of the item specified. Make sure that the appropriate units are attached to the price and check that the price includes all relevant elements (e.g., packaging and transporting to the site).
B14: 3 | C14: ADD, in the empty rows at the end of Table 1, any additional supplies that you consider necessary, and their quantities, expected length of life, and price per unit.
B16: 4 | C16: (Optional). REVIEW the default data assumptions fixed by the Tool for the length of life of the items ("Number of years before replaced"). If the assumptions are clearly inappropriate, first unprotect the Worksheet then make necessary changes and re-protect the Worksheet.
B18: TABLE 2 (Inpatient Care sites)
B20: 5 | C20: COMPLETE Table 2 (for Inpatient Care sites) as for Table 1.
C25: =+IF('D1 Background'!$H$11="","",'D1 Background'!$H$11) -> Ghana
C28: Number of sets of supplies for each Outpatient Care site | F28: 1 | G28: n
I30: =+IF('D1 Background'!$H$14="","",'D1 Background'!$H$14) -> 2010 | K30: =+IF('D1 Background'!$H$14="","",'D1 Background'!$H$14) -> 2010 | M30: =+IF('D1 Background'!$H$13="","",'D1 Background'!$H$13) -> Cedi | N30: =+IF('D1 Background'!$H$13="","",'D1 Background'!$H$13) -> Cedi | O30: =+IF('D1 Background'!$H$13="","",'D1 Background'!$H$13) -> Cedi | P30: =+IF('D1 Background'!$H$13="","",'D1 Background'!$H$13) -> Cedi
C31: TABLE 1. Outpatient Care Site | I31: Price per unit | J31: Average cost per year | K31: Costs for each year in the life of the Outpatient Care site
C32: Supplies | D32: RECOMMENDED number required | E32: ACTUAL number used | F32: Unit | G32: Number of years before replaced | H32: Average amount per year | K32: Year 1 | L32: Year 2 | M32: Year 3 | N32: Year 4 | O32: Year 5 | P32: Year 6
C33: Strong file to store treatment cards | D33: 4 | E33: 4 | F33: file | G33: 1 | H33: =+IF(ISERROR(E33/G33),,E33/G33) -> 4 | I33: 4 | J33: =+IF(ISERROR(E33/G33*I33),,E33/G33*I33) -> 16 | K33: =+IF(ISERROR(E33*I33),,E33*I33) -> 16 | L33: =+IF(G33=1,K33,0) -> 16 | M33: =+IF(OR(G33=1,G33=2),K33,0) -> 16 | N33: =+IF(OR(G33=1,G33=3),K33,0) -> 16 | O33: =+IF(OR(G33=1,G33=2,G33=4),K33,0) -> 16 | P33: =+IF(OR(G33=1,G33=5),K33,0) -> 16 | Q33: nu
C34: Small clock or watch with second hand | D34: 2 | E34: 1 | F34: clock | G34: 3 | H34: 0.3333333333 | I34: 15 | J34: 5 | K34: 15 | L34: 0 | M34: 0 | N34: 15 | O34: 0 | P34: 0 | Q34: nu
C35: Bucket – plastic, graduated, lid, 8.5 liters | D35: 2 | E35: 1 | F35: bucket | G35: 5 | H35: 0.2 | I35: 6 | J35: 1.2 | K35: 6 | L35: 0 | M35: 0 | N35: 0 | O35: 0 | P35: 6 | Q35: nu
C36: Jug – transparent plastic, graduated, 1 liter | D36: 2 | E36: 2 | F36: jug | G36: 5 | H36: 0.4 | I36: 3 | J36: 1.2 | K36: 6 | L36: 0 | M36: 0 | N36: 0 | O36: 0 | P36: 6 | Q36: nu
C37: Marker pens (permanent ink) | D37: 12 | E37: 1 | F37: pen | G37: 1 | H37: 1 | I37: 2 | J37: 2 | K37: 2 | L37: 2 | M37: 2 | N37: 2 | O37: 2 | P37: 2 | Q37: nu
C38: Notebook | D38: 4 | E38: 1 | F38: notebook | G38: 1 | H38: 1 | I38: 4 | J38: 4 | K38: 4 | L38: 4 | M38: 4 | N38: 4 | O38: 4 | P38: 4 | Q38: nu
C39: Metal spoons | D39: 4 | E39: 2 | F39: spoons | G39: 5 | H39: 0.4 | I39: 1 | J39: 0.4 | K39: 2 | L39: 0 | M39: 0 | N39: 0 | O39: 0 | P39: 2 | Q39: nu
C40: Teaspoons | D40: 12 | E40: 2 | F40: spoons | G40: 5 | H40: 0.4 | I40: 0.2 | J40: 0.08 | K40: 0.4 | L40: 0 | M40: 0 | N40: 0 | O40: 0 | P40: 0.4 | Q40: nu
C41: Nail clippers | D41: 4 | E41: 1 | F41: clippers | G41: 5 | H41: 0.2 | I41: 10 | J41: 2 | K41: 10 | L41: 0 | M41: 0 | N41: 0 | O41: 0 | P41: 10 | Q41: nu
C42: Water carrier - plastic, 20 liters | D42: 4 | E42: 1 | F42: carrier | G42: 3 | H42: 0.3333333333 | I42: 10 | J42: 3.333333333 | K42: 10 | L42: 0 | M42: 0 | N42: 10 | O42: 0 | P42: 0 | Q42: nu
C43: Water jug (with lid) | D43: 4 | E43: 2 | F43: jug | G43: 3 | H43: 0.6666666667 | I43: 4 | J43: 2.666666667 | K43: 8 | L43: 0 | M43: 0 | N43: 8 | O43: 0 | P43: 0 | Q43: nu
C44: Small metal bowl | D44: 4 | E44: 2 | F44: bowl | G44: 5 | H44: 0.4 | I44: 0.5 | J44: 0.2 | K44: 1 | L44: 0 | M44: 0 | N44: 0 | O44: 0 | P44: 1 | Q44: nu
C45: Thermometer - electronic | D45: 2 | E45: 1 | F45: thermometer | G45: 5 | H45: 0.2 | I45: 5 | J45: 1 | K45: 5 | L45: 0 | M45: 0 | N45: 0 | O45: 0 | P45: 5 | Q45: nu
C46: Hanging scale with 100 g indications | D46: 1 | E46: 1 | F46: scales | G46: 5 | H46: 0.2 | I46: 150 | J46: 30 | K46: 150 | L46: 0 | M46: 0 | N46: 0 | O46: 0 | P46: 150 | Q46: nu
C47: Adult scale/electronic scale | D47: 1 | E47: 1 | F47: scales | G47: 5 | H47: 0.2 | I47: 175 | J47: 35 | K47: 175 | L47: 0 | M47: 0 | N47: 0 | O47: 0 | P47: 175 | Q47: nu
C48: Height boards | D48: 1 | E48: 0 | F48: boards | G48: 5 | H48: 0 | J48: 0 | K48: 0 | L48: 0 | M48: 0 | N48: 0 | O48: 0 | P48: 0 | Q48: nu
C49: MUAC bands | D49: 20 | E49: 10 | F49: bands | G49: 0.5 | H49: 20 | I49: 1.5 | J49: 30 | K49: 15 | L49: 0 | M49: 0 | N49: 0 | O49: 0 | P49: 0 | Q49: nu
C50: Calculators | D50: 2 | E50: 1 | F50: calculator | G50: 5 | H50: 0.2 | I50: 5 | J50: 1 | K50: 5 | L50: 0 | M50: 0 | N50: 0 | O50: 0 | P50: 5 | Q50: nu
C51: Weight-for-height chart | D51: 1 | E51: 1 | F51: height table | G51: 5 | H51: 0.2 | I51: 0 | J51: 0 | K51: 0 | L51: 0 | M51: 0 | N51: 0 | O51: 0 | P51: 0 | Q51: nu
C52: Additional height board | D52: 1 | E52: 0 | F52: boards | G52: 5 | H52: 0 | J52: 0 | K52: 0 | L52: 0 | M52: 0 | N52: 0 | O52: 0 | P52: 0 | Q52: nu
C53: Scissors | D53: 1 | E53: 1 | F53: scissors | G53: 5 | H53: 0.2 | I53: 1.5 | J53: 0.3 | K53: 1.5 | L53: 0 | M53: 0 | N53: 0 | O53: 0 | P53: 1.5 | Q53: nu
C54: Stapler and staples | D54: 1 | E54: 1 | F54: stapler | G54: 1 | H54: 1 | I54: 5 | J54: 5 | K54: 5 | L54: 5 | M54: 5 | N54: 5 | O54: 5 | P54: 5 | Q54: nu
C55: Beaker – orange plastic (500 ml) | D55: 2 | E55: 2 | F55: beaker | G55: 3 | H55: 0.6666666667 | I55: 1 | J55: 0.6666666667 | K55: 2 | L55: 0 | M55: 0 | N55: 2 | O55: 0 | P55: 0 | Q55: nu
C56: Set of communication materials for counseling on health and nutrition | D56: 2 | E56: 1 | F56: set | G56: 1 | H56: 1 | I56: 20 | J56: 20 | K56: 20 | L56: 20 | M56: 20 | N56: 20 | O56: 20 | P56: 20 | Q56: nu
C57: Job aids for staff | D57: 1 | E57: 1 | F57: set | G57: 1 | H57: 1 | I57: 30 | J57: 30 | K57: 30 | L57: 30 | M57: 30 | N57: 30 | O57: 30 | P57: 30 | Q57: nu
C58: Copy of CMAM guidelines | D58: 1 | E58: 1 | F58: guidelines | G58: 3 | H58: 0.3333333333 | I58: 50 | J58: 16.66666667 | K58: 50 | L58: 0 | M58: 0 | N58: 50 | O58: 0 | P58: 0 | Q58: nu
C59: Registration book | D59: 1 | E59: 1 | F59: book | G59: 1 | H59: 1 | I59: 2.5 | J59: 2.5 | K59: 2.5 | L59: 2.5 | M59: 2.5 | N59: 2.5 | O59: 2.5 | P59: 2.5 | Q59: nu
C60: Monthly reporting forms | D60: 12 | E60: 12 | F60: forms | G60: 1 | H60: 12 | I60: 0.2 | J60: 2.4 | K60: 2.4 | L60: 2.4 | M60: 2.4 | N60: 2.4 | O60: 2.4 | P60: 2.4 | Q60: nu
C61: Tally sheets (monthly) | D61: 12 | E61: 12 | F61: sheets | G61: 1 | H61: 12 | I61: 0.2 | J61: 2.4 | K61: 2.4 | L61: 2.4 | M61: 2.4 | N61: 2.4 | O61: 2.4 | P61: 2.4 | Q61: nu
C62: Set of cups and spoons | D62: 6 | E62: 6 | F62: set | G62: 1 | H62: 6 | I62: 2 | J62: 12 | K62: 12 | L62: 12 | M62: 12 | N62: 12 | O62: 12 | P62: 12 | Q62: nu
C63: Additional items (optional)
H64: =+IF(ISERROR(E64/G64),,E64/G64) -> 0 | J64: =+IF(ISERROR(E64/G64*I64),,E64/G64*I64) -> 0 | K64: =+IF(ISERROR(E64*I64),,E64*I64) -> 0 | L64: =+IF(G64=1,K64,0) -> 0 | M64: =+IF(OR(G64=1,G64=2),K64,0) -> 0 | N64: =+IF(OR(G64=1,G64=3),K64,0) -> 0 | O64: =+IF(OR(G64=1,G64=2,G64=4),K64,0) -> 0 | P64: =+IF(OR(G64=1,G64=5),K64,0) -> 0 | Q64: u
H65: 0 | J65: 0 | K65: 0 | L65: 0 | M65: 0 | N65: 0 | O65: 0 | P65: 0 | Q65: u
H66: 0 | J66: 0 | K66: 0 | L66: 0 | M66: 0 | N66: 0 | O66: 0 | P66: 0 | Q66: u
H67: 0 | J67: 0 | K67: 0 | L67: 0 | M67: 0 | N67: 0 | O67: 0 | P67: 0 | Q67: u
H68: 0 | J68: 0 | K68: 0 | L68: 0 | M68: 0 | N68: 0 | O68: 0 | P68: 0 | Q68: u
H69: 0 | J69: 0 | K69: 0 | L69: 0 | M69: 0 | N69: 0 | O69: 0 | P69: 0 | Q69: u
H70: 0 | J70: 0 | K70: 0 | L70: 0 | M70: 0 | N70: 0 | O70: 0 | P70: 0 | Q70: u
C71: Annual cost for fixed supplies per Outpatient Care site | J71: =+SUM(J33:J70) -> 227.0133333 | K71: =SUM(K33:K70) -> 558.2 | L71: 96.3 | M71: 96.3 | N71: 181.3 | O71: 96.3 | P71: 458.2
C74: Number of sets of supplies for each Inpatient Care site | F74: 1
I75: =+IF('D1 Background'!$H$14="","",'D1 Background'!$H$14) -> 2010 | K75: =+IF('D1 Background'!$H$14="","",'D1 Background'!$H$14) -> 2010 | M75: =+IF('D1 Background'!$H$13="","",'D1 Background'!$H$13) -> Cedi | N75: =+IF('D1 Background'!$H$13="","",'D1 Background'!$H$13) -> Cedi | O75: =+IF('D1 Background'!$H$13="","",'D1 Background'!$H$13) -> Cedi | P75: =+IF('D1 Background'!$H$13="","",'D1 Background'!$H$13) -> Cedi
A76: Return to top | C76: TABLE 2. Inpatient Care site | I76: Price per unit | J76: Average cost per year | K76: Costs for each year in the life of the Inpatient Care site
C77: Supplies | D77: RECOMMENDED number required | E77: ACTUAL number used | F77: Unit | G77: No. years before need replacing | H77: Average amount per year | K77: Year 1 | L77: Year 2 | M77: Year 3 | N77: Year 4 | O77: Year 5 | P77: Year 6
C78: Strong file for treatment cards | D78: =+D33 -> 4 | E78: 4 | F78: file | G78: =+G33 -> 1 | H78: =+IF(ISERROR(E78/G78),,E78/G78) -> 4 | I78: =+I33 -> 4 | J78: =+IF(ISERROR(E78/G78*I78),,E78/G78*I78) -> 16 | K78: =+IF(ISERROR(E78*I78),,E78*I78) -> 16 | L78: =+IF(G78=1,K78,0) -> 16 | M78: =+IF(OR(G78=1,G78=2),K78,0) -> 16 | N78: =+IF(OR(G78=1,G78=3),K78,0) -> 16 | O78: =+IF(OR(G78=1,G78=2,G78=4),K78,0) -> 16 | P78: =+IF(OR(G78=1,G78=5),K78,0) -> 16 | Q78: u
C79: Small clock or watch with second hand | D79: =+D34 -> 2 | E79: 1 | F79: clock | G79: 3 | H79: 0.3333333333 | I79: =+I34 -> 15 | J79: 5 | K79: 15 | L79: 0 | M79: 0 | N79: 15 | O79: 0 | P79: 0 | Q79: u
C80: Bucket – plastic, graduated, lid, 8.5 liters | D80: 2 | E80: 1 | F80: bucket | G80: 5 | H80: 0.2 | I80: 6 | J80: 1.2 | K80: 6 | L80: 0 | M80: 0 | N80: 0 | O80: 0 | P80: 6 | Q80: u
C81: Jug – transparent plastic, graduated, 1 liter | D81: 2 | E81: 2 | F81: jug | G81: 5 | H81: 0.4 | I81: 3 | J81: 1.2 | K81: 6 | L81: 0 | M81: 0 | N81: 0 | O81: 0 | P81: 6 | Q81: u
C82: Marker pens (permanent ink) | D82: 12 | E82: 1 | F82: pen | G82: 1 | H82: 1 | I82: 2 | J82: 2 | K82: 2 | L82: 2 | M82: 2 | N82: 2 | O82: 2 | P82: 2 | Q82: u
C83: Notebook | D83: 4 | E83: 1 | F83: notebook | G83: 1 | H83: 1 | I83: 4 | J83: 4 | K83: 4 | L83: 4 | M83: 4 | N83: 4 | O83: 4 | P83: 4 | Q83: u
C84: Metal spoons | D84: 4 | E84: 2 | F84: spoons | G84: 5 | H84: 0.4 | I84: 1 | J84: 0.4 | K84: 2 | L84: 0 | M84: 0 | N84: 0 | O84: 0 | P84: 2 | Q84: u
C85: Teaspoons | D85: 12 | E85: 2 | F85: spoons | G85: 5 | H85: 0.4 | I85: 0.2 | J85: 0.08 | K85: 0.4 | L85: 0 | M85: 0 | N85: 0 | O85: 0 | P85: 0.4 | Q85: u
C86: Nail clippers | D86: 4 | E86: 1 | F86: clippers | G86: 5 | H86: 0.2 | I86: 10 | J86: 2 | K86: 10 | L86: 0 | M86: 0 | N86: 0 | O86: 0 | P86: 10 | Q86: u
C87: Water carrier - plastic, 20 liters | D87: 4 | E87: 1 | F87: carrier | G87: 3 | H87: 0.3333333333 | I87: 10 | J87: 3.333333333 | K87: 10 | L87: 0 | M87: 0 | N87: 10 | O87: 0 | P87: 0 | Q87: u
C88: Water jug (with lid) | D88: 4 | E88: 2 | F88: jug | G88: 3 | H88: 0.6666666667 | I88: 4 | J88: 2.666666667 | K88: 8 | L88: 0 | M88: 0 | N88: 8 | O88: 0 | P88: 0 | Q88: u
C89: Small metal bowl | D89: 4 | E89: 2 | F89: bowl | G89: 5 | H89: 0.4 | I89: 0.5 | J89: 0.2 | K89: 1 | L89: 0 | M89: 0 | N89: 0 | O89: 0 | P89: 1 | Q89: u
C90: Thermometer - electronic | D90: 2 | E90: 1 | F90: thermometer | G90: 5 | H90: 0.2 | I90: 5 | J90: 1 | K90: 5 | L90: 0 | M90: 0 | N90: 0 | O90: 0 | P90: 5 | Q90: u
C91: Hanging scale with 100 g indications | D91: 1 | E91: 1 | F91: scales | G91: 5 | H91: 0.2 | I91: 150 | J91: 30 | K91: 150 | L91: 0 | M91: 0 | N91: 0 | O91: 0 | P91: 150 | Q91: u
C92: Adult scale/electronic scale | D92: 1 | E92: 1 | F92: scales | G92: 5 | H92: 0.2 | I92: 175 | J92: 35 | K92: 175 | L92: 0 | M92: 0 | N92: 0 | O92: 0 | P92: 175 | Q92: u
C93: MUAC bands | D93: =+D49 -> 20 | E93: 10 | F93: bands | G93: =+G49 -> 0.5 | H93: 20 | I93: =+I49 -> 1.5 | J93: 30 | K93: 15 | L93: 0 | M93: 0 | N93: 0 | O93: 0 | P93: 0 | Q93: u
C94: Calculators | D94: 2 | E94: 1 | F94: calculator | G94: 5 | H94: 0.2 | I94: =+I50 -> 5 | J94: 1 | K94: 5 | L94: 0 | M94: 0 | N94: 0 | O94: 0 | P94: 5 | Q94: u
C95: Weight-for-height chart | D95: 1 | E95: 1 | F95: height table | G95: 5 | H95: 0.2 | I95: 0 | J95: 0 | K95: 0 | L95: 0 | M95: 0 | N95: 0 | O95: 0 | P95: 0 | Q95: u
C96: Height board | D96: 1 | E96: 0 | F96: boards | G96: 5 | H96: 0 | I96: 0 | J96: 0 | K96: 0 | L96: 0 | M96: 0 | N96: 0 | O96: 0 | P96: 0 | Q96: u
C97: Scissors | D97: 1 | E97: 1 | F97: scissors | G97: 5 | H97: 0.2 | I97: 1.5 | J97: 0.3 | K97: 1.5 | L97: 0 | M97: 0 | N97: 0 | O97: 0 | P97: 1.5 | Q97: u
C98: Stapler and staples | D98: 1 | E98: 1 | F98: stapler | G98: 1 | H98: 1 | I98: 5 | J98: 5 | K98: 5 | L98: 5 | M98: 5 | N98: 5 | O98: 5 | P98: 5 | Q98: u
C99: Beaker – orange plastic (500 ml) | D99: 2 | E99: 2 | F99: beaker | G99: 3 | H99: 0.6666666667 | I99: 1 | J99: 0.6666666667 | K99: 2 | L99: 0 | M99: 0 | N99: 2 | O99: 0 | P99: 0 | Q99: u
C100: Set of communication materials for counseling on health and nutrition | D100: 2 | E100: 1 | F100: set | G100: 1 | H100: 1 | I100: 20 | J100: 20 | K100: 20 | L100: 20 | M100: 20 | N100: 20 | O100: 20 | P100: 20 | Q100: u
C101: Job aids for staff | D101: 1 | E101: 1 | F101: set | G101: 1 | H101: 1 | I101: 30 | J101: 30 | K101: 30 | L101: 30 | M101: 30 | N101: 30 | O101: 30 | P101: 30 | Q101: u
C102: Copy of CMAM guidelines | D102: 1 | E102: 1 | F102: guidelines | G102: 3 | H102: 0.3333333333 | I102: 50 | J102: 16.66666667 | K102: 50 | L102: 0 | M102: 0 | N102: 50 | O102: 0 | P102: 0 | Q102: u
C103: Registration book | D103: 1 | E103: 1 | F103: book | G103: 1 | H103: 1 | I103: 2.5 | J103: 2.5 | K103: 2.5 | L103: 2.5 | M103: 2.5 | N103: 2.5 | O103: 2.5 | P103: 2.5 | Q103: u
C104: Monthly reporting forms | D104: 12 | E104: 12 | F104: forms | G104: 1 | H104: 12 | I104: 0.2 | J104: 2.4 | K104: 2.4 | L104: 2.4 | M104: 2.4 | N104: 2.4 | O104: 2.4 | P104: 2.4 | Q104: u
C105: Tally sheets (monthly) | D105: 12 | E105: 12 | F105: sheets | G105: 1 | H105: 12 | I105: 0.2 | J105: 2.4 | K105: 2.4 | L105: 2.4 | M105: 2.4 | N105: 2.4 | O105: 2.4 | P105: 2.4 | Q105: u
C106: Set of cups and spoons | D106: 6 | E106: 6 | F106: set | G106: 1 | H106: 6 | I106: 2 | J106: 12 | K106: 12 | L106: 12 | M106: 12 | N106: 12 | O106: 12 | P106: 12 | Q106: u
C107: Infant scale with 10 g indications | D107: 1 | E107: 1 | F107: scales | G107: 3 | H107: 0.3333333333 | I107: 193 | J107: =+IF(ISERROR(E107/G107*I107),,E107/G107*I107) -> 64.33333333 | K107: =+IF(ISERROR(E107*I107),,E107*I107) -> 193 | L107: =+IF(G107=1,K107,0) -> 0 | M107: =+IF(OR(G107=1,G107=2),K107,0) -> 0 | N107: =+IF(OR(G107=1,G107=3),K107,0) -> 193 | O107: =+IF(OR(G107=1,G107=2,G107=4),K107,0) -> 0 | P107: =+IF(OR(G107=1,G107=5),K107,0) -> 0 | Q107: nu
C108: Food scale (up to 10 kg) for weighing milk powder | D108: 1 | E108: 1 | F108: scales | G108: 3 | H108: 0.3333333333 | I108: 50 | J108: 16.66666667 | K108: 50 | L108: 0 | M108: 0 | N108: 50 | O108: 0 | P108: 0 | Q108: nu
C109: Additional items (optional)
H110: =+IF(ISERROR(E110/G110),,E110/G110) -> 0 | J110: =+IF(ISERROR(E110/G110*I110),,E110/G110*I110) -> 0 | K110: =+IF(ISERROR(E110*I110),,E110*I110) -> 0 | L110: =+IF(G110=1,K110,0) -> 0 | M110: =+IF(OR(G110=1,G110=2),K110,0) -> 0 | N110: =+IF(OR(G110=1,G110=3),K110,0) -> 0 | O110: =+IF(OR(G110=1,G110=2,G110=4),K110,0) -> 0 | P110: =+IF(OR(G110=1,G110=5),K110,0) -> 0 | Q110: u
H111: 0 | J111: 0 | K111: 0 | L111: 0 | M111: 0 | N111: 0 | O111: 0 | P111: 0 | Q111: u
H112: 0 | J112: 0 | K112: 0 | L112: 0 | M112: 0 | N112: 0 | O112: 0 | P112: 0 | Q112: u
H113: 0 | J113: 0 | K113: 0 | L113: 0 | M113: 0 | N113: 0 | O113: 0 | P113: 0 | Q113: u
H114: 0 | J114: 0 | K114: 0 | L114: 0 | M114: 0 | N114: 0 | O114: 0 | P114: 0 | Q114: u
H115: 0 | J115: 0 | K115: 0 | L115: 0 | M115: 0 | N115: 0 | O115: 0 | P115: 0 | Q115: u
H116: 0 | J116: 0 | K116: 0 | L116: 0 | M116: 0 | N116: 0 | O116: 0 | P116: 0 | Q116: u
H117: 0 | J117: 0 | K117: 0 | L117: 0 | M117: 0 | N117: 0 | O117: 0 | P117: 0 | Q117: u
H118: 0 | J118: 0 | K118: 0 | L118: 0 | M118: 0 | N118: 0 | O118: 0 | P118: 0 | Q118: u
H119: 0 | J119: 0 | K119: 0 | L119: 0 | M119: 0 | N119: 0 | O119: 0 | P119: 0 | Q119: u
H120: 0 | J120: 0 | K120: 0 | L120: 0 | M120: 0 | N120: 0 | O120: 0 | P120: 0 | Q120: u
C121: Annual cost for fixed supplies per Inpatient Care site | J121: =+SUM(J78:J120) -> 308.0133333 | K121: =SUM(K78:K120) -> 801.2 | L121: 96.3 | M121: 96.3 | N121: 424.3 | O121: 96.3 | P121: 458.2

Sheet D7 Frequency Food Deliveries
A2: Return to Contents | C2: D7: Frequency of Therapeutic Food Deliveries
B4: Clear this Worksheet of any data entered from a previous application of this Tool by pressing this button ………..
B7: The data provided by you in Worksheet D1 (on the number of Areas and Group-Areas and the number of budget years) will generate the appropriately-sized table in this Worksheet (D7). Make sure you have completed Worksheet D1 before trying to fill in the present Worksheet.
B9: RECORD in the gold-colored cells indicated by u in these tables the annual number of deliveries of RUTF (and other therapeutic food) for each of the years you are budgeting for:
B11: 1 | C11: Deliveries from the Central level to participating Group-Areas.
B13: 2 | C13: Deliveries to Area HQ and from Area HQ to participating Outpatient Care and Inpatient Care sites.
A15: hide this row | C15: number of years to budget for | D15: =+'D1 Background'!G26 -> 1
A16: hide this row | C16: Number of areas | D16: =+'D1 Background'!G31 -> 1
A17: hide this row | C17: Years starting | D17: =+'D1 Background'!G28 -> 2011
A18: hide this row | C18: Number of Group-Areas | D18: =+'D1 Background'!G33 -> 1
C20: =+IF('D1 Background'!$H$11="","",'D1 Background'!$H$11) -> Ghana
B21: Number of deliveries of therapeutic food each year: | E21: Year of CMAM service/program
E22: =+D17 -> 2011 | F22: =+D17+1 -> 2012 | G22: =+D17+2 -> 2013 | H22: =+D17+3 -> 2014 | I22: =+D17+4 -> 2015
C23: 1) From Central level to the following Group-Area HQs:
D25: =+IF('D1 Background'!G36="","",'D1 Background'!G36) -> Greater Accra | E25: 4 | J25: u
D26: =+IF('D1 Background'!G37="","",'D1 Background'!G37) ->  | J26: u
D27: =+IF('D1 Background'!G38="","",'D1 Background'!G38) ->  | J27: u
D28: =+IF('D1 Background'!G39="","",'D1 Background'!G39) ->  | J28: u
D29: =+IF('D1 Background'!G40="","",'D1 Background'!G40) ->  | J29: u
D30: =+IF('D1 Background'!G41="","",'D1 Background'!G41) ->  | J30: u
D31: =+IF('D1 Background'!G42="","",'D1 Background'!G42) ->  | J31: u
D32: =+IF('D1 Background'!G43="","",'D1 Background'!G43) ->  | J32: u
C34: 2) To and from the following Areas:
B36: Area 1 | C36: =+IF('D2 Scale'!C31="","",'D2 Scale'!C31) -> Ashiedu Keteke | D36: =+IF('D2 Scale'!D31="","",'D2 Scale'!D31) -> Greater Accra
C37: - Group-Area HQ to this Area HQ | E37: 6 | J37: u
C38: - this Area HQ to each Outpatient Care site in the Area (average) | E38: 6 | J38: u
C39: - this Area HQ to each Inpatient Care site in this Area (average) | E39: 6 | J39: u
B40: Area 2 | C40: =+IF('D2 Scale'!C36="","",'D2 Scale'!C36) ->  | D40: =+IF('D2 Scale'!D36="","",'D2 Scale'!D36) -> 
C41: - Group-Area HQ to this Area HQ | J41: u
C42: - this Area HQ to each Outpatient Care site in the Area (average) | J42: u
C43: - this Area HQ to each Inpatient Care site in this Area (average) | J43: u
B44: Area 3 | C44: =+IF('D2 Scale'!C41="","",'D2 Scale'!C41) ->  | D44: =+IF('D2 Scale'!D41="","",'D2 Scale'!D41) -> 
C45: - Group-Area HQ to this Area HQ | J45: u
C46: - this Area HQ to each Outpatient Care site in the Area (average) | J46: u
C47: - this Area HQ to each Inpatient Care site in this Area (average) | J47: u
B48: Area 4 | C48: =+IF('D2 Scale'!C46="","",'D2 Scale'!C46) ->  | D48: =+IF('D2 Scale'!D46="","",'D2 Scale'!D46) -> 
C49: - Group-Area HQ to this Area HQ | J49: u
C50: - this Area HQ to each Outpatient Care site in the Area (average) | J50: u
C51: - this Area HQ to each Inpatient Care site in this Area (average) | J51: u
B52: Area 5 | C52: =+IF('D2 Scale'!C51="","",'D2 Scale'!C51) ->  | D52: =+IF('D2 Scale'!D51="","",'D2 Scale'!D51) -> 
C53: - Group-Area HQ to this Area HQ | J53: u
C54: - this Area HQ to each Outpatient Care site in the Area (average) | J54: u
C55: - this Area HQ to each Inpatient Care site in this Area (average) | J55: u
B56: Area 6 | C56: =+IF('D2 Scale'!C56="","",'D2 Scale'!C56) ->  | D56: =+IF('D2 Scale'!D56="","",'D2 Scale'!D56) -> 
C57: - Group-Area HQ to this Area HQ | J57: u
C58: - this Area HQ to each Outpatient Care site in the Area (average) | J58: u
C59: - this Area HQ to each Inpatient Care site in this Area (average) | J59: u
B60: Area 7 | C60: =+IF('D2 Scale'!C61="","",'D2 Scale'!C61) ->  | D60: =+IF('D2 Scale'!D61="","",'D2 Scale'!D61) -> 
C61: - Group-Area HQ to this Area HQ | J61: u
C62: - this Area HQ to each Outpatient Care site in the Area (average) | J62: u
C63: - this Area HQ to each Inpatient Care site in this Area (average) | J63: u
B64: Area 8 | C64: =+IF('D2 Scale'!C66="","",'D2 Scale'!C66) ->  | D64: =+IF('D2 Scale'!D66="","",'D2 Scale'!D66) -> 
C65: - Group-Area HQ to this Area HQ | J65: u
C66: - this Area HQ to each Outpatient Care site in the Area (average) | J66: u
C67: - this Area HQ to each Inpatient Care site in this Area (average) | J67: u
B68: Area 9 | C68: =+IF('D2 Scale'!C71="","",'D2 Scale'!C71) ->  | D68: =+IF('D2 Scale'!D71="","",'D2 Scale'!D71) -> 
C69: - Group-Area HQ to this Area HQ | J69: u
C70: - this Area HQ to each Outpatient Care site in the Area (average) | J70: u
C71: - this Area HQ to each Inpatient Care site in this Area (average) | J71: u
B72: Area 10 | C72: =+IF('D2 Scale'!C76="","",'D2 Scale'!C76) ->  | D72: =+IF('D2 Scale'!D76="","",'D2 Scale'!D76) -> 
C73: - Group-Area HQ to this Area HQ | J73: u
C74: - this Area HQ to each Outpatient Care site in the Area (average) | J74: u
C75: - this Area HQ to each Inpatient Care site in this Area (average) | J75: u

Sheet D8 Group-Area & Central Level
A2: Return to Contents | C2: D8: Group-Area- and Central-Level Statistics
C5: Clear this Worksheet of any data entered from a previous application of this Tool by pressing this button ………..
B8: 1 | C8: COMPLETE the variables in the Table below that require data from the User (gold-colored cells indicated by u).
B10: 2 | C10: (Optional). REVIEW values fixed by the Tool (dark green-colored cells indicated by n). Read Part 4 of the User's Guide for a discussion about those values. If they are not appropriate for your situation, unprotect the Worksheet, make suitable changes to the dark green-colored cells, and re-protect the Worksheet.
B12: 3 | C12: (Optional). REVIEW the assumptions for the several variables that values relevant to the first Group-Area apply also to other Group-Areas. If the assumption is not valid, unprotect the Worksheet, make appropriate changes to the light green-colored or yellow-colored cells, and re-protect the Worksheet.
A16: hide this row | C16: Number of Group-Areas | D16: =+'D1 Background'!G33 -> 1
C17: FTE = Full-Time Equivalent
C19: =+IF('D1 Background'!$H$11="","",'D1 Background'!$H$11) -> Ghana
C21: =+mess22 -> Variable | D21: =+Mess20 -> Units | E21: =+mess21 -> Comments | F21: Central level | G21: Group-Areas …
G22: =+IF('D1 Background'!$G$36="","",'D1 Background'!$G$36) -> Greater Accra | H22: =+IF('D1 Background'!$G$37="","",'D1 Background'!$G$37) ->  | I22: =+IF('D1 Background'!$G$38="","",'D1 Background'!$G$38) ->  | J22: =+IF('D1 Background'!$G$39="","",'D1 Background'!$G$39) ->  | K22: =+IF('D1 Background'!$G$40="","",'D1 Background'!$G$40) ->  | L22: =+IF('D1 Background'!$G$41="","",'D1 Background'!$G$41) ->  | M22: =+IF('D1 Background'!$G$42="","",'D1 Background'!$G$42) ->  | N22: =+IF('D1 Background'!$G$43="","",'D1 Background'!$G$43) -> 
C23: Training of Group-Area HQ staff
C24: Number of staff to train from each new Group-Area. | D24: staff | E24: mid-level staff | G24: 2 | H24: =IF('D1 Background'!$G$33<2,,+G24) -> 0 | I24: =IF('D1 Background'!$G$33<3,,+G24) -> 0 | J24: =IF('D1 Background'!$G$33<4,,+G24) -> 0 | K24: =IF('D1 Background'!$G$33<5,,+G24) -> 0 | L24: =IF('D1 Background'!$G$33<6,,+G24) -> 0 | M24: =IF('D1 Background'!$G$33<7,,+G24) -> 0 | N24: =IF('D1 Background'!$G$33<8,,+G24) -> 0 | O24: n
C25: Number of staff to re-train from each established Group-Area. | D25: staff | E25: mid-level staff | G25: 2 | H25: =IF('D1 Background'!$G$33<2,,+$G$25) -> 0 | I25: =IF('D1 Background'!$G$33<3,,+$G$25) -> 0 | J25: =IF('D1 Background'!$G$33<4,,+$G$25) -> 0 | K25: =IF('D1 Background'!$G$33<5,,+G25) -> 0 | L25: =IF('D1 Background'!$G$33<6,,+G25) -> 0 | M25: =IF('D1 Background'!$G$33<7,,+G25) -> 0 | N25: =IF('D1 Background'!$G$33<8,,+G25) -> 0 | O25: n
C26: Length of training of new Group-Area staff (training of facilitators). | D26: days | G26: 10 | H26: =IF('D1 Background'!$G$33<2,,+$G$26) -> 0 | I26: =IF('D1 Background'!$G$33<3,,+$G$26) -> 0 | J26: =IF('D1 Background'!$G$33<4,,+$G$26) -> 0 | K26: =IF('D1 Background'!$G$33<5,,+G26) -> 0 | L26: =IF('D1 Background'!$G$33<6,,+G26) -> 0 | M26: =IF('D1 Background'!$G$33<7,,+G26) -> 0 | N26: =IF('D1 Background'!$G$33<8,,+G26) -> 0 | O26: n
C27: Length of training of established Group-Area staff. | D27: days | G27: 2 | H27: =IF('D1 Background'!$G$33<2,,+$G$27) -> 0 | I27: =IF('D1 Background'!$G$33<3,,+$G$27) -> 0 | J27: =IF('D1 Background'!$G$33<4,,+$G$27) -> 0 | K27: =IF('D1 Background'!$G$33<5,,+G27) -> 0 | L27: =IF('D1 Background'!$G$33<6,,+G27) -> 0 | M27: =IF('D1 Background'!$G$33<7,,+G27) -> 0 | N27: =IF('D1 Background'!$G$33<8,,+G27) -> 0 | O27: n
C28: Maximum size of trainee classes for Group-Area staff. | D28: trainees | E28: 15 - 25 is a reasonable class size | G28: 20 | H28: =IF('D1 Background'!$G$33<2,,+$G$28) -> 0 | I28: =IF('D1 Background'!$G$33<3,,+$G$28) -> 0 | J28: =IF('D1 Background'!$G$33<4,,+$G$28) -> 0 | K28: =IF('D1 Background'!$G$33<5,,+G28) -> 0 | L28: =IF('D1 Background'!$G$33<6,,+G28) -> 0 | M28: =IF('D1 Background'!$G$33<7,,+G28) -> 0 | N28: =IF('D1 Background'!$G$33<8,,+G28) -> 0 | O28: n
C29: For training of more than 1 day, do Group-Area trainees stay overnight at Central HQ or travel there each day? | F29: over night | O29: u
C30: Training of CMAM facilitators
C31: Number of CMAM staff trained in each new Group-Area to act as facilitators (i.e., trainers of other staff). | D31: staff | E31: This training is done in the first year that a Group-Area is functional. A minimum of three CMAM staff should be trained in each Group-Area. | G31: 8 | H31: =IF('D1 Background'!$G$33<2,,+$G$31) -> 0 | I31: =IF('D1 Background'!$G$33<3,,+$G$31) -> 0 | J31: =IF('D1 Background'!$G$33<4,,+$G$31) -> 0 | K31: =IF('D1 Background'!$G$33<5,,+G31) -> 0 | L31: =IF('D1 Background'!$G$33<6,,+G31) -> 0 | M31: =IF('D1 Background'!$G$33<7,,+G31) -> 0 | N31: =IF('D1 Background'!$G$33<8,,+G31) -> 0 | O31: u
C32: Number of days CMAM facilitators are trained. | D32: days | G32: 4 | H32: =IF('D1 Background'!$G$33<2,,+$G$32) -> 0 | I32: =IF('D1 Background'!$G$33<3,,+$G$32) -> 0 | J32: =IF('D1 Background'!$G$33<4,,+$G$32) -> 0 | K32: =IF('D1 Background'!$G$33<5,,+G32) -> 0 | L32: =IF('D1 Background'!$G$33<6,,+G32) -> 0 | M32: =IF('D1 Background'!$G$33<7,,+G32) -> 0 | N32: =IF('D1 Background'!$G$33<8,,+G32) -> 0 | O32: n
C33: Supply logistics
C34: Distance of Central HQ to Group-Area HQ | D34: km | G34: 5 | O34: u
C35: Time taken to drive from Central HQ to Group-Area HQ | D35: hours | G35: 0.25 | O35: u
C36: Volume available in vehicle transporting therapeutic food from Central HQ to Group-Area stores. | D36: m3 | G36: 15 | O36: u
C37: Volume available for storing therapeutic food at Group-Area stores. | D37: m3 | G37: 50 | O37: u
C38: Management of Areas by Group-Areas
C39: Time required from Group-Area HQ to set-up CMAM in a Group-Area new to CMAM (advocacy, system development, budgeting) per year. | D39: days | E39: senior staff | G39: 20 | H39: =IF('D1 Background'!$G$33<2,,+$G$39) -> 0 | I39: =IF('D1 Background'!$G$33<3,,+$G$39) -> 0 | J39: =IF('D1 Background'!$G$33<4,,+$G$39) -> 0 | K39: =IF('D1 Background'!$G$33<5,,+G39) -> 0 | L39: =IF('D1 Background'!$G$33<6,,+G39) -> 0 | M39: =IF('D1 Background'!$G$33<7,,+G39) -> 0 | N39: =IF('D1 Background'!$G$33<8,,+G39) -> 0 | O39: n
C40: Time required from Group-Area HQ to set-up CMAM in a Group-Area new to CMAM (advocacy, system development, budgeting) per year. | D40: days | E40: mid-level staff | G40: 20 | H40: =IF('D1 Background'!$G$33<2,,+$G$40) -> 0 | I40: =IF('D1 Background'!$G$33<3,,+$G$40) -> 0 | J40: =IF('D1 Background'!$G$33<4,,+$G$40) -> 0 | K40: =IF('D1 Background'!$G$33<5,,+G40) -> 0 | L40: =IF('D1 Background'!$G$33<6,,+G40) -> 0 | M40: =IF('D1 Background'!$G$33<7,,+G40) -> 0 | N40: =IF('D1 Background'!$G$33<8,,+G40) -> 0 | O40: n
C41: Time required from Group-Area HQ mid-level staff in management (sorting out logistics, problem solving, monitoring and reporting).
C42: For each new Area (per year) | D42: days | E42: mid-level staff | G42: 20 | H42: =IF('D1 Background'!$G$33<2,,+$G$42) -> 0 | I42: =IF('D1 Background'!$G$33<3,,+$G$42) -> 0 | J42: =IF('D1 Background'!$G$33<4,,+$G$42) -> 0 | K42: =IF('D1 Background'!$G$33<5,,+G42) -> 0 | L42: =IF('D1 Background'!$G$33<6,,+G42) -> 0 | M42: =IF('D1 Background'!$G$33<7,,+G42) -> 0 | N42: =IF('D1 Background'!$G$33<8,,+G42) -> 0 | O42: n
C43: For each established Area (per year) | D43: days | E43: mid-level staff | G43: 5 | H43: =IF('D1 Background'!$G$33<2,,+$G$43) -> 0 | I43: =IF('D1 Background'!$G$33<3,,+$G$43) -> 0 | J43: =IF('D1 Background'!$G$33<4,,+$G$43) -> 0 | K43: =IF('D1 Background'!$G$33<5,,+G43) -> 0 | L43: =IF('D1 Background'!$G$33<6,,+G43) -> 0 | M43: =IF('D1 Background'!$G$33<7,,+G43) -> 0 | N43: =IF('D1 Background'!$G$33<8,,+G43) -> 0 | O43: n
C44: Central level - Routine management
C45: Time required per year for advocacy, planning, financial management and securing finances, activities largely independent of number per size and/or newness of Group-Areas. | D45: FTE | E45: mid-level | F45: 0.5 | O45: n
C46: Time required to sort out logistics, problem solving, monitoring and reporting, management of individual Group-Areas.
C47: For each established Group-Area per year | D47: weeks | E47: mid-level | F47: 5 | O47: n
C48: For each new Group-Area per year | D48: weeks | E48: mid-level | F48: 20 | O48: n
C49: Travel to Areas
C50: For each established Group-Area per year | D50: visits | E50: mid-level | F50: 1 | O50: n
C51: For each new Group-Area per year | D51: visits | E51: mid-level | F51: 4 | O51: n
C52: Central level - Establishing CMAM
C53: For first year only of CMAM in country, time required at Central level to develop guidelines, job aids, training materials, training plan, management tools, logistical systems, monitoring and reporting system, and liaise with politicians and donors. | D53: FTE | E53: senior staff | F53: 1 | O53: n
D54: FTE | E54: mid-level staff | F54: 1 | O54: n

Sheet D9 Time-dependent
A2: Return to Contents | C2: D9: Time-Dependent Variables
A4: to be hidden | B4: Number of years you wish to budget for | D4: =+'D2 Scale'!I7-1 -> 1 | E4: (taken from Worksheet D2)
A5: to be hidden | C5: Number of Areas included in the study | D5: =+'D2 Scale'!I8 -> 1 | E5: (taken from Worksheet 2)
A6: to be hidden | C6: Necessary when made adjustment to W" Scope and introduced an extra pre-budget year (to void having to re-write all formulas in this and other tables) | G6: =+I10+1 -> 2 | H6: i.e. | I6: =+C22 -> 2011
B8: Only one value is entered by the User in this Worksheet. The rest of the Worksheet records the values (for the chosen year) of those key variables that change over time.
B10: 1 | C10: CHOOSE which year to run the analysis for this time. (This can be any number from "1" up to the total number of years being budgeted for - see Worksheet D1). | I10: 1 | J10: u
B12: 2 | C12: CHECK rows 26, 27, and 28 and cells F50 to F57. They are formatted to highlight with a red border any Area or Group-Area where therapeutic food is delivered too infrequently given available space in vehicles and storage. For those Areas or Group-Areas highlighted, consider increasing the frequency of delivery (in Worksheet D7) or possibly changing vehicle sizes or storage spaces (Worksheets D3 and D8) and rerunning the analysis.
B14: 3 | C14: SAVE a copy of the CMAM Costing Tool (labeled with the year of the run).
C15: .
B16: 4 | C16: CHOOSE another year and rerun the analysis. Do this for each of the years being budgeted for.
C21: =+IF('D1 Background'!$H$11="","",'D1 Background'!$H$11) -> Ghana
C22: =+IF('D2 Scale'!I11-1+'D9 Time-dependent'!I10=0,"",'D2 Scale'!I11-1+'D9 Time-dependent'!I10) -> 2011 | F22: Area 1 | J22: Area 2 | K22: Area 3 | L22: Area 4 | M22: Area 5 | N22: Area 6 | O22: Area 7 | P22: Area 8 | Q22: Area 9 | R22: Area 10
E23: ='D2 Scale'!C30 -> District | F23: =+IF('D2 Scale'!$C$31="","",'D2 Scale'!$C$31) -> Ashiedu Keteke | J23: =+IF('D2 Scale'!$C$36="","",'D2 Scale'!$C$36) ->  | K23: =+IF('D2 Scale'!$C$41="","",'D2 Scale'!$C$41) ->  | L23: =+IF('D2 Scale'!$C$46="","",'D2 Scale'!$C$46) ->  | M23: =+IF('D2 Scale'!$C$51="","",'D2 Scale'!$C$51) ->  | N23: =+IF('D2 Scale'!$C$56="","",'D2 Scale'!$C$56) ->  | O23: =+IF('D2 Scale'!$C$61="","",'D2 Scale'!$C$61) ->  | P23: =+IF('D2 Scale'!$C$66="","",'D2 Scale'!$C$66) ->  | Q23: =+IF('D2 Scale'!$C$71="","",'D2 Scale'!$C$71) ->  | R23: =+IF('D2 Scale'!$C$76="","",'D2 Scale'!$C$76) -> 
E24: =+'D2 Scale'!D30 -> Region | F24: =+IF('D2 Scale'!$D$31="","",'D2 Scale'!$D$31) -> Greater Accra | J24: =+IF('D2 Scale'!$D$36="","",'D2 Scale'!$D$36) ->  | K24: =+IF('D2 Scale'!$D$41="","",'D2 Scale'!$D$41) ->  | L24: =+IF('D2 Scale'!$D$46="","",'D2 Scale'!$D$46) ->  | M24: =+IF('D2 Scale'!$D$51="","",'D2 Scale'!$D$51) ->  | N24: =+IF('D2 Scale'!$D$56="","",'D2 Scale'!$D$56) ->  | O24: =+IF('D2 Scale'!$D$61="","",'D2 Scale'!$D$61) ->  | P24: =+IF('D2 Scale'!$D$66="","",'D2 Scale'!$D$66) ->  | Q24: =+IF('D2 Scale'!$D$71="","",'D2 Scale'!$D$71) ->  | R24: =+IF('D2 Scale'!$D$76="","",'D2 Scale'!$D$76) -> 
C25: =+mess22 -> Variable | D25: =+Mess20 -> Units | E25: =+mess21 -> Comments
C26: Number of therapeutic food deliveries from Group-Area HQ to Area HQ per year | D26: deliveries | E26: Solid red border - indicates the need to increase either delivery frequency (Worksheet D7) or the size of vehicle transporting food to that site (Worksheet D3). Dotted red border - indicates the need to increase either delivery frequency (Worksheet D7) or the size of storage at that site (Worksheet D3). | F26: =+OFFSET('D7 Frequency Food Deliveries'!D37,0,'D9 Time-dependent'!I10,1,1) -> 6 | J26: =+OFFSET('D7 Frequency Food Deliveries'!D41,0,'D9 Time-dependent'!$I$10,1,1) -> 0 | K26: =+OFFSET('D7 Frequency Food Deliveries'!D45,0,'D9 Time-dependent'!$I$10,1,1) -> 0 | L26: =+OFFSET('D7 Frequency Food Deliveries'!D49,0,'D9 Time-dependent'!$I$10,1,1) -> 0 | M26: =+OFFSET('D7 Frequency Food Deliveries'!D53,0,'D9 Time-dependent'!$I$10,1,1) -> 0 | N26: =+OFFSET('D7 Frequency Food Deliveries'!D57,0,'D9 Time-dependent'!$I$10,1,1) -> 0 | O26: =+OFFSET('D7 Frequency Food Deliveries'!D61,0,'D9 Time-dependent'!$I$10,1,1) -> 0 | P26: =+OFFSET('D7 Frequency Food Deliveries'!D65,0,'D9 Time-dependent'!$I$10,1,1) -> 0 | Q26: =+OFFSET('D7 Frequency Food Deliveries'!D69,0,'D9 Time-dependent'!$I$10,1,1) -> 0 | R26: =+OFFSET('D7 Frequency Food Deliveries'!D73,0,'D9 Time-dependent'!$I$10,1,1) -> 0
C27: Number of therapeutic food deliveries per year to each Outpatient Care site from Area HQ | D27: deliveries | F27: =+OFFSET('D7 Frequency Food Deliveries'!D38,0,'D9 Time-dependent'!I10,1,1) -> 6 | J27: =+OFFSET('D7 Frequency Food Deliveries'!D42,0,'D9 Time-dependent'!I10,1,1) -> 0 | K27: =+OFFSET('D7 Frequency Food Deliveries'!D46,0,'D9 Time-dependent'!$I$10,1,1) -> 0 | L27: =+OFFSET('D7 Frequency Food Deliveries'!D50,0,'D9 Time-dependent'!$I$10,1,1) -> 0 | M27: =+OFFSET('D7 Frequency Food Deliveries'!D54,0,'D9 Time-dependent'!$I$10,1,1) -> 0 | N27: =+OFFSET('D7 Frequency Food Deliveries'!D58,0,'D9 Time-dependent'!$I$10,1,1) -> 0 | O27: =+OFFSET('D7 Frequency Food Deliveries'!D62,0,'D9 Time-dependent'!$I$10,1,1) -> 0 | P27: =+OFFSET('D7 Frequency Food Deliveries'!D66,0,'D9 Time-dependent'!$I$10,1,1) -> 0 | Q27: =+OFFSET('D7 Frequency Food Deliveries'!D70,0,'D9 Time-dependent'!$I$10,1,1) -> 0 | R27: =+OFFSET('D7 Frequency Food Deliveries'!D74,0,'D9 Time-dependent'!$I$10,1,1) -> 0
C28: Number of therapeutic food deliveries per year to each Inpatient Care site from Area HQ | D28: deliveries | F28: =+OFFSET('D7 Frequency Food Deliveries'!D39,0,'D9 Time-dependent'!I10,1,1) -> 6 | J28: =+OFFSET('D7 Frequency Food Deliveries'!D43,0,'D9 Time-dependent'!I10,1,1) -> 0 | K28: =+OFFSET('D7 Frequency Food Deliveries'!D47,0,'D9 Time-dependent'!$I$10,1,1) -> 0 | L28: =+OFFSET('D7 Frequency Food Deliveries'!D51,0,'D9 Time-dependent'!$I$10,1,1) -> 0 | M28: =+OFFSET('D7 Frequency Food Deliveries'!D55,0,'D9 Time-dependent'!$I$10,1,1) -> 0 | N28: =+OFFSET('D7 Frequency Food Deliveries'!D59,0,'D9 Time-dependent'!$I$10,1,1) -> 0 | O28: =+OFFSET('D7 Frequency Food Deliveries'!D63,0,'D9 Time-dependent'!$I$10,1,1) -> 0 | P28: =+OFFSET('D7 Frequency Food Deliveries'!D67,0,'D9 Time-dependent'!$I$10,1,1) -> 0 | Q28: =+OFFSET('D7 Frequency Food Deliveries'!D71,0,'D9 Time-dependent'!$I$10,1,1) -> 0 | R28: =+OFFSET('D7 Frequency Food Deliveries'!D75,0,'D9 Time-dependent'!$I$10,1,1) -> 0
C29: Outpatient Care sites (total number) | D29: sites | E29: Worksheet D2 | F29: =+OFFSET('D2 Scale'!$I$32,0,I10,1,1) -> 2 | J29: =+OFFSET('D2 Scale'!$I$37,0,'D9 Time-dependent'!$G$6-1,1,1) -> 0 | K29: =+OFFSET('D2 Scale'!$I$42,0,'D9 Time-dependent'!$G$6-1,1,1) -> 0 | L29: =+OFFSET('D2 Scale'!$I$47,0,'D9 Time-dependent'!$G$6-1,1,1) -> 0 | M29: =+OFFSET('D2 Scale'!$I$52,0,'D9 Time-dependent'!$G$6-1,1,1) -> 0 | N29: =+OFFSET('D2 Scale'!$I$57,0,'D9 Time-dependent'!$G$6-1,1,1) -> 0 | O29: =+OFFSET('D2 Scale'!$I$62,0,'D9 Time-dependent'!$G$6-1,1,1) -> 0 | P29: =+OFFSET('D2 Scale'!$I$67,0,'D9 Time-dependent'!$G$6-1,1,1) -> 0 | Q29: =+OFFSET('D2 Scale'!$I$72,0,'D9 Time-dependent'!$G$6-1,1,1) -> 0 | R29: =+OFFSET('D2 Scale'!$I$77,0,'D9 Time-dependent'!$G$6-1,1,1) -> 0 | T29: =12/'W6with comments'!F8 -> 0.5
C30: * New | D30: sites | E30: Calculated from Worksheet D2 | F30: =+IF('D9 Time-dependent'!$G$6=1,'D2 Scale'!$I$32,IF(OFFSET('D2 Scale'!$H$32,0,'D9 Time-dependent'!$G$6,1,)-OFFSET('D2 Scale'!$H$32,0,'D9 Time-dependent'!$G$6-1,1,1)>0,OFFSET('D2 Scale'!$H$32,0,'D9 Time-dependent'!$G$6,1,1)-OFFSET('D2 Scale'!$H$32,0,'D9 Time-dependent'!$G$6-1,1,1),0)) -> 0 | J30: =+IF('D9 Time-dependent'!G6=1,'D2 Scale'!I37,IF(OFFSET('D2 Scale'!$H$37,0,'D9 Time-dependent'!$G$6,1,)-OFFSET('D2 Scale'!$H$37,0,'D9 Time-dependent'!$G$6-1,1,1)>0,OFFSET('D2 Scale'!$H$37,0,'D9 Time-dependent'!$G$6,1,1)-OFFSET('D2 Scale'!$H$37,0,'D9 Time-dependent'!$G$6-1,1,1),0)) -> 0 | K30: =+IF('D9 Time-dependent'!G6=1,'D2 Scale'!I42,IF(OFFSET('D2 Scale'!$H$42,0,'D9 Time-dependent'!$G$6,1,)-OFFSET('D2 Scale'!$H$42,0,'D9 Time-dependent'!$G$6-1,1,1)>0,OFFSET('D2 Scale'!$H$42,0,'D9 Time-dependent'!$G$6,1,1)-OFFSET('D2 Scale'!$H$42,0,'D9 Time-dependent'!$G$6-1,1,1),0)) -> 0 | L30: =+IF('D9 Time-dependent'!G6=1,'D2 Scale'!I47,IF(OFFSET('D2 Scale'!$H$47,0,'D9 Time-dependent'!$G$6,1,)-OFFSET('D2 Scale'!$H$47,0,'D9 Time-dependent'!$G$6-1,1,1)>0,OFFSET('D2 Scale'!$H$47,0,'D9 Time-dependent'!$G$6,1,1)-OFFSET('D2 Scale'!$H$47,0,'D9 Time-dependent'!$G$6-1,1,1),0)) -> 0 | M30: =+IF('D9 Time-dependent'!G6=1,'D2 Scale'!I52,IF(OFFSET('D2 Scale'!$H$52,0,'D9 Time-dependent'!$G$6,1,)-OFFSET('D2 Scale'!$H$52,0,'D9 Time-dependent'!$G$6-1,1,1)>0,OFFSET('D2 Scale'!$H$52,0,'D9 Time-dependent'!$G$6,1,1)-OFFSET('D2 Scale'!$H$52,0,'D9 Time-dependent'!$G$6-1,1,1),0)) -> 0 | N30: =+IF('D9 Time-dependent'!G6=1,'D2 Scale'!I57,IF(OFFSET('D2 Scale'!$H$57,0,'D9 Time-dependent'!$G$6,1,)-OFFSET('D2 Scale'!$H$57,0,'D9 Time-dependent'!$G$6-1,1,1)>0,OFFSET('D2 Scale'!$H$57,0,'D9 Time-dependent'!$G$6,1,1)-OFFSET('D2 Scale'!$H$57,0,'D9 Time-dependent'!$G$6-1,1,1),0)) -> 0 | O30: =+IF('D9 Time-dependent'!G6=1,'D2 Scale'!I62,IF(OFFSET('D2 Scale'!$H$62,0,'D9 Time-dependent'!$G$6,1,)-OFFSET('D2 Scale'!$H$62,0,'D9 Time-dependent'!$G$6-1,1,1)>0,OFFSET('D2 Scale'!$H$62,0,'D9 Time-dependent'!$G$6,1,1)-OFFSET('D2 Scale'!$H$62,0,'D9 Time-dependent'!$G$6-1,1,1),0)) -> 0 | P30: =+IF('D9 Time-dependent'!G6=1,'D2 Scale'!I67,IF(OFFSET('D2 Scale'!$H$67,0,'D9 Time-dependent'!$G$6,1,)-OFFSET('D2 Scale'!$H$67,0,'D9 Time-dependent'!$G$6-1,1,1)>0,OFFSET('D2 Scale'!$H$67,0,'D9 Time-dependent'!$G$6,1,1)-OFFSET('D2 Scale'!$H$67,0,'D9 Time-dependent'!$G$6-1,1,1),0)) -> 0 | Q30: =+IF('D9 Time-dependent'!G6=1,'D2 Scale'!I72,IF(OFFSET('D2 Scale'!$H$72,0,'D9 Time-dependent'!$G$6,1,)-OFFSET('D2 Scale'!$H$72,0,'D9 Time-dependent'!$G$6-1,1,1)>0,OFFSET('D2 Scale'!$H$72,0,'D9 Time-dependent'!$G$6,1,1)-OFFSET('D2 Scale'!$H$72,0,'D9 Time-dependent'!$G$6-1,1,1),0)) -> 0 | R30: =+IF('D9 Time-dependent'!G6=1,'D2 Scale'!I77,IF(OFFSET('D2 Scale'!$H$77,0,'D9 Time-dependent'!$G$6,1,)-OFFSET('D2 Scale'!$H$77,0,'D9 Time-dependent'!$G$6-1,1,1)>0,OFFSET('D2 Scale'!$H$77,0,'D9 Time-dependent'!$G$6,1,1)-OFFSET('D2 Scale'!$H$77,0,'D9 Time-dependent'!$G$6-1,1,1),0)) -> 0
C31: * Established | D31: sites | E31: Calculated from Worksheet D2 | F31: =+F29-F30 -> 2 | J31: =+J29-J30 -> 0 | K31: 0 | L31: 0 | M31: 0 | N31: 0 | O31: 0 | P31: 0 | Q31: 0 | R31: 0
C32: Inpatient Care sites (total number) | D32: sites | E32: Worksheet D2 | F32: =+OFFSET('D2 Scale'!$I$33,0,I10,1,1) -> 1 | J32: =+OFFSET('D2 Scale'!$I$38,0,'D9 Time-dependent'!$G$6-1,1,1) -> 0 | K32: =+OFFSET('D2 Scale'!$I$43,0,'D9 Time-dependent'!$G$6-1,1,1) -> 0 | L32: =+OFFSET('D2 Scale'!$I$48,0,'D9 Time-dependent'!$G$6-1,1,1) -> 0 | M32: =+OFFSET('D2 Scale'!$I$53,0,'D9 Time-dependent'!$I$10,1,1) -> 0 | N32: =+OFFSET('D2 Scale'!$I$58,0,'D9 Time-dependent'!$G$6-1,1,1) -> 0 | O32: =+OFFSET('D2 Scale'!$I$63,0,'D9 Time-dependent'!$G$6-1,1,1) -> 0 | P32: =+OFFSET('D2 Scale'!$I$68,0,'D9 Time-dependent'!$G$6-1,1,1) -> 0 | Q32: =+OFFSET('D2 Scale'!$I$73,0,'D9 Time-dependent'!$G$6-1,1,1) -> 0 | R32: =+OFFSET('D2 Scale'!$I$78,0,'D9 Time-dependent'!$G$6-1,1,1) -> 0
C33: * New | D33: sites | E33: Calculated from Worksheet D2 | F33: =+IF('D9 Time-dependent'!$G$6=1,'D2 Scale'!$I$33,IF(OFFSET('D2 Scale'!$H$33,0,'D9 Time-dependent'!$G$6,1,)-OFFSET('D2 Scale'!$H$33,0,'D9 Time-dependent'!$G$6-1,1,1)>0,OFFSET('D2 Scale'!$H$33,0,'D9 Time-dependent'!$G$6,1,1)-OFFSET('D2 Scale'!$H$33,0,'D9 Time-dependent'!$G$6-1,1,1),0)) -> 0 | J33: =+IF('D9 Time-dependent'!$G$6=1,'D2 Scale'!$I$38,IF(OFFSET('D2 Scale'!$H$38,0,'D9 Time-dependent'!$G$6,1,)-OFFSET('D2 Scale'!$H$38,0,'D9 Time-dependent'!$G$6-1,1,1)>0,OFFSET('D2 Scale'!$H$38,0,'D9 Time-dependent'!$G$6,1,1)-OFFSET('D2 Scale'!$H$38,0,'D9 Time-dependent'!$G$6-1,1,1),0)) -> 0 | K33: =+IF('D9 Time-dependent'!$G$6=1,'D2 Scale'!$I$43,IF(OFFSET('D2 Scale'!$H$43,0,'D9 Time-dependent'!$G$6,1,)-OFFSET('D2 Scale'!$H$43,0,'D9 Time-dependent'!$G$6-1,1,1)>0,OFFSET('D2 Scale'!$H$43,0,'D9 Time-dependent'!$G$6,1,1)-OFFSET('D2 Scale'!$H$43,0,'D9 Time-dependent'!$G$6-1,1,1),0)) -> 0 | L33: =+IF('D9 Time-dependent'!$G$6=1,'D2 Scale'!$I$48,IF(OFFSET('D2 Scale'!$H$48,0,'D9 Time-dependent'!$G$6,1,)-OFFSET('D2 Scale'!$H$48,0,'D9 Time-dependent'!$G$6-1,1,1)>0,OFFSET('D2 Scale'!$H$48,0,'D9 Time-dependent'!$G$6,1,1)-OFFSET('D2 Scale'!$H$48,0,'D9 Time-dependent'!$G$6-1,1,1),0)) -> 0 | M33: =+IF('D9 Time-dependent'!$G$6=1,'D2 Scale'!$I$53,IF(OFFSET('D2 Scale'!$H$53,0,'D9 Time-dependent'!$G$6,1,)-OFFSET('D2 Scale'!$H$53,0,'D9 Time-dependent'!$G$6-1,1,1)>0,OFFSET('D2 Scale'!$H$53,0,'D9 Time-dependent'!$G$6,1,1)-OFFSET('D2 Scale'!$H$53,0,'D9 Time-dependent'!$G$6-1,1,1),0)) -> 0 | N33: =+IF('D9 Time-dependent'!$G$6=1,'D2 Scale'!$I$58,IF(OFFSET('D2 Scale'!$H$58,0,'D9 Time-dependent'!$G$6,1,)-OFFSET('D2 Scale'!$H$58,0,'D9 Time-dependent'!$G$6-1,1,1)>0,OFFSET('D2 Scale'!$H$58,0,'D9 Time-dependent'!$G$6,1,1)-OFFSET('D2 Scale'!$H$58,0,'D9 Time-dependent'!$G$6-1,1,1),0)) -> 0 | O33: =+IF('D9 Time-dependent'!$G$6=1,'D2 Scale'!$I$63,IF(OFFSET('D2 Scale'!$H$63,0,'D9 Time-dependent'!$G$6,1,)-OFFSET('D2 Scale'!$H$63,0,'D9 Time-dependent'!$G$6-1,1,1)>0,OFFSET('D2 Scale'!$H$63,0,'D9 Time-dependent'!$G$6,1,1)-OFFSET('D2 Scale'!$H$63,0,'D9 Time-dependent'!$G$6-1,1,1),0)) -> 0 | P33: =+IF('D9 Time-dependent'!$G$6=1,'D2 Scale'!$I$68,IF(OFFSET('D2 Scale'!$H$68,0,'D9 Time-dependent'!$G$6,1,)-OFFSET('D2 Scale'!$H$68,0,'D9 Time-dependent'!$G$6-1,1,1)>0,OFFSET('D2 Scale'!$H$68,0,'D9 Time-dependent'!$G$6,1,1)-OFFSET('D2 Scale'!$H$68,0,'D9 Time-dependent'!$G$6-1,1,1),0)) -> 0 | Q33: =+IF('D9 Time-dependent'!$G$6=1,'D2 Scale'!$I$73,IF(OFFSET('D2 Scale'!$H$73,0,'D9 Time-dependent'!$G$6,1,)-OFFSET('D2 Scale'!$H$73,0,'D9 Time-dependent'!$G$6-1,1,1)>0,OFFSET('D2 Scale'!$H$73,0,'D9 Time-dependent'!$G$6,1,1)-OFFSET('D2 Scale'!$H$73,0,'D9 Time-dependent'!$G$6-1,1,1),0)) -> 0 | R33: =+IF('D9 Time-dependent'!$G$6=1,'D2 Scale'!$I$78,IF(OFFSET('D2 Scale'!$H$78,0,'D9 Time-dependent'!$G$6,1,)-OFFSET('D2 Scale'!$H$78,0,'D9 Time-dependent'!$G$6-1,1,1)>0,OFFSET('D2 Scale'!$H$78,0,'D9 Time-dependent'!$G$6,1,1)-OFFSET('D2 Scale'!$H$78,0,'D9 Time-dependent'!$G$6-1,1,1),0)) -> 0
C34: * Established | D34: sites | E34: Calculated from Worksheet D2 | F34: =+F32-F33 -> 1 | J34: =+J32-J33 -> 0 | K34: 0 | L34: 0 | M34: 0 | N34: 0 | O34: 0 | P34: 0 | Q34: 0 | R34: 0
C35: Community outreach activity sites (total number) | D35: sites | E35: Worksheet D2 | F35: =+OFFSET('D2 Scale'!$I$35,0,I10,1,1) -> 100 | J35: =+OFFSET('D2 Scale'!$I$40,0,'D9 Time-dependent'!$G$6-1,1,1) -> 0 | K35: =+OFFSET('D2 Scale'!$I$45,0,'D9 Time-dependent'!$G$6-1,1,1) -> 0 | L35: =+OFFSET('D2 Scale'!$I$50,0,'D9 Time-dependent'!$G$6-1,1,1) -> 0 | M35: =+OFFSET('D2 Scale'!$I$55,0,'D9 Time-dependent'!$I$10,1,1) -> 0 | N35: =+OFFSET('D2 Scale'!$I$60,0,'D9 Time-dependent'!$G$6-1,1,1) -> 0 | O35: =+OFFSET('D2 Scale'!$I$65,0,'D9 Time-dependent'!$G$6-1,1,1) -> 0 | P35: =+OFFSET('D2 Scale'!$I$70,0,'D9 Time-dependent'!$G$6-1,1,1) -> 0 | Q35: =+OFFSET('D2 Scale'!$I$75,0,'D9 Time-dependent'!$G$6-1,1,1) -> 0 | R35: =+OFFSET('D2 Scale'!$I$80,0,'D9 Time-dependent'!$G$6-1,1,1) -> 0
C36: * New | D36: sites | E36: Calculated from Worksheet D2 | F36: =+IF('D9 Time-dependent'!$G$6=1,'D2 Scale'!$I$35,IF(OFFSET('D2 Scale'!$H$35,0,'D9 Time-dependent'!$G$6,1,)-OFFSET('D2 Scale'!$H$35,0,'D9 Time-dependent'!$G$6-1,1,1)>0,OFFSET('D2 Scale'!$H$35,0,'D9 Time-dependent'!$G$6,1,1)-OFFSET('D2 Scale'!$H$35,0,'D9 Time-dependent'!$G$6-1,1,1),0)) -> 100 | J36: =+IF('D9 Time-dependent'!G6=1,'D2 Scale'!I45,IF(OFFSET('D2 Scale'!$H$40,0,'D9 Time-dependent'!$G$6,1,1)-OFFSET('D2 Scale'!$H$40,0,'D9 Time-dependent'!$G$6-1,1,1)>0,OFFSET('D2 Scale'!$H$40,0,'D9 Time-dependent'!$G$6,1,1)-OFFSET('D2 Scale'!$H$40,0,'D9 Time-dependent'!$G$6-1,1,1),0)) -> 0 | K36: =+IF('D9 Time-dependent'!G6=1,'D2 Scale'!I50,IF(OFFSET('D2 Scale'!$H$45,0,'D9 Time-dependent'!$G$6,1,1)-OFFSET('D2 Scale'!$H$45,0,'D9 Time-dependent'!$G$6-1,1,1)>0,OFFSET('D2 Scale'!$H$45,0,'D9 Time-dependent'!$G$6,1,1)-OFFSET('D2 Scale'!$H$45,0,'D9 Time-dependent'!$G$6-1,1,1),0)) -> 0 | L36: =+IF('D9 Time-dependent'!G6=1,'D2 Scale'!I55,IF(OFFSET('D2 Scale'!$H$50,0,'D9 Time-dependent'!$G$6,1,1)-OFFSET('D2 Scale'!$H$50,0,'D9 Time-dependent'!$G$6-1,1,1)>0,OFFSET('D2 Scale'!$H$50,0,'D9 Time-dependent'!$G$6,1,1)-OFFSET('D2 Scale'!$H$50,0,'D9 Time-dependent'!$G$6-1,1,1),0)) -> 0 | M36: =+IF('D9 Time-dependent'!G6=1,'D2 Scale'!I60,IF(OFFSET('D2 Scale'!$H$55,0,'D9 Time-dependent'!$G$6,1,1)-OFFSET('D2 Scale'!$H$55,0,'D9 Time-dependent'!$G$6-1,1,1)>0,OFFSET('D2 Scale'!$H$55,0,'D9 Time-dependent'!$G$6,1,1)-OFFSET('D2 Scale'!$H$55,0,'D9 Time-dependent'!$G$6-1,1,1),0)) -> 0 | N36: =+IF('D9 Time-dependent'!G6=1,'D2 Scale'!I65,IF(OFFSET('D2 Scale'!$H$60,0,'D9 Time-dependent'!$G$6,1,1)-OFFSET('D2 Scale'!$H$60,0,'D9 Time-dependent'!$G$6-1,1,1)>0,OFFSET('D2 Scale'!$H$60,0,'D9 Time-dependent'!$G$6,1,1)-OFFSET('D2 Scale'!$H$60,0,'D9 Time-dependent'!$G$6-1,1,1),0)) -> 0 | O36: =+IF('D9 Time-dependent'!G6=1,'D2 Scale'!I70,IF(OFFSET('D2 Scale'!$H$65,0,'D9 Time-dependent'!$G$6,1,1)-OFFSET('D2 Scale'!$H$65,0,'D9 Time-dependent'!$G$6-1,1,1)>0,OFFSET('D2 Scale'!$H$65,0,'D9 Time-dependent'!$G$6,1,1)-OFFSET('D2 Scale'!$H$65,0,'D9 Time-dependent'!$G$6-1,1,1),0)) -> 0 | P36: =+IF('D9 Time-dependent'!G6=1,'D2 Scale'!I75,IF(OFFSET('D2 Scale'!$H$70,0,'D9 Time-dependent'!$G$6,1,1)-OFFSET('D2 Scale'!$H$70,0,'D9 Time-dependent'!$G$6-1,1,1)>0,OFFSET('D2 Scale'!$H$70,0,'D9 Time-dependent'!$G$6,1,1)-OFFSET('D2 Scale'!$H$70,0,'D9 Time-dependent'!$G$6-1,1,1),0)) -> 0 | Q36: =+IF('D9 Time-dependent'!G6=1,'D2 Scale'!I80,IF(OFFSET('D2 Scale'!$H$75,0,'D9 Time-dependent'!$G$6,1,1)-OFFSET('D2 Scale'!$H$75,0,'D9 Time-dependent'!$G$6-1,1,1)>0,OFFSET('D2 Scale'!$H$75,0,'D9 Time-dependent'!$G$6,1,1)-OFFSET('D2 Scale'!$H$75,0,'D9 Time-dependent'!$G$6-1,1,1),0)) -> 0 | R36: =+IF('D9 Time-dependent'!G6=1,'D2 Scale'!I85,IF(OFFSET('D2 Scale'!$H$80,0,'D9 Time-dependent'!$G$6,1,1)-OFFSET('D2 Scale'!$H$80,0,'D9 Time-dependent'!$G$6-1,1,1)>0,OFFSET('D2 Scale'!$H$80,0,'D9 Time-dependent'!$G$6,1,1)-OFFSET('D2 Scale'!$H$80,0,'D9 Time-dependent'!$G$6-1,1,1),0)) -> 0
C37: * Established | D37: sites | E37: Calculated from Worksheet D2 | F37: =+F35-F36 -> 0 | J37: =+J35-J36 -> 0 | K37: 0 | L37: 0 | M37: 0 | N37: 0 | O37: 0 | P37: 0 | Q37: 0 | R37: 0
C38: Minimal number of COWs required | D38: COWs | E38: Calculated from Worksheet D3 and number of community outreach sites. | F38: =+ROUNDUP('D3 Epid. Demog. & Service Data'!F80*'D9 Time-dependent'!F35,0) -> 100 | J38: =+ROUNDUP('D3 Epid. Demog. & Service Data'!J80*'D9 Time-dependent'!J35,0) -> 0 | K38: =+ROUNDUP('D3 Epid. Demog. & Service Data'!K80*'D9 Time-dependent'!K35,0) -> 0 | L38: =+ROUNDUP('D3 Epid. Demog. & Service Data'!L80*'D9 Time-dependent'!L35,0) -> 0 | M38: =+ROUNDUP('D3 Epid. Demog. & Service Data'!M80*'D9 Time-dependent'!M35,0) -> 0 | N38: =+ROUNDUP('D3 Epid. Demog. & Service Data'!N80*'D9 Time-dependent'!N35,0) -> 0 | O38: =+ROUNDUP('D3 Epid. Demog. & Service Data'!O80*'D9 Time-dependent'!O35,0) -> 0 | P38: =+ROUNDUP('D3 Epid. Demog. & Service Data'!P80*'D9 Time-dependent'!P35,0) -> 0 | Q38: =+ROUNDUP('D3 Epid. Demog. & Service Data'!Q80*'D9 Time-dependent'!Q35,0) -> 0 | R38: =+ROUNDUP('D3 Epid. Demog. & Service Data'!R80*'D9 Time-dependent'!R35,0) -> 0
C39: Number of children with SAM in a year | D39: cases | E39: Worksheet D2 | F39: =+OFFSET('D2 Scale'!$I34,0,$G$6-1,1,1) -> 150 | J39: =+OFFSET('D2 Scale'!$I39,0,$G$6-1,1,1) -> 0 | K39: =+OFFSET('D2 Scale'!$I44,0,$G$6-1,1,1) -> 0 | L39: =+OFFSET('D2 Scale'!$I49,0,$G$6-1,1,1) -> 0 | M39: =+OFFSET('D2 Scale'!$I54,0,$G$6-1,1,1) -> 0 | N39: =+OFFSET('D2 Scale'!$I59,0,$G$6-1,1,1) -> 0 | O39: =+OFFSET('D2 Scale'!$I64,0,$G$6-1,1,1) -> 0 | P39: =+OFFSET('D2 Scale'!$I69,0,$G$6-1,1,1) -> 0 | Q39: =+OFFSET('D2 Scale'!$I74,0,$G$6-1,1,1) -> 0 | R39: =+OFFSET('D2 Scale'!$I79,0,$G$6-1,1,1) -> 0
C40: Number of children with SAM per year attending Outpatient Care sessions (i.e., all except children under 6 months) | D40: cases | E40: Calculated from Worksheets D3 and D2 | F40: =+F39*(100-'D3 Epid. Demog. & Service Data'!F22)/100 -> 135 | J40: =+J39*(100-'D3 Epid. Demog. & Service Data'!J22)/100 -> 0 | K40: =+K39*(100-'D3 Epid. Demog. & Service Data'!K22)/100 -> 0 | L40: =+L39*(100-'D3 Epid. Demog. & Service Data'!L22)/100 -> 0 | M40: =+M39*(100-'D3 Epid. Demog. & Service Data'!M22)/100 -> 0 | N40: =+N39*(100-'D3 Epid. Demog. & Service Data'!N22)/100 -> 0 | O40: =+O39*(100-'D3 Epid. Demog. & Service Data'!O22)/100 -> 0 | P40: =+P39*(100-'D3 Epid. Demog. & Service Data'!P22)/100 -> 0 | Q40: =+Q39*(100-'D3 Epid. Demog. & Service Data'!Q22)/100 -> 0 | R40: =+R39*(100-'D3 Epid. Demog. & Service Data'!R22)/100 -> 0
C41: Number of children with SAM enrolled in Outpatient Care on average at any one point in time (prevalence) | D41: cases | E41: Number of children wuth SAM over 6 months of age * duration (weeks) (Worksheet D3)/52. | F41: =+F39*(1-'D3 Epid. Demog. & Service Data'!F22/100)*'D3 Epid. Demog. & Service Data'!F32/52 -> 20.76923077 | J41: =+J39*(1-'D3 Epid. Demog. & Service Data'!J22/100)*'D3 Epid. Demog. & Service Data'!J32/52 -> 0 | K41: =+K39*(1-'D3 Epid. Demog. & Service Data'!K22/100)*'D3 Epid. Demog. & Service Data'!K32/52 -> 0 | L41: =+L39*(1-'D3 Epid. Demog. & Service Data'!L22/100)*'D3 Epid. Demog. & Service Data'!L32/52 -> 0 | M41: =+M39*(1-'D3 Epid. Demog. & Service Data'!M22/100)*'D3 Epid. Demog. & Service Data'!M32/52 -> 0 | N41: =+N39*(1-'D3 Epid. Demog. & Service Data'!N22/100)*'D3 Epid. Demog. & Service Data'!N32/52 -> 0 | O41: =+O39*(1-'D3 Epid. Demog. & Service Data'!O22/100)*'D3 Epid. Demog. & Service Data'!O32/52 -> 0 | P41: =+P39*(1-'D3 Epid. Demog. & Service Data'!P22/100)*'D3 Epid. Demog. & Service Data'!P32/52 -> 0 | Q41: =+Q39*(1-'D3 Epid. Demog. & Service Data'!Q22/100)*'D3 Epid. Demog. & Service Data'!Q32/52 -> 0 | R41: =+R39*(1-'D3 Epid. Demog. & Service Data'!R22/100)*'D3 Epid. Demog. & Service Data'!R32/52 -> 0
C42: Number of children with SAM requiring Inpatient Care in a year | D42: cases | F42: =+F39*'D3 Epid. Demog. & Service Data'!F28 -> 35.25 | J42: =+J39*'D3 Epid. Demog. & Service Data'!J28 -> 0 | K42: =+K39*'D3 Epid. Demog. & Service Data'!K28 -> 0 | L42: =+L39*'D3 Epid. Demog. & Service Data'!L28 -> 0 | M42: =+M39*'D3 Epid. Demog. & Service Data'!M28 -> 0 | N42: =+N39*'D3 Epid. Demog. & Service Data'!N28 -> 0 | O42: =+O39*'D3 Epid. Demog. & Service Data'!O28 -> 0 | P42: =+P39*'D3 Epid. Demog. & Service Data'!P28 -> 0 | Q42: =+Q39*'D3 Epid. Demog. & Service Data'!Q28 -> 0 | R42: =+R39*'D3 Epid. Demog. & Service Data'!R28 -> 0
C43: Number of children with SAM in Inpatient Care at any one point in time (rounded up to nearest digit) | D43: cases | E43: Number of children with SAM requiring Inpatient Care * no. days in Inpatient Care/365. | F43: =+ROUNDUP(F42*'D3 Epid. Demog. & Service Data'!F31/365,0) -> 2 | J43: =+ROUNDUP(J42*'D3 Epid. Demog. & Service Data'!J31/365,0) -> 0 | K43: =+ROUNDUP(K42*'D3 Epid. Demog. & Service Data'!K31/365,0) -> 0 | L43: =+ROUNDUP(L42*'D3 Epid. Demog. & Service Data'!L31/365,0) -> 0 | M43: =+ROUNDUP(M42*'D3 Epid. Demog. & Service Data'!M31/365,0) -> 0 | N43: =+ROUNDUP(N42*'D3 Epid. Demog. & Service Data'!N31/365,0) -> 0 | O43: =+ROUNDUP(O42*'D3 Epid. Demog. & Service Data'!O31/365,0) -> 0 | P43: =+ROUNDUP(P42*'D3 Epid. Demog. & Service Data'!P31/365,0) -> 0 | Q43: =+ROUNDUP(Q42*'D3 Epid. Demog. & Service Data'!Q31/365,0) -> 0 | R43: =+ROUNDUP(R42*'D3 Epid. Demog. & Service Data'!R31/365,0) -> 0
C44: Percentage of days when Inpatient Care sites likely to have at least one inpatient with SAM | D44: % | E44: (Assumes children with SAM are evenly distributed) (365-no. days per case * no. of Inpatient Care cases). | F44: =+IF(F32=0,0,IF(F42*'D3 Epid. Demog. & Service Data'!F31/F32>365,100,F42*'D3 Epid. Demog. & Service Data'!F31/F32/365*100)) -> 100 | J44: =+IF(J32=0,0,IF(J42*'D3 Epid. Demog. & Service Data'!J31/J32>365,100,J42*'D3 Epid. Demog. & Service Data'!J31/J32/365*100)) -> 0 | K44: =+IF(K32=0,0,IF(K42*'D3 Epid. Demog. & Service Data'!K31/K32>365,100,K42*'D3 Epid. Demog. & Service Data'!K31/K32/365*100)) -> 0 | L44: =+IF(L32=0,0,IF(L42*'D3 Epid. Demog. & Service Data'!L31/L32>365,100,L42*'D3 Epid. Demog. & Service Data'!L31/L32/365*100)) -> 0 | M44: =+IF(M32=0,0,IF(M42*'D3 Epid. Demog. & Service Data'!M31/M32>365,100,M42*'D3 Epid. Demog. & Service Data'!M31/M32/365*100)) -> 0 | N44: =+IF(N32=0,0,IF(N42*'D3 Epid. Demog. & Service Data'!N31/N32>365,100,N42*'D3 Epid. Demog. & Service Data'!N31/N32/365*100)) -> 0 | O44: =+IF(O32=0,0,IF(O42*'D3 Epid. Demog. & Service Data'!O31/O32>365,100,O42*'D3 Epid. Demog. & Service Data'!O31/O32/365*100)) -> 0 | P44: =+IF(P32=0,0,IF(P42*'D3 Epid. Demog. & Service Data'!P31/P32>365,100,P42*'D3 Epid. Demog. & Service Data'!P31/P32/365*100)) -> 0 | Q44: =+IF(Q32=0,0,IF(Q42*'D3 Epid. Demog. & Service Data'!Q31/Q32>365,100,Q42*'D3 Epid. Demog. & Service Data'!Q31/Q32/365*100)) -> 0 | R44: =+IF(R32=0,0,IF(R42*'D3 Epid. Demog. & Service Data'!R31/R32>365,100,R42*'D3 Epid. Demog. & Service Data'!R31/R32/365*100)) -> 0
C45: Whether this Area has an active CMAM service/program for the year being analyzed. | D45: "0" or "1" | E45: An active Area is identified by "1"; an inactive Area by "0". | F45: =+IF(F29+F32>0,1,0) -> 1 | J45: =+IF(J29+J32>0,1,0) -> 0 | K45: 0 | L45: 0 | M45: 0 | N45: 0 | O45: 0 | P45: 0 | Q45: 0 | R45: 0
C46: Has CMAM already been established in this Area, is the Area new to CMAM or is it not yet functioning? | D46: new/ established/ inactive | E46: An Area is 'established' if there is at least one established Outpatient Care or Inpatient Care site, otherwise 'new' (if at least one new Outpatient Care or Inpatient Care site) or "inactive". | F46: =+IF(F31+F34>0,"established",IF(F30+F33>0,"new","inactive")) -> established | J46: =+IF(J31+J34>0,"established",IF(J30+J33>0,"new","inactive")) -> inactive | K46: inactive | L46: inactive | M46: inactive | N46: inactive | O46: inactive | P46: inactive | Q46: inactive | R46: inactive
C47: Whether this Area is new to CMAM. | D47: 0 , 1 | E47: A new-to-CMAM Area (defined as an Area with some new Outpatient Care or Inpatient Care sites and no established Outpatient Care or Inpatient Care sites) is identified by "1"; otherwise by "0". | F47: =+IF(AND((F31+F34)=0,(F30+F33>0)),1,0) -> 0 | J47: =+IF(AND((J31+J34)=0,(J30+J33>0)),1,0) -> 0 | K47: 0 | L47: 0 | M47: 0 | N47: 0 | O47: 0 | P47: 0 | Q47: 0 | R47: 0
D49: Alerts (Can be hidden) | E49: Group-Areas | F49: No. of deliveries
C50: This table shows the annual number of deliveries of therapeutic food from Central level to Group-Area HQs in the specified year (Worksheet D7). If deliveries are not frequent enough for the amount of food and the size of vehicles and storage capacity, the Table flags this with red borders: | D50: =+'R6 Group-Area & Central Level'!G155 ->  | E50: =+IF('D1 Background'!G36="","",'D1 Background'!G36) -> Greater Accra | F50: =+OFFSET('D7 Frequency Food Deliveries'!D25,0,'D9 Time-dependent'!$I$10,1,1) -> 4
D51: =+'R6 Group-Area & Central Level'!H155 ->  | E51: =+IF('D1 Background'!G37="","",'D1 Background'!G37) ->  | F51: =+OFFSET('D7 Frequency Food Deliveries'!D26,0,'D9 Time-dependent'!$I$10,1,1) -> 0
D52: =+'R6 Group-Area & Central Level'!I155 ->  | E52: =+IF('D1 Background'!G38="","",'D1 Background'!G38) ->  | F52: =+OFFSET('D7 Frequency Food Deliveries'!D27,0,'D9 Time-dependent'!$I$10,1,1) -> 0
D53: =+'R6 Group-Area & Central Level'!J155 ->  | E53: =+IF('D1 Background'!G39="","",'D1 Background'!G39) ->  | F53: =+OFFSET('D7 Frequency Food Deliveries'!D28,0,'D9 Time-dependent'!$I$10,1,1) -> 0
C54: Solid red border - indicates the need to increase either delivery frequency (D7) or the size of the vehicle transporting therapeutic food to that Group-Area HQ (D8). | D54: =+'R6 Group-Area & Central Level'!K155 ->  | E54: =+IF('D1 Background'!G40="","",'D1 Background'!G40) ->  | F54: =+OFFSET('D7 Frequency Food Deliveries'!D29,0,'D9 Time-dependent'!$I$10,1,1) -> 0
D55: =+'R6 Group-Area & Central Level'!L155 ->  | E55: =+IF('D1 Background'!G41="","",'D1 Background'!G41) ->  | F55: =+OFFSET('D7 Frequency Food Deliveries'!D30,0,'D9 Time-dependent'!$I$10,1,1) -> 0
C56: Dotted red border - indicates the need to increase either delivery frequency (D7) or the size of storage at that Group-Area HQ (D8). | D56: =+'R6 Group-Area & Central Level'!M155 ->  | E56: =+IF('D1 Background'!G42="","",'D1 Background'!G42) ->  | F56: =+OFFSET('D7 Frequency Food Deliveries'!D31,0,'D9 Time-dependent'!$I$10,1,1) -> 0
D57: =+'R6 Group-Area & Central Level'!N155 ->  | E57: =+IF('D1 Background'!G43="","",'D1 Background'!G43) ->  | F57: =+OFFSET('D7 Frequency Food Deliveries'!D32,0,'D9 Time-dependent'!$I$10,1,1) -> 0
C63: =+'R11 Supply Logistics'!C52:E52 -> !! Indicates a need to increase either frequency of delivery of therapeutic food to Area's HQ or the size of vehicle transporting it there. | F63: =+'R11 Supply Logistics'!F52:H52 ->  | J63: =+'R11 Supply Logistics'!J52:L52 ->  | K63: =+'R11 Supply Logistics'!K52:M52 ->  | L63: =+'R11 Supply Logistics'!L52:N52 ->  | M63: =+'R11 Supply Logistics'!M52:O52 ->  | N63: =+'R11 Supply Logistics'!N52:P52 ->  | O63: =+'R11 Supply Logistics'!O52:Q52 ->  | P63: =+'R11 Supply Logistics'!P52:R52 ->  | Q63: =+'R11 Supply Logistics'!Q52:S52 ->  | R63: =+'R11 Supply Logistics'!R52:T52 ->  | S63: =+'R11 Supply Logistics'!S52:U52 -> 
C64: =+'R11 Supply Logistics'!C53:E53 -> !! indicates a need to increase either frequency of delivery of therapeutic food to Area's HQ or the storage space for it there. | F64: =+'R11 Supply Logistics'!F53:H53 ->  | J64: =+'R11 Supply Logistics'!J53:L53 ->  | K64: =+'R11 Supply Logistics'!K53:M53 ->  | L64: =+'R11 Supply Logistics'!L53:N53 ->  | M64: =+'R11 Supply Logistics'!M53:O53 ->  | N64: =+'R11 Supply Logistics'!N53:P53 ->  | O64: =+'R11 Supply Logistics'!O53:Q53 ->  | P64: =+'R11 Supply Logistics'!P53:R53 ->  | Q64: =+'R11 Supply Logistics'!Q53:S53 ->  | R64: =+'R11 Supply Logistics'!R53:T53 ->  | S64: =+'R11 Supply Logistics'!S53:U53 -> 
C65: =+'R11 Supply Logistics'!C54:E54 -> !! indicates a need to increase either frequency of delivery of therapeutic food to OC sites or the size of vehicle transporting it there. | F65: =+'R11 Supply Logistics'!F54:H54 ->  | J65: =+'R11 Supply Logistics'!J54:L54 ->  | K65: =+'R11 Supply Logistics'!K54:M54 ->  | L65: =+'R11 Supply Logistics'!L54:N54 ->  | M65: =+'R11 Supply Logistics'!M54:O54 ->  | N65: =+'R11 Supply Logistics'!N54:P54 ->  | O65: =+'R11 Supply Logistics'!O54:Q54 ->  | P65: =+'R11 Supply Logistics'!P54:R54 ->  | Q65: =+'R11 Supply Logistics'!Q54:S54 ->  | R65: =+'R11 Supply Logistics'!R54:T54 ->  | S65: =+'R11 Supply Logistics'!S54:U54 -> 
C66: =+'R11 Supply Logistics'!C55:E55 -> !! indicates a need to increase either frequency of delivery of therapeutic food to OC sites or the storage space for it there. | F66: =+'R11 Supply Logistics'!F55:H55 ->  | J66: =+'R11 Supply Logistics'!J55:L55 ->  | K66: =+'R11 Supply Logistics'!K55:M55 ->  | L66: =+'R11 Supply Logistics'!L55:N55 ->  | M66: =+'R11 Supply Logistics'!M55:O55 ->  | N66: =+'R11 Supply Logistics'!N55:P55 ->  | O66: =+'R11 Supply Logistics'!O55:Q55 ->  | P66: =+'R11 Supply Logistics'!P55:R55 ->  | Q66: =+'R11 Supply Logistics'!Q55:S55 ->  | R66: =+'R11 Supply Logistics'!R55:T55 ->  | S66: =+'R11 Supply Logistics'!S55:U55 -> 
C67: =+'R11 Supply Logistics'!C56:E56 -> !! indicates a need to increase either frequency of delivery of therapeutic food to IC sites or the size of vehicle transporting it there. | F67: =+'R11 Supply Logistics'!F56:H56 ->  | J67: =+'R11 Supply Logistics'!J56:L56 ->  | K67: =+'R11 Supply Logistics'!K56:M56 ->  | L67: =+'R11 Supply Logistics'!L56:N56 ->  | M67: =+'R11 Supply Logistics'!M56:O56 ->  | N67: =+'R11 Supply Logistics'!N56:P56 ->  | O67: =+'R11 Supply Logistics'!O56:Q56 ->  | P67: =+'R11 Supply Logistics'!P56:R56 ->  | Q67: =+'R11 Supply Logistics'!Q56:S56 ->  | R67: =+'R11 Supply Logistics'!R56:T56 ->  | S67: =+'R11 Supply Logistics'!S56:U56 -> 
C68: =+'R11 Supply Logistics'!C57:E57 -> !! indicates a need to increase either frequency of delivery of therapeutic food to IC sites or the storage space for it there. | F68: =+'R11 Supply Logistics'!F57:H57 ->  | J68: =+'R11 Supply Logistics'!J57:L57 ->  | K68: =+'R11 Supply Logistics'!K57:M57 ->  | L68: =+'R11 Supply Logistics'!L57:N57 ->  | M68: =+'R11 Supply Logistics'!M57:O57 ->  | N68: =+'R11 Supply Logistics'!N57:P57 ->  | O68: =+'R11 Supply Logistics'!O57:Q57 ->  | P68: =+'R11 Supply Logistics'!P57:R57 ->  | Q68: =+'R11 Supply Logistics'!Q57:S57 ->  | R68: =+'R11 Supply Logistics'!R57:T57 ->  | S68: =+'R11 Supply Logistics'!S57:U57 -> 
C69: =+'R11 Supply Logistics'!C58:E58 -> 0
C70: =+'R11 Supply Logistics'!C83:E83 -> 0
C71: =+'R11 Supply Logistics'!C84:E84 -> 0
C72: =+'R11 Supply Logistics'!C85:E85 -> 0
C73: Number of Group-Areas | D73: =+'D1 Background'!G33 -> 1

Sheet Reminder about Results
B2: Reminder about Results Worksheets [R1 through R14]
B3: The following worksheets (R1 to R14) present the results.
B5: The User should NOT change any of the cells in these results worksheets. If the User identifies variables whose value needs to be changed, that change must be made where the variable first appears (Worksheets D1 to D9).
B7: The following four Worksheets summarize the quantity of key inputs, namely, manpower (R1), transport (R2), supplies (R3), and space (R4), required in the year specified in Worksheet D9 to mount a CMAM program of the scale defined in Worksheet D2.

Sheet R1 Manpower
A2: Return to Contents | C2: R1: Annual Manpower Requirements for CMAM
C4: Number of Areas included | D4: =+'D2 Scale'!$I$8 -> 1 | E4: (taken from Worksheet 2)
C5: This Worksheet shows for the year chosen the amount of manpower required to implement CMAM. One FTE (Full-Time Equivalent) is equal to a year's work (i.e., about 260 days).
C7: =+IF('D1 Background'!$H$11="","",'D1 Background'!$H$11) -> Ghana
C8: =+'D9 Time-dependent'!$I$6 -> 2011
A9: Hidden row - factors to ensure that areas not identified in scope of budget are not included | G9: =+IF('D1 Background'!$G$31<1,0,1) -> 1 | K9: =+IF('D1 Background'!$G$31<2,0,1) -> 0 | L9: =+IF('D1 Background'!$G$31<3,0,1) -> 0 | M9: =+IF('D1 Background'!$G$31<4,0,1) -> 0 | N9: =+IF('D1 Background'!$G$31<5,0,1) -> 0 | O9: =+IF('D1 Background'!$G$31<6,0,1) -> 0 | P9: =+IF('D1 Background'!$G$31<7,0,1) -> 0 | Q9: =+IF('D1 Background'!$G$31<8,0,1) -> 0 | R9: =+IF('D1 Background'!$G$31<9,0,1) -> 0 | S9: =+IF('D1 Background'!$G$31<10,0,1) -> 0
G11: Area 1 | K11: Area 2 | L11: Area 3 | M11: Area 4 | N11: Area 5 | O11: Area 6 | P11: Area 7 | Q11: Area 8 | R11: Area 9 | S11: Area 10
D12: ='D2 Scale'!$C$30 -> District | F12: TOTAL all areas | G12: =+IF('D2 Scale'!$C$31="","",'D2 Scale'!$C$31) -> Ashiedu Keteke | K12: =+IF('D2 Scale'!$C$36="","",'D2 Scale'!$C$36) ->  | L12: =+IF('D2 Scale'!$C$41="","",'D2 Scale'!$C$41) ->  | M12: =+IF('D2 Scale'!$C$46="","",'D2 Scale'!$C$46) ->  | N12: =+IF('D2 Scale'!$C$51="","",'D2 Scale'!$C$51) ->  | O12: =+IF('D2 Scale'!$C$56="","",'D2 Scale'!$C$56) ->  | P12: =+IF('D2 Scale'!$C$61="","",'D2 Scale'!$C$61) ->  | Q12: =+IF('D2 Scale'!$C$66="","",'D2 Scale'!$C$66) ->  | R12: =+IF('D2 Scale'!$C$71="","",'D2 Scale'!$C$71) ->  | S12: =+IF('D2 Scale'!$C$76="","",'D2 Scale'!$C$76) -> 
D13: =+'D2 Scale'!$D$30 -> Region | G13: =+IF('D2 Scale'!$D$31="","",'D2 Scale'!$D$31) -> Greater Accra | K13: =+IF('D2 Scale'!$D$36="","",'D2 Scale'!$D$36) ->  | L13: =+IF('D2 Scale'!$D$41="","",'D2 Scale'!$D$41) ->  | M13: =+IF('D2 Scale'!$D$46="","",'D2 Scale'!$D$46) ->  | N13: =+IF('D2 Scale'!$D$51="","",'D2 Scale'!$D$51) ->  | O13: =+IF('D2 Scale'!$D$56="","",'D2 Scale'!$D$56) ->  | P13: =+IF('D2 Scale'!$D$61="","",'D2 Scale'!$D$61) ->  | Q13: =+IF('D2 Scale'!$D$66="","",'D2 Scale'!$D$66) ->  | R13: =+IF('D2 Scale'!$D$71="","",'D2 Scale'!$D$71) ->  | S13: =+IF('D2 Scale'!$D$76="","",'D2 Scale'!$D$76) -> 
B14: Level | C14: Staff type | D14: Activities | E14: Units
B15: Community Outreach
C16: COWs | D16: TOTAL | E16: FTE | F16: =+(G16*$G$9+K16*$K$9+L16*$L$9+M16*$M$9+N16*$N$9+O16*$O$9+P16*$P$9+Q16*$Q$9+R16*$R$9+S16*$S$9) -> 20 | G16: =+G20/'D5 Salaries'!$I$20 -> 20 | K16: =+K20/'D5 Salaries'!$I$20 -> 0 | L16: =+L20/'D5 Salaries'!$I$20 -> 0 | M16: =+M20/'D5 Salaries'!$I$20 -> 0 | N16: =+N20/'D5 Salaries'!$I$20 -> 0 | O16: =+O20/'D5 Salaries'!$I$20 -> 0 | P16: =+P20/'D5 Salaries'!$I$20 -> 0 | Q16: =+Q20/'D5 Salaries'!$I$20 -> 0 | R16: =+R20/'D5 Salaries'!$I$20 -> 0 | S16: =+S20/'D5 Salaries'!$I$20 -> 0
D17: Per Outpatient Care site | E17: FTE | G17: =+IF('D9 Time-dependent'!F29=0,0,G16/'D9 Time-dependent'!F29) -> 10 | K17: =+IF('D9 Time-dependent'!J29=0,0,K16/'D9 Time-dependent'!J29) -> 0 | L17: =+IF('D9 Time-dependent'!K29=0,0,L16/'D9 Time-dependent'!K29) -> 0 | M17: =+IF('D9 Time-dependent'!L29=0,0,M16/'D9 Time-dependent'!L29) -> 0 | N17: =+IF('D9 Time-dependent'!M29=0,0,N16/'D9 Time-dependent'!M29) -> 0 | O17: =+IF('D9 Time-dependent'!N29=0,0,O16/'D9 Time-dependent'!N29) -> 0 | P17: =+IF('D9 Time-dependent'!O29=0,0,P16/'D9 Time-dependent'!O29) -> 0 | Q17: =+IF('D9 Time-dependent'!P29=0,0,Q16/'D9 Time-dependent'!P29) -> 0 | R17: =+IF('D9 Time-dependent'!Q29=0,0,R16/'D9 Time-dependent'!Q29) -> 0 | S17: =+IF('D9 Time-dependent'!R29=0,0,S16/'D9 Time-dependent'!R29) -> 0
D18: community outreach | E18: days | F18: =+(G18*$G$9+K18*$K$9+L18*$L$9+M18*$M$9+N18*$N$9+O18*$O$9+P18*$P$9+Q18*$Q$9+R18*$R$9+S18*$S$9) -> 5000 | G18: =+'R14 Community Outreach'!F36 -> 5000 | K18: =+'R14 Community Outreach'!J36 -> 0 | L18: =+'R14 Community Outreach'!K36 -> 0 | M18: =+'R14 Community Outreach'!L36 -> 0 | N18: =+'R14 Community Outreach'!M36 -> 0 | O18: =+'R14 Community Outreach'!N36 -> 0 | P18: =+'R14 Community Outreach'!O36 -> 0 | Q18: =+'R14 Community Outreach'!P36 -> 0 | R18: =+'R14 Community Outreach'!Q36 -> 0 | S18: =+'R14 Community Outreach'!R36 -> 0
D19: being trained | E19: days | F19: =+(G19*$G$9+K19*$K$9+L19*$L$9+M19*$M$9+N19*$N$9+O19*$O$9+P19*$P$9+Q19*$Q$9+R19*$R$9+S19*$S$9) -> 200 | G19: =+'R12 Training'!F63 -> 200 | K19: =+'R12 Training'!J63 -> 0 | L19: =+'R12 Training'!K63 -> 0 | M19: =+'R12 Training'!L63 -> 0 | N19: =+'R12 Training'!M63 -> 0 | O19: =+'R12 Training'!N63 -> 0 | P19: =+'R12 Training'!O63 -> 0 | Q19: =+'R12 Training'!P63 -> 0 | R19: =+'R12 Training'!Q63 -> 0 | S19: =+'R12 Training'!R63 -> 0
D20: Total | E20: days | F20: =+(G20*$G$9+K20*$K$9+L20*$L$9+M20*$M$9+N20*$N$9+O20*$O$9+P20*$P$9+Q20*$Q$9+R20*$R$9+S20*$S$9) -> 5200 | G20: =+SUM(G18:G19) -> 5200 | K20: =+SUM(K18:K19) -> 0 | L20: 0 | M20: 0 | N20: 0 | O20: 0 | P20: 0 | Q20: 0 | R20: 0 | S20: 0
B22: Outpatient Care
C23: Senior staff Outpatient Care | D23: TOTAL | E23: FTE | F23: =+(G23*$G$9+K23*$K$9+L23*$L$9+M23*$M$9+N23*$N$9+O23*$O$9+P23*$P$9+Q23*$Q$9+R23*$R$9+S23*$S$9) -> 2.602884615 | G23: =+G30/'D5 Salaries'!$I$20 -> 2.602884615 | K23: =+K30/'D5 Salaries'!$I$20 -> 0 | L23: =+L30/'D5 Salaries'!$I$20 -> 0 | M23: =+M30/'D5 Salaries'!$I$20 -> 0 | N23: =+N30/'D5 Salaries'!$I$20 -> 0 | O23: =+O30/'D5 Salaries'!$I$20 -> 0 | P23: =+P30/'D5 Salaries'!$I$20 -> 0 | Q23: =+Q30/'D5 Salaries'!$I$20 -> 0 | R23: =+R30/'D5 Salaries'!$I$20 -> 0 | S23: =+S30/'D5 Salaries'!$I$20 -> 0
D24: Per Outpatient Care site | E24: FTE | G24: =+IF('D9 Time-dependent'!F29=0,0,G23/'D9 Time-dependent'!F29) -> 1.301442308 | K24: =+IF('D9 Time-dependent'!J29=0,0,K23/'D9 Time-dependent'!J29) -> 0 | L24: =+IF('D9 Time-dependent'!K29=0,0,L23/'D9 Time-dependent'!K29) -> 0 | M24: =+IF('D9 Time-dependent'!L29=0,0,M23/'D9 Time-dependent'!L29) -> 0 | N24: =+IF('D9 Time-dependent'!M29=0,0,N23/'D9 Time-dependent'!M29) -> 0 | O24: =+IF('D9 Time-dependent'!N29=0,0,O23/'D9 Time-dependent'!N29) -> 0 | P24: =+IF('D9 Time-dependent'!O29=0,0,P23/'D9 Time-dependent'!O29) -> 0 | Q24: =+IF('D9 Time-dependent'!P29=0,0,Q23/'D9 Time-dependent'!P29) -> 0 | R24: =+IF('D9 Time-dependent'!Q29=0,0,R23/'D9 Time-dependent'!Q29) -> 0 | S24: =+IF('D9 Time-dependent'!R29=0,0,S23/'D9 Time-dependent'!R29) -> 0
D25: case management | E25: days | F25: =+SUM(K25:S25)+G25 -> 71.75 | G25: =+'R8 Treatment (manpower&space)'!F32 -> 71.75 | K25: =+'R8 Treatment (manpower&space)'!J32 -> 0 | L25: =+'R8 Treatment (manpower&space)'!K32 -> 0 | M25: =+'R8 Treatment (manpower&space)'!L32 -> 0 | N25: =+'R8 Treatment (manpower&space)'!M32 -> 0 | O25: =+'R8 Treatment (manpower&space)'!N32 -> 0 | P25: =+'R8 Treatment (manpower&space)'!O32 -> 0 | Q25: =+'R8 Treatment (manpower&space)'!P32 -> 0 | R25: =+'R8 Treatment (manpower&space)'!Q32 -> 0 | S25: =+'R8 Treatment (manpower&space)'!R32 -> 0
D26: supervising COWs | E26: days | F26: 375 | G26: =+'R13 Supervision'!F43 -> 375 | K26: =+'R13 Supervision'!J43 -> 0 | L26: =+'R13 Supervision'!K43 -> 0 | M26: =+'R13 Supervision'!L43 -> 0 | N26: =+'R13 Supervision'!M43 -> 0 | O26: =+'R13 Supervision'!N43 -> 0 | P26: =+'R13 Supervision'!O43 -> 0 | Q26: =+'R13 Supervision'!P43 -> 0 | R26: =+'R13 Supervision'!Q43 -> 0 | S26: =+'R13 Supervision'!R43 -> 0
D27: training COWs | E27: days | F27: 24 | G27: =+'R12 Training'!F58 -> 24 | K27: =+'R12 Training'!J58 -> 0 | L27: =+'R12 Training'!K58 -> 0 | M27: =+'R12 Training'!L58 -> 0 | N27: =+'R12 Training'!M58 -> 0 | O27: =+'R12 Training'!N58 -> 0 | P27: =+'R12 Training'!O58 -> 0 | Q27: =+'R12 Training'!P58 -> 0 | R27: =+'R12 Training'!Q58 -> 0 | S27: =+'R12 Training'!R58 -> 0
D28: being trained | E28: days | F28: 6 | G28: =+'R12 Training'!F64/2 -> 6 | K28: =+'R12 Training'!J64/2 -> 0 | L28: =+'R12 Training'!K64/2 -> 0 | M28: =+'R12 Training'!L64/2 -> 0 | N28: =+'R12 Training'!M64/2 -> 0 | O28: =+'R12 Training'!N64/2 -> 0 | P28: =+'R12 Training'!O64/2 -> 0 | Q28: =+'R12 Training'!P64/2 -> 0 | R28: =+'R12 Training'!Q64/2 -> 0 | S28: =+'R12 Training'!R64/2 -> 0
D29: establishing community outreach | E29: days | F29: 200 | G29: =+'R14 Community Outreach'!F31 -> 200 | K29: =+'R14 Community Outreach'!J31 -> 0 | L29: =+'R14 Community Outreach'!K31 -> 0 | M29: =+'R14 Community Outreach'!L31 -> 0 | N29: =+'R14 Community Outreach'!M31 -> 0 | O29: =+'R14 Community Outreach'!N31 -> 0 | P29: =+'R14 Community Outreach'!O31 -> 0 | Q29: =+'R14 Community Outreach'!P31 -> 0 | R29: =+'R14 Community Outreach'!Q31 -> 0 | S29: =+'R14 Community Outreach'!R31 -> 0
D30: Total | E30: days | F30: 676.75 | G30: =+SUM(G25:G29) -> 676.75 | K30: =+SUM(K25:K29) -> 0 | L30: 0 | M30: 0 | N30: 0 | O30: 0 | P30: 0 | Q30: 0 | R30: 0 | S30: 0
C31: Junior staff Outpatient Care | D31: TOTAL | E31: FTE | F31: =+(G31*$G$9+K31*$K$9+L31*$L$9+M31*$M$9+N31*$N$9+O31*$O$9+P31*$P$9+Q31*$Q$9+R31*$R$9+S31*$S$9) -> 1.068269231 | G31: =+G36/'D5 Salaries'!$I$20 -> 1.068269231 | K31: =+K36/'D5 Salaries'!$I$20 -> 0 | L31: =+L36/'D5 Salaries'!$I$20 -> 0 | M31: =+M36/'D5 Salaries'!$I$20 -> 0 | N31: =+N36/'D5 Salaries'!$I$20 -> 0 | O31: =+O36/'D5 Salaries'!$I$20 -> 0 | P31: =+P36/'D5 Salaries'!$I$20 -> 0 | Q31: =+Q36/'D5 Salaries'!$I$20 -> 0 | R31: =+R36/'D5 Salaries'!$I$20 -> 0 | S31: =+S36/'D5 Salaries'!$I$20 -> 0
D32: Per Outpatient Care site | E32: FTE | G32: =+IF('D9 Time-dependent'!F29=0,0,G31/'D9 Time-dependent'!F29) -> 0.5341346154 | K32: =+IF('D9 Time-dependent'!J29=0,0,K31/'D9 Time-dependent'!J29) -> 0 | L32: =+IF('D9 Time-dependent'!K29=0,0,L31/'D9 Time-dependent'!K29) -> 0 | M32: =+IF('D9 Time-dependent'!L29=0,0,M31/'D9 Time-dependent'!L29) -> 0 | N32: =+IF('D9 Time-dependent'!M29=0,0,N31/'D9 Time-dependent'!M29) -> 0 | O32: =+IF('D9 Time-dependent'!N29=0,0,O31/'D9 Time-dependent'!N29) -> 0 | P32: =+IF('D9 Time-dependent'!O29=0,0,P31/'D9 Time-dependent'!O29) -> 0 | Q32: =+IF('D9 Time-dependent'!P29=0,0,Q31/'D9 Time-dependent'!P29) -> 0 | R32: =+IF('D9 Time-dependent'!Q29=0,0,R31/'D9 Time-dependent'!Q29) -> 0 | S32: =+IF('D9 Time-dependent'!R29=0,0,S31/'D9 Time-dependent'!R29) -> 0
D33: case management | E33: days | F33: =+SUM(K33:S33)+G33 -> 71.75 | G33: =+'R8 Treatment (manpower&space)'!F33 -> 71.75 | K33: =+'R8 Treatment (manpower&space)'!J33 -> 0 | L33: =+'R8 Treatment (manpower&space)'!K33 -> 0 | M33: =+'R8 Treatment (manpower&space)'!L33 -> 0 | N33: =+'R8 Treatment (manpower&space)'!M33 -> 0 | O33: =+'R8 Treatment (manpower&space)'!N33 -> 0 | P33: =+'R8 Treatment (manpower&space)'!O33 -> 0 | Q33: =+'R8 Treatment (manpower&space)'!P33 -> 0 | R33: =+'R8 Treatment (manpower&space)'!Q33 -> 0 | S33: =+'R8 Treatment (manpower&space)'!R33 -> 0
D34: being trained | E34: days | F34: =+SUM(K34:S34)+G34 -> 6 | G34: =+'R12 Training'!F64/2 -> 6 | K34: =+'R12 Training'!J64/2 -> 0 | L34: =+'R12 Training'!K64/2 -> 0 | M34: =+'R12 Training'!L64/2 -> 0 | N34: =+'R12 Training'!M64/2 -> 0 | O34: =+'R12 Training'!N64/2 -> 0 | P34: =+'R12 Training'!O64/2 -> 0 | Q34: =+'R12 Training'!P64/2 -> 0 | R34: =+'R12 Training'!Q64/2 -> 0 | S34: =+'R12 Training'!R64/2 -> 0
D35: establishing community outreach | E35: days | F35: =+SUM(K35:S35)+G35 -> 200 | G35: =+'R14 Community Outreach'!F32 -> 200 | K35: =+'R14 Community Outreach'!J32 -> 0 | L35: =+'R14 Community Outreach'!K32 -> 0 | M35: =+'R14 Community Outreach'!L32 -> 0 | N35: =+'R14 Community Outreach'!M32 -> 0 | O35: =+'R14 Community Outreach'!N32 -> 0 | P35: =+'R14 Community Outreach'!O32 -> 0 | Q35: =+'R14 Community Outreach'!P32 -> 0 | R35: =+'R14 Community Outreach'!Q32 -> 0 | S35: =+'R14 Community Outreach'!R32 -> 0
D36: Total | E36: days | F36: =+SUM(K36:S36)+G36 -> 277.75 | G36: =+SUM(G33:G35) -> 277.75 | K36: =+SUM(K33:K35) -> 0 | L36: 0 | M36: 0 | N36: 0 | O36: 0 | P36: 0 | Q36: 0 | R36: 0 | S36: 0
C37: Guards | D37: TOTAL | E37: FTE | F37: =+(G37*$G$9+K37*$K$9+L37*$L$9+M37*$M$9+N37*$N$9+O37*$O$9+P37*$P$9+Q37*$Q$9+R37*$R$9+S37*$S$9) -> 2 | G37: =+'R11 Supply Logistics'!F33 -> 2 | K37: =+'R11 Supply Logistics'!J33 -> 0 | L37: =+'R11 Supply Logistics'!K33 -> 0 | M37: =+'R11 Supply Logistics'!L33 -> 0 | N37: =+'R11 Supply Logistics'!M33 -> 0 | O37: =+'R11 Supply Logistics'!N33 -> 0 | P37: =+'R11 Supply Logistics'!O33 -> 0 | Q37: =+'R11 Supply Logistics'!P33 -> 0 | R37: =+'R11 Supply Logistics'!Q33 -> 0 | S37: =+'R11 Supply Logistics'!R33 -> 0
D38: Per Outpatient Care site | E38: FTE | G38: =+IF('D9 Time-dependent'!F29=0,0,G37/'D9 Time-dependent'!F29) -> 1 | K38: =+IF('D9 Time-dependent'!J29=0,0,K37/'D9 Time-dependent'!J29) -> 0 | L38: =+IF('D9 Time-dependent'!K29=0,0,L37/'D9 Time-dependent'!K29) -> 0 | M38: =+IF('D9 Time-dependent'!L29=0,0,M37/'D9 Time-dependent'!L29) -> 0 | N38: =+IF('D9 Time-dependent'!M29=0,0,N37/'D9 Time-dependent'!M29) -> 0 | O38: =+IF('D9 Time-dependent'!N29=0,0,O37/'D9 Time-dependent'!N29) -> 0 | P38: =+IF('D9 Time-dependent'!O29=0,0,P37/'D9 Time-dependent'!O29) -> 0 | Q38: =+IF('D9 Time-dependent'!P29=0,0,Q37/'D9 Time-dependent'!P29) -> 0 | R38: =+IF('D9 Time-dependent'!Q29=0,0,R37/'D9 Time-dependent'!Q29) -> 0 | S38: =+IF('D9 Time-dependent'!R29=0,0,S37/'D9 Time-dependent'!R29) -> 0
B40: Inpatient Care
C41: Senior staff Inpatient Care | D41: TOTAL | E41: FTE | F41: =+(G41*$G$9+K41*$K$9+L41*$L$9+M41*$M$9+N41*$N$9+O41*$O$9+P41*$P$9+Q41*$Q$9+R41*$R$9+S41*$S$9) -> 0.4322115385 | G41: =+G45/'D5 Salaries'!$I$20 -> 0.4322115385 | K41: =+K45/'D5 Salaries'!$I$20 -> 0 | L41: =+L45/'D5 Salaries'!$I$20 -> 0 | M41: =+M45/'D5 Salaries'!$I$20 -> 0 | N41: =+N45/'D5 Salaries'!$I$20 -> 0 | O41: =+O45/'D5 Salaries'!$I$20 -> 0 | P41: =+P45/'D5 Salaries'!$I$20 -> 0 | Q41: =+Q45/'D5 Salaries'!$I$20 -> 0 | R41: =+R45/'D5 Salaries'!$I$20 -> 0 | S41: =+S45/'D5 Salaries'!$I$20 -> 0
D42: Per Inpatient Care site | E42: FTE | G42: =+IF('D9 Time-dependent'!F32=0,0,G41/'D9 Time-dependent'!F32) -> 0.4322115385 | K42: =+IF('D9 Time-dependent'!J32=0,0,K41/'D9 Time-dependent'!J32) -> 0 | L42: =+IF('D9 Time-dependent'!K32=0,0,L41/'D9 Time-dependent'!K32) -> 0 | M42: =+IF('D9 Time-dependent'!L32=0,0,M41/'D9 Time-dependent'!L32) -> 0 | N42: =+IF('D9 Time-dependent'!M32=0,0,N41/'D9 Time-dependent'!M32) -> 0 | O42: =+IF('D9 Time-dependent'!N32=0,0,O41/'D9 Time-dependent'!N32) -> 0 | P42: =+IF('D9 Time-dependent'!O32=0,0,P41/'D9 Time-dependent'!O32) -> 0 | Q42: =+IF('D9 Time-dependent'!P32=0,0,Q41/'D9 Time-dependent'!P32) -> 0 | R42: =+IF('D9 Time-dependent'!Q32=0,0,R41/'D9 Time-dependent'!Q32) -> 0 | S42: =+IF('D9 Time-dependent'!R32=0,0,S41/'D9 Time-dependent'!R32) -> 0
D43: case management | E43: days | F43: =+SUM(K43:S43)+G43 -> 106.375 | G43: =+'R8 Treatment (manpower&space)'!F34 -> 106.375 | K43: =+'R8 Treatment (manpower&space)'!J34 -> 0 | L43: =+'R8 Treatment (manpower&space)'!K34 -> 0 | M43: =+'R8 Treatment (manpower&space)'!L34 -> 0 | N43: =+'R8 Treatment (manpower&space)'!M34 -> 0 | O43: =+'R8 Treatment (manpower&space)'!N34 -> 0 | P43: =+'R8 Treatment (manpower&space)'!O34 -> 0 | Q43: =+'R8 Treatment (manpower&space)'!P34 -> 0 | R43: =+'R8 Treatment (manpower&space)'!Q34 -> 0 | S43: =+'R8 Treatment (manpower&space)'!R34 -> 0
D44: being trained | E44: days | F44: 6 | G44: =+'R12 Training'!F65/2 -> 6 | K44: =+'R12 Training'!J65/2 -> 0 | L44: =+'R12 Training'!K65/2 -> 0 | M44: =+'R12 Training'!L65/2 -> 0 | N44: =+'R12 Training'!M65/2 -> 0 | O44: =+'R12 Training'!N65/2 -> 0 | P44: =+'R12 Training'!O65/2 -> 0 | Q44: =+'R12 Training'!P65/2 -> 0 | R44: =+'R12 Training'!Q65/2 -> 0 | S44: =+'R12 Training'!R65/2 -> 0
D45: Total | E45: days | F45: 112.375 | G45: =+SUM(G43:G44) -> 112.375 | K45: =+SUM(K43:K44) -> 0 | L45: 0 | M45: 0 | N45: 0 | O45: 0 | P45: 0 | Q45: 0 | R45: 0 | S45: 0
C46: Junior staff Inpatient Care | D46: TOTAL | E46: FTE | F46: =+(G46*$G$9+K46*$K$9+L46*$L$9+M46*$M$9+N46*$N$9+O46*$O$9+P46*$P$9+Q46*$Q$9+R46*$R$9+S46*$S$9) -> 4.234615385 | G46: =+G50/'D5 Salaries'!$I$20 -> 4.234615385 | K46: =+K50/'D5 Salaries'!$I$20 -> 0 | L46: =+L50/'D5 Salaries'!$I$20 -> 0 | M46: =+M50/'D5 Salaries'!$I$20 -> 0 | N46: =+N50/'D5 Salaries'!$I$20 -> 0 | O46: =+O50/'D5 Salaries'!$I$20 -> 0 | P46: =+P50/'D5 Salaries'!$I$20 -> 0 | Q46: =+Q50/'D5 Salaries'!$I$20 -> 0 | R46: =+R50/'D5 Salaries'!$I$20 -> 0 | S46: =+S50/'D5 Salaries'!$I$20 -> 0
D47: Per Inpatient Care site | E47: FTE | G47: =+IF('D9 Time-dependent'!F32=0,0,G46/'D9 Time-dependent'!F32) -> 4.234615385 | K47: =+IF('D9 Time-dependent'!J32=0,0,K46/'D9 Time-dependent'!J32) -> 0 | L47: =+IF('D9 Time-dependent'!K32=0,0,L46/'D9 Time-dependent'!K32) -> 0 | M47: =+IF('D9 Time-dependent'!L32=0,0,M46/'D9 Time-dependent'!L32) -> 0 | N47: =+IF('D9 Time-dependent'!M32=0,0,N46/'D9 Time-dependent'!M32) -> 0 | O47: =+IF('D9 Time-dependent'!N32=0,0,O46/'D9 Time-dependent'!N32) -> 0 | P47: =+IF('D9 Time-dependent'!O32=0,0,P46/'D9 Time-dependent'!O32) -> 0 | Q47: =+IF('D9 Time-dependent'!P32=0,0,Q46/'D9 Time-dependent'!P32) -> 0 | R47: =+IF('D9 Time-dependent'!Q32=0,0,R46/'D9 Time-dependent'!Q32) -> 0 | S47: =+IF('D9 Time-dependent'!R32=0,0,S46/'D9 Time-dependent'!R32) -> 0
D48: case management | E48: days | F48: 1095 | G48: =+'R8 Treatment (manpower&space)'!F35 -> 1095 | K48: =+'R8 Treatment (manpower&space)'!J35 -> 0 | L48: =+'R8 Treatment (manpower&space)'!K35 -> 0 | M48: =+'R8 Treatment (manpower&space)'!L35 -> 0 | N48: =+'R8 Treatment (manpower&space)'!M35 -> 0 | O48: =+'R8 Treatment (manpower&space)'!N35 -> 0 | P48: =+'R8 Treatment (manpower&space)'!O35 -> 0 | Q48: =+'R8 Treatment (manpower&space)'!P35 -> 0 | R48: =+'R8 Treatment (manpower&space)'!Q35 -> 0 | S48: =+'R8 Treatment (manpower&space)'!R35 -> 0
D49: being trained | E49: days | F49: 6 | G49: =+'R12 Training'!F65/2 -> 6 | K49: =+'R12 Training'!J65/2 -> 0 | L49: =+'R12 Training'!K65/2 -> 0 | M49: =+'R12 Training'!L65/2 -> 0 | N49: =+'R12 Training'!M65/2 -> 0 | O49: =+'R12 Training'!N65/2 -> 0 | P49: =+'R12 Training'!O65/2 -> 0 | Q49: =+'R12 Training'!P65/2 -> 0 | R49: =+'R12 Training'!Q65/2 -> 0 | S49: =+'R12 Training'!R65/2 -> 0
D50: Total | E50: days | F50: 1101 | G50: =+SUM(G48:G49) -> 1101 | K50: =+SUM(K48:K49) -> 0 | L50: 0 | M50: 0 | N50: 0 | O50: 0 | P50: 0 | Q50: 0 | R50: 0 | S50: 0
C51: Guards | D51: TOTAL | E51: FTE | F51: =+(G51*$G$9+K51*$K$9+L51*$L$9+M51*$M$9+N51*$N$9+O51*$O$9+P51*$P$9+Q51*$Q$9+R51*$R$9+S51*$S$9) -> 1 | G51: =+'R11 Supply Logistics'!F34 -> 1 | K51: =+'R11 Supply Logistics'!J34 -> 0 | L51: =+'R11 Supply Logistics'!K34 -> 0 | M51: =+'R11 Supply Logistics'!L34 -> 0 | N51: =+'R11 Supply Logistics'!M34 -> 0 | O51: =+'R11 Supply Logistics'!N34 -> 0 | P51: =+'R11 Supply Logistics'!O34 -> 0 | Q51: =+'R11 Supply Logistics'!P34 -> 0 | R51: =+'R11 Supply Logistics'!Q34 -> 0 | S51: =+'R11 Supply Logistics'!R34 -> 0
D52: Per Inpatient Care site | E52: FTE | G52: =+IF('D9 Time-dependent'!F32=0,0,G51/'D9 Time-dependent'!F32) -> 1 | K52: =+IF('D9 Time-dependent'!J32=0,0,K51/'D9 Time-dependent'!J32) -> 0 | L52: =+IF('D9 Time-dependent'!K32=0,0,L51/'D9 Time-dependent'!K32) -> 0 | M52: =+IF('D9 Time-dependent'!L32=0,0,M51/'D9 Time-dependent'!L32) -> 0 | N52: =+IF('D9 Time-dependent'!M32=0,0,N51/'D9 Time-dependent'!M32) -> 0 | O52: =+IF('D9 Time-dependent'!N32=0,0,O51/'D9 Time-dependent'!N32) -> 0 | P52: =+IF('D9 Time-dependent'!O32=0,0,P51/'D9 Time-dependent'!O32) -> 0 | Q52: =+IF('D9 Time-dependent'!P32=0,0,Q51/'D9 Time-dependent'!P32) -> 0 | R52: =+IF('D9 Time-dependent'!Q32=0,0,R51/'D9 Time-dependent'!Q32) -> 0 | S52: =+IF('D9 Time-dependent'!R32=0,0,S51/'D9 Time-dependent'!R32) -> 0
B54: Area HQ
C55: Senior staff | D55: TOTAL | E55: FTE | F55: =+(G55*$G$9+K55*$K$9+L55*$L$9+M55*$M$9+N55*$N$9+O55*$O$9+P55*$P$9+Q55*$Q$9+R55*$R$9+S55*$S$9) -> 0.04615384615 | G55: =+G56/'D5 Salaries'!$I$20 -> 0.04615384615 | K55: =+K56/'D5 Salaries'!$I$20 -> 0 | L55: =+L56/'D5 Salaries'!$I$20 -> 0 | M55: =+M56/'D5 Salaries'!$I$20 -> 0 | N55: =+N56/'D5 Salaries'!$I$20 -> 0 | O55: =+O56/'D5 Salaries'!$I$20 -> 0 | P55: =+P56/'D5 Salaries'!$I$20 -> 0 | Q55: =+Q56/'D5 Salaries'!$I$20 -> 0 | R55: =+R56/'D5 Salaries'!$I$20 -> 0 | S55: =+S56/'D5 Salaries'!$I$20 -> 0
D56: general management (planning, budgeting, MIS etc) | E56: days | F56: 12 | G56: =+'R7 Area HQ Management'!F28 -> 12 | K56: =+'R7 Area HQ Management'!J28 -> 0 | L56: =+'R7 Area HQ Management'!K28 -> 0 | M56: =+'R7 Area HQ Management'!L28 -> 0 | N56: =+'R7 Area HQ Management'!M28 -> 0 | O56: =+'R7 Area HQ Management'!N28 -> 0 | P56: =+'R7 Area HQ Management'!O28 -> 0 | Q56: =+'R7 Area HQ Management'!P28 -> 0 | R56: =+'R7 Area HQ Management'!Q28 -> 0 | S56: =+'R7 Area HQ Management'!R28 -> 0
C57: Mid-level staff | D57: TOTAL | E57: FTE | F57: 0.2740384615 | G57: =+G62/'D5 Salaries'!$I$20 -> 0.2740384615 | K57: =+K62/'D5 Salaries'!$I$20 -> 0 | L57: =+L62/'D5 Salaries'!$I$20 -> 0 | M57: =+M62/'D5 Salaries'!$I$20 -> 0 | N57: =+N62/'D5 Salaries'!$I$20 -> 0 | O57: =+O62/'D5 Salaries'!$I$20 -> 0 | P57: =+P62/'D5 Salaries'!$I$20 -> 0 | Q57: =+Q62/'D5 Salaries'!$I$20 -> 0 | R57: =+R62/'D5 Salaries'!$I$20 -> 0 | S57: =+S62/'D5 Salaries'!$I$20 -> 0
D58: general management (planning, budgeting, MIS etc) | E58: days | F58: 42 | G58: =+'R7 Area HQ Management'!F29 -> 42 | K58: =+'R7 Area HQ Management'!J29 -> 0 | L58: =+'R7 Area HQ Management'!K29 -> 0 | M58: =+'R7 Area HQ Management'!L29 -> 0 | N58: =+'R7 Area HQ Management'!M29 -> 0 | O58: =+'R7 Area HQ Management'!N29 -> 0 | P58: =+'R7 Area HQ Management'!O29 -> 0 | Q58: =+'R7 Area HQ Management'!P29 -> 0 | R58: =+'R7 Area HQ Management'!Q29 -> 0 | S58: =+'R7 Area HQ Management'!R29 -> 0
D59: training Outpatient and Inpatient Care staff | E59: days | F59: 16 | G59: =+'R12 Training'!F59+'R12 Training'!F60 -> 16 | K59: =+'R12 Training'!J59+'R12 Training'!J60 -> 0 | L59: =+'R12 Training'!K59+'R12 Training'!K60 -> 0 | M59: =+'R12 Training'!L59+'R12 Training'!L60 -> 0 | N59: =+'R12 Training'!M59+'R12 Training'!M60 -> 0 | O59: =+'R12 Training'!N59+'R12 Training'!N60 -> 0 | P59: =+'R12 Training'!O59+'R12 Training'!O60 -> 0 | Q59: =+'R12 Training'!P59+'R12 Training'!P60 -> 0 | R59: =+'R12 Training'!Q59+'R12 Training'!Q60 -> 0 | S59: =+'R12 Training'!R59+'R12 Training'!R60 -> 0
D60: supervising Outpatient and Inpatient Care staff | E60: days | F60: 11.25 | G60: =+'R13 Supervision'!F36 -> 11.25 | K60: =+'R13 Supervision'!J36 -> 0 | L60: =+'R13 Supervision'!K36 -> 0 | M60: =+'R13 Supervision'!L36 -> 0 | N60: =+'R13 Supervision'!M36 -> 0 | O60: =+'R13 Supervision'!N36 -> 0 | P60: =+'R13 Supervision'!O36 -> 0 | Q60: =+'R13 Supervision'!P36 -> 0 | R60: =+'R13 Supervision'!Q36 -> 0 | S60: =+'R13 Supervision'!R36 -> 0
D61: being trained | E61: days | F61: 2 | G61: =+'R12 Training'!F66 -> 2 | K61: =+'R12 Training'!J66 -> 0 | L61: =+'R12 Training'!K66 -> 0 | M61: =+'R12 Training'!L66 -> 0 | N61: =+'R12 Training'!M66 -> 0 | O61: =+'R12 Training'!N66 -> 0 | P61: =+'R12 Training'!O66 -> 0 | Q61: =+'R12 Training'!P66 -> 0 | R61: =+'R12 Training'!Q66 -> 0 | S61: =+'R12 Training'!R66 -> 0
D62: Total | E62: days | F62: 71.25 | G62: =+SUM(G58:G61) -> 71.25 | K62: =+SUM(K58:K61) -> 0 | L62: 0 | M62: 0 | N62: 0 | O62: 0 | P62: 0 | Q62: 0 | R62: 0 | S62: 0
C63: Junior staff | D63: TOTAL | E63: FTE | F63: 0.3 | G63: =+G64/'D5 Salaries'!$I$20 -> 0.3 | K63: =+K64/'D5 Salaries'!$I$20 -> 0 | L63: =+L64/'D5 Salaries'!$I$20 -> 0 | M63: =+M64/'D5 Salaries'!$I$20 -> 0 | N63: =+N64/'D5 Salaries'!$I$20 -> 0 | O63: =+O64/'D5 Salaries'!$I$20 -> 0 | P63: =+P64/'D5 Salaries'!$I$20 -> 0 | Q63: =+Q64/'D5 Salaries'!$I$20 -> 0 | R63: =+R64/'D5 Salaries'!$I$20 -> 0 | S63: =+S64/'D5 Salaries'!$I$20 -> 0
D64: support for general management (planning, budgeting MIS etc) | E64: days | F64: =+SUM(K64:S64)+G64 -> 78 | G64: =+'R7 Area HQ Management'!F30 -> 78 | K64: =+'R7 Area HQ Management'!J30 -> 0 | L64: =+'R7 Area HQ Management'!K30 -> 0 | M64: =+'R7 Area HQ Management'!L30 -> 0 | N64: =+'R7 Area HQ Management'!M30 -> 0 | O64: =+'R7 Area HQ Management'!N30 -> 0 | P64: =+'R7 Area HQ Management'!O30 -> 0 | Q64: =+'R7 Area HQ Management'!P30 -> 0 | R64: =+'R7 Area HQ Management'!Q30 -> 0 | S64: =+'R7 Area HQ Management'!R30 -> 0
C65: Guards | D65: TOTAL | E65: FTE | F65: =+SUM(F66:F67) -> 4
D66: For Area HQ | E66: FTE | F66: =+SUM(K66:S66)+G66 -> 1 | G66: =+'R11 Supply Logistics'!F35 -> 1 | K66: =+'R11 Supply Logistics'!J35 -> 0 | L66: =+'R11 Supply Logistics'!K35 -> 0 | M66: =+'R11 Supply Logistics'!L35 -> 0 | N66: =+'R11 Supply Logistics'!M35 -> 0 | O66: =+'R11 Supply Logistics'!N35 -> 0 | P66: =+'R11 Supply Logistics'!O35 -> 0 | Q66: =+'R11 Supply Logistics'!P35 -> 0 | R66: =+'R11 Supply Logistics'!Q35 -> 0 | S66: =+'R11 Supply Logistics'!R35 -> 0
D67: For Outpatient and Inpatient Care stores | E67: FTE | F67: =+SUM(K67:S67)+G67 -> 3 | G67: =+'R11 Supply Logistics'!F33+'R11 Supply Logistics'!F34 -> 3 | K67: =+'R11 Supply Logistics'!J33+'R11 Supply Logistics'!J34 -> 0 | L67: =+'R11 Supply Logistics'!K33+'R11 Supply Logistics'!K34 -> 0 | M67: =+'R11 Supply Logistics'!L33+'R11 Supply Logistics'!L34 -> 0 | N67: =+'R11 Supply Logistics'!M33+'R11 Supply Logistics'!M34 -> 0 | O67: =+'R11 Supply Logistics'!N33+'R11 Supply Logistics'!N34 -> 0 | P67: =+'R11 Supply Logistics'!O33+'R11 Supply Logistics'!O34 -> 0 | Q67: =+'R11 Supply Logistics'!P33+'R11 Supply Logistics'!P34 -> 0 | R67: =+'R11 Supply Logistics'!Q33+'R11 Supply Logistics'!Q34 -> 0 | S67: =+'R11 Supply Logistics'!R33+'R11 Supply Logistics'!R34 -> 0
C68: Drivers | D68: TOTAL | E68: FTE | F68: =+F69/'D5 Salaries'!I20 -> 0.02163461538 | G68: =+G69/'D5 Salaries'!$I$20 -> 0.02163461538 | K68: =+K69/'D5 Salaries'!$I$20 -> 0 | L68: =+L69/'D5 Salaries'!$I$20 -> 0 | M68: =+M69/'D5 Salaries'!$I$20 -> 0 | N68: =+N69/'D5 Salaries'!$I$20 -> 0 | O68: =+O69/'D5 Salaries'!$I$20 -> 0 | P68: =+P69/'D5 Salaries'!$I$20 -> 0 | Q68: =+Q69/'D5 Salaries'!$I$20 -> 0 | R68: =+R69/'D5 Salaries'!$I$20 -> 0 | S68: =+S69/'D5 Salaries'!$I$20 -> 0
D69: delivering therapeutic food from Area HQ to Outpatient and Inpatient Care sites | E69: days | F69: =+(G69*$G$9+K69*$K$9+L69*$L$9+M69*$M$9+N69*$N$9+O69*$O$9+P69*$P$9+Q69*$Q$9+R69*$R$9+S69*$S$9) -> 5.625 | G69: =+'R11 Supply Logistics'!F38+'R11 Supply Logistics'!F39 -> 5.625 | K69: =+'R11 Supply Logistics'!J38+'R11 Supply Logistics'!J39 -> 0 | L69: =+'R11 Supply Logistics'!K38+'R11 Supply Logistics'!K39 -> 0 | M69: =+'R11 Supply Logistics'!L38+'R11 Supply Logistics'!L39 -> 0 | N69: =+'R11 Supply Logistics'!M38+'R11 Supply Logistics'!M39 -> 0 | O69: =+'R11 Supply Logistics'!N38+'R11 Supply Logistics'!N39 -> 0 | P69: =+'R11 Supply Logistics'!O38+'R11 Supply Logistics'!O39 -> 0 | Q69: =+'R11 Supply Logistics'!P38+'R11 Supply Logistics'!P39 -> 0 | R69: =+'R11 Supply Logistics'!Q38+'R11 Supply Logistics'!Q39 -> 0 | S69: =+'R11 Supply Logistics'!R38+'R11 Supply Logistics'!R39 -> 0
B71: Group-Area HQ
C72: Senior staff | D72: TOTAL | E72: FTE | F72: =+F73*5/'D5 Salaries'!I20 -> 0
D73: general management (planning, budgeting, MIS etc) | E73: weeks | F73: =+'R6 Group-Area & Central Level'!Q42 -> 0
C74: Mid-level staff | D74: TOTAL | E74: FTE | F74: =+(F75*5+F76+F77+F78)/'D5 Salaries'!I20 -> 0.004230769231
D75: general management (planning, budgeting, MIS etc) | E75: weeks | F75: =+'R6 Group-Area & Central Level'!Q43+'R6 Group-Area & Central Level'!Q44 -> 0
D76: training Area HQ staff | E76: days | F76: =+'R6 Group-Area & Central Level'!Q17 -> 0
D77: supervising Area HQ staff | E77: days | F77: =+SUM('R13 Supervision'!F47:R47) -> 1.1
D78: being trained | E78: days | F78: =+'R6 Group-Area & Central Level'!Q23 -> 0
C79: Guards | D79: TOTAL | E79: FTE | F79: =+'R6 Group-Area & Central Level'!O37 -> 0
C80: Drivers | D80: TOTAL | E80: FTE | F80: =+F81/'D5 Salaries'!I20 -> 0.006346153846
D81: Delivering therapeutic food from Group -Area to Area HQ | E81: days | F81: =+SUM(K81:S81)+G81 -> 1.65 | G81: =+'R11 Supply Logistics'!F40 -> 1.65 | K81: =+'R11 Supply Logistics'!J40 -> 0 | L81: =+'R11 Supply Logistics'!K40 -> 0 | M81: =+'R11 Supply Logistics'!L40 -> 0 | N81: =+'R11 Supply Logistics'!M40 -> 0 | O81: =+'R11 Supply Logistics'!N40 -> 0 | P81: =+'R11 Supply Logistics'!O40 -> 0 | Q81: =+'R11 Supply Logistics'!P40 -> 0 | R81: =+'R11 Supply Logistics'!Q40 -> 0 | S81: =+'R11 Supply Logistics'!R40 -> 0
B83: Central level
C84: Senior staff | D84: TOTAL | E84: FTE | F84: =+'R6 Group-Area & Central Level'!Q50 -> 0
D85: establishing CMAM in the country | F85: =+'R6 Group-Area & Central Level'!Q50 -> 0
C86: Mid-level staff | D86: TOTAL | E86: FTE | F86: =+F87+F89+F88/'D5 Salaries'!I20 -> 0.5
D87: general management (planning, budgeting, MIS etc) | E87: FTE | F87: =+'R6 Group-Area & Central Level'!Q47 -> 0.5
D88: training Group-Area HQ staff | E88: days | F88: =+'R6 Group-Area & Central Level'!Q24 -> 0
D89: assisting in the establishment of CMAM | E89: FTE | F89: =+'R6 Group-Area & Central Level'!Q51 -> 0
C90: Guards | D90: TOTAL | E90: FTE | F90: =+'R6 Group-Area & Central Level'!P37 -> 1
C91: Drivers | D91: TOTAL | E91: FTE | F91: =+F92/'D5 Salaries'!I20 -> 0
D92: Delivering therapeutic food to Group-Areas from Central HQ | E92: days | F92: =+'R6 Group-Area & Central Level'!Q35 -> 0
B96: *

Sheet R2 Transport
A2: Return to Contents | C2: R2: Annual Transport Requirements for CMAM
C4: Number of Areas included | D4: =+'D2 Scale'!I8 -> 1 | F4: (taken from Worksheet 2)
C5: This Worksheet shows (for the year chosen) the distances travelled transporting supplies and persons to implement CMAM.
C7: =+IF('D1 Background'!$H$11="","",'D1 Background'!$H$11) -> Ghana
C8: =+'D9 Time-dependent'!$I$6 -> 2011
F9: =+IF('D1 Background'!$G$31<1,0,1) -> 1 | J9: =+IF('D1 Background'!$G$31<2,0,1) -> 0 | K9: =+IF('D1 Background'!$G$31<3,0,1) -> 0 | L9: =+IF('D1 Background'!$G$31<4,0,1) -> 0 | M9: =+IF('D1 Background'!$G$31<5,0,1) -> 0 | N9: =+IF('D1 Background'!$G$31<6,0,1) -> 0 | O9: =+IF('D1 Background'!$G$31<7,0,1) -> 0 | P9: =+IF('D1 Background'!$G$31<8,0,1) -> 0 | Q9: =+IF('D1 Background'!$G$31<9,0,1) -> 0 | R9: =+IF('D1 Background'!$G$31<10,0,1) -> 0
E10: All Areas | F10: Area 1 | J10: Area 2 | K10: Area 3 | L10: Area 4 | M10: Area 5 | N10: Area 6 | O10: Area 7 | P10: Area 8 | Q10: Area 9 | R10: Area 10
D11: ='D2 Scale'!$C$30 -> District | E11: TOTAL all areas | F11: =+IF('D2 Scale'!$C$31="","",'D2 Scale'!$C$31) -> Ashiedu Keteke | J11: =+IF('D2 Scale'!$C$36="","",'D2 Scale'!$C$36) ->  | K11: =+IF('D2 Scale'!$C$41="","",'D2 Scale'!$C$41) ->  | L11: =+IF('D2 Scale'!$C$46="","",'D2 Scale'!$C$46) ->  | M11: =+IF('D2 Scale'!$C$51="","",'D2 Scale'!$C$51) ->  | N11: =+IF('D2 Scale'!$C$56="","",'D2 Scale'!$C$56) ->  | O11: =+IF('D2 Scale'!$C$61="","",'D2 Scale'!$C$61) ->  | P11: =+IF('D2 Scale'!$C$66="","",'D2 Scale'!$C$66) ->  | Q11: =+IF('D2 Scale'!$C$71="","",'D2 Scale'!$C$71) ->  | R11: =+IF('D2 Scale'!$C$76="","",'D2 Scale'!$C$76) -> 
D12: =+'D2 Scale'!$D$30 -> Region | F12: =+IF('D2 Scale'!$D$31="","",'D2 Scale'!$D$31) -> Greater Accra | J12: =+IF('D2 Scale'!$D$36="","",'D2 Scale'!$D$36) ->  | K12: =+IF('D2 Scale'!$D$41="","",'D2 Scale'!$D$41) ->  | L12: =+IF('D2 Scale'!$D$46="","",'D2 Scale'!$D$46) ->  | M12: =+IF('D2 Scale'!$D$51="","",'D2 Scale'!$D$51) ->  | N12: =+IF('D2 Scale'!$D$56="","",'D2 Scale'!$D$56) ->  | O12: =+IF('D2 Scale'!$D$61="","",'D2 Scale'!$D$61) ->  | P12: =+IF('D2 Scale'!$D$66="","",'D2 Scale'!$D$66) ->  | Q12: =+IF('D2 Scale'!$D$71="","",'D2 Scale'!$D$71) ->  | R12: =+IF('D2 Scale'!$D$76="","",'D2 Scale'!$D$76) -> 
B13: Location | C13: Activity | D13: Units
B14: Between the community and Outpatient Care sites
C15: Training (COW to Outpatient Care sites) | D15: person-km | E15: =+F15*$F$9+J15*$J$9+K15*$K$9+$L$9*L15+M15*$M$9+$N$9*N15+O15*$O$9+$P$9*P15+Q15*$Q$9+$R$9*R15 -> 1200 | F15: =+'R12 Training'!F78 -> 1200 | J15: =+'R12 Training'!J78 -> 0 | K15: =+'R12 Training'!K78 -> 0 | L15: =+'R12 Training'!L78 -> 0 | M15: =+'R12 Training'!M78 -> 0 | N15: =+'R12 Training'!N78 -> 0 | O15: =+'R12 Training'!O78 -> 0 | P15: =+'R12 Training'!P78 -> 0 | Q15: =+'R12 Training'!Q78 -> 0 | R15: =+'R12 Training'!R78 -> 0
C16: Supervision (Outpatient Care staff to the community) | D16: person-km | E16: =+F16*$F$9+J16*$J$9+K16*$K$9+$L$9*L16+M16*$M$9+$N$9*N16+O16*$O$9+$P$9*P16+Q16*$Q$9+$R$9*R16 -> 7200 | F16: =+'R13 Supervision'!F44 -> 7200 | J16: =+'R13 Supervision'!J44 -> 0 | K16: =+'R13 Supervision'!K44 -> 0 | L16: =+'R13 Supervision'!L44 -> 0 | M16: =+'R13 Supervision'!M44 -> 0 | N16: =+'R13 Supervision'!N44 -> 0 | O16: =+'R13 Supervision'!O44 -> 0 | P16: =+'R13 Supervision'!P44 -> 0 | Q16: =+'R13 Supervision'!Q44 -> 0 | R16: =+'R13 Supervision'!R44 -> 0
B18: Between Outpatient Care and Inpatient Care sites
C19: Transport of children with medical complications from Outpatient Care to Inpatient Care site and return once complications resolved | D19: person-km | E19: =+F19*$F$9+J19*$J$9+K19*$K$9+$L$9*L19+M19*$M$9+$N$9*N19+O19*$O$9+$P$9*P19+Q19*$Q$9+$R$9*R19 -> 105.75 | F19: =+'R10 Treatment (other supplies)'!G37 -> 105.75 | J19: =+'R10 Treatment (other supplies)'!I37 -> 0 | K19: =+'R10 Treatment (other supplies)'!K37 -> 0 | L19: =+'R10 Treatment (other supplies)'!M37 -> 0 | M19: =+'R10 Treatment (other supplies)'!O37 -> 0 | N19: =+'R10 Treatment (other supplies)'!Q37 -> 0 | O19: =+'R10 Treatment (other supplies)'!S37 -> 0 | P19: =+'R10 Treatment (other supplies)'!U37 -> 0 | Q19: =+'R10 Treatment (other supplies)'!W37 -> 0 | R19: =+'R10 Treatment (other supplies)'!Y37 -> 0
B20: Between Outpatient Care or Inpatient Care sites and Area HQ
C21: Delivery of therapeutic food to sites | D21: km | E21: =+F21*$F$9+J21*$J$9+K21*$K$9+$L$9*L21+M21*$M$9+$N$9*N21+O21*$O$9+$P$9*P21+Q21*$Q$9+$R$9*R21 -> 180 | F21: =+'R11 Supply Logistics'!F31 -> 180 | J21: =+'R11 Supply Logistics'!J31 -> 0 | K21: =+'R11 Supply Logistics'!K31 -> 0 | L21: =+'R11 Supply Logistics'!L31 -> 0 | M21: =+'R11 Supply Logistics'!M31 -> 0 | N21: =+'R11 Supply Logistics'!N31 -> 0 | O21: =+'R11 Supply Logistics'!O31 -> 0 | P21: =+'R11 Supply Logistics'!P31 -> 0 | Q21: =+'R11 Supply Logistics'!Q31 -> 0 | R21: =+'R11 Supply Logistics'!R31 -> 0
C22: Training (Outpatient Care or Inpatient Care staff to Area HQ) | D22: person-km | E22: =+F22*$F$9+J22*$J$9+K22*$K$9+$L$9*L22+M22*$M$9+$N$9*N22+O22*$O$9+$P$9*P22+Q22*$Q$9+$R$9*R22 -> 80 | F22: =+('R12 Training'!F79+'R12 Training'!F80) -> 80 | J22: =+('R12 Training'!J79+'R12 Training'!J80) -> 0 | K22: =+('R12 Training'!K79+'R12 Training'!K80) -> 0 | L22: =+('R12 Training'!L79+'R12 Training'!L80) -> 0 | M22: =+('R12 Training'!M79+'R12 Training'!M80) -> 0 | N22: =+('R12 Training'!N79+'R12 Training'!N80) -> 0 | O22: =+('R12 Training'!O79+'R12 Training'!O80) -> 0 | P22: =+('R12 Training'!P79+'R12 Training'!P80) -> 0 | Q22: =+('R12 Training'!Q79+'R12 Training'!Q80) -> 0 | R22: =+('R12 Training'!R79+'R12 Training'!R80) -> 0
C23: Supervision (Area HQ staff to Outpatient Care and/or Inpatient Care site) | D23: person-km | E23: =+F23*$F$9+J23*$J$9+K23*$K$9+$L$9*L23+M23*$M$9+$N$9*N23+O23*$O$9+$P$9*P23+Q23*$Q$9+$R$9*R23 -> 96 | F23: =+'R13 Supervision'!F38 -> 96 | J23: =+'R13 Supervision'!J38 -> 0 | K23: =+'R13 Supervision'!K38 -> 0 | L23: =+'R13 Supervision'!L38 -> 0 | M23: =+'R13 Supervision'!M38 -> 0 | N23: =+'R13 Supervision'!N38 -> 0 | O23: =+'R13 Supervision'!O38 -> 0 | P23: =+'R13 Supervision'!P38 -> 0 | Q23: =+'R13 Supervision'!Q38 -> 0 | R23: =+'R13 Supervision'!R38 -> 0
B25: Between Area HQ and Group-Area HQ
C26: Delivery of therapeutic food (from Group-Area to Area HQ) | D26: km | E26: =+F26*$F$9+J26*$J$9+K26*$K$9+$L$9*L26+M26*$M$9+$N$9*N26+O26*$O$9+$P$9*P26+Q26*$Q$9+$R$9*R26 -> 12 | F26: =+'R11 Supply Logistics'!F30 -> 12 | J26: =+'R11 Supply Logistics'!J30 -> 0 | K26: =+'R11 Supply Logistics'!K30 -> 0 | L26: =+'R11 Supply Logistics'!L30 -> 0 | M26: =+'R11 Supply Logistics'!M30 -> 0 | N26: =+'R11 Supply Logistics'!N30 -> 0 | O26: =+'R11 Supply Logistics'!O30 -> 0 | P26: =+'R11 Supply Logistics'!P30 -> 0 | Q26: =+'R11 Supply Logistics'!Q30 -> 0 | R26: =+'R11 Supply Logistics'!R30 -> 0
C27: Training (Area HQ staff to Group-Area HQ) | D27: person-km | E27: =+F27*$F$9+J27*$J$9+K27*$K$9+$L$9*L27+M27*$M$9+$N$9*N27+O27*$O$9+$P$9*P27+Q27*$Q$9+$R$9*R27 -> 4 | F27: =+'R12 Training'!F81 -> 4 | J27: =+'R12 Training'!J81 -> 0 | K27: =+'R12 Training'!K81 -> 0 | L27: =+'R12 Training'!L81 -> 0 | M27: =+'R12 Training'!M81 -> 0 | N27: =+'R12 Training'!N81 -> 0 | O27: =+'R12 Training'!O81 -> 0 | P27: =+'R12 Training'!P81 -> 0 | Q27: =+'R12 Training'!Q81 -> 0 | R27: =+'R12 Training'!R81 -> 0
C28: Supervision (Group-Area HQ staff to Area HQ) | D28: person-km | E28: =+F28*$F$9+J28*$J$9+K28*$K$9+$L$9*L28+M28*$M$9+$N$9*N28+O28*$O$9+$P$9*P28+Q28*$Q$9+$R$9*R28 -> 8 | F28: =+'R13 Supervision'!F48 -> 8 | J28: =+'R13 Supervision'!J48 -> 0 | K28: =+'R13 Supervision'!K48 -> 0 | L28: =+'R13 Supervision'!L48 -> 0 | M28: =+'R13 Supervision'!M48 -> 0 | N28: =+'R13 Supervision'!N48 -> 0 | O28: =+'R13 Supervision'!O48 -> 0 | P28: =+'R13 Supervision'!P48 -> 0 | Q28: =+'R13 Supervision'!Q48 -> 0 | R28: =+'R13 Supervision'!R48 -> 0
B30: Between Group-Area HQ and Central HQ
C31: Delivery of therapeutic food (from Central to Group-Area HQ) | D31: km | E31: =+'R6 Group-Area & Central Level'!Q34 -> 0
C32: Training (Group-Area HQ staff to Central HQ) | D32: person-km | E32: =+'R6 Group-Area & Central Level'!Q26 -> 0
C33: Management (Central staff to Group-Area HQ) | D33: person-km | E33: =+'R6 Group-Area & Central Level'!Q48 -> 0

Sheet R3 Supplies
A2: Return to Contents | C2: R3: Annual Supply Requirements for CMAM
C5: Number of Areas included | D5: =+'D2 Scale'!$I$8 -> 1 | E5: (taken from Worksheet 2)
C6: This Worksheet shows (for the year chosen) the quantities of supplies required to implement CMAM.
G8: =+IF('D1 Background'!$G$31<1,0,1) -> 1 | K8: =+IF('D1 Background'!$G$31<2,0,1) -> 0 | L8: =+IF('D1 Background'!$G$31<3,0,1) -> 0 | M8: =+IF('D1 Background'!$G$31<4,0,1) -> 0 | N8: =+IF('D1 Background'!$G$31<5,0,1) -> 0 | O8: =+IF('D1 Background'!$G$31<6,0,1) -> 0 | P8: =+IF('D1 Background'!$G$31<7,0,1) -> 0 | Q8: =+IF('D1 Background'!$G$31<8,0,1) -> 0 | R8: =+IF('D1 Background'!$G$31<9,0,1) -> 0 | S8: =+IF('D1 Background'!$G$31<10,0,1) -> 0
C10: =+IF('D1 Background'!$H$11="","",'D1 Background'!$H$11) -> Ghana
C11: =+'D9 Time-dependent'!$I$6 -> 2011
F12: All Areas | G12: Area 1 | K12: Area 2 | L12: Area 3 | M12: Area 4 | N12: Area 5 | O12: Area 6 | P12: Area 7 | Q12: Area 8 | R12: Area 9 | S12: Area 10
E13: ='D2 Scale'!$C$30 -> District | F13: TOTAL all areas | G13: =+IF('D2 Scale'!$C$31="","",'D2 Scale'!$C$31) -> Ashiedu Keteke | K13: =+IF('D2 Scale'!$C$36="","",'D2 Scale'!$C$36) ->  | L13: =+IF('D2 Scale'!$C$41="","",'D2 Scale'!$C$41) ->  | M13: =+IF('D2 Scale'!$C$46="","",'D2 Scale'!$C$46) ->  | N13: =+IF('D2 Scale'!$C$51="","",'D2 Scale'!$C$51) ->  | O13: =+IF('D2 Scale'!$C$56="","",'D2 Scale'!$C$56) ->  | P13: =+IF('D2 Scale'!$C$61="","",'D2 Scale'!$C$61) ->  | Q13: =+IF('D2 Scale'!$C$66="","",'D2 Scale'!$C$66) ->  | R13: =+IF('D2 Scale'!$C$71="","",'D2 Scale'!$C$71) ->  | S13: =+IF('D2 Scale'!$C$76="","",'D2 Scale'!$C$76) -> 
E14: =+'D2 Scale'!$D$30 -> Region | G14: =+IF('D2 Scale'!$D$31="","",'D2 Scale'!$D$31) -> Greater Accra | K14: =+IF('D2 Scale'!$D$36="","",'D2 Scale'!$D$36) ->  | L14: =+IF('D2 Scale'!$D$41="","",'D2 Scale'!$D$41) ->  | M14: =+IF('D2 Scale'!$D$46="","",'D2 Scale'!$D$46) ->  | N14: =+IF('D2 Scale'!$D$51="","",'D2 Scale'!$D$51) ->  | O14: =+IF('D2 Scale'!$D$56="","",'D2 Scale'!$D$56) ->  | P14: =+IF('D2 Scale'!$D$61="","",'D2 Scale'!$D$61) ->  | Q14: =+IF('D2 Scale'!$D$66="","",'D2 Scale'!$D$66) ->  | R14: =+IF('D2 Scale'!$D$71="","",'D2 Scale'!$D$71) ->  | S14: =+IF('D2 Scale'!$D$76="","",'D2 Scale'!$D$76) -> 
B15: Supplies | D15: Activity | E15: Units
B16: Therapeutic food | D16: Treatment
C17: RUTF (Outpatient Care and Inpatient Care sites) | E17: kg | F17: =+SUM(K17:S17)+G17 -> 1993.57125 | G17: =+'R10 Treatment (other supplies)'!G26 -> 1993.57125 | K17: =+'R10 Treatment (other supplies)'!I26 -> 0 | L17: =+'R10 Treatment (other supplies)'!K26 -> 0 | M17: =+'R10 Treatment (other supplies)'!M26 -> 0 | N17: =+'R10 Treatment (other supplies)'!O26 -> 0 | O17: =+'R10 Treatment (other supplies)'!Q26 -> 0 | P17: =+'R10 Treatment (other supplies)'!S26 -> 0 | Q17: =+'R10 Treatment (other supplies)'!U26 -> 0 | R17: =+'R10 Treatment (other supplies)'!W26 -> 0 | S17: =+'R10 Treatment (other supplies)'!Y26 -> 0
C18: F-75 (Inpatient Care sites) | E18: kg | F18: =+SUM(K18:S18)+G18 -> 77.55 | G18: =+'R10 Treatment (other supplies)'!G27 -> 77.55 | K18: =+'R10 Treatment (other supplies)'!I27 -> 0 | L18: =+'R10 Treatment (other supplies)'!K27 -> 0 | M18: =+'R10 Treatment (other supplies)'!M27 -> 0 | N18: =+'R10 Treatment (other supplies)'!O27 -> 0 | O18: =+'R10 Treatment (other supplies)'!Q27 -> 0 | P18: =+'R10 Treatment (other supplies)'!S27 -> 0 | Q18: =+'R10 Treatment (other supplies)'!U27 -> 0 | R18: =+'R10 Treatment (other supplies)'!W27 -> 0 | S18: =+'R10 Treatment (other supplies)'!Y27 -> 0
C21: F-100 (Inpatient Care sites) | E21: kg | F21: =+SUM(K21:S21)+G21 -> 23.265 | G21: =+'R10 Treatment (other supplies)'!G28 -> 23.265 | K21: =+'R10 Treatment (other supplies)'!I28 -> 0 | L21: =+'R10 Treatment (other supplies)'!K28 -> 0 | M21: =+'R10 Treatment (other supplies)'!M28 -> 0 | N21: =+'R10 Treatment (other supplies)'!O28 -> 0 | O21: =+'R10 Treatment (other supplies)'!Q28 -> 0 | P21: =+'R10 Treatment (other supplies)'!S28 -> 0 | Q21: =+'R10 Treatment (other supplies)'!U28 -> 0 | R21: =+'R10 Treatment (other supplies)'!W28 -> 0 | S21: =+'R10 Treatment (other supplies)'!Y28 -> 0
B25: Medicines | D25: Treatment
C26: Vitamin A | E26: 100,000 IU capsules | F26: =+SUM(K26:S26)+G26 -> 250.5 | G26: =+'R9 Treatment(medical supplies) '!I29 -> 250.5 | K26: =+'R9 Treatment(medical supplies) '!N29 -> 0 | L26: =+'R9 Treatment(medical supplies) '!P29 -> 0 | M26: =+'R9 Treatment(medical supplies) '!R29 -> 0 | N26: =+'R9 Treatment(medical supplies) '!T29 -> 0 | O26: =+'R9 Treatment(medical supplies) '!V29 -> 0 | P26: =+'R9 Treatment(medical supplies) '!X29 -> 0 | Q26: =+'R9 Treatment(medical supplies) '!Z29 -> 0 | R26: =+'R9 Treatment(medical supplies) '!AB29 -> 0 | S26: =+'R9 Treatment(medical supplies) '!AD29 -> 0
C27: Sugar water | E27: liter | F27: 108 | G27: =+'R9 Treatment(medical supplies) '!I30 -> 108 | K27: =+'R9 Treatment(medical supplies) '!N30 -> 0 | L27: =+'R9 Treatment(medical supplies) '!P30 -> 0 | M27: =+'R9 Treatment(medical supplies) '!R30 -> 0 | N27: =+'R9 Treatment(medical supplies) '!T30 -> 0 | O27: =+'R9 Treatment(medical supplies) '!V30 -> 0 | P27: =+'R9 Treatment(medical supplies) '!X30 -> 0 | Q27: =+'R9 Treatment(medical supplies) '!Z30 -> 0 | R27: =+'R9 Treatment(medical supplies) '!AB30 -> 0 | S27: =+'R9 Treatment(medical supplies) '!AD30 -> 0
C28: Amoxicillin | E28: g | F28: 450 | G28: =+'R9 Treatment(medical supplies) '!I28 -> 450 | K28: =+'R9 Treatment(medical supplies) '!N28 -> 0 | L28: =+'R9 Treatment(medical supplies) '!P28 -> 0 | M28: =+'R9 Treatment(medical supplies) '!R28 -> 0 | N28: =+'R9 Treatment(medical supplies) '!T28 -> 0 | O28: =+'R9 Treatment(medical supplies) '!V28 -> 0 | P28: =+'R9 Treatment(medical supplies) '!X28 -> 0 | Q28: =+'R9 Treatment(medical supplies) '!Z28 -> 0 | R28: =+'R9 Treatment(medical supplies) '!AB28 -> 0 | S28: =+'R9 Treatment(medical supplies) '!AD28 -> 0
C29: Antimalarials | E29: full course | F29: 150 | G29: =+'R9 Treatment(medical supplies) '!I32 -> 150 | K29: =+'R9 Treatment(medical supplies) '!N32 -> 0 | L29: =+'R9 Treatment(medical supplies) '!P32 -> 0 | M29: =+'R9 Treatment(medical supplies) '!R32 -> 0 | N29: =+'R9 Treatment(medical supplies) '!T32 -> 0 | O29: =+'R9 Treatment(medical supplies) '!V32 -> 0 | P29: =+'R9 Treatment(medical supplies) '!X32 -> 0 | Q29: =+'R9 Treatment(medical supplies) '!Z32 -> 0 | R29: =+'R9 Treatment(medical supplies) '!AB32 -> 0 | S29: =+'R9 Treatment(medical supplies) '!AD32 -> 0
C30: Malaria tests | E30: tests | F30: 0 | G30: =+'R9 Treatment(medical supplies) '!I33 -> 0 | K30: =+'R9 Treatment(medical supplies) '!N33 -> 0 | L30: =+'R9 Treatment(medical supplies) '!P33 -> 0 | M30: =+'R9 Treatment(medical supplies) '!R33 -> 0 | N30: =+'R9 Treatment(medical supplies) '!T33 -> 0 | O30: =+'R9 Treatment(medical supplies) '!V33 -> 0 | P30: =+'R9 Treatment(medical supplies) '!X33 -> 0 | Q30: =+'R9 Treatment(medical supplies) '!Z33 -> 0 | R30: =+'R9 Treatment(medical supplies) '!AB33 -> 0 | S30: =+'R9 Treatment(medical supplies) '!AD33 -> 0
C31: Albendazole | E31: 100 mg | F31: 387 | G31: =+'R9 Treatment(medical supplies) '!I37 -> 387 | K31: =+'R9 Treatment(medical supplies) '!N37 -> 0 | L31: =+'R9 Treatment(medical supplies) '!P37 -> 0 | M31: =+'R9 Treatment(medical supplies) '!R37 -> 0 | N31: =+'R9 Treatment(medical supplies) '!T37 -> 0 | O31: =+'R9 Treatment(medical supplies) '!V37 -> 0 | P31: =+'R9 Treatment(medical supplies) '!X37 -> 0 | Q31: =+'R9 Treatment(medical supplies) '!Z37 -> 0 | R31: =+'R9 Treatment(medical supplies) '!AB37 -> 0 | S31: =+'R9 Treatment(medical supplies) '!AD37 -> 0
C32: Measles vaccine | E32: doses | F32: 155.25 | G32: =+'R9 Treatment(medical supplies) '!I38 -> 155.25 | K32: =+'R9 Treatment(medical supplies) '!N38 -> 0 | L32: =+'R9 Treatment(medical supplies) '!P38 -> 0 | M32: =+'R9 Treatment(medical supplies) '!R38 -> 0 | N32: =+'R9 Treatment(medical supplies) '!T38 -> 0 | O32: =+'R9 Treatment(medical supplies) '!V38 -> 0 | P32: =+'R9 Treatment(medical supplies) '!X38 -> 0 | Q32: =+'R9 Treatment(medical supplies) '!Z38 -> 0 | R32: =+'R9 Treatment(medical supplies) '!AB38 -> 0 | S32: =+'R9 Treatment(medical supplies) '!AD38 -> 0
C33: Measles ad syringe | E33: syringes | F33: 155.25 | G33: =+'R9 Treatment(medical supplies) '!I39 -> 155.25 | K33: =+'R9 Treatment(medical supplies) '!N39 -> 0 | L33: =+'R9 Treatment(medical supplies) '!P39 -> 0 | M33: =+'R9 Treatment(medical supplies) '!R39 -> 0 | N33: =+'R9 Treatment(medical supplies) '!T39 -> 0 | O33: =+'R9 Treatment(medical supplies) '!V39 -> 0 | P33: =+'R9 Treatment(medical supplies) '!X39 -> 0 | Q33: =+'R9 Treatment(medical supplies) '!Z39 -> 0 | R33: =+'R9 Treatment(medical supplies) '!AB39 -> 0 | S33: =+'R9 Treatment(medical supplies) '!AD39 -> 0
C34: Measles mixing syringes | E34: syringes | F34: 15.525 | G34: =+'R9 Treatment(medical supplies) '!I40 -> 15.525 | K34: =+'R9 Treatment(medical supplies) '!N40 -> 0 | L34: =+'R9 Treatment(medical supplies) '!P40 -> 0 | M34: =+'R9 Treatment(medical supplies) '!R40 -> 0 | N34: =+'R9 Treatment(medical supplies) '!T40 -> 0 | O34: =+'R9 Treatment(medical supplies) '!V40 -> 0 | P34: =+'R9 Treatment(medical supplies) '!X40 -> 0 | Q34: =+'R9 Treatment(medical supplies) '!Z40 -> 0 | R34: =+'R9 Treatment(medical supplies) '!AB40 -> 0 | S34: =+'R9 Treatment(medical supplies) '!AD40 -> 0
B36: Equipment | D36: Treatment
C37: Sets of Outpatient Care equipment | E37: new sets | F37: =+SUM(K37:S37)+G37 -> 0 | G37: =+'R10 Treatment (other supplies)'!G29 -> 0 | K37: =+'R10 Treatment (other supplies)'!I29 -> 0 | L37: =+'R10 Treatment (other supplies)'!K29 -> 0 | M37: =+'R10 Treatment (other supplies)'!M29 -> 0 | N37: =+'R10 Treatment (other supplies)'!O29 -> 0 | O37: =+'R10 Treatment (other supplies)'!Q29 -> 0 | P37: =+'R10 Treatment (other supplies)'!S29 -> 0 | Q37: =+'R10 Treatment (other supplies)'!U29 -> 0 | R37: =+'R10 Treatment (other supplies)'!W29 -> 0 | S37: =+'R10 Treatment (other supplies)'!Y29 -> 0
C38: Sets of Outpatient Care equipment | E38: replacement | F38: 2 | G38: =+'R10 Treatment (other supplies)'!G30 -> 2 | K38: =+'R10 Treatment (other supplies)'!I30 -> 0 | L38: =+'R10 Treatment (other supplies)'!K30 -> 0 | M38: =+'R10 Treatment (other supplies)'!M30 -> 0 | N38: =+'R10 Treatment (other supplies)'!O30 -> 0 | O38: =+'R10 Treatment (other supplies)'!Q30 -> 0 | P38: =+'R10 Treatment (other supplies)'!S30 -> 0 | Q38: =+'R10 Treatment (other supplies)'!U30 -> 0 | R38: =+'R10 Treatment (other supplies)'!W30 -> 0 | S38: =+'R10 Treatment (other supplies)'!Y30 -> 0
C39: Sets of Inpatient Care equipment | E39: new sets | F39: 0 | G39: =+'R10 Treatment (other supplies)'!G40 -> 0 | K39: =+'R10 Treatment (other supplies)'!I40 -> 0 | L39: =+'R10 Treatment (other supplies)'!K40 -> 0 | M39: =+'R10 Treatment (other supplies)'!M40 -> 0 | N39: =+'R10 Treatment (other supplies)'!O40 -> 0 | O39: =+'R10 Treatment (other supplies)'!Q40 -> 0 | P39: =+'R10 Treatment (other supplies)'!S40 -> 0 | Q39: =+'R10 Treatment (other supplies)'!U40 -> 0 | R39: =+'R10 Treatment (other supplies)'!W40 -> 0 | S39: =+'R10 Treatment (other supplies)'!Y40 -> 0
C40: Sets of Inpatient Care equipment | E40: replacement | F40: 1 | G40: =+'R10 Treatment (other supplies)'!G41 -> 1 | K40: =+'R10 Treatment (other supplies)'!I41 -> 0 | L40: =+'R10 Treatment (other supplies)'!K41 -> 0 | M40: =+'R10 Treatment (other supplies)'!M41 -> 0 | N40: =+'R10 Treatment (other supplies)'!O41 -> 0 | O40: =+'R10 Treatment (other supplies)'!Q41 -> 0 | P40: =+'R10 Treatment (other supplies)'!S41 -> 0 | Q40: =+'R10 Treatment (other supplies)'!U41 -> 0 | R40: =+'R10 Treatment (other supplies)'!W41 -> 0 | S40: =+'R10 Treatment (other supplies)'!Y41 -> 0
C41: Adult beds (Inpatient Care sites) | E41: beds | F41: 2 | G41: =+'R10 Treatment (other supplies)'!G84 -> 2 | K41: =+'R10 Treatment (other supplies)'!I84 -> 0 | L41: =+'R10 Treatment (other supplies)'!K84 -> 0 | M41: =+'R10 Treatment (other supplies)'!M84 -> 0 | N41: =+'R10 Treatment (other supplies)'!O84 -> 0 | O41: =+'R10 Treatment (other supplies)'!Q84 -> 0 | P41: =+'R10 Treatment (other supplies)'!S84 -> 0 | Q41: =+'R10 Treatment (other supplies)'!U84 -> 0 | R41: =+'R10 Treatment (other supplies)'!W84 -> 0 | S41: =+'R10 Treatment (other supplies)'!Y84 -> 0
C42: Beds (Inpatient Care sites) | E42: bed-days | F42: 2 | G42: =+'R10 Treatment (other supplies)'!G84 -> 2 | K42: =+'R10 Treatment (other supplies)'!I84 -> 0 | L42: =+'R10 Treatment (other supplies)'!K84 -> 0 | M42: =+'R10 Treatment (other supplies)'!M84 -> 0 | N42: =+'R10 Treatment (other supplies)'!O84 -> 0 | O42: =+'R10 Treatment (other supplies)'!Q84 -> 0 | P42: =+'R10 Treatment (other supplies)'!S84 -> 0 | Q42: =+'R10 Treatment (other supplies)'!U84 -> 0 | R42: =+'R10 Treatment (other supplies)'!W84 -> 0 | S42: =+'R10 Treatment (other supplies)'!Y84 -> 0
C43: Food for caregiver (Inpatient Care sites) | E43: meal-days | F43: 652.5 | G43: =+'R10 Treatment (other supplies)'!G79 -> 652.5 | K43: =+'R10 Treatment (other supplies)'!I79 -> 0 | L43: =+'R10 Treatment (other supplies)'!K79 -> 0 | M43: =+'R10 Treatment (other supplies)'!M79 -> 0 | N43: =+'R10 Treatment (other supplies)'!O79 -> 0 | O43: =+'R10 Treatment (other supplies)'!Q79 -> 0 | P43: =+'R10 Treatment (other supplies)'!S79 -> 0 | Q43: =+'R10 Treatment (other supplies)'!U79 -> 0 | R43: =+'R10 Treatment (other supplies)'!W79 -> 0 | S43: =+'R10 Treatment (other supplies)'!Y79 -> 0
C44: Bed-days / Inpatient Care site | E44: bed-days | F44: 652.5 | G44: =+'R10 Treatment (other supplies)'!G42 -> 652.5 | K44: =+'R10 Treatment (other supplies)'!I42 -> 0 | L44: =+'R10 Treatment (other supplies)'!K42 -> 0 | M44: =+'R10 Treatment (other supplies)'!M42 -> 0 | N44: =+'R10 Treatment (other supplies)'!O42 -> 0 | O44: =+'R10 Treatment (other supplies)'!Q42 -> 0 | P44: =+'R10 Treatment (other supplies)'!S42 -> 0 | Q44: =+'R10 Treatment (other supplies)'!U3046 -> 0 | R44: =+'R10 Treatment (other supplies)'!W42 -> 0 | S44: =+'R10 Treatment (other supplies)'!Y42 -> 0
B45: Other treatment-related supplies | D45: Treatment
C46: Bracelets | E46: bracelets | F46: =+SUM(K46:S46)+G46 -> 150 | G46: =+'R10 Treatment (other supplies)'!G33 -> 150 | K46: =+'R10 Treatment (other supplies)'!I33 -> 0 | L46: =+'R10 Treatment (other supplies)'!K33 -> 0 | M46: =+'R10 Treatment (other supplies)'!M33 -> 0 | N46: =+'R10 Treatment (other supplies)'!O33 -> 0 | O46: =+'R10 Treatment (other supplies)'!Q33 -> 0 | P46: =+'R10 Treatment (other supplies)'!S33 -> 0 | Q46: =+'R10 Treatment (other supplies)'!U33 -> 0 | R46: =+'R10 Treatment (other supplies)'!W33 -> 0 | S46: =+'R10 Treatment (other supplies)'!Y33 -> 0
C47: Hand towels | E47: rolls | F47: =+SUM(K47:S47)+G47 -> 208 | G47: =+'R10 Treatment (other supplies)'!G34 -> 208 | K47: =+'R10 Treatment (other supplies)'!I34 -> 0 | L47: =+'R10 Treatment (other supplies)'!K34 -> 0 | M47: =+'R10 Treatment (other supplies)'!M34 -> 0 | N47: =+'R10 Treatment (other supplies)'!O34 -> 0 | O47: =+'R10 Treatment (other supplies)'!Q34 -> 0 | P47: =+'R10 Treatment (other supplies)'!S34 -> 0 | Q47: =+'R10 Treatment (other supplies)'!U34 -> 0 | R47: =+'R10 Treatment (other supplies)'!W34 -> 0 | S47: =+'R10 Treatment (other supplies)'!Y34 -> 0
C48: Soap | E48: bars | F48: =+SUM(K48:S48)+G48 -> 104 | G48: =+'R10 Treatment (other supplies)'!G35 -> 104 | K48: =+'R10 Treatment (other supplies)'!I35 -> 0 | L48: =+'R10 Treatment (other supplies)'!K35 -> 0 | M48: =+'R10 Treatment (other supplies)'!M35 -> 0 | N48: =+'R10 Treatment (other supplies)'!O35 -> 0 | O48: =+'R10 Treatment (other supplies)'!Q35 -> 0 | P48: =+'R10 Treatment (other supplies)'!S35 -> 0 | Q48: =+'R10 Treatment (other supplies)'!U35 -> 0 | R48: =+'R10 Treatment (other supplies)'!W35 -> 0 | S48: =+'R10 Treatment (other supplies)'!Y35 -> 0
C49: Drinking water | E49: liter | F49: =+SUM(K49:S49)+G49 -> 104 | G49: =+'R10 Treatment (other supplies)'!G36 -> 104 | K49: =+'R10 Treatment (other supplies)'!I36 -> 0 | L49: =+'R10 Treatment (other supplies)'!K36 -> 0 | M49: =+'R10 Treatment (other supplies)'!M36 -> 0 | N49: =+'R10 Treatment (other supplies)'!O36 -> 0 | O49: =+'R10 Treatment (other supplies)'!Q36 -> 0 | P49: =+'R10 Treatment (other supplies)'!S36 -> 0 | Q49: =+'R10 Treatment (other supplies)'!U36 -> 0 | R49: =+'R10 Treatment (other supplies)'!W36 -> 0 | S49: =+'R10 Treatment (other supplies)'!Y36 -> 0
B51: Per diems and refreshments
B52: Per diems | D52: Training
C53: COW | E53: per diem | F53: =+SUM(K53:S53)+G53 -> 0 | G53: =+'R12 Training'!F83 -> 0 | K53: =+'R12 Training'!J83 -> 0 | L53: =+'R12 Training'!K83 -> 0 | M53: =+'R12 Training'!L83 -> 0 | N53: =+'R12 Training'!M83 -> 0 | O53: =+'R12 Training'!N83 -> 0 | P53: =+'R12 Training'!O83 -> 0 | Q53: =+'R12 Training'!P83 -> 0 | R53: =+'R12 Training'!Q83 -> 0 | S53: =+'R12 Training'!R83 -> 0
C54: Outpatient Care staff | F54: =+SUM(K54:S54)+G54 -> 12 | G54: =+'R12 Training'!F84 -> 12 | K54: =+'R12 Training'!J84 -> 0 | L54: =+'R12 Training'!K84 -> 0 | M54: =+'R12 Training'!L84 -> 0 | N54: =+'R12 Training'!M84 -> 0 | O54: =+'R12 Training'!N84 -> 0 | P54: =+'R12 Training'!O84 -> 0 | Q54: =+'R12 Training'!P84 -> 0 | R54: =+'R12 Training'!Q84 -> 0 | S54: =+'R12 Training'!R84 -> 0
C55: Inpatient Care staff | F55: =+SUM(K55:S55)+G55 -> 12 | G55: =+'R12 Training'!F85 -> 12 | K55: =+'R12 Training'!J85 -> 0 | L55: =+'R12 Training'!K85 -> 0 | M55: =+'R12 Training'!L85 -> 0 | N55: =+'R12 Training'!M85 -> 0 | O55: =+'R12 Training'!N85 -> 0 | P55: =+'R12 Training'!O85 -> 0 | Q55: =+'R12 Training'!P85 -> 0 | R55: =+'R12 Training'!Q85 -> 0 | S55: =+'R12 Training'!R85 -> 0
C56: Area HQ staff | F56: =+SUM(K56:S56)+G56 -> 2 | G56: =+'R12 Training'!F86 -> 2 | K56: =+'R12 Training'!J86 -> 0 | L56: =+'R12 Training'!K86 -> 0 | M56: =+'R12 Training'!L86 -> 0 | N56: =+'R12 Training'!M86 -> 0 | O56: =+'R12 Training'!N86 -> 0 | P56: =+'R12 Training'!O86 -> 0 | Q56: =+'R12 Training'!P86 -> 0 | R56: =+'R12 Training'!Q86 -> 0 | S56: =+'R12 Training'!R86 -> 0
C57: Group-Area staff | F57: =+'R6 Group-Area & Central Level'!Q31 -> 0
B58: Refreshments | D58: Training
C59: COW | E59: person-days of refreshments | F59: =+SUM(K59:S59)+G59 -> 200 | G59: =+'R12 Training'!F88 -> 200 | K59: =+'R12 Training'!J88 -> 0 | L59: =+'R12 Training'!K88 -> 0 | M59: =+'R12 Training'!L88 -> 0 | N59: =+'R12 Training'!M88 -> 0 | O59: =+'R12 Training'!N88 -> 0 | P59: =+'R12 Training'!O88 -> 0 | Q59: =+'R12 Training'!P88 -> 0 | R59: =+'R12 Training'!Q88 -> 0 | S59: =+'R12 Training'!R88 -> 0
C60: Outpatient Care staff | F60: =+SUM(K60:S60)+G60 -> 12 | G60: =+'R12 Training'!F89 -> 12 | K60: =+'R12 Training'!J89 -> 0 | L60: =+'R12 Training'!K89 -> 0 | M60: =+'R12 Training'!L89 -> 0 | N60: =+'R12 Training'!M89 -> 0 | O60: =+'R12 Training'!N89 -> 0 | P60: =+'R12 Training'!O89 -> 0 | Q60: =+'R12 Training'!P89 -> 0 | R60: =+'R12 Training'!Q89 -> 0 | S60: =+'R12 Training'!R89 -> 0
C61: Inpatient Care staff | F61: =+SUM(K61:S61)+G61 -> 12 | G61: =+'R12 Training'!F90 -> 12 | K61: =+'R12 Training'!J90 -> 0 | L61: =+'R12 Training'!K90 -> 0 | M61: =+'R12 Training'!L90 -> 0 | N61: =+'R12 Training'!M90 -> 0 | O61: =+'R12 Training'!N90 -> 0 | P61: =+'R12 Training'!O90 -> 0 | Q61: =+'R12 Training'!P90 -> 0 | R61: =+'R12 Training'!Q90 -> 0 | S61: =+'R12 Training'!R90 -> 0
C62: Area HQ staff | F62: =+SUM(K62:S62)+G62 -> 2 | G62: =+'R12 Training'!F91 -> 2 | K62: =+'R12 Training'!J91 -> 0 | L62: =+'R12 Training'!K91 -> 0 | M62: =+'R12 Training'!L91 -> 0 | N62: =+'R12 Training'!M91 -> 0 | O62: =+'R12 Training'!N91 -> 0 | P62: =+'R12 Training'!O91 -> 0 | Q62: =+'R12 Training'!P91 -> 0 | R62: =+'R12 Training'!Q91 -> 0 | S62: =+'R12 Training'!R91 -> 0
C63: Group-Area staff | F63: =+'R6 Group-Area & Central Level'!Q30 -> 0
B65: Written materials (some already included in sets of Outpatient Care and Inpatient Care equipment)
B66: Supervisory checklists | D66: Supervision
C67: COW supervision | E67: checklists | F67: =+SUM(K67:S67)+G67 -> 1200 | G67: =+'R13 Supervision'!F45 -> 1200 | K67: =+'R13 Supervision'!J45 -> 0 | L67: =+'R13 Supervision'!K45 -> 0 | M67: =+'R13 Supervision'!L45 -> 0 | N67: =+'R13 Supervision'!M45 -> 0 | O67: =+'R13 Supervision'!N45 -> 0 | P67: =+'R13 Supervision'!O45 -> 0 | Q67: =+'R13 Supervision'!P45 -> 0 | R67: =+'R13 Supervision'!Q45 -> 0 | S67: =+'R13 Supervision'!R45 -> 0
C68: Outpatient Care and Inpatient Care site supervision | E68: checklists | F68: =+SUM(K68:S68)+G68 -> 36 | G68: =+'R13 Supervision'!F39 -> 36 | K68: =+'R13 Supervision'!J39 -> 0 | L68: =+'R13 Supervision'!K39 -> 0 | M68: =+'R13 Supervision'!L39 -> 0 | N68: =+'R13 Supervision'!M39 -> 0 | O68: =+'R13 Supervision'!N39 -> 0 | P68: =+'R13 Supervision'!O39 -> 0 | Q68: =+'R13 Supervision'!P39 -> 0 | R68: =+'R13 Supervision'!Q39 -> 0 | S68: =+'R13 Supervision'!R39 -> 0
C69: Area HQ supervision | E69: checklists | F69: =+SUM(K69:S69)+G69 -> 4 | G69: =+'R13 Supervision'!F50 -> 4 | K69: =+'R13 Supervision'!J50 -> 0 | L69: =+'R13 Supervision'!K50 -> 0 | M69: =+'R13 Supervision'!L50 -> 0 | N69: =+'R13 Supervision'!M50 -> 0 | O69: =+'R13 Supervision'!N50 -> 0 | P69: =+'R13 Supervision'!O50 -> 0 | Q69: =+'R13 Supervision'!P50 -> 0 | R69: =+'R13 Supervision'!Q50 -> 0 | S69: =+'R13 Supervision'!R50 -> 0
B70: Stock forms | D70: Supply logistics
C71: At Area and Outpatient Care and Inpatient Care stores | F71: =+SUM(G71:S71) -> 48 | G71: =+'R11 Supply Logistics'!F42+'R11 Supply Logistics'!F43+'R11 Supply Logistics'!F44 -> 48 | K71: =+'R11 Supply Logistics'!J42+'R11 Supply Logistics'!J43+'R11 Supply Logistics'!J44 -> 0 | L71: =+'R11 Supply Logistics'!K42+'R11 Supply Logistics'!K43+'R11 Supply Logistics'!K44 -> 0 | M71: =+'R11 Supply Logistics'!L42+'R11 Supply Logistics'!L43+'R11 Supply Logistics'!L44 -> 0 | N71: =+'R11 Supply Logistics'!M42+'R11 Supply Logistics'!M43+'R11 Supply Logistics'!M44 -> 0 | O71: =+'R11 Supply Logistics'!N42+'R11 Supply Logistics'!N43+'R11 Supply Logistics'!N44 -> 0 | P71: =+'R11 Supply Logistics'!O42+'R11 Supply Logistics'!O43+'R11 Supply Logistics'!O44 -> 0 | Q71: =+'R11 Supply Logistics'!P42+'R11 Supply Logistics'!P43+'R11 Supply Logistics'!P44 -> 0 | R71: =+'R11 Supply Logistics'!Q42+'R11 Supply Logistics'!Q43+'R11 Supply Logistics'!Q44 -> 0 | S71: =+'R11 Supply Logistics'!R42+'R11 Supply Logistics'!R43+'R11 Supply Logistics'!R44 -> 0
C72: At Group-Area and Central level | F72: =+'R6 Group-Area & Central Level'!Q38 -> 12
B73: Training materials and job aids | D73: Training
C74: COW training | E74: training set | F74: =+SUM(K74:S74)+G74 -> 100 | G74: =+'R12 Training'!F73 -> 100 | K74: =+'R12 Training'!J73 -> 0 | L74: =+'R12 Training'!K73 -> 0 | M74: =+'R12 Training'!L73 -> 0 | N74: =+'R12 Training'!M73 -> 0 | O74: =+'R12 Training'!N73 -> 0 | P74: =+'R12 Training'!O73 -> 0 | Q74: =+'R12 Training'!P73 -> 0 | R74: =+'R12 Training'!Q73 -> 0 | S74: =+'R12 Training'!R73 -> 0
C75: Outpatient Care training | E75: training set | F75: =+SUM(K75:S75)+G75 -> 6 | G75: =+'R12 Training'!F74 -> 6 | K75: =+'R12 Training'!J74 -> 0 | L75: =+'R12 Training'!K74 -> 0 | M75: =+'R12 Training'!L74 -> 0 | N75: =+'R12 Training'!M74 -> 0 | O75: =+'R12 Training'!N74 -> 0 | P75: =+'R12 Training'!O74 -> 0 | Q75: =+'R12 Training'!P74 -> 0 | R75: =+'R12 Training'!Q74 -> 0 | S75: =+'R12 Training'!R74 -> 0
C76: Inpatient Care training | E76: training set | F76: =+SUM(K76:S76)+G76 -> 2 | G76: =+'R12 Training'!F75 -> 2 | K76: =+'R12 Training'!J75 -> 0 | L76: =+'R12 Training'!K75 -> 0 | M76: =+'R12 Training'!L75 -> 0 | N76: =+'R12 Training'!M75 -> 0 | O76: =+'R12 Training'!N75 -> 0 | P76: =+'R12 Training'!O75 -> 0 | Q76: =+'R12 Training'!P75 -> 0 | R76: =+'R12 Training'!Q75 -> 0 | S76: =+'R12 Training'!R75 -> 0
C77: Area HQ training | E77: training set | F77: =+SUM(K77:S77)+G77 -> 2 | G77: =+'R12 Training'!F76 -> 2 | K77: =+'R12 Training'!J76 -> 0 | L77: =+'R12 Training'!K76 -> 0 | M77: =+'R12 Training'!L76 -> 0 | N77: =+'R12 Training'!M76 -> 0 | O77: =+'R12 Training'!N76 -> 0 | P77: =+'R12 Training'!O76 -> 0 | Q77: =+'R12 Training'!P76 -> 0 | R77: =+'R12 Training'!Q76 -> 0 | S77: =+'R12 Training'!R76 -> 0
C78: Group-Area HQ training | E78: training set | F78: =+'R6 Group-Area & Central Level'!Q28+'R6 Group-Area & Central Level'!Q29 -> 0
B79: Recording sheets
C80: Treatment cards (Outpatient Care and Inpatient Care) | E80: cards | F80: =+SUM(K80:S80)+G80 -> 150 | G80: =+'R10 Treatment (other supplies)'!G31 -> 150 | K80: =+'R10 Treatment (other supplies)'!I31 -> 0 | L80: =+'R10 Treatment (other supplies)'!K31 -> 0 | M80: =+'R10 Treatment (other supplies)'!M31 -> 0 | N80: =+'R10 Treatment (other supplies)'!O31 -> 0 | O80: =+'R10 Treatment (other supplies)'!Q31 -> 0 | P80: =+'R10 Treatment (other supplies)'!S31 -> 0 | Q80: =+'R10 Treatment (other supplies)'!U31 -> 0 | R80: =+'R10 Treatment (other supplies)'!W31 -> 0 | S80: =+'R10 Treatment (other supplies)'!Y31 -> 0
C81: RUTF ration cards | E81: cards | F81: =+SUM(K81:S81)+G81 -> 150 | G81: =+'R10 Treatment (other supplies)'!G32 -> 150 | K81: =+'R10 Treatment (other supplies)'!I32 -> 0 | L81: =+'R10 Treatment (other supplies)'!K32 -> 0 | M81: =+'R10 Treatment (other supplies)'!M32 -> 0 | N81: =+'R10 Treatment (other supplies)'!O32 -> 0 | O81: =+'R10 Treatment (other supplies)'!Q32 -> 0 | P81: =+'R10 Treatment (other supplies)'!S32 -> 0 | Q81: =+'R10 Treatment (other supplies)'!U32 -> 0 | R81: =+'R10 Treatment (other supplies)'!W32 -> 0 | S81: =+'R10 Treatment (other supplies)'!Y32 -> 0
C82: Monthly reporting sheets | E82: sheets | F82: =+'R6 Group-Area & Central Level'!$Q$45 -> 0

Sheet R4 Space
A2: Return to Contents | C2: R4: Annual Space Requirements for CMAM
C4: Number of Areas included | D4: =+'D2 Scale'!$I$8 -> 1 | E4: (taken from Worksheet 2)
C5: This Worksheet shows (for the year chosen) the amount of space required to implement CMAM.
F7: =+IF('D1 Background'!$G$31<1,0,1) -> 1 | J7: =+IF('D1 Background'!$G$31<2,0,1) -> 0 | K7: =+IF('D1 Background'!$G$31<3,0,1) -> 0 | L7: =+IF('D1 Background'!$G$31<4,0,1) -> 0 | M7: =+IF('D1 Background'!$G$31<5,0,1) -> 0 | N7: =+IF('D1 Background'!$G$31<6,0,1) -> 0 | O7: =+IF('D1 Background'!$G$31<7,0,1) -> 0 | P7: =+IF('D1 Background'!$G$31<8,0,1) -> 0 | Q7: =+IF('D1 Background'!$G$31<9,0,1) -> 0 | R7: =+IF('D1 Background'!$G$31<10,0,1) -> 0
C8: =+IF('D1 Background'!$H$11="","",'D1 Background'!$H$11) -> Ghana
C9: =+'D9 Time-dependent'!$I$6 -> 2011
F11: Area 1 | J11: Area 2 | K11: Area 3 | L11: Area 4 | M11: Area 5 | N11: Area 6 | O11: Area 7 | P11: Area 8 | Q11: Area 9 | R11: Area 10
D12: ='D2 Scale'!$C$30 -> District | E12: TOTAL (Areas, Group-Areas, and Central) | F12: =+IF('D2 Scale'!$C$31="","",'D2 Scale'!$C$31) -> Ashiedu Keteke | J12: =+IF('D2 Scale'!$C$36="","",'D2 Scale'!$C$36) ->  | K12: =+IF('D2 Scale'!$C$41="","",'D2 Scale'!$C$41) ->  | L12: =+IF('D2 Scale'!$C$46="","",'D2 Scale'!$C$46) ->  | M12: =+IF('D2 Scale'!$C$51="","",'D2 Scale'!$C$51) ->  | N12: =+IF('D2 Scale'!$C$56="","",'D2 Scale'!$C$56) ->  | O12: =+IF('D2 Scale'!$C$61="","",'D2 Scale'!$C$61) ->  | P12: =+IF('D2 Scale'!$C$66="","",'D2 Scale'!$C$66) ->  | Q12: =+IF('D2 Scale'!$C$71="","",'D2 Scale'!$C$71) ->  | R12: =+IF('D2 Scale'!$C$76="","",'D2 Scale'!$C$76) -> 
D13: =+'D2 Scale'!$D$30 -> Region | F13: =+IF('D2 Scale'!$D$31="","",'D2 Scale'!$D$31) -> Greater Accra | J13: =+IF('D2 Scale'!$D$36="","",'D2 Scale'!$D$36) ->  | K13: =+IF('D2 Scale'!$D$41="","",'D2 Scale'!$D$41) ->  | L13: =+IF('D2 Scale'!$D$46="","",'D2 Scale'!$D$46) ->  | M13: =+IF('D2 Scale'!$D$51="","",'D2 Scale'!$D$51) ->  | N13: =+IF('D2 Scale'!$D$56="","",'D2 Scale'!$D$56) ->  | O13: =+IF('D2 Scale'!$D$61="","",'D2 Scale'!$D$61) ->  | P13: =+IF('D2 Scale'!$D$66="","",'D2 Scale'!$D$66) ->  | Q13: =+IF('D2 Scale'!$D$71="","",'D2 Scale'!$D$71) ->  | R13: =+IF('D2 Scale'!$D$76="","",'D2 Scale'!$D$76) -> 
B15: Activity | C15: Location | D15: Units
B16: Storage of therapeutic food
C17: National headquarters | D17: m3 | E17: =+'R6 Group-Area & Central Level'!Q39 -> 0
C18: Group-Area HQ (minimum) | D18: m3 | E18: =+'R6 Group-Area & Central Level'!Q36 -> 0
C19: Area HQ (minimum) | D19: m3 | E19: =+F19*$F$7+$J$7*J19+K19*$K$7+$L$7*L19+M19*$M$7+$N$7*N19+O19*$O$7+$P$7*P19 -> 0.6090235443 | F19: =+'R11 Supply Logistics'!F26 -> 0.6090235443 | J19: =+'R11 Supply Logistics'!J26 -> 0 | K19: =+'R11 Supply Logistics'!K26 -> 0 | L19: =+'R11 Supply Logistics'!L26 -> 0 | M19: =+'R11 Supply Logistics'!M26 -> 0 | N19: =+'R11 Supply Logistics'!N26 -> 0 | O19: =+'R11 Supply Logistics'!O26 -> 0 | P19: =+'R11 Supply Logistics'!P26 -> 0 | Q19: =+'R11 Supply Logistics'!Q26 -> 0 | R19: =+'R11 Supply Logistics'!R26 -> 0
C20: Total of Outpatient Care sites (minimum) | D20: m3 | E20: =+F20*$F$7+$J$7*J20+K20*$K$7+$L$7*L20+M20*$M$7+$N$7*N20+O20*$O$7+$P$7*P20 -> 0.5439713125 | F20: =+'R11 Supply Logistics'!F27 -> 0.5439713125 | J20: =+'R11 Supply Logistics'!J27 -> 0 | K20: =+'R11 Supply Logistics'!K27 -> 0 | L20: =+'R11 Supply Logistics'!L27 -> 0 | M20: =+'R11 Supply Logistics'!M27 -> 0 | N20: =+'R11 Supply Logistics'!N27 -> 0 | O20: =+'R11 Supply Logistics'!O27 -> 0 | P20: =+'R11 Supply Logistics'!P27 -> 0 | Q20: =+'R11 Supply Logistics'!Q27 -> 0 | R20: =+'R11 Supply Logistics'!R27 -> 0
C21: Total of Inpatient Care sites (minimum) | D21: m3 | E21: =+F21*$F$7+$J$7*J21+K21*$K$7+$L$7*L21+M21*$M$7+$N$7*N21+O21*$O$7+$P$7*P21 -> 0.06505223184 | F21: =+'R11 Supply Logistics'!F28 -> 0.06505223184 | J21: =+'R11 Supply Logistics'!J28 -> 0 | K21: =+'R11 Supply Logistics'!K28 -> 0 | L21: =+'R11 Supply Logistics'!L28 -> 0 | M21: =+'R11 Supply Logistics'!M28 -> 0 | N21: =+'R11 Supply Logistics'!N28 -> 0 | O21: =+'R11 Supply Logistics'!O28 -> 0 | P21: =+'R11 Supply Logistics'!P28 -> 0 | Q21: =+'R11 Supply Logistics'!Q28 -> 0 | R21: =+'R11 Supply Logistics'!R28 -> 0
C22: Average Outpatient Care site | D22: m3 | F22: =+'R11 Supply Logistics'!F103 -> 0.2719856562 | J22: =+'R11 Supply Logistics'!J103 -> 0 | K22: =+'R11 Supply Logistics'!K103 -> 0 | L22: =+'R11 Supply Logistics'!L103 -> 0 | M22: =+'R11 Supply Logistics'!M103 -> 0 | N22: =+'R11 Supply Logistics'!N103 -> 0 | O22: =+'R11 Supply Logistics'!O103 -> 0 | P22: =+'R11 Supply Logistics'!P103 -> 0 | Q22: =+'R11 Supply Logistics'!Q103 -> 0 | R22: =+'R11 Supply Logistics'!R103 -> 0
C23: Average Inpatient Care site | D23: m3 | F23: =+'R11 Supply Logistics'!F104 -> 0.06505223184 | J23: =+'R11 Supply Logistics'!J104 -> 0 | K23: =+'R11 Supply Logistics'!K104 -> 0 | L23: =+'R11 Supply Logistics'!L104 -> 0 | M23: =+'R11 Supply Logistics'!M104 -> 0 | N23: =+'R11 Supply Logistics'!N104 -> 0 | O23: =+'R11 Supply Logistics'!O104 -> 0 | P23: =+'R11 Supply Logistics'!P104 -> 0 | Q23: =+'R11 Supply Logistics'!Q104 -> 0 | R23: =+'R11 Supply Logistics'!R104 -> 0
B25: Training
C26: At Central level for training of Group-Area HQ staff | D26: training room-days | E26: =+'R6 Group-Area & Central Level'!Q27 -> 0
C27: At Group-Area HQ for training of Area HQ staff | D27: training room-days | E27: =+'R6 Group-Area & Central Level'!Q19 -> 0
C28: At Area HQ for training of Outpatient Care and Inpatient Care health care providers | D28: training room-days | E28: =+F28*$F$7+$J$7*J28+K28*$K$7+$L$7*L28+M28*$M$7+$N$7*N28+O28*$O$7+$P$7*P28 -> 8 | F28: =+'R12 Training'!F69+'R12 Training'!F70 -> 8 | J28: =+'R12 Training'!J69+'R12 Training'!J70 -> 0 | K28: =+'R12 Training'!K69+'R12 Training'!K70 -> 0 | L28: =+'R12 Training'!L69+'R12 Training'!L70 -> 0 | M28: =+'R12 Training'!M69+'R12 Training'!M70 -> 0 | N28: =+'R12 Training'!N69+'R12 Training'!N70 -> 0 | O28: =+'R12 Training'!O69+'R12 Training'!O70 -> 0 | P28: =+'R12 Training'!P69+'R12 Training'!P70 -> 0 | Q28: =+'R12 Training'!Q69+'R12 Training'!Q70 -> 0 | R28: =+'R12 Training'!R69+'R12 Training'!R70 -> 0
C29: At Outpatient Care sites for training of COWs | D29: training room-days | E29: =+F29*$F$7+$J$7*J29+K29*$K$7+$L$7*L29+M29*$M$7+$N$7*N29+O29*$O$7+$P$7*P29 -> 12 | F29: =+'R12 Training'!F68 -> 12 | J29: =+'R12 Training'!J68 -> 0 | K29: =+'R12 Training'!K68 -> 0 | L29: =+'R12 Training'!L68 -> 0 | M29: =+'R12 Training'!M68 -> 0 | N29: =+'R12 Training'!N68 -> 0 | O29: =+'R12 Training'!O68 -> 0 | P29: =+'R12 Training'!P68 -> 0 | Q29: =+'R12 Training'!Q68 -> 0 | R29: =+'R12 Training'!R68 -> 0
B32: Outpatient Care sessions
C33: At all Outpatient Care sites | D33: session room-days | E33: =+F33*$F$7+$J$7*J33+K33*$K$7+$L$7*L33+M33*$M$7+$N$7*N33+O33*$O$7+$P$7*P33 -> 52 | F33: =+'R8 Treatment (manpower&space)'!F93 -> 52 | J33: =+'R8 Treatment (manpower&space)'!J92 -> 0 | K33: =+'R8 Treatment (manpower&space)'!K92 -> 0 | L33: =+'R8 Treatment (manpower&space)'!L92 -> 0 | M33: =+'R8 Treatment (manpower&space)'!M92 -> 0 | N33: =+'R8 Treatment (manpower&space)'!N92 -> 0 | O33: =+'R8 Treatment (manpower&space)'!O92 -> 0 | P33: =+'R8 Treatment (manpower&space)'!P92 -> 0 | Q33: =+'R8 Treatment (manpower&space)'!Q92 -> 0 | R33: =+'R8 Treatment (manpower&space)'!R92 -> 0
D34: m2/year | E34: =+SUM(F34:R34) -> 4.313461538 | F34: =+'R8 Treatment (manpower&space)'!F36 -> 4.313461538 | J34: =+'R8 Treatment (manpower&space)'!J36 -> 0 | K34: =+'R8 Treatment (manpower&space)'!K36 -> 0 | L34: =+'R8 Treatment (manpower&space)'!L36 -> 0 | M34: =+'R8 Treatment (manpower&space)'!M36 -> 0 | N34: =+'R8 Treatment (manpower&space)'!N36 -> 0 | O34: =+'R8 Treatment (manpower&space)'!O36 -> 0 | P34: =+'R8 Treatment (manpower&space)'!P36 -> 0 | Q34: =+'R8 Treatment (manpower&space)'!Q36 -> 0 | R34: =+'R8 Treatment (manpower&space)'!R36 -> 0
C35: (At average Outpatient Care site) | F35: =+IF('R8 Treatment (manpower&space)'!F78=0,0,F33/'R8 Treatment (manpower&space)'!F78) -> 26 | J35: =+IF('R8 Treatment (manpower&space)'!J78=0,0,J33/'R8 Treatment (manpower&space)'!J78) -> 0 | K35: =+IF('R8 Treatment (manpower&space)'!K78=0,0,K33/'R8 Treatment (manpower&space)'!K78) -> 0 | L35: =+IF('R8 Treatment (manpower&space)'!L78=0,0,L33/'R8 Treatment (manpower&space)'!L78) -> 0 | M35: =+IF('R8 Treatment (manpower&space)'!M78=0,0,M33/'R8 Treatment (manpower&space)'!M78) -> 0 | N35: =+IF('R8 Treatment (manpower&space)'!N78=0,0,N33/'R8 Treatment (manpower&space)'!N78) -> 0 | O35: =+IF('R8 Treatment (manpower&space)'!O78=0,0,O33/'R8 Treatment (manpower&space)'!O78) -> 0 | P35: =+IF('R8 Treatment (manpower&space)'!P78=0,0,P33/'R8 Treatment (manpower&space)'!P78) -> 0 | Q35: =+IF('R8 Treatment (manpower&space)'!Q78=0,0,Q33/'R8 Treatment (manpower&space)'!Q78) -> 0 | R35: =+IF('R8 Treatment (manpower&space)'!R78=0,0,R33/'R8 Treatment (manpower&space)'!R78) -> 0
B37: Inpatient Care
C38: At all Inpatient Care sites | D38: bed-days | E38: =+F38*$F$7+$J$7*J38+K38*$K$7+$L$7*L38+M38*$M$7+$N$7*N38+O38*$O$7+$P$7*P38 -> 652.5 | F38: =+'R10 Treatment (other supplies)'!G42 -> 652.5 | J38: =+'R10 Treatment (other supplies)'!K42 -> 0 | K38: =+'R10 Treatment (other supplies)'!L42 -> 0 | L38: =+'R10 Treatment (other supplies)'!M42 -> 0 | M38: =+'R10 Treatment (other supplies)'!N42 -> 0 | N38: =+'R10 Treatment (other supplies)'!O42 -> 0 | O38: =+'R10 Treatment (other supplies)'!P42 -> 0 | P38: =+'R10 Treatment (other supplies)'!Q42 -> 0 | Q38: =+'R10 Treatment (other supplies)'!R42 -> 0 | R38: =+'R10 Treatment (other supplies)'!S42 -> 0
D39: m2/year | E39: =+SUM(F39:R39) -> 19 | F39: =+'R8 Treatment (manpower&space)'!F37 -> 19 | J39: =+'R8 Treatment (manpower&space)'!J37 -> 0 | K39: =+'R8 Treatment (manpower&space)'!K37 -> 0 | L39: =+'R8 Treatment (manpower&space)'!L37 -> 0 | M39: =+'R8 Treatment (manpower&space)'!M37 -> 0 | N39: =+'R8 Treatment (manpower&space)'!N37 -> 0 | O39: =+'R8 Treatment (manpower&space)'!O37 -> 0 | P39: =+'R8 Treatment (manpower&space)'!P37 -> 0 | Q39: =+'R8 Treatment (manpower&space)'!Q37 -> 0 | R39: =+'R8 Treatment (manpower&space)'!R37 -> 0

Sheet R5 Financial Summary
A2: Return to Contents | C2: R5: Financial Summary
C4: This Worksheet shows (for the year chosen) the financial cost to implement CMAM. It is broken down by Area and by types of activities. A direct link is provided to those worksheets that are the source of the data.
D7: Hidden factors to prevent inclusion of non-Areas | F7: =+IF('D1 Background'!$G$31<1,0,1) -> 1 | G7: =+IF('D1 Background'!$G$31<2,0,1) -> 0 | H7: =+IF('D1 Background'!$G$31<3,0,1) -> 0 | I7: =+IF('D1 Background'!$G$31<4,0,1) -> 0 | J7: =+IF('D1 Background'!$G$31<5,0,1) -> 0 | K7: =+IF('D1 Background'!$G$31<6,0,1) -> 0 | L7: =+IF('D1 Background'!$G$31<7,0,1) -> 0 | M7: =+IF('D1 Background'!$G$31<8,0,1) -> 0 | N7: =+IF('D1 Background'!$G$31<9,0,1) -> 0 | O7: =+IF('D1 Background'!$G$31<10,0,1) -> 0
C8: =+IF('D1 Background'!$H$11="","",'D1 Background'!$H$11) -> Ghana
C9: =+'D9 Time-dependent'!$I$6 -> 2011 | F9: Annual total costs of the CMAM service/program
F10: Base year for prices and currency: | K10: =+IF('D1 Background'!$H$14="","",'D1 Background'!$H$14) -> 2010 | L10: =+IF('D1 Background'!$H$14="","",'D1 Background'!$H$14) -> 2010 | M10: =+IF('D1 Background'!$H$13="","",'D1 Background'!$H$13) -> Cedi | N10: =+IF('D1 Background'!$H$13="","",'D1 Background'!$H$13) -> Cedi | O10: =+IF('D1 Background'!$H$13="","",'D1 Background'!$H$13) -> Cedi
F11: Area 1 | G11: Area 2 | H11: Area 3 | I11: Area 4 | J11: Area 5 | K11: Area 6 | L11: Area 7 | M11: Area 8 | N11: Area 9 | O11: Area 10 | P11: Total Area level | Q11: Group-Area & Central level | R11: Area, Group-Area and Central level total
C12: Activities | E12: =+'R7 Area HQ Management'!E13 -> District | F12: =+IF('D2 Scale'!$C$31="","",'D2 Scale'!$C$31) -> Ashiedu Keteke | G12: =+IF('D2 Scale'!$C$36="","",'D2 Scale'!$C$36) ->  | H12: =+IF('D2 Scale'!$C$41="","",'D2 Scale'!$C$41) ->  | I12: =+IF('D2 Scale'!$C$46="","",'D2 Scale'!$C$46) ->  | J12: =+IF('D2 Scale'!$C$51="","",'D2 Scale'!$C$51) ->  | K12: =+IF('D2 Scale'!$C$56="","",'D2 Scale'!$C$56) ->  | L12: =+IF('D2 Scale'!$C$61="","",'D2 Scale'!$C$61) ->  | M12: =+IF('D2 Scale'!$C$66="","",'D2 Scale'!$C$66) ->  | N12: =+IF('D2 Scale'!$C$71="","",'D2 Scale'!$C$71) ->  | O12: =+IF('D2 Scale'!C76="","",'D2 Scale'!$C$76) -> 
E13: =+'R7 Area HQ Management'!E14 -> Region | F13: =+IF('D2 Scale'!$D$31="","",'D2 Scale'!$D$31) -> Greater Accra | G13: =+IF('D2 Scale'!$D$36="","",'D2 Scale'!$D$36) ->  | H13: =+IF('D2 Scale'!$D$41="","",'D2 Scale'!$D$41) ->  | I13: =+IF('D2 Scale'!$D$46="","",'D2 Scale'!$D$46) ->  | J13: =+IF('D2 Scale'!$D$51="","",'D2 Scale'!$D$51) ->  | K13: =+IF('D2 Scale'!$D$56="","",'D2 Scale'!$D$56) ->  | L13: =+IF('D2 Scale'!$D$61="","",'D2 Scale'!$D$61) ->  | M13: =+IF('D2 Scale'!$D$66="","",'D2 Scale'!$D$66) ->  | N13: =+IF('D2 Scale'!$D$71="","",'D2 Scale'!$D$71) ->  | O13: =+IF('D2 Scale'!$D76="","",'D2 Scale'!$D$76) -> 
D14: Source (Worksheet)
C15: Central and Group-Area activities (subtotal) | D15: R6 | Q15: =+Q16+Q17+Q18 -> 8401.2 | R15: =+Q15+P15 -> 8401.2
C16: Management | Q16: =+'R6 Group-Area & Central Level'!S52 -> 7200 | R16: =+Q16+P16 -> 7200
C17: Training | Q17: =+'R6 Group-Area & Central Level'!S32 -> 0 | R17: 0
C18: Supply logistics | Q18: =+'R6 Group-Area & Central Level'!S40 -> 1201.2 | R18: 1201.2
C20: Area HQ management | D20: R7 | F20: =+'R7 Area HQ Management'!F23 -> 2658.461538 | G20: =+'R7 Area HQ Management'!J23 -> 0 | H20: =+'R7 Area HQ Management'!K23 -> 0 | I20: =+'R7 Area HQ Management'!L23 -> 0 | J20: =+'R7 Area HQ Management'!M23 -> 0 | K20: =+'R7 Area HQ Management'!N23 -> 0 | L20: =+'R7 Area HQ Management'!O23 -> 0 | M20: =+'R7 Area HQ Management'!P23 -> 0 | N20: =+'R7 Area HQ Management'!Q23 -> 0 | O20: =+'R7 Area HQ Management'!R23 -> 0 | P20: =+F20*$F$7+$G$7*G20+H20*$H$7+$I$7*I20+J20*$J$7+$K$7*K20+L20*$L$7+$M$7*M20+N20*$N$7+$O$7*O20 -> 2658.461538 | R20: 2658.461538
C22: Treatment (subtotal) | F22: =+SUM(F23:F27) -> 40709.60365 | G22: =+SUM(G23:G27) -> 0 | H22: 0 | I22: 0 | J22: 0 | K22: 0 | L22: 0 | M22: 0 | N22: 0 | O22: 0 | P22: =+F22*$F$7+$G$7*G22+H22*$H$7+$I$7*I22+J22*$J$7+$K$7*K22+L22*$L$7+$M$7*M22+N22*$N$7+$O$7*O22 -> 40709.60365 | R22: 40709.60365
C23: Manpower | D23: R8 | F23: =+'R8 Treatment (manpower&space)'!F22 -> 25611.34615 | G23: =+'R8 Treatment (manpower&space)'!J22 -> 0 | H23: =+'R8 Treatment (manpower&space)'!K22 -> 0 | I23: =+'R8 Treatment (manpower&space)'!L22 -> 0 | J23: =+'R8 Treatment (manpower&space)'!M22 -> 0 | K23: =+'R8 Treatment (manpower&space)'!N22 -> 0 | L23: =+'R8 Treatment (manpower&space)'!O22 -> 0 | M23: =+'R8 Treatment (manpower&space)'!P22 -> 0 | N23: =+'R8 Treatment (manpower&space)'!Q22 -> 0 | O23: =+'R8 Treatment (manpower&space)'!R22 -> 0 | P23: 25611.34615 | R23: 25611.34615
C24: Medical supplies | D24: R9 | F24: =+'R9 Treatment(medical supplies) '!I24 -> 1310.94 | G24: =+'R9 Treatment(medical supplies) '!N24 -> 0 | H24: =+'R9 Treatment(medical supplies) '!P24 -> 0 | I24: =+'R9 Treatment(medical supplies) '!R24 -> 0 | J24: =+'R9 Treatment(medical supplies) '!T24 -> 0 | K24: =+'R9 Treatment(medical supplies) '!V24 -> 0 | L24: =+'R9 Treatment(medical supplies) '!X24 -> 0 | M24: =+'R9 Treatment(medical supplies) '!Z24 -> 0 | N24: =+'R9 Treatment(medical supplies) '!AB24 -> 0 | O24: =+'R9 Treatment(medical supplies) '!AD24 -> 0 | P24: 1310.94 | R24: 1310.94
C25: Therapeutic food | D25: R10 | F25: =+'R10 Treatment (other supplies)'!G18+'R10 Treatment (other supplies)'!G19 -> 12426.7275 | G25: =+'R10 Treatment (other supplies)'!I18+'R10 Treatment (other supplies)'!I19 -> 0 | H25: =+'R10 Treatment (other supplies)'!K18+'R10 Treatment (other supplies)'!K19 -> 0 | I25: =+'R10 Treatment (other supplies)'!M18+'R10 Treatment (other supplies)'!M19 -> 0 | J25: =+'R10 Treatment (other supplies)'!O18+'R10 Treatment (other supplies)'!O19 -> 0 | K25: =+'R10 Treatment (other supplies)'!Q18+'R10 Treatment (other supplies)'!Q19 -> 0 | L25: =+'R10 Treatment (other supplies)'!S18+'R10 Treatment (other supplies)'!S19 -> 0 | M25: =+'R10 Treatment (other supplies)'!U18+'R10 Treatment (other supplies)'!U19 -> 0 | N25: =+'R10 Treatment (other supplies)'!W18+'R10 Treatment (other supplies)'!W19 -> 0 | O25: =+'R10 Treatment (other supplies)'!W18+'R10 Treatment (other supplies)'!W19 -> 0 | P25: 12426.7275 | R25: 12426.7275
C26: Other supplies | D26: R10 | F26: =+'R10 Treatment (other supplies)'!G20+'R10 Treatment (other supplies)'!G21 -> 1360.59 | G26: =+'R10 Treatment (other supplies)'!I20+'R10 Treatment (other supplies)'!I21 -> 0 | H26: =+'R10 Treatment (other supplies)'!K20+'R10 Treatment (other supplies)'!K21 -> 0 | I26: =+'R10 Treatment (other supplies)'!M20+'R10 Treatment (other supplies)'!M21 -> 0 | J26: =+'R10 Treatment (other supplies)'!O20+'R10 Treatment (other supplies)'!O21 -> 0 | K26: =+'R10 Treatment (other supplies)'!Q20+'R10 Treatment (other supplies)'!Q21 -> 0 | L26: =+'R10 Treatment (other supplies)'!S20+'R10 Treatment (other supplies)'!S21 -> 0 | M26: =+'R10 Treatment (other supplies)'!U20+'R10 Treatment (other supplies)'!U21 -> 0 | N26: =+'R10 Treatment (other supplies)'!W20+'R10 Treatment (other supplies)'!W21 -> 0 | O26: =+'R10 Treatment (other supplies)'!W20+'R10 Treatment (other supplies)'!W21 -> 0 | P26: 1360.59 | R26: 1360.59
C27: Space | D27: R8 | F27: =+'R8 Treatment (manpower&space)'!F26 -> 0 | G27: =+'R8 Treatment (manpower&space)'!J26 -> 0 | H27: =+'R8 Treatment (manpower&space)'!K26 -> 0 | I27: =+'R8 Treatment (manpower&space)'!L26 -> 0 | J27: =+'R8 Treatment (manpower&space)'!M26 -> 0 | K27: =+'R8 Treatment (manpower&space)'!N26 -> 0 | L27: =+'R8 Treatment (manpower&space)'!O26 -> 0 | M27: =+'R8 Treatment (manpower&space)'!P26 -> 0 | N27: =+'R8 Treatment (manpower&space)'!Q26 -> 0 | O27: =+'R8 Treatment (manpower&space)'!R26 -> 0 | P27: =+F27*F7+G7*G27+H27*H7+I7*I27+J27*J7+K7*K27+L27*L7+M7*M27+N27*N7+O7*O27 -> 0 | R27: 0
C29: Supply logistics | D29: R11 | F29: =+'R11 Supply Logistics'!F21 -> 5239.165385 | G29: =+'R11 Supply Logistics'!J21 -> 0 | H29: =+'R11 Supply Logistics'!K21 -> 0 | I29: =+'R11 Supply Logistics'!L21 -> 0 | J29: =+'R11 Supply Logistics'!M21 -> 0 | K29: =+'R11 Supply Logistics'!N21 -> 0 | L29: =+'R11 Supply Logistics'!O21 -> 0 | M29: =+'R11 Supply Logistics'!P21 -> 0 | N29: =+'R11 Supply Logistics'!Q21 -> 0 | O29: =+'R11 Supply Logistics'!R21 -> 0 | P29: 5239.165385 | R29: 5239.165385
C31: Training | D31: R12 | F31: =+'R12 Training'!F53 -> 15345.23077 | G31: =+'R12 Training'!J53 -> 0 | H31: =+'R12 Training'!K53 -> 0 | I31: =+'R12 Training'!L53 -> 0 | J31: =+'R12 Training'!M53 -> 0 | K31: =+'R12 Training'!N53 -> 0 | L31: =+'R12 Training'!O53 -> 0 | M31: =+'R12 Training'!P53 -> 0 | N31: =+'R12 Training'!Q53 -> 0 | O31: =+'R12 Training'!R53 -> 0 | P31: 15345.23077 | R31: 15345.23077
C33: Supervision | D33: R13 | F33: =+'R13 Supervision'!F31 -> 30592.84615 | G33: =+'R13 Supervision'!J31 -> 0 | H33: =+'R13 Supervision'!K31 -> 0 | I33: =+'R13 Supervision'!L31 -> 0 | J33: =+'R13 Supervision'!M31 -> 0 | K33: =+'R13 Supervision'!N31 -> 0 | L33: =+'R13 Supervision'!O31 -> 0 | M33: =+'R13 Supervision'!P31 -> 0 | N33: =+'R13 Supervision'!Q31 -> 0 | O33: =+'R13 Supervision'!R31 -> 0 | P33: 30592.84615 | R33: 30592.84615
C35: Community outreach | D35: R14 | F35: =+'R14 Community Outreach'!F25 -> 30738.46154 | G35: =+'R14 Community Outreach'!J25 -> 0 | H35: =+'R14 Community Outreach'!K25 -> 0 | I35: =+'R14 Community Outreach'!L25 -> 0 | J35: =+'R14 Community Outreach'!M25 -> 0 | K35: =+'R14 Community Outreach'!N25 -> 0 | L35: =+'R14 Community Outreach'!O25 -> 0 | M35: =+'R14 Community Outreach'!P25 -> 0 | N35: =+'R14 Community Outreach'!Q25 -> 0 | O35: =+'R14 Community Outreach'!R25 -> 0 | P35: 30738.46154 | R35: 30738.46154
C37: TOTAL | F37: =+F20+F22+F29+F31+F33+F35 -> 125283.769 | G37: =+G20+G22+G29+G31+G33+G35 -> 0 | H37: 0 | I37: 0 | J37: 0 | K37: 0 | L37: 0 | M37: 0 | N37: 0 | O37: 0 | P37: 125283.769 | Q37: =+Q15 -> 8401.2 | R37: 133684.969

Sheet R6 Group-Area & Central Level
A2: Return to Contents | C2: R6: Group-Area and Central Level Management of CMAM
V3: Important hidden columns DO NOT DELETE
C4: This Worksheet shows (for the year chosen) the quantities of inputs required at the Area, Group-Area, and Central level (for management, training, and transport and storage of therapeutic food) to implement CMAM and the costs of this.
C6: See below for workings showing how figures are calculated.
D8: FTE = Full-Time Equivalent
D11: =+IF('D1 Background'!$H$11="","",'D1 Background'!$H$11) -> Ghana
D12: =+'D9 Time-dependent'!$I$6 -> 2011 | G12: =+IF('D1 Background'!$G$33<1,0,1) -> 1 | H12: =+IF('D1 Background'!$G$33<2,0,1) -> 0 | I12: =+IF('D1 Background'!$G$33<3,0,1) -> 0 | J12: =+IF('D1 Background'!$G$33<4,0,1) -> 0 | K12: =+IF('D1 Background'!$G$33<5,0,1) -> 0 | L12: =+IF('D1 Background'!$G$33<6,0,1) -> 0 | M12: =+IF('D1 Background'!$G$33<7,0,1) -> 0 | N12: =+IF('D1 Background'!$G$33<8,0,1) -> 0 | R12: Costs in
G13: ------------------------------------------- Units as specified in column E ----------------------------------------- | R13: =+IF('D1 Background'!H13="","",'D1 Background'!H13) -> Cedi
G14: Group-Areas | O14: Group-Area Total | P14: Central level | Q14: Total of Central and Group-Area | R14: Price (per unit of variable) | S14: Total COST
D15: =+mess22 -> Variable | E15: =+Mess20 -> Units | F15: =+mess21 -> Comments | G15: =+IF('D1 Background'!$G$36="","",'D1 Background'!$G$36) -> Greater Accra | H15: =+IF('D1 Background'!$G$37="","",'D1 Background'!$G$37) ->  | I15: =+IF('D1 Background'!$G$38="","",'D1 Background'!$G$38) ->  | J15: =+IF('D1 Background'!$G$39="","",'D1 Background'!$G$39) ->  | K15: =+IF('D1 Background'!$G$40="","",'D1 Background'!$G$40) ->  | L15: =+IF('D1 Background'!$G$41="","",'D1 Background'!$G$41) ->  | M15: =+IF('D1 Background'!$G$42="","",'D1 Background'!$G$42) ->  | N15: =+IF('D1 Background'!$G$43="","",'D1 Background'!$G$43) -> 
D16: Training of Area HQ staff
D17: Total days of Group-Area trainer (mid-level) of Area HQ staff | E17: days | F17: Salary | G17: =+G109+G108 -> 0 | H17: 0 | I17: 0 | J17: 0 | K17: 0 | L17: 0 | M17: 0 | N17: 0 | O17: =+G17*$G$12+H17*$H$12+I17*$I$12+J17*$J$12+K17*$K$12+L17*$L$12+M17*$M$12+$N$12*N17 -> 0 | Q17: =+P17+O17 -> 0 | R17: =+'D5 Salaries'!J25 -> 36.92307692 | S17: =+R17*Q17 -> 0
F18: Honorarium | R18: =+'D5 Salaries'!K25 -> 50 | S18: =+R18*Q17 -> 0
D19: Training room-days at Group-Area HQ | E19: room-days | G19: =+G105*G101+G106*G102 -> 0 | H19: 0 | I19: 0 | J19: 0 | K19: 0 | L19: 0 | M19: 0 | N19: 0 | O19: =+G19*$G$12+H19*$H$12+I19*$I$12+J19*$J$12+K19*$K$12+L19*$L$12+M19*$M$12+$N$12*N19 -> 0 | Q19: =+P19+O19 -> 0 | R19: =+'D4 Prices'!F23 -> 120 | S19: =+R19*Q19 -> 0
D20: Training of Trainers / facilitators (for Inpatient Care)
D21: Time spent by selected Inpatient Care staff being trained as facilitators | E21: days | G21: =+IF(G96="no",0,G111*G112) -> 0 | H21: =+IF(H96="no",0,H111*H112) -> 0 | I21: 0 | J21: 0 | K21: 0 | L21: 0 | M21: 0 | N21: 0 | O21: =+G21*$G$12+H21*$H$12+I21*$I$12+J21*$J$12+K21*$K$12+L21*$L$12+M21*$M$12+$N$12*N21 -> 0 | Q21: =+O21+P21 -> 0 | R21: =+'D5 Salaries'!J36 -> 83.07692308 | S21: =+R21*Q21 -> 0
D22: Training of Group-Area HQ staff
D23: Time of Group-Area trainees | E23: days | F23: Mid-level staff | G23: =+G119*G116+G120*G117 -> 0 | H23: 0 | I23: 0 | J23: 0 | K23: 0 | L23: 0 | M23: 0 | N23: 0 | O23: =+G23*$G$12+H23*$H$12+I23*$I$12+J23*$J$12+K23*$K$12+L23*$L$12+M23*$M$12+$N$12*N23 -> 0 | Q23: =+P23+O23 -> 0 | R23: =+'D5 Salaries'!J25 -> 36.92307692 | S23: =+R23*Q23 -> 0
D24: Time of mid-ranking Central level trainer of Group-Area staff (assuming 1 day's preparation for each day of classes) | E24: days | F24: Salary | P24: =2*($P$122*$G$116+$P$123*$G$117) -> 0 | Q24: =+P24+O24 -> 0 | R24: =+'D5 Salaries'!J22 -> 55.38461538 | S24: =+R24*Q24 -> 0
F25: Honorarium | R25: =+'D5 Salaries'!K22 -> 50 | S25: =+R25*Q24 -> 0
D26: Distance travelled by Group-Area staff trained at Central level | E26: km | G26: =2*G128*G118 -> 0 | H26: =2*H128*H118 -> 0 | I26: 0 | J26: 0 | K26: 0 | L26: 0 | M26: 0 | N26: 0 | O26: =+G26*$G$12+H26*$H$12+I26*$I$12+J26*$J$12+K26*$K$12+L26*$L$12+M26*$M$12+$N$12*N26 -> 0 | Q26: =+P26+O26 -> 0 | R26: =+'D4 Prices'!F72 -> 2 | S26: =+R26*Q26 -> 0
D27: Training room-days at Central HQ | E27: room-days | P27: =+$P$24/2 -> 0 | Q27: 0 | R27: =+'D4 Prices'!F23 -> 120 | S27: 0
D28: Sets of full training materials | E28: sets | P28: =+SUM($G$119:$N$119) -> 0 | Q28: 0 | R28: =+'D4 Prices'!F69 -> 25 | S28: 0
D29: Sets of refresher training materials | E29: sets | P29: =+SUM($G$120:$N$120) -> 0 | Q29: 0 | R29: =+'D4 Prices'!F70 -> 5 | S29: 0
D30: Refreshments for trainees | E30: person-days | P30: =+SUM($G$23:$N$23) -> 0 | Q30: 0 | R30: =+'D4 Prices'!F26 -> 12 | S30: 0
D31: Per diems for trainees | E31: per diems | P31: =+SUM($G$23:$N$23) -> 0 | Q31: 0 | R31: =+'D4 Prices'!F29 -> 0 | S31: 0
D32: Subtotal for training | S32: =+SUM(S17:S31) -> 0
D33: Supply logistics
D34: Distance travelled per year to distribute therapeutic food from Central HQ to Group-Area HQ | E34: km | G34: =+IF(G95="yes",2*G128*G126,0) -> 0 | H34: 0 | I34: 0 | J34: 0 | K34: 0 | L34: 0 | M34: 0 | N34: 0 | O34: =+G34*$G$12+H34*$H$12+I34*$I$12+J34*$J$12+K34*$K$12+L34*$L$12+M34*$M$12+$N$12*N34 -> 0 | Q34: =+P34+O34 -> 0 | R34: =+'D4 Prices'!F77 -> 2 | S34: =+R34*Q34 -> 0
D35: Drivers' time on delivering from Central HQ to Group-Area stores per year | E35: days | F35: Driver | G35: =+IF(G95="yes",2*G129*G126/'D3 Epid. Demog. & Service Data'!$F$35,0) -> 0 | H35: =+IF(H95="yes",2*H129*H126/'D3 Epid. Demog. & Service Data'!$F$35,0) -> 0 | I35: =+IF(I95="yes",2*I129*I126/'D3 Epid. Demog. & Service Data'!$F$35,0) -> 0 | J35: =+IF(J95="yes",2*J129*J126/'D3 Epid. Demog. & Service Data'!$F$35,0) -> 0 | K35: =+IF(K95="yes",2*K129*K126/'D3 Epid. Demog. & Service Data'!$F$35,0) -> 0 | L35: =+IF(L95="yes",2*L129*L126/'D3 Epid. Demog. & Service Data'!$F$35,0) -> 0 | M35: =+IF(M95="yes",2*M129*M126/'D3 Epid. Demog. & Service Data'!$F$35,0) -> 0 | N35: =+IF(N95="yes",2*N129*N126/'D3 Epid. Demog. & Service Data'!$F$35,0) -> 0 | O35: =+G35*$G$12+H35*$H$12+I35*$I$12+J35*$J$12+K35*$K$12+L35*$L$12+M35*$M$12+$N$12*N35 -> 0 | Q35: 0 | R35: =+'D5 Salaries'!J40 -> 6.923076923 | S35: 0
D36: Volume required for storage of therapeutic food stores at Group-Area HQ | E36: m3 | G36: =+G127 -> 0 | H36: 0 | I36: 0 | J36: 0 | K36: 0 | L36: 0 | M36: 0 | N36: 0 | O36: =+G36*$G$12+H36*$H$12+I36*$I$12+J36*$J$12+K36*$K$12+L36*$L$12+M36*$M$12+$N$12*N36 -> 0 | Q36: 0 | R36: =+'D4 Prices'!F27 -> 0 | S36: 0
D37: Number of guards for Group-Area stores | E37: guards | F37: One guard per active Group-Area HQ plus one for Central level | G37: =+IF(G95="yes",1,0) -> 0 | H37: 0 | I37: 0 | J37: 0 | K37: 0 | L37: 0 | M37: 0 | N37: 0 | O37: =+G37*$G$12+H37*$H$12+I37*$I$12+J37*$J$12+K37*$K$12+L37*$L$12+M37*$M$12+$N$12*N37 -> 0 | P37: =+'D3 Epid. Demog. & Service Data'!F161 -> 1 | Q37: 1 | R37: =+'D5 Salaries'!H41 -> 1200 | S37: 1200
D38: Number of stock forms | E38: forms | F38: One per month (12 per year) per store area | G38: =+G37*'D3 Epid. Demog. & Service Data'!$F$162 -> 0 | H38: =+H37*'D3 Epid. Demog. & Service Data'!$F$162 -> 0 | I38: =+I37*'D3 Epid. Demog. & Service Data'!$F$162 -> 0 | J38: =+J37*'D3 Epid. Demog. & Service Data'!$F$162 -> 0 | K38: =+K37*'D3 Epid. Demog. & Service Data'!$F$162 -> 0 | L38: =+L37*'D3 Epid. Demog. & Service Data'!$F$162 -> 0 | M38: =+M37*'D3 Epid. Demog. & Service Data'!$F$162 -> 0 | N38: =+N37*'D3 Epid. Demog. & Service Data'!$F$162 -> 0 | O38: =+G38*$G$12+H38*$H$12+I38*$I$12+J38*$J$12+K38*$K$12+L38*$L$12+M38*$M$12+$N$12*N38 -> 0 | P38: =+'D3 Epid. Demog. & Service Data'!F162 -> 12 | Q38: 12 | R38: =+'D4 Prices'!F60 -> 0.1 | S38: 1.2
D39: Volume required for storage of therapeutic food stores at Central level (assuming that it all comes in one annual delivery) | E39: m3 | P39: =+SUM(G125:N125) -> 0 | Q39: 0 | R39: =+'D4 Prices'!F27 -> 0 | S39: 0
D40: Subtotal for supply logistics | S40: =+SUM(S34:S39) -> 1201.2
D41: Management of Areas by Group-Areas
D42: Senior staff time setting up CMAM in Group-Area | E42: days | F42: Senior staff | G42: =+IF(G96="yes",G133,0) -> 0 | H42: 0 | I42: 0 | J42: 0 | K42: 0 | L42: 0 | M42: 0 | N42: 0 | O42: =+G42*$G$12+H42*$H$12+I42*$I$12+J42*$J$12+K42*$K$12+L42*$L$12+M42*$M$12+$N$12*N42 -> 0 | Q42: =+P42+O42 -> 0 | R42: =+'D5 Salaries'!J24 -> 46.15384615 | S42: =+R42*Q42 -> 0
D43: Mid-level staff time setting up CMAM in Group-Area | E43: days | F43: Mid-level staff | G43: =+IF(G96="yes",G134,0) -> 0 | H43: 0 | I43: 0 | J43: 0 | K43: 0 | L43: 0 | M43: 0 | N43: 0 | O43: =+G43*$G$12+H43*$H$12+I43*$I$12+J43*$J$12+K43*$K$12+L43*$L$12+M43*$M$12+$N$12*N43 -> 0 | Q43: =+P43+O43 -> 0 | R43: =+'D5 Salaries'!J25 -> 36.92307692 | S43: =+R43*Q43 -> 0
D44: Mid-level staff time managing new and established Areas | E44: days | F44: Mid-level staff | G44: =+G93*G136+G137*G94 -> 0 | H44: 0 | I44: 0 | J44: 0 | K44: 0 | L44: 0 | M44: 0 | N44: 0 | O44: =+G44*$G$12+H44*$H$12+I44*$I$12+J44*$J$12+K44*$K$12+L44*$L$12+M44*$M$12+$N$12*N44 -> 0 | Q44: =+P44+O44 -> 0 | R44: =+'D5 Salaries'!J25 -> 36.92307692 | S44: =+R44*Q44 -> 0
D45: Monthly reporting sheets (of Group-Areas and Areas) | E45: sheets | G45: =+IF(G93+G94=0,0,12*(G93+G94+1)) -> 0 | H45: =+IF(H93+H94=0,0,12*(H93+H94+1)) -> 0 | I45: 0 | J45: 0 | K45: 0 | L45: 0 | M45: 0 | N45: 0 | O45: =+G45*$G$12+H45*$H$12+I45*$I$12+J45*$J$12+K45*$K$12+L45*$L$12+M45*$M$12+$N$12*N45 -> 0 | Q45: =+O45 -> 0 | R45: =+'D4 Prices'!F33 -> 0.3 | S45: =+R45*Q45 -> 0
D46: Management at Central level - Routine
D47: Total time required for routine management | E47: FTE | F47: Mid-level staff | P47: =+P146*5/'D5 Salaries'!I20+P139 -> 0.5 | Q47: =+P47+O47 -> 0.5 | R47: =+'D5 Salaries'!H22 -> 14400 | S47: =+R47*Q47 -> 7200
D48: Distance travelled managing Group-Areas | E48: person-km | G48: =+IF(G96="yes",2*$P$145*G128,(IF(G95="yes",2*$P$144*G128,0))) -> 0 | H48: 0 | I48: 0 | J48: 0 | K48: 0 | L48: 0 | M48: 0 | N48: 0 | O48: =+G48*$G$12+H48*$H$12+I48*$I$12+J48*$J$12+K48*$K$12+L48*$L$12+M48*$M$12+$N$12*N48 -> 0 | Q48: =+P48+O48 -> 0 | R48: =+'D4 Prices'!F72 -> 2 | S48: =+R48*Q48 -> 0
D49: Management at Central level - Establishing CMAM
D50: Central HQ time involved in establishing CMAM - CMAM guidelines and job aids, training materials and training plans, management tools, logistical system, monitoring and reporting system, and liaising with politicians and donors. | E50: FTE | F50: Senior staff | P50: =+IF(P97="yes",P148,0) -> 0 | Q50: =+P50+O50 -> 0 | R50: =+'D5 Salaries'!H21 -> 18000 | S50: =+R50*Q50 -> 0
E51: FTE | F51: Mid-level staff | P51: =+IF(P97="yes",P149,0) -> 0 | Q51: =+P51+O51 -> 0 | R51: =+'D5 Salaries'!H22 -> 14400 | S51: =+R51*Q51 -> 0
D52: Subtotal for management | S52: =+SUM(S42:S51) -> 7200
D53: Total cost at Group-Area and Central level | S53: =+S32+S40+S52 -> 8401.2
G77: Group-Areas | P77: Central level
A78: Return to top | D78: =+message13 -> Calculations | G78: =+IF('D1 Background'!$G$36="","",'D1 Background'!$G$36) -> Greater Accra | H78: =+IF('D1 Background'!$G$37="","",'D1 Background'!$G$37) ->  | I78: =+IF('D1 Background'!$G$38="","",'D1 Background'!$G$38) ->  | J78: =+IF('D1 Background'!$G$39="","",'D1 Background'!$G$39) ->  | K78: =+IF('D1 Background'!$G$40="","",'D1 Background'!$G$40) ->  | L78: =+IF('D1 Background'!$G$41="","",'D1 Background'!$G$41) ->  | M78: =+IF('D1 Background'!$G$42="","",'D1 Background'!$G$42) ->  | N78: =+IF('D1 Background'!$G$43="","",'D1 Background'!$G$43) -> 
D79: Variable | E79: Units | F79: Comments | H79: =+H15 ->  | U79: active areas | V79: new areas | W79: Distance from Area to Group-Area | X79: Areas
E80: Areas | F80: =+'D2 Scale'!C31 -> Ashiedu Keteke | G80: =+IF('D2 Scale'!$D$31=G79,1,0) -> 0 | H80: =+IF('D2 Scale'!$D$31=H79,1,0) -> 0 | I80: =+IF('D2 Scale'!$D$31=I79,1,0) -> 0 | J80: =+IF('D2 Scale'!$D$31=J79,1,0) -> 0 | K80: =+IF('D2 Scale'!$D$31=K79,1,0) -> 0 | L80: =+IF('D2 Scale'!$D$31=L79,1,0) -> 0 | M80: =+IF('D2 Scale'!$D$31=M79,1,0) -> 0 | N80: =+IF('D2 Scale'!$D$31=N79,1,0) -> 0 | U80: =+'D9 Time-dependent'!$F$45 -> 1 | V80: =+'D9 Time-dependent'!$F$47 -> 0 | W80: =+'D3 Epid. Demog. & Service Data'!$F$127 -> 1 | X80: 1
F81: =+'D2 Scale'!C36 -> 0 | G81: =+IF('D2 Scale'!$D$36=G79,1,0) -> 1 | H81: =+IF('D2 Scale'!$D$36=H79,1,0) -> 1 | I81: =+IF('D2 Scale'!$D$36=I79,1,0) -> 1 | J81: =+IF('D2 Scale'!$D$36=J79,1,0) -> 1 | K81: =+IF('D2 Scale'!$D$36=K79,1,0) -> 1 | L81: =+IF('D2 Scale'!$D$36=L79,1,0) -> 1 | M81: =+IF('D2 Scale'!$D$36=M79,1,0) -> 1 | N81: =+IF('D2 Scale'!$D$36=N79,1,0) -> 1 | U81: =+'D9 Time-dependent'!$J$45 -> 0 | V81: =+'D9 Time-dependent'!$J$47 -> 0 | W81: =+'D3 Epid. Demog. & Service Data'!$J$127 -> 0 | X81: 2
F82: =+'D2 Scale'!C41 -> 0 | G82: =+IF('D2 Scale'!$D$41=G79,1,0) -> 1 | H82: =+IF('D2 Scale'!$D$41=H79,1,0) -> 1 | I82: =+IF('D2 Scale'!$D$41=I79,1,0) -> 1 | J82: =+IF('D2 Scale'!$D$41=J79,1,0) -> 1 | K82: =+IF('D2 Scale'!$D$41=K79,1,0) -> 1 | L82: =+IF('D2 Scale'!$D$41=L79,1,0) -> 1 | M82: =+IF('D2 Scale'!$D$41=M79,1,0) -> 1 | N82: =+IF('D2 Scale'!$D$41=N79,1,0) -> 1 | U82: =+'D9 Time-dependent'!$K$45 -> 0 | V82: =+'D9 Time-dependent'!$K$47 -> 0 | W82: =+'D3 Epid. Demog. & Service Data'!$K$127 -> 0 | X82: 3
F83: =+'D2 Scale'!C46 -> 0 | G83: =+IF('D2 Scale'!$D$46=G79,1,0) -> 1 | H83: =+IF('D2 Scale'!$D$46=H79,1,0) -> 1 | I83: =+IF('D2 Scale'!$D$46=I79,1,0) -> 1 | J83: =+IF('D2 Scale'!$D$46=J79,1,0) -> 1 | K83: =+IF('D2 Scale'!$D$46=K79,1,0) -> 1 | L83: =+IF('D2 Scale'!$D$46=L79,1,0) -> 1 | M83: =+IF('D2 Scale'!$D$46=M79,1,0) -> 1 | N83: =+IF('D2 Scale'!$D$46=N79,1,0) -> 1 | U83: =+'D9 Time-dependent'!$L$45 -> 0 | V83: =+'D9 Time-dependent'!$L$47 -> 0 | W83: =+'D3 Epid. Demog. & Service Data'!$L$127 -> 0 | X83: 4
F84: =+'D2 Scale'!C51 -> 0 | G84: =+IF('D2 Scale'!$D$51=G79,1,0) -> 1 | H84: =+IF('D2 Scale'!$D$51=H79,1,0) -> 1 | I84: =+IF('D2 Scale'!$D$51=I79,1,0) -> 1 | J84: =+IF('D2 Scale'!$D$51=J79,1,0) -> 1 | K84: =+IF('D2 Scale'!$D$51=K79,1,0) -> 1 | L84: =+IF('D2 Scale'!$D$51=L79,1,0) -> 1 | M84: =+IF('D2 Scale'!$D$51=M79,1,0) -> 1 | N84: =+IF('D2 Scale'!$D$51=N79,1,0) -> 1 | U84: =+'D9 Time-dependent'!$M$45 -> 0 | V84: =+'D9 Time-dependent'!$M$47 -> 0 | W84: =+'D3 Epid. Demog. & Service Data'!$M$127 -> 0 | X84: 5
F85: =+'D2 Scale'!C56 -> 0 | G85: =+IF('D2 Scale'!$D$56=G79,1,0) -> 1 | H85: =+IF('D2 Scale'!$D$56=H79,1,0) -> 1 | I85: =+IF('D2 Scale'!$D$56=I79,1,0) -> 1 | J85: =+IF('D2 Scale'!$D$56=J79,1,0) -> 1 | K85: =+IF('D2 Scale'!$D$56=K79,1,0) -> 1 | L85: =+IF('D2 Scale'!$D$56=L79,1,0) -> 1 | M85: =+IF('D2 Scale'!$D$56=M79,1,0) -> 1 | N85: =+IF('D2 Scale'!$D$56=N79,1,0) -> 1 | U85: =+'D9 Time-dependent'!$N$45 -> 0 | V85: =+'D9 Time-dependent'!$N$47 -> 0 | W85: =+'D3 Epid. Demog. & Service Data'!$N$127 -> 0 | X85: 6
F86: =+'D2 Scale'!C61 -> 0 | G86: =+IF('D2 Scale'!$D$61=G79,1,0) -> 1 | H86: =+IF('D2 Scale'!$D$61=H79,1,0) -> 1 | I86: =+IF('D2 Scale'!$D$61=I79,1,0) -> 1 | J86: =+IF('D2 Scale'!$D$61=J79,1,0) -> 1 | K86: =+IF('D2 Scale'!$D$61=K79,1,0) -> 1 | L86: =+IF('D2 Scale'!$D$61=L79,1,0) -> 1 | M86: =+IF('D2 Scale'!$D$61=M79,1,0) -> 1 | N86: =+IF('D2 Scale'!$D$61=N79,1,0) -> 1 | U86: =+'D9 Time-dependent'!$O$45 -> 0 | V86: =+'D9 Time-dependent'!$O$47 -> 0 | W86: =+'D3 Epid. Demog. & Service Data'!$O$127 -> 0 | X86: 7
F87: =+'D2 Scale'!C66 -> 0 | G87: =+IF('D2 Scale'!$D$66=G79,1,0) -> 1 | H87: =+IF('D2 Scale'!$D$66=H79,1,0) -> 1 | I87: =+IF('D2 Scale'!$D$66=I79,1,0) -> 1 | J87: =+IF('D2 Scale'!$D$66=J79,1,0) -> 1 | K87: =+IF('D2 Scale'!$D$66=K79,1,0) -> 1 | L87: =+IF('D2 Scale'!$D$66=L79,1,0) -> 1 | M87: =+IF('D2 Scale'!$D$66=M79,1,0) -> 1 | N87: =+IF('D2 Scale'!$D$66=N79,1,0) -> 1 | U87: =+'D9 Time-dependent'!$P$45 -> 0 | V87: =+'D9 Time-dependent'!$P$47 -> 0 | W87: =+'D3 Epid. Demog. & Service Data'!$P$127 -> 0 | X87: 8
F88: =+'D2 Scale'!C71 -> 0 | G88: =+IF('D2 Scale'!$D$71=G79,1,0) -> 1 | H88: =+IF('D2 Scale'!$D$71=H79,1,0) -> 1 | I88: =+IF('D2 Scale'!$D$71=I79,1,0) -> 1 | J88: =+IF('D2 Scale'!$D$71=J79,1,0) -> 1 | K88: =+IF('D2 Scale'!$D$71=K79,1,0) -> 1 | L88: =+IF('D2 Scale'!$D$71=L79,1,0) -> 1 | M88: =+IF('D2 Scale'!$D$71=M79,1,0) -> 1 | N88: =+IF('D2 Scale'!$D$71=N79,1,0) -> 1 | U88: =+'D9 Time-dependent'!$Q$45 -> 0 | V88: =+'D9 Time-dependent'!$Q$47 -> 0 | W88: =+'D3 Epid. Demog. & Service Data'!$Q$127 -> 0 | X88: 9
F89: =+'D2 Scale'!C76 -> 0 | G89: =+IF('D2 Scale'!$D$76=G79,1,0) -> 1 | H89: =+IF('D2 Scale'!$D$76=H79,1,0) -> 1 | I89: =+IF('D2 Scale'!$D$76=I79,1,0) -> 1 | J89: =+IF('D2 Scale'!$D$76=J79,1,0) -> 1 | K89: =+IF('D2 Scale'!$D$76=K79,1,0) -> 1 | L89: =+IF('D2 Scale'!$D$76=L79,1,0) -> 1 | M89: =+IF('D2 Scale'!$D$76=M79,1,0) -> 1 | N89: =+IF('D2 Scale'!$D$76=N79,1,0) -> 1 | U89: =+'D9 Time-dependent'!$R$45 -> 0 | V89: =+'D9 Time-dependent'!$R$47 -> 0 | W89: =+'D3 Epid. Demog. & Service Data'!$R$127 -> 0 | X89: 10
D90: Distance to active areas from Group-Area HQ | E90: km | G90: =+G80*$U$80*$W$80+G81*$U$81*$W$81+G82*$U$82*$W$82+G83*$U$83*$W$83+G84*$U$84*$W$84+G85*$U$85*$W$85+G86*$U$86*$W$86+G87*$U$87*$W$87+G88*$U$88*$W$88*+$W$89*$U$89*G89 -> 0 | H90: =+H80*$U$80*$W$80+H81*$U$81*$W$81+H82*$U$82*$W$82+H83*$U$83*$W$83+H84*$U$84*$W$84+H85*$U$85*$W$85+H86*$U$86*$W$86+H87*$U$87*$W$87+H88*$U$88*$W$88*+$W$89*$U$89*H89 -> 0 | I90: 0 | J90: 0 | K90: 0 | L90: 0 | M90: 0 | N90: 0
D91: Distance to new areas from Group-Area HQ | E91: km | G91: =+G80*$V$80*$W$80+G81*$V$81*$W$81+G82*$V$82*$W$82+G83*$V$83*$W$83+G84*$V$84*$W$84+G85*$V$85*$W$85+G86*$V$86*$W$86+G87*$V$87*$W$87+G88*$V$88*$W$88+G89*$V$89*$W$89 -> 0 | H91: =+H80*$V$80*$W$80+H81*$V$81*$W$81+H82*$V$82*$W$82+H83*$V$83*$W$83+H84*$V$84*$W$84+H85*$V$85*$W$85+H86*$V$86*$W$86+H87*$V$87*$W$87+H88*$V$88*$W$88+H89*$V$89*$W$89 -> 0 | I91: 0 | J91: 0 | K91: 0 | L91: 0 | M91: 0 | N91: 0
D92: Distance to established areas in Group-Area | E92: km | G92: =+G90-G91 -> 0 | H92: =+H90-H91 -> 0 | I92: 0 | J92: 0 | K92: 0 | L92: 0 | M92: 0 | N92: 0
D93: Number of new Areas in Group-Area | E93: areas | G93: =+$G$80*$V$80+$G$81*$V$81+$G$82*$V$82+$G$83*$V$83+$G$84*$V$84+$G$85*$V$85+$G$86*$V$86+$G$87*$V$87+$G$88*$V$88+$G$89*$V$89 -> 0 | H93: =+H80*$V$80+H81*$V$81+H82*$V$82+H83*$V$83+H84*$V$84+H85*$V$85+H86*$V$86+H87*$V$87+H88*$V$88+H89*$V$89 -> 0 | I93: 0 | J93: 0 | K93: 0 | L93: 0 | M93: 0 | N93: 0
D94: Number of established Areas in Group-Area | E94: areas | G94: =+G80*($U$80-$V$80)+G81*($U$81-$V$81)+G$82*($U$82-$V$82)+G$83*($U$83-$V$83)+G$84*($U$84-$V$84)+G$85*($U$85-$V$85)+G$86*($U$86-$V$86)+G$87*($U$87-$V$87)+G$88*($U$88-$V$88)+G$89*($U$89-$V$89) -> 0 | H94: =+H80*($U$80-$V$80)+H81*($U$81-$V$81)+H$82*($U$82-$V$82)+H$83*($U$83-$V$83)+H$84*($U$84-$V$84)+H$85*($U$85-$V$85)+H$86*($U$86-$V$86)+H$87*($U$87-$V$87)+H$88*($U$88-$V$88)+H$89*($U$89-$V$89) -> 0 | I94: =+I80*($U$80-$V$80)+I81*($U$81-$V$81)+I$82*($U$82-$V$82)+I$83*($U$83-$V$83)+I$84*($U$84-$V$84)+I$85*($U$85-$V$85)+I$86*($U$86-$V$86)+I$87*($U$87-$V$87)+I$88*($U$88-$V$88)+I$89*($U$89-$V$89) -> 0 | J94: 0 | K94: 0 | L94: 0 | M94: 0 | N94: 0
D95: Is the Group-Area active in CMAM? | G95: =+IF(G93+G94>0,"yes","no") -> no | H95: =+IF(H93+H94>0,"yes","no") -> no | I95: no | J95: no | K95: no | L95: no | M95: no | N95: no
D96: Is the Group-Area new to CMAM? | G96: =+IF(AND(G93>0,G94=0),"yes","no") -> no | H96: =+IF(AND(H93>0,H94=0),"yes","no") -> no | I96: no | J96: no | K96: no | L96: no | M96: no | N96: no
D97: Is this the first year of CMAM? | G97: =+'D1 Background'!G45 -> yes | P97: =+IF(AND('D1 Background'!$G$45="no",'D9 Time-dependent'!$I$10=1),"yes","no") -> no
D98: Maximum size of group in Area HQ training | E98: trainees | G98: =+'D3 Epid. Demog. & Service Data'!$F$168 -> 20 | H98: =+'D3 Epid. Demog. & Service Data'!$F$168 -> 20 | I98: =+'D3 Epid. Demog. & Service Data'!$F$168 -> 20 | J98: =+'D3 Epid. Demog. & Service Data'!$F$168 -> 20 | K98: =+'D3 Epid. Demog. & Service Data'!$F$168 -> 20 | L98: =+'D3 Epid. Demog. & Service Data'!$F$168 -> 20 | M98: =+'D3 Epid. Demog. & Service Data'!$F$168 -> 20 | N98: =+'D3 Epid. Demog. & Service Data'!$F$168 -> 20
D99: Number of staff to train from new Areas per new Area | E99: staff | G99: =+'D3 Epid. Demog. & Service Data'!$F$164 -> 4 | H99: =+'D3 Epid. Demog. & Service Data'!$F$164 -> 4 | I99: =+'D3 Epid. Demog. & Service Data'!$F$164 -> 4 | J99: =+'D3 Epid. Demog. & Service Data'!$F$164 -> 4 | K99: =+'D3 Epid. Demog. & Service Data'!$F$164 -> 4 | L99: =+'D3 Epid. Demog. & Service Data'!$F$164 -> 4 | M99: =+'D3 Epid. Demog. & Service Data'!$F$164 -> 4 | N99: =+'D3 Epid. Demog. & Service Data'!$F$164 -> 4
D100: Number of staff to train from established Areas per established Area | E100: staff | G100: =+'D3 Epid. Demog. & Service Data'!$F$165 -> 2 | H100: =+'D3 Epid. Demog. & Service Data'!$F$165 -> 2 | I100: =+'D3 Epid. Demog. & Service Data'!$F$165 -> 2 | J100: =+'D3 Epid. Demog. & Service Data'!$F$165 -> 2 | K100: =+'D3 Epid. Demog. & Service Data'!$F$165 -> 2 | L100: =+'D3 Epid. Demog. & Service Data'!$F$165 -> 2 | M100: =+'D3 Epid. Demog. & Service Data'!$F$165 -> 2 | N100: =+'D3 Epid. Demog. & Service Data'!$F$165 -> 2
D101: Length of training of new Area HQ staff | E101: days | G101: =+'D3 Epid. Demog. & Service Data'!$F$166 -> 5 | H101: =+'D3 Epid. Demog. & Service Data'!$F$166 -> 5 | I101: =+'D3 Epid. Demog. & Service Data'!$F$166 -> 5 | J101: =+'D3 Epid. Demog. & Service Data'!$F$166 -> 5 | K101: =+'D3 Epid. Demog. & Service Data'!$F$166 -> 5 | L101: =+'D3 Epid. Demog. & Service Data'!$F$166 -> 5 | M101: =+'D3 Epid. Demog. & Service Data'!$F$166 -> 5 | N101: =+'D3 Epid. Demog. & Service Data'!$F$166 -> 5
D102: Length of training of established Area HQ staff | E102: days | G102: =+'D3 Epid. Demog. & Service Data'!$F$167 -> 1 | H102: =+'D3 Epid. Demog. & Service Data'!$F$167 -> 1 | I102: =+'D3 Epid. Demog. & Service Data'!$F$167 -> 1 | J102: =+'D3 Epid. Demog. & Service Data'!$F$167 -> 1 | K102: =+'D3 Epid. Demog. & Service Data'!$F$167 -> 1 | L102: =+'D3 Epid. Demog. & Service Data'!$F$167 -> 1 | M102: =+'D3 Epid. Demog. & Service Data'!$F$167 -> 1 | N102: =+'D3 Epid. Demog. & Service Data'!$F$167 -> 1
D103: Number of Area HQ staff in this Group-Area requiring full training (i.e., from new Areas) | E103: staff | G103: =+G93*G99 -> 0 | H103: 0 | I103: 0 | J103: 0 | K103: 0 | L103: 0 | M103: 0 | N103: 0
D104: Number of Area HQ staff in this Group-Area requiring refresher training (i.e., from established Areas) | E104: staff | G104: 0 | H104: 0 | I104: 0 | J104: 0 | K104: 0 | L104: 0 | M104: 0 | N104: 0
D105: Number of Area HQ groups to give full training to | E105: groups | G105: =+ROUNDUP(G103/G98,0) -> 0 | H105: 0 | I105: 0 | J105: 0 | K105: 0 | L105: 0 | M105: 0 | N105: 0
D106: Number of Area HQ groups to give refresher training to | E106: groups | G106: =+ROUNDUP(G104/G98,0) -> 0 | H106: 0 | I106: 0 | J106: 0 | K106: 0 | L106: 0 | M106: 0 | N106: 0
D107: Training of Area HQ staff (see R12 for other costs)
D108: Days of Group-Area trainer of Area HQ staff for full training | E108: days | F108: Twice the length of training course to allow time for preparation | G108: =2*(G101*G105) -> 0 | H108: 0 | I108: 0 | J108: 0 | K108: 0 | L108: 0 | M108: 0 | N108: 0
D109: Days of Group-Area trainer of Area HQ staff for refresher training | E109: days | F109: Twice the length of training course to allow time for preparation | G109: =2*G106*G102 -> 0 | H109: 0 | I109: 0 | J109: 0 | K109: 0 | L109: 0 | M109: 0 | N109: 0
D110: Training of trainers
D111: Number of CMAM staff trained in each new Group-Area to act as facilitators (i.e., trainers of other CMAM staff) | E111: staff | G111: =+'D8 Group-Area & Central Level '!G31 -> 8 | H111: =+'D8 Group-Area & Central Level '!H31 -> 0 | I111: =+'D8 Group-Area & Central Level '!I31 -> 0 | J111: =+'D8 Group-Area & Central Level '!J31 -> 0 | K111: =+'D8 Group-Area & Central Level '!K31 -> 0 | L111: =+'D8 Group-Area & Central Level '!L31 -> 0 | M111: =+'D8 Group-Area & Central Level '!M31 -> 0 | N111: =+'D8 Group-Area & Central Level '!N31 -> 0
D112: Number of days facilitators are trained | E112: days | G112: =+'D8 Group-Area & Central Level '!G32 -> 4 | H112: =+'D8 Group-Area & Central Level '!H32 -> 0 | I112: =+'D8 Group-Area & Central Level '!I32 -> 0 | J112: =+'D8 Group-Area & Central Level '!J32 -> 0 | K112: =+'D8 Group-Area & Central Level '!K32 -> 0 | L112: =+'D8 Group-Area & Central Level '!L32 -> 0 | M112: =+'D8 Group-Area & Central Level '!M32 -> 0 | N112: =+'D8 Group-Area & Central Level '!N32 -> 0
D113: Training of Group-Area HQ staff
D114: Number of staff to train from each new Group-Area | E114: staff | F114: Mid-level staff | G114: =+'D8 Group-Area & Central Level '!G24 -> 2 | H114: =+'D8 Group-Area & Central Level '!H24 -> 0 | I114: =+'D8 Group-Area & Central Level '!I24 -> 0 | J114: =+'D8 Group-Area & Central Level '!J24 -> 0 | K114: =+'D8 Group-Area & Central Level '!K24 -> 0 | L114: =+'D8 Group-Area & Central Level '!L24 -> 0 | M114: =+'D8 Group-Area & Central Level '!M24 -> 0 | N114: =+'D8 Group-Area & Central Level '!N24 -> 0
D115: Number of staff to retrain from each established Group-Area | E115: staff | F115: Mid-level staff | G115: =+'D8 Group-Area & Central Level '!G25 -> 2 | H115: =+'D8 Group-Area & Central Level '!H25 -> 0 | I115: =+'D8 Group-Area & Central Level '!I25 -> 0 | J115: =+'D8 Group-Area & Central Level '!J25 -> 0 | K115: =+'D8 Group-Area & Central Level '!K25 -> 0 | L115: =+'D8 Group-Area & Central Level '!L25 -> 0 | M115: =+'D8 Group-Area & Central Level '!M25 -> 0 | N115: =+'D8 Group-Area & Central Level '!N25 -> 0
D116: Length of training of new Group-Area staff (training of trainers) | E116: days | G116: =+'D8 Group-Area & Central Level '!G26 -> 10 | H116: =+'D8 Group-Area & Central Level '!H26 -> 0 | I116: =+'D8 Group-Area & Central Level '!I26 -> 0 | J116: =+'D8 Group-Area & Central Level '!J26 -> 0 | K116: =+'D8 Group-Area & Central Level '!K26 -> 0 | L116: =+'D8 Group-Area & Central Level '!L26 -> 0 | M116: =+'D8 Group-Area & Central Level '!M26 -> 0 | N116: =+'D8 Group-Area & Central Level '!N26 -> 0
D117: Length of training of established Group-Area staff | E117: days | G117: =+'D8 Group-Area & Central Level '!G27 -> 2 | H117: =+'D8 Group-Area & Central Level '!H27 -> 0 | I117: =+'D8 Group-Area & Central Level '!I27 -> 0 | J117: =+'D8 Group-Area & Central Level '!J27 -> 0 | K117: =+'D8 Group-Area & Central Level '!K27 -> 0 | L117: =+'D8 Group-Area & Central Level '!L27 -> 0 | M117: =+'D8 Group-Area & Central Level '!M27 -> 0 | N117: =+'D8 Group-Area & Central Level '!N27 -> 0
D118: Number of return journeys by trainees to Central HQ and back to Group-Area HQ | E118: km | F118: If trainees stay overnight, number of return journeys = number of trainees; If not = full trainees * full days + refresher trainees * refresher days | G118: =+IF('D8 Group-Area & Central Level '!F29="over night",G119+G120,G119*G116+G120*G117) -> 0 | H118: =+IF('D8 Group-Area & Central Level '!G29="over night",H119+H120,H119*H116+H120*H117) -> 0 | I118: =+IF('D8 Group-Area & Central Level '!H29="over night",I119+I120,I119*I116+I120*I117) -> 0 | J118: =+IF('D8 Group-Area & Central Level '!I29="over night",J119+J120,J119*J116+J120*J117) -> 0 | K118: =+IF('D8 Group-Area & Central Level '!J29="over night",K119+K120,K119*K116+K120*K117) -> 0 | L118: =+IF('D8 Group-Area & Central Level '!K29="over night",L119+L120,L119*L116+L120*L117) -> 0 | M118: =+IF('D8 Group-Area & Central Level '!L29="over night",M119+M120,M119*M116+M120*M117) -> 0 | N118: =+IF('D8 Group-Area & Central Level '!M29="over night",N119+N120,N119*N116+N120*N117) -> 0
D119: Number of trainees for full Group-Area training | E119: trainees | G119: =+IF(G96="yes",G114,0) -> 0 | H119: 0 | I119: 0 | J119: 0 | K119: 0 | L119: 0 | M119: 0 | N119: 0
D120: Number of trainees for refresher Group-Area training | E120: trainees | G120: =+IF(AND(G95="yes",G96="no"),G115,0) -> 0 | H120: 0 | I120: 0 | J120: 0 | K120: 0 | L120: 0 | M120: 0 | N120: 0
D121: Maximum size of trainee classes for Group-Area staff | E121: trainees | G121: =+'D8 Group-Area & Central Level '!G28 -> 20 | H121: =+'D8 Group-Area & Central Level '!H28 -> 0 | I121: =+'D8 Group-Area & Central Level '!I28 -> 0 | J121: =+'D8 Group-Area & Central Level '!J28 -> 0 | K121: =+'D8 Group-Area & Central Level '!K28 -> 0 | L121: =+'D8 Group-Area & Central Level '!L28 -> 0 | M121: =+'D8 Group-Area & Central Level '!M28 -> 0 | N121: =+'D8 Group-Area & Central Level '!N28 -> 0
D122: Number of classes of Group-Area staff requiring full training | E122: classes | P122: =+ROUNDUP(($G$119+$H$119+$I$119+$J$119+$K$119+$L$119+$M$119+$N$119)/$G$121,0) -> 0
D123: Number of classes of Group-Area staff requiring refresher training | E123: classes | P123: =+ROUNDUP(($G$120+$H$120+$I$120+$J$120+$K$120+$L$120+$M$120+$N$120)/$G$121,0) -> 0
D124: Supply logistics
D125: Space occupied by annual therapeutic food requirements of Group-Area | E125: m3 | F125: The sum of area occupied by therapeutic food in active Areas | G125: =+G80*'R11 Supply Logistics'!$F$99+G81*'R11 Supply Logistics'!$J$99+G82*'R11 Supply Logistics'!$K$99+G83*'R11 Supply Logistics'!$L$99+G84*'R11 Supply Logistics'!$M$99+G85*'R11 Supply Logistics'!$N$99+G86*'R11 Supply Logistics'!$O$99+G87*'R11 Supply Logistics'!$P$99+G88*'R11 Supply Logistics'!$Q$99+G89*'R11 Supply Logistics'!$R$99 -> 0 | H125: =+H80*'R11 Supply Logistics'!$F$99+H81*'R11 Supply Logistics'!$J$99+H82*'R11 Supply Logistics'!$K$99+H83*'R11 Supply Logistics'!$L$99+H84*'R11 Supply Logistics'!$M$99+H85*'R11 Supply Logistics'!$N$99+H86*'R11 Supply Logistics'!$O$99+H87*'R11 Supply Logistics'!$P$99+H88*'R11 Supply Logistics'!$Q$99+H89*'R11 Supply Logistics'!$R$99 -> 0 | I125: =+I80*'R11 Supply Logistics'!$F$99+I81*'R11 Supply Logistics'!$J$99+I82*'R11 Supply Logistics'!$K$99+I83*'R11 Supply Logistics'!$L$99+I84*'R11 Supply Logistics'!$M$99+I85*'R11 Supply Logistics'!$N$99+I86*'R11 Supply Logistics'!$O$99+I87*'R11 Supply Logistics'!$P$99+I88*'R11 Supply Logistics'!$Q$99+I89*'R11 Supply Logistics'!$R$99 -> 0 | J125: =+J80*'R11 Supply Logistics'!$F$99+J81*'R11 Supply Logistics'!$J$99+J82*'R11 Supply Logistics'!$K$99+J83*'R11 Supply Logistics'!$L$99+J84*'R11 Supply Logistics'!$M$99+J85*'R11 Supply Logistics'!$N$99+J86*'R11 Supply Logistics'!$O$99+J87*'R11 Supply Logistics'!$P$99+J88*'R11 Supply Logistics'!$Q$99+J89*'R11 Supply Logistics'!$R$99 -> 0 | K125: =+K80*'R11 Supply Logistics'!$F$99+K81*'R11 Supply Logistics'!$J$99+K82*'R11 Supply Logistics'!$K$99+K83*'R11 Supply Logistics'!$L$99+K84*'R11 Supply Logistics'!$M$99+K85*'R11 Supply Logistics'!$N$99+K86*'R11 Supply Logistics'!$O$99+K87*'R11 Supply Logistics'!$P$99+K88*'R11 Supply Logistics'!$Q$99+K89*'R11 Supply Logistics'!$R$99 -> 0 | L125: =+L80*'R11 Supply Logistics'!$F$99+L81*'R11 Supply Logistics'!$J$99+L82*'R11 Supply Logistics'!$K$99+L83*'R11 Supply Logistics'!$L$99+L84*'R11 Supply Logistics'!$M$99+L85*'R11 Supply Logistics'!$N$99+L86*'R11 Supply Logistics'!$O$99+L87*'R11 Supply Logistics'!$P$99+L88*'R11 Supply Logistics'!$Q$99+L89*'R11 Supply Logistics'!$R$99 -> 0 | M125: =+M80*'R11 Supply Logistics'!$F$99+M81*'R11 Supply Logistics'!$J$99+M82*'R11 Supply Logistics'!$K$99+M83*'R11 Supply Logistics'!$L$99+M84*'R11 Supply Logistics'!$M$99+M85*'R11 Supply Logistics'!$N$99+M86*'R11 Supply Logistics'!$O$99+M87*'R11 Supply Logistics'!$P$99+M88*'R11 Supply Logistics'!$Q$99+M89*'R11 Supply Logistics'!$R$99 -> 0 | N125: =+N80*'R11 Supply Logistics'!$F$99+N81*'R11 Supply Logistics'!$J$99+N82*'R11 Supply Logistics'!$K$99+N83*'R11 Supply Logistics'!$L$99+N84*'R11 Supply Logistics'!$M$99+N85*'R11 Supply Logistics'!$N$99+N86*'R11 Supply Logistics'!$O$99+N87*'R11 Supply Logistics'!$P$99+N88*'R11 Supply Logistics'!$Q$99+N89*'R11 Supply Logistics'!$R$99 -> 0
D126: Number of deliveries per year to Group-Area | E126: deliveries | G126: =+'D9 Time-dependent'!F50 -> 4 | H126: =+'D9 Time-dependent'!F51 -> 0 | I126: =+'D9 Time-dependent'!F52 -> 0 | J126: =+'D9 Time-dependent'!F53 -> 0 | K126: =+'D9 Time-dependent'!F54 -> 0 | L126: =+'D9 Time-dependent'!F55 -> 0 | M126: =+'D9 Time-dependent'!F56 -> 0 | N126: =+'D9 Time-dependent'!F57 -> 0
D127: Space occupied by average delivery of therapeutic food to Group-Area | E127: m3 | G127: =+IF(G126=0,0,G125/G126) -> 0 | H127: =+IF(H126=0,0,H125/H126) -> 0 | I127: 0 | J127: 0 | K127: 0 | L127: 0 | M127: 0 | N127: 0
D128: Distance of Group-Area HQ from Central HQ | E128: km | G128: =+'D8 Group-Area & Central Level '!G34 -> 5 | H128: =+'D8 Group-Area & Central Level '!H34 -> 0 | I128: =+'D8 Group-Area & Central Level '!I34 -> 0 | J128: =+'D8 Group-Area & Central Level '!J34 -> 0 | K128: =+'D8 Group-Area & Central Level '!K34 -> 0 | L128: =+'D8 Group-Area & Central Level '!L34 -> 0 | M128: =+'D8 Group-Area & Central Level '!M34 -> 0 | N128: =+'D8 Group-Area & Central Level '!N34 -> 0
D129: Time taken to drive from Central HQ to Group-Area HQ | E129: hours | G129: =+'D8 Group-Area & Central Level '!G35 -> 0.25 | H129: =+'D8 Group-Area & Central Level '!H35 -> 0 | I129: =+'D8 Group-Area & Central Level '!I35 -> 0 | J129: =+'D8 Group-Area & Central Level '!J35 -> 0 | K129: =+'D8 Group-Area & Central Level '!K35 -> 0 | L129: =+'D8 Group-Area & Central Level '!L35 -> 0 | M129: =+'D8 Group-Area & Central Level '!M35 -> 0 | N129: =+'D8 Group-Area & Central Level '!N35 -> 0
D130: Size of vehicle transporting therapeutic food from Central HQ to Group-Area stores | E130: m3 | G130: =+'D8 Group-Area & Central Level '!G36 -> 15 | H130: =+'D8 Group-Area & Central Level '!H36 -> 0 | I130: =+'D8 Group-Area & Central Level '!I36 -> 0 | J130: =+'D8 Group-Area & Central Level '!J36 -> 0 | K130: =+'D8 Group-Area & Central Level '!K36 -> 0 | L130: =+'D8 Group-Area & Central Level '!L36 -> 0 | M130: =+'D8 Group-Area & Central Level '!M36 -> 0 | N130: =+'D8 Group-Area & Central Level '!N36 -> 0
D131: Size of space for storing therapeutic food at Group-Area store | E131: m3 | G131: =+'D8 Group-Area & Central Level '!G37 -> 50 | H131: =+'D8 Group-Area & Central Level '!H37 -> 0 | I131: =+'D8 Group-Area & Central Level '!I37 -> 0 | J131: =+'D8 Group-Area & Central Level '!J37 -> 0 | K131: =+'D8 Group-Area & Central Level '!K37 -> 0 | L131: =+'D8 Group-Area & Central Level '!L37 -> 0 | M131: =+'D8 Group-Area & Central Level '!M37 -> 0 | N131: =+'D8 Group-Area & Central Level '!N37 -> 0
D132: Management of Areas by Group-Areas
D133: Time required from Group-Area HQ to set-up CMAM in a Group-Area new to CMAM (advocacy, planning, systems development, budgeting) per year | E133: days | F133: Senior staff | G133: =+'D8 Group-Area & Central Level '!G39 -> 20 | H133: =+'D8 Group-Area & Central Level '!H39 -> 0 | I133: =+'D8 Group-Area & Central Level '!I39 -> 0 | J133: =+'D8 Group-Area & Central Level '!J39 -> 0 | K133: =+'D8 Group-Area & Central Level '!K39 -> 0 | L133: =+'D8 Group-Area & Central Level '!L39 -> 0 | M133: =+'D8 Group-Area & Central Level '!M39 -> 0 | N133: =+'D8 Group-Area & Central Level '!N39 -> 0
D134: Time required from Group-Area HQ to set-up CMAM in a Group-Area new to CMAM (advocacy, planning, systems development, budgeting) per year | E134: days | F134: Mid-level staff | G134: =+'D8 Group-Area & Central Level '!G40 -> 20 | H134: =+'D8 Group-Area & Central Level '!H40 -> 0 | I134: =+'D8 Group-Area & Central Level '!I40 -> 0 | J134: =+'D8 Group-Area & Central Level '!J40 -> 0 | K134: =+'D8 Group-Area & Central Level '!K40 -> 0 | L134: =+'D8 Group-Area & Central Level '!L40 -> 0 | M134: =+'D8 Group-Area & Central Level '!M40 -> 0 | N134: =+'D8 Group-Area & Central Level '!N40 -> 0
D135: Time required from Group-Area HQ to do routine management (or new and established Areas) (sorting out logistics, problem solving, monitoring and reporting, management)
D136: For each new Area (per year) | E136: days | F136: Mid-level staff | G136: =+'D8 Group-Area & Central Level '!G42 -> 20 | H136: =+'D8 Group-Area & Central Level '!H42 -> 0 | I136: =+'D8 Group-Area & Central Level '!I42 -> 0 | J136: =+'D8 Group-Area & Central Level '!J42 -> 0 | K136: =+'D8 Group-Area & Central Level '!K42 -> 0 | L136: =+'D8 Group-Area & Central Level '!L42 -> 0 | M136: =+'D8 Group-Area & Central Level '!M42 -> 0 | N136: =+'D8 Group-Area & Central Level '!N42 -> 0
D137: For each established Area (per year) | E137: days | F137: Mid-level staff | G137: =+'D8 Group-Area & Central Level '!G43 -> 5 | H137: =+'D8 Group-Area & Central Level '!H43 -> 0 | I137: =+'D8 Group-Area & Central Level '!I43 -> 0 | J137: =+'D8 Group-Area & Central Level '!J43 -> 0 | K137: =+'D8 Group-Area & Central Level '!K43 -> 0 | L137: =+'D8 Group-Area & Central Level '!L43 -> 0 | M137: =+'D8 Group-Area & Central Level '!M43 -> 0 | N137: =+'D8 Group-Area & Central Level '!N43 -> 0
D138: Central level - Routine management
D139: Time required for Central management activities (such as advocacy, planning and financial management securing finances) which are largely independent of number/size/newness of Group-Areas participating. | E139: FTE | F139: Mid-level staff | P139: =+'D8 Group-Area & Central Level '!F45 -> 0.5
D140: Time required for Central management activities (such as sorting out logistics, problem solving, monitoring and reporting, management) which increase with number/size/newness of Group-Areas participating.
D141: For each established Group-Area per year | E141: days | F141: Mid-level staff | P141: =+'D8 Group-Area & Central Level '!F47 -> 5
D142: For each new Group-Area per year | E142: days | F142: Mid-level staff | P142: =+'D8 Group-Area & Central Level '!F48 -> 20
D143: Travel to Areas
D144: For each established Group-Area per year | E144: visits | F144: Mid-level staff | P144: =+'D8 Group-Area & Central Level '!F50 -> 1
D145: For each new Group-Area per year | E145: visits | F145: Mid-level staff | P145: =+'D8 Group-Area & Central Level '!F51 -> 4
D146: Time required for management of this Group-Area | E146: weeks | G146: =+IF(G96="yes",$P$142,IF(G95="yes",$P$141,0)) -> 0 | H146: 0 | I146: 0 | J146: 0 | K146: 0 | L146: 0 | M146: 0 | N146: 0 | P146: =+SUM(G146:N146) -> 0
D147: Central level - Establishing CMAM
D148: For first year only of CMAM in country, time required at Central level to develop guidelines, job aids, training materials, training plan, management tools, logistical systems, monitoring and reporting system, and liaise with politicians and donors. | E148: FTE | F148: Senior staff | P148: =+'D8 Group-Area & Central Level '!F53 -> 1
E149: FTE | F149: Mid-level staff | P149: =+'D8 Group-Area & Central Level '!F54 -> 1
A154: Hidden row below
A155: Do not delete this row - to be hidden | G155: =+IF(G127>G130,"!!",IF(G127>G131,"**","")) ->  | H155: =+IF(H127>H130,"!!",IF(H127>H131,"**","")) -> 

Sheet R7 Area HQ Management
A2: Return to Contents | C2: R7: Area HQ Management of CMAM
C5: Number of Areas included | D5: =+'D2 Scale'!$I$8 -> 1 | E5: (taken from Worksheet W2) | I5: hide
C6: This Worksheet shows (for the year chosen) the quantities of inputs (mostly manpower) required to manage the CMAM service/program at Area HQ, and the costs of this.
C8: See below for workings showing how figures are calculated.
C11: =+IF('D1 Background'!$H$11="","",'D1 Background'!$H$11) -> Ghana
C12: =+'D9 Time-dependent'!$I$6 -> 2011 | F12: Area 1 | J12: Area 2 | K12: Area 3 | L12: Area 4 | M12: Area 5 | N12: Area 6 | O12: Area 7 | P12: Area 8 | Q12: Area 9 | R12: Area 10
E13: ='D2 Scale'!C30 -> District | F13: =+IF('D2 Scale'!$C$31="","",'D2 Scale'!$C$31) -> Ashiedu Keteke | J13: =+IF('D2 Scale'!$C$36="","",'D2 Scale'!$C$36) ->  | K13: =+IF('D2 Scale'!$C$41="","",'D2 Scale'!$C$41) ->  | L13: =+IF('D2 Scale'!$C$46="","",'D2 Scale'!$C$46) ->  | M13: =+IF('D2 Scale'!$C$51="","",'D2 Scale'!$C$51) ->  | N13: =+IF('D2 Scale'!$C$56="","",'D2 Scale'!$C$56) ->  | O13: =+IF('D2 Scale'!$C$61="","",'D2 Scale'!$C$61) ->  | P13: =+IF('D2 Scale'!$C$66="","",'D2 Scale'!$C$66) ->  | Q13: =+IF('D2 Scale'!$C$71="","",'D2 Scale'!$C$71) ->  | R13: =+IF('D2 Scale'!$C$76="","",'D2 Scale'!$C$76) -> 
E14: =+'D2 Scale'!D30 -> Region | F14: =+IF('D2 Scale'!$D$31="","",'D2 Scale'!$D$31) -> Greater Accra | J14: =+IF('D2 Scale'!$D$36="","",'D2 Scale'!$D$36) ->  | K14: =+IF('D2 Scale'!$D$41="","",'D2 Scale'!$D$41) ->  | L14: =+IF('D2 Scale'!$D$46="","",'D2 Scale'!$D$46) ->  | M14: =+IF('D2 Scale'!$D$51="","",'D2 Scale'!$D$51) ->  | N14: =+IF('D2 Scale'!$D$56="","",'D2 Scale'!$D$56) ->  | O14: =+IF('D2 Scale'!$D$61="","",'D2 Scale'!$D$61) ->  | P14: =+IF('D2 Scale'!$D$66="","",'D2 Scale'!$D$66) ->  | Q14: =+IF('D2 Scale'!$D$71="","",'D2 Scale'!$D$71) ->  | R14: =+IF('D2 Scale'!$D$76="","",'D2 Scale'!$D$76) -> 
C15: =+message14 -> Annual costs of this activity
C16: =+mess22 -> Variable | D16: =+Mess20 -> Units | E16: =+mess21 -> Comments
C17: Area HQ staff
C18: Senior Area HQ staff | D18: =+IF('D1 Background'!$H$13="","",'D1 Background'!$H$13) -> Cedi | F18: =+F28*F79 -> 443.0769231 | J18: =+J28*J79 -> 0 | K18: 0 | L18: 0 | M18: 0 | N18: 0 | O18: 0 | P18: 0 | Q18: 0 | R18: 0
C19: Mid-level Area HQ staff | D19: =+IF('D1 Background'!$H$13="","",'D1 Background'!$H$13) -> Cedi | F19: =+F29*F80 -> 775.3846154 | J19: =+J29*J80 -> 0 | K19: 0 | L19: 0 | M19: 0 | N19: 0 | O19: 0 | P19: 0 | Q19: 0 | R19: 0
C20: Junior Area HQ staff | D20: =+IF('D1 Background'!$H$13="","",'D1 Background'!$H$13) -> Cedi | F20: =+F30*F81 -> 1440 | J20: =+J30*J81 -> 0 | K20: 0 | L20: 0 | M20: 0 | N20: 0 | O20: 0 | P20: 0 | Q20: 0 | R20: 0
C21: Transport associated with management | D21: =+IF('D1 Background'!$H$13="","",'D1 Background'!$H$13) -> Cedi | F21: =+F31*F82 -> 0 | J21: =+J31*J82 -> 0 | K21: 0 | L21: 0 | M21: 0 | N21: 0 | O21: 0 | P21: 0 | Q21: 0 | R21: 0
C23: Total costs | D23: =+IF('D1 Background'!$H$13="","",'D1 Background'!$H$13) -> Cedi | F23: =+SUM(F18:F21) -> 2658.461538 | J23: =+SUM(J18:J21) -> 0 | K23: 0 | L23: 0 | M23: 0 | N23: 0 | O23: 0 | P23: 0 | Q23: 0 | R23: 0
C25: =+message15 -> Quantities of inputs needed for this activity
C26: =+mess22 -> Variable | D26: =+Mess20 -> Units | E26: =+mess21 -> Comments
C27: Time of Area HQ staff
C28: Senior Area HQ staff | D28: days | F28: =+F53 -> 12 | J28: =+J53 -> 0 | K28: 0 | L28: 0 | M28: 0 | N28: 0 | O28: 0 | P28: 0 | Q28: 0 | R28: 0
C29: Mid-level Area HQ staff | D29: days | F29: =+F54 -> 42 | J29: =+J54 -> 0 | K29: 0 | L29: 0 | M29: 0 | N29: 0 | O29: 0 | P29: 0 | Q29: 0 | R29: 0
C30: Junior Area HQ staff | D30: days | F30: =+F55 -> 78 | J30: =+J55 -> 0 | K30: 0 | L30: 0 | M30: 0 | N30: 0 | O30: 0 | P30: 0 | Q30: 0 | R30: 0
C31: Distance travelled by Area HQ staff for management | D31: km | F31: =+F56 -> 0 | J31: =+J56 -> 0 | K31: 0 | L31: 0 | M31: 0 | N31: 0 | O31: 0 | P31: 0 | Q31: 0 | R31: 0
A49: Return to top | C49: =+message17 -> CALCULATIONS | F49: Area 1 | G49: =+IF(D43>1,message10,"") ->  | J49: Area 2 | K49: Area 3 | L49: Area 4 | M49: Area 5 | N49: Area 6 | O49: Area 7 | P49: Area 8 | Q49: Area 9 | R49: Area 10
F50: =+IF('D2 Scale'!$C$31="","",'D2 Scale'!$C$31) -> Ashiedu Keteke | J50: =+IF('D2 Scale'!$C$36="","",'D2 Scale'!$C$36) ->  | K50: =+IF('D2 Scale'!$C$41="","",'D2 Scale'!$C$41) ->  | L50: =+IF('D2 Scale'!$C$46="","",'D2 Scale'!$C$46) ->  | M50: =+IF('D2 Scale'!$C$51="","",'D2 Scale'!$C$51) ->  | N50: =+IF('D2 Scale'!$C$56="","",'D2 Scale'!$C$56) ->  | O50: =+IF('D2 Scale'!$C$61="","",'D2 Scale'!$C$61) ->  | P50: =+IF('D2 Scale'!$C$66="","",'D2 Scale'!$C$66) ->  | Q50: =+IF('D2 Scale'!$C$71="","",'D2 Scale'!$C$71) ->  | R50: =+IF('D2 Scale'!$C$76="","",'D2 Scale'!$C$76) -> 
C51: =+mess22 -> Variable | D51: =+Mess20 -> Units | E51: =+mess21 -> Comments | F51: =+IF('D2 Scale'!$D$31="","",'D2 Scale'!$D$31) -> Greater Accra | J51: =+IF('D2 Scale'!$D$36="","",'D2 Scale'!$D$36) ->  | K51: =+IF('D2 Scale'!$D$41="","",'D2 Scale'!$D$41) ->  | L51: =+IF('D2 Scale'!$D$46="","",'D2 Scale'!$D$46) ->  | M51: =+IF('D2 Scale'!$D$51="","",'D2 Scale'!$D$51) ->  | N51: =+IF('D2 Scale'!$D$56="","",'D2 Scale'!$D$56) ->  | O51: =+IF('D2 Scale'!$D$61="","",'D2 Scale'!$D$61) ->  | P51: =+IF('D2 Scale'!$D$66="","",'D2 Scale'!$D$66) ->  | Q51: =+IF('D2 Scale'!$D$71="","",'D2 Scale'!$D$71) ->  | R51: =+IF('D2 Scale'!$D$76="","",'D2 Scale'!$D$76) -> 
C52: =+message13 -> Calculations
C53: Days of senior Area HQ staff | D53: days | F53: =+IF(F71="established",F66+F62*(F72+F73),IF(F71="new",F59+F62*(F72+F73)+F66,0)) -> 12 | J53: =+IF(J71="established",J66+J62*(J72+J73),IF(J71="new",J59+J62*(J72+J73)+J66,0)) -> 0 | K53: 0 | L53: 0 | M53: 0 | N53: 0 | O53: 0 | P53: 0 | Q53: 0 | R53: 0
C54: Days of mid-level Area HQ staff | D54: days | F54: =+IF(F71="established",F67+F69*(F72+F73+F74+F75)+F63*(F72+F73),IF(F71="new",F63*(F72+F73)+F67+F69*(F72+F73+F74+F75)+F60,0)) -> 42 | J54: =+IF(J71="established",J67+J69*(J72+J73+J74+J75)+J63*(J72+J73),IF(J71="new",J63*(J72+J73)+J67+J69*(J72+J73+J74+J75)+J60,0)) -> 0 | K54: 0 | L54: 0 | M54: 0 | N54: 0 | O54: 0 | P54: 0 | Q54: 0 | R54: 0
C55: Days of junior Area HQ staff | D55: days | F55: =+IF(F71="established",F68+F70*(F72+F73+F74+F75),IF(F71="new",F68+F70*(F72+F73+F74+F75),0)) -> 78 | J55: =+IF(J71="established",J68+J70*(J72+J73+J74+J75),IF(J71="new",J68+J70*(J72+J73+J74+J75),0)) -> 0 | K55: 0 | L55: 0 | M55: 0 | N55: 0 | O55: 0 | P55: 0 | Q55: 0 | R55: 0
C56: (Person) km travelled | D56: km | F56: =+F64*2*(F72*F76+F73*F77) -> 0 | J56: =+J64*2*(J72*J76+J73*J77) -> 0 | K56: 0 | L56: 0 | M56: 0 | N56: 0 | O56: 0 | P56: 0 | Q56: 0 | R56: 0
C57: =+message16 -> Basic drivers, raw data
C58: For the planning and establishment of logistical systems, management tools, monitoring and reporting system, community outreach in a new Area
C59: Days of senior Area HQ staff per new Area | D59: days | E59: Worksheet D3 | F59: =+'D3 Epid. Demog. & Service Data'!F201 -> 20 | J59: =+'D3 Epid. Demog. & Service Data'!J201 -> 20 | K59: =+'D3 Epid. Demog. & Service Data'!K201 -> 20 | L59: =+'D3 Epid. Demog. & Service Data'!L201 -> 20 | M59: =+'D3 Epid. Demog. & Service Data'!M201 -> 20 | N59: =+'D3 Epid. Demog. & Service Data'!N201 -> 20 | O59: =+'D3 Epid. Demog. & Service Data'!O201 -> 20 | P59: =+'D3 Epid. Demog. & Service Data'!P201 -> 20 | Q59: =+'D3 Epid. Demog. & Service Data'!Q201 -> 20 | R59: =+'D3 Epid. Demog. & Service Data'!R201 -> 20
C60: Days of mid-level Area HQ staff per new Area | D60: days | E60: Worksheet D3 | F60: =+'D3 Epid. Demog. & Service Data'!F202 -> 20 | J60: =+'D3 Epid. Demog. & Service Data'!J202 -> 20 | K60: =+'D3 Epid. Demog. & Service Data'!K202 -> 20 | L60: =+'D3 Epid. Demog. & Service Data'!L202 -> 20 | M60: =+'D3 Epid. Demog. & Service Data'!M202 -> 20 | N60: =+'D3 Epid. Demog. & Service Data'!N202 -> 20 | O60: =+'D3 Epid. Demog. & Service Data'!O202 -> 20 | P60: =+'D3 Epid. Demog. & Service Data'!P202 -> 20 | Q60: =+'D3 Epid. Demog. & Service Data'!Q202 -> 20 | R60: =+'D3 Epid. Demog. & Service Data'!R202 -> 20
C61: Getting a new Outpatient Care or Inpatient Care site up and running
C62: Days of senior Area HQ staff per new Outpatient Care or Inpatient Care site | D62: days | E62: Worksheet D3 | F62: =+'D3 Epid. Demog. & Service Data'!F204 -> 5 | J62: =+'D3 Epid. Demog. & Service Data'!J204 -> 5 | K62: =+'D3 Epid. Demog. & Service Data'!K204 -> 5 | L62: =+'D3 Epid. Demog. & Service Data'!L204 -> 5 | M62: =+'D3 Epid. Demog. & Service Data'!M204 -> 5 | N62: =+'D3 Epid. Demog. & Service Data'!N204 -> 5 | O62: =+'D3 Epid. Demog. & Service Data'!O204 -> 5 | P62: =+'D3 Epid. Demog. & Service Data'!P204 -> 5 | Q62: =+'D3 Epid. Demog. & Service Data'!Q204 -> 5 | R62: =+'D3 Epid. Demog. & Service Data'!R204 -> 5
C63: Days of mid-level Area HQ staff per new Outpatient Care or Inpatient Care site | D63: days | E63: Worksheet D3 | F63: =+'D3 Epid. Demog. & Service Data'!F205 -> 5 | J63: =+'D3 Epid. Demog. & Service Data'!J205 -> 5 | K63: =+'D3 Epid. Demog. & Service Data'!K205 -> 5 | L63: =+'D3 Epid. Demog. & Service Data'!L205 -> 5 | M63: =+'D3 Epid. Demog. & Service Data'!M205 -> 5 | N63: =+'D3 Epid. Demog. & Service Data'!N205 -> 5 | O63: =+'D3 Epid. Demog. & Service Data'!O205 -> 5 | P63: =+'D3 Epid. Demog. & Service Data'!P205 -> 5 | Q63: =+'D3 Epid. Demog. & Service Data'!Q205 -> 5 | R63: =+'D3 Epid. Demog. & Service Data'!R205 -> 5
C64: (Person) trips to new Outpatient Care or Inpatient Care site | D64: trips | E64: Worksheet D3 | F64: =+'D3 Epid. Demog. & Service Data'!F206 -> 5 | J64: =+'D3 Epid. Demog. & Service Data'!J206 -> 5 | K64: =+'D3 Epid. Demog. & Service Data'!K206 -> 5 | L64: =+'D3 Epid. Demog. & Service Data'!L206 -> 5 | M64: =+'D3 Epid. Demog. & Service Data'!M206 -> 5 | N64: =+'D3 Epid. Demog. & Service Data'!N206 -> 5 | O64: =+'D3 Epid. Demog. & Service Data'!O206 -> 5 | P64: =+'D3 Epid. Demog. & Service Data'!P206 -> 5 | Q64: =+'D3 Epid. Demog. & Service Data'!Q206 -> 5 | R64: =+'D3 Epid. Demog. & Service Data'!R206 -> 5
C65: Ongoing management of CMAM in the Area (supervision, monitoring and reporting, personnel and financial management)
C66: Days of senior Area HQ staff per Area per year | D66: days | E66: Worksheet D3 | F66: =+'D3 Epid. Demog. & Service Data'!F208 -> 12 | J66: =+'D3 Epid. Demog. & Service Data'!J208 -> 12 | K66: =+'D3 Epid. Demog. & Service Data'!K208 -> 12 | L66: =+'D3 Epid. Demog. & Service Data'!L208 -> 12 | M66: =+'D3 Epid. Demog. & Service Data'!M208 -> 12 | N66: =+'D3 Epid. Demog. & Service Data'!N208 -> 12 | O66: =+'D3 Epid. Demog. & Service Data'!O208 -> 12 | P66: =+'D3 Epid. Demog. & Service Data'!P208 -> 12 | Q66: =+'D3 Epid. Demog. & Service Data'!Q208 -> 12 | R66: =+'D3 Epid. Demog. & Service Data'!R208 -> 12
C67: Days of mid-level Area HQ staff per Area per year | D67: days | E67: Worksheet D3 | F67: =+'D3 Epid. Demog. & Service Data'!F209 -> 24 | J67: =+'D3 Epid. Demog. & Service Data'!J209 -> 24 | K67: =+'D3 Epid. Demog. & Service Data'!K209 -> 24 | L67: =+'D3 Epid. Demog. & Service Data'!L209 -> 24 | M67: =+'D3 Epid. Demog. & Service Data'!M209 -> 24 | N67: =+'D3 Epid. Demog. & Service Data'!N209 -> 24 | O67: =+'D3 Epid. Demog. & Service Data'!O209 -> 24 | P67: =+'D3 Epid. Demog. & Service Data'!P209 -> 24 | Q67: =+'D3 Epid. Demog. & Service Data'!Q209 -> 24 | R67: =+'D3 Epid. Demog. & Service Data'!R209 -> 24
C68: Days of junior Area HQ staff per Area per year | D68: days | E68: Worksheet D3 | F68: =+'D3 Epid. Demog. & Service Data'!F210 -> 60 | J68: =+'D3 Epid. Demog. & Service Data'!J210 -> 60 | K68: =+'D3 Epid. Demog. & Service Data'!K210 -> 60 | L68: =+'D3 Epid. Demog. & Service Data'!L210 -> 60 | M68: =+'D3 Epid. Demog. & Service Data'!M210 -> 60 | N68: =+'D3 Epid. Demog. & Service Data'!N210 -> 60 | O68: =+'D3 Epid. Demog. & Service Data'!O210 -> 60 | P68: =+'D3 Epid. Demog. & Service Data'!P210 -> 60 | Q68: =+'D3 Epid. Demog. & Service Data'!Q210 -> 60 | R68: =+'D3 Epid. Demog. & Service Data'!R210 -> 60
C69: Days of mid-level Area HQ staff per Outpatient Care or Inpatient Care site per year | D69: days | E69: Worksheet D3 | F69: =+'D3 Epid. Demog. & Service Data'!F211 -> 6 | J69: =+'D3 Epid. Demog. & Service Data'!J211 -> 6 | K69: =+'D3 Epid. Demog. & Service Data'!K211 -> 6 | L69: =+'D3 Epid. Demog. & Service Data'!L211 -> 6 | M69: =+'D3 Epid. Demog. & Service Data'!M211 -> 6 | N69: =+'D3 Epid. Demog. & Service Data'!N211 -> 6 | O69: =+'D3 Epid. Demog. & Service Data'!O211 -> 6 | P69: =+'D3 Epid. Demog. & Service Data'!P211 -> 6 | Q69: =+'D3 Epid. Demog. & Service Data'!Q211 -> 6 | R69: =+'D3 Epid. Demog. & Service Data'!R211 -> 6
C70: Days of junior Area HQ staff per Outpatient Care or Inpatient Care site per year | D70: days | E70: Worksheet D3 | F70: =+'D3 Epid. Demog. & Service Data'!F212 -> 6 | J70: =+'D3 Epid. Demog. & Service Data'!J212 -> 6 | K70: =+'D3 Epid. Demog. & Service Data'!K212 -> 6 | L70: =+'D3 Epid. Demog. & Service Data'!L212 -> 6 | M70: =+'D3 Epid. Demog. & Service Data'!M212 -> 6 | N70: =+'D3 Epid. Demog. & Service Data'!N212 -> 6 | O70: =+'D3 Epid. Demog. & Service Data'!O212 -> 6 | P70: =+'D3 Epid. Demog. & Service Data'!P212 -> 6 | Q70: =+'D3 Epid. Demog. & Service Data'!Q212 -> 6 | R70: =+'D3 Epid. Demog. & Service Data'!R212 -> 6
C71: Is this Area is CMAM new, established or inactive? | E71: Worksheet D9 | F71: =+'D9 Time-dependent'!F46 -> established | J71: =+'D9 Time-dependent'!J46 -> inactive | K71: =+'D9 Time-dependent'!K46 -> inactive | L71: =+'D9 Time-dependent'!L46 -> inactive | M71: =+'D9 Time-dependent'!M46 -> inactive | N71: =+'D9 Time-dependent'!N46 -> inactive | O71: =+'D9 Time-dependent'!O46 -> inactive | P71: =+'D9 Time-dependent'!P46 -> inactive | Q71: =+'D9 Time-dependent'!Q46 -> inactive | R71: =+'D9 Time-dependent'!R46 -> inactive
C72: Number of new Outpatient Care sites | D72: sites | E72: Worksheet D9 | F72: =+'D9 Time-dependent'!F30 -> 0 | J72: =+'D9 Time-dependent'!J30 -> 0 | K72: =+'D9 Time-dependent'!K30 -> 0 | L72: =+'D9 Time-dependent'!L30 -> 0 | M72: =+'D9 Time-dependent'!M30 -> 0 | N72: =+'D9 Time-dependent'!N30 -> 0 | O72: =+'D9 Time-dependent'!O30 -> 0 | P72: =+'D9 Time-dependent'!P30 -> 0 | Q72: =+'D9 Time-dependent'!Q30 -> 0 | R72: =+'D9 Time-dependent'!R30 -> 0
C73: Number of new Inpatient Care sites | D73: sites | E73: Worksheet D9 | F73: =+'D9 Time-dependent'!F33 -> 0 | J73: =+'D9 Time-dependent'!J33 -> 0 | K73: =+'D9 Time-dependent'!K33 -> 0 | L73: =+'D9 Time-dependent'!L33 -> 0 | M73: =+'D9 Time-dependent'!M33 -> 0 | N73: =+'D9 Time-dependent'!N33 -> 0 | O73: =+'D9 Time-dependent'!O33 -> 0 | P73: =+'D9 Time-dependent'!P33 -> 0 | Q73: =+'D9 Time-dependent'!Q33 -> 0 | R73: =+'D9 Time-dependent'!R33 -> 0
C74: Number of established Outpatient Care sites | D74: sites | E74: Worksheet D9 | F74: =+'D9 Time-dependent'!F31 -> 2 | J74: =+'D9 Time-dependent'!J31 -> 0 | K74: =+'D9 Time-dependent'!K31 -> 0 | L74: =+'D9 Time-dependent'!L31 -> 0 | M74: =+'D9 Time-dependent'!M31 -> 0 | N74: =+'D9 Time-dependent'!N31 -> 0 | O74: =+'D9 Time-dependent'!O31 -> 0 | P74: =+'D9 Time-dependent'!P31 -> 0 | Q74: =+'D9 Time-dependent'!Q31 -> 0 | R74: =+'D9 Time-dependent'!R31 -> 0
C75: Number of established Inpatient Care sites | D75: sites | E75: Worksheet D9 | F75: =+'D9 Time-dependent'!F34 -> 1 | J75: =+'D9 Time-dependent'!J34 -> 0 | K75: =+'D9 Time-dependent'!K34 -> 0 | L75: =+'D9 Time-dependent'!L34 -> 0 | M75: =+'D9 Time-dependent'!M34 -> 0 | N75: =+'D9 Time-dependent'!N34 -> 0 | O75: =+'D9 Time-dependent'!O34 -> 0 | P75: =+'D9 Time-dependent'!P34 -> 0 | Q75: =+'D9 Time-dependent'!Q34 -> 0 | R75: =+'D9 Time-dependent'!R34 -> 0
